Workbook

Sheet FrontPage
D1: Reaction Force Color Chart (refers only to the Flow and Pressure you've provided below): | E1: This is a Low RF Nozzle (RF < 51 ) | G1: <61 or <51 | L1: <50 | M1: 50-65 | N1: 65-70
L2: Green | M2: Green Shading to yellow | N2: Orange to red
E3: This is a Nozzle with Increased RF (RF > 50 and <101 ) | G3: 51-70 or 61-70 | H3: =ROUNDDOWN(SQRT(C17/(29.71*SQRT(C18))),2) ->  | S3: 5-10-20-40 | Z3: 40 | AA3: 100
S4: 12-23-34-53 | Z4: 60 | AA4: 100 | AB4: 87 | AC4: 75
E5: This Nozzle has a High RF (RF > 100 ) | G5: >70 | H5: Nozzle Line | S5: 30-60-95-125-150
H6: =CONCATENATE("FP",SUBSTITUTE(O22," ","_")) -> FPA_solid_stream_of_water | I6: Single-tip Solid Bore | J6: Stack Tips | K6: Multi-Purpose (both Fog and Solid Bore) | L6: Saber Shutoff | S6: 13-25-40-60
H7: =CONCATENATE("FP",SUBSTITUTE(O23," ","_")) -> FPThe_ability_to_change_fog_pattern | I7: Selectable Gallonage | J7: Fixed Orifice Fog | K7: Multi-Purpose (both Fog and Solid Bore) | S7: 13-25-40-60
B8: This page is intended to guide you toward the correct Nozzle Type and will not provide any Part Number or List Price. Use the Recommendation (below) to guide you to the correct tab within this spreadsheet to get detailed information. Inputs on this page will NOT carry over to other tabs. | E8: Rev Date: 6/27/2022
H9: =CONCATENATE("FP",SUBSTITUTE(O24," ","_")) -> FPMake_Selection_Above | I9: Make Selection Above | S9: 18-30 | T9: 18 | U9: 30 | Z9: =TRIM(LEFT(AA9,3)) -> 30 | AA9: 30 gpm @ 50 psi; RF 11
J10: d= | K10: =SQRT(C17/(29.71*SQRT(C18))) ->  | L10: SQRT([flow]/(29.71*SQRT([pressure]))) | S10: 13-23-30 | T10: 13 | U10: 23 | V10: 30 | Z10: =TRIM(LEFT(AA10,3)) -> 53 | AA10: 53 gpm @ 50 psi; RF 20
B11: Information regarding recommended Hose Sizes and Reaction Forces are based on general firefighting knowledge. Actual deployment of product is the responsibility of the end user and subject to the policies and procedures of the department and/or organization deploying the product.
C15: Make your selection(s) from the dropdown in the green cell(s) below | S15: 18-30 | Z15: 82 | AA15: 82 gpm @ 50 psi; RF 31
B16: What are you looking for? | D16: =IF(C16="","",IF(C19="","",IFERROR(IF(H16<51,J56,IF(H16<101,J57,IF(H16>100,J58,""))),""))) ->  | H16: =IF(C19=O23,ROUND(0.0505*C17*SQRT(C18),0),ROUND(1.57*(SQRT(C17/(29.71*SQRT(C18)))*SQRT(C17/(29.71*SQRT(C18))))*C18,0)) ->  | K16: ROUND(1.57*(ER2*ER2)*ET$1,0) | S16: 13-23-30 | Z16: 118 | AA16: 118 gpm @ 50 psi; RF 44
B17: Max Flow Needed | D17: =IF(C17="","",IF(C17<95,K49,IF(C17<151,K50,IF(C17<251,K51,IF(C17>250,K52,""))))) ->  | P17: Solid B | S17: 30-60-95-125 | T17: 30 | U17: 60 | V17: 95 | W17: 125 | Z17: 161 | AA17: 161 gpm @ 50 psi; RF 60
B18: Nozzle Inlet Pressure (Not all Flows are available in all Pressures) | D18: =IFERROR(CONCATENATE(IF(C18=50,"Low Pressure Hose strongly recommended; ",""),VLOOKUP(C19,O22:Q23,3,FALSE),IF(C19=O23,ROUND(0.0505*C17*SQRT(C18),0),ROUND(1.57*(SQRT(C17/(29.71*SQRT(C18)))*SQRT(C17/(29.71*SQRT(C18))))*C18,0))),"") ->  | E18: =IF(C18="","",IF(C19=O23,"",IF(C19=O22,IFERROR(CONCATENATE(VLOOKUP(ROUNDDOWN(SQRT(C17/(29.71*SQRT(C18))),2),I20:M31,5,FALSE)," Bore Size"),"Exact Bore Size Not Available; see options for the closest equivalent"),""))) ->  | S18: 30-60-95-125 | Z18: 185 | AA18: 185 gpm @ 50 psi; RF 69
B19: Nozzle Function | D19: =IFERROR(VLOOKUP(C19,O:P,2,FALSE),"") ->  | S19: 95-125-150-200 | T19: 95 | U19: 125 | V19: 150 | W19: 200 | Z19: 210 | AA19: 210 gpm @ 50 psi; RF 79
B20: Nozzle Type | D20: =IFERROR(HLOOKUP(C20,H36:N37,2,FALSE),"") ->  | I20: =ROUNDDOWN(K20,2) -> 0.37 | J20: =VALUE(TRIM(LEFT(L20,3))) -> 30 | K20: 0.375 | L20: 30 gpm @ 50 psi; RF 11 | M20: 3/8" | S20: 125-150-200-250 | T20: 125 | U20: 150 | V20: 200 | W20: 250 | Z20: 237 | AA20: 237 gpm @ 50 psi; RF 89
I21: =ROUNDDOWN(K21,2) -> 0.5 | J21: =VALUE(TRIM(LEFT(L21,3))) -> 53 | K21: 0.5 | L21: 53 gpm @ 50 psi; RF 20 | M21: 1/2" | S21: 95-125-150-200 | Z21: 266 | AA21: 266 gpm @ 50 psi; RF 99
B22: Recommendation: | C22: =IF(C16="","",IFERROR(IF(C16=$J$43,K38,HLOOKUP(C20,H36:M38,3,FALSE)),"")) ->  | I22: 0.62 | J22: 82 | K22: 0.625 | L22: 82 gpm @ 50 psi; RF 31 | M22: 5/8" | O22: A solid stream of water | P22: Includes Solid Bore and Stack Tips | Q22: Solid Bore Reaction Force = | S22: 125-150-200-250 | Z22: 296 | AA22: 296 gpm @ 50 psi; RF 111
I23: 0.74 | J23: 118 | K23: 0.75 | L23: 118 gpm @ 50 psi; RF 44 | M23: 3/4" | O23: The ability to change fog pattern | P23: TurboJet, Assault, ProVenger, SaberJet, UltraJet | Q23: Fog Reaction Force = | S23: 30-95-125-150-200 | Z23: 328 | AA23: 328 gpm @ 50 psi; RF 123
I24: 0.87 | J24: 161 | K24: 0.875 | L24: 161 gpm @ 50 psi; RF 60 | M24: 7/8" | O24: Make Selection Above | Q24: Make Selection Above | S24: 30-95-125-150-200 | Z24: 397 | AA24: 397 gpm @ 50 psi; RF 148
I25: 0.93 | J25: 185 | K25: 0.9375 | L25: 185 gpm @ 50 psi; RF 69 | M25: 15/16"
I26: 0.99 | J26: 210 | K26: 1 | L26: 210 gpm @ 50 psi; RF 79 | M26: 1"
I27: 1.06 | J27: 237 | K27: 1.0625 | L27: 237 gpm @ 50 psi; RF 89 | M27: 1-1/16" | S27: _ | T27: =CONCATENATE("FP",S27) -> FP_
I28: 1.12 | J28: 266 | K28: 1.125 | L28: 266 gpm @ 50 psi; RF 99 | M28: 1-1/8" | S28: 5 | T28: =CONCATENATE("FP",S28) -> FP5 | U28: 100 | V28: 87 | W28: 75
I29: 1.18 | J29: 296 | K29: 1.1875 | L29: 296 gpm @ 50 psi; RF 111 | M29: 1-3/16" | S29: 10 | T29: =CONCATENATE("FP",S29) -> FP10 | U29: 100 | V29: 87 | W29: 75
I30: 1.24 | J30: 328 | K30: 1.25 | L30: 328 gpm @ 50 psi; RF 123 | M30: 1-1/4" | S30: 12 | T30: FP12 | U30: 87
I31: 1.37 | J31: 397 | K31: 1.375 | L31: 397 gpm @ 50 psi; RF 148 | M31: 1-3/8" | S31: 13 | T31: FP13 | U31: 100 | V31: 87
S32: 20 | T32: FP20 | U32: 100 | V32: 87 | W32: 75
S33: 23 | T33: FP23 | U33: 87
S34: 25 | T34: FP25 | U34: 100 | V34: 87
S35: 30 | T35: FP30 | U35: 100 | V35: 75 | W35: 50
H36: Single-tip Solid Bore | I36: Stack Tips | J36: Multi-Purpose (both Fog and Solid Bore) | K36: Saber Shutoff | L36: Selectable Gallonage | M36: Fixed Orifice Fog | N36: Multi-Purpose (both Fog and Solid Bore) | S36: 34 | T36: FP34 | U36: 87 | V36: 50
H37: Styles 416, 1417, 1499, 489, 1445, 1446 | I37: Styles 439, 1420, 1441, 1443 | J37: UltraJet or SaberJet | K37: Style 2431 or 2433 | L37: TurboJet or ProVenger | M37: Assault or ProVenger | S37: 40 | T37: FP40 | U37: 100 | V37: 87 | W37: 75 | Z37: 296
H38: Go to the blue-colored tab entitled "SolidBoreAndStackTips" to explore the full range of options and obtain the Akron Brass part number for the solid bore tip you configure | I38: Go to the blue-colored tab entitled "SolidBoreAndStackTips" to explore the full range of options and obtain the Akron Brass part number for the stack tips you configure | J38: Go to the purple-colored tab entitled "Multi-Purpose" to explore the full range of options and obtain the Akron Brass part number for the nozzle or tip you configure | K38: Go to the green-colored tab entitled "Shutoffs" to explore the full range of options and obtain the Akron Brass part number for the shutoff you configure | L38: Go to the red-colored tab entitled "Selectable" to explore the full range of options and obtain the Akron Brass part number for the fog nozzle or fog tip you configure | M38: Go to the yellow-colored tab entitled "Fixed" to explore the full range of options and obtain the Akron Brass part number for the fog nozzle or fog tip you configure | S38: 53 | T38: FP53 | U38: 87 | V38: 50 | Z38: 328
S39: 60 | T39: FP60 | U39: 100 | V39: 87 | W39: 75 | Z39: 397
S40: 82 | T40: FP82 | U40: 50
S41: 95 | T41: FP95 | U41: 100 | V41: 87 | W41: 75
S42: 118 | T42: FP118 | U42: 50
J43: Just a Shutoff | S43: 125 | T43: FP125 | U43: 100 | V43: 87 | W43: 75 | X43: 50
J44: Fog Nozzle or Solid Bore Tip | S44: 150 | T44: FP150 | U44: 100 | V44: 87 | W44: 75 | X44: 50
S45: 161 | T45: FP161 | U45: 50
S46: 175 | T46: FP175 | U46: 100 | V46: 75 | W46: 50
S47: 185 | T47: FP185 | U47: 50
S48: 200 | T48: FP200 | U48: 100 | V48: 75
J49: <95 | K49: 1" or 1.5" line recommended | S49: 210 | T49: FP210 | U49: 50
J50: 30-150 | K50: 1.5" line recommended, 1.75" acceptable | S50: 225 | T50: FP225 | U50: 100
J51: 95-250 | K51: 1.75" or larger line recommended | S51: 237 | T51: FP237 | U51: 50
J52: 200+ | K52: Larger than 1.75" line recommended | S52: 250 | T52: FP250 | U52: 100 | V52: 75 | W52: 50
S53: 265 | T53: FP265 | U53: 50
S54: 266 | T54: FP266 | U54: 50
J55: Reaction Force Color Codes | S55: 296 | T55: FP296 | U55: 50
J56: =E1 -> This is a Low RF Nozzle (RF < 51 ) | S56: 300 | T56: FP300 | U56: 100 | V56: 75
J57: =E3 -> This is a Nozzle with Increased RF (RF > 50 and <101 ) | S57: 328 | T57: FP328 | U57: 50
J58: =E5 -> This Nozzle has a High RF (RF > 100 ) | S58: 350 | T58: FP350 | U58: 100
S59: 397 | T59: FP397 | U59: 50

Sheet Selectable
B1: Instructions: | H1: Reaction Force Color Chart (refers to highest available Flow @ Rated Pressure): | I1: This is a Low RF Nozzle (RF < 51 ) | AH1: asdf | AI1: 13 | AJ1: 25 | AK1: 40 | AL1: 60 | AM1: 95 | AN1: 125 | AO1: 150 | AP1: 161 | AQ1: 175 | AR1: 185 | AS1: 200 | AT1: 210 | AU1: 225 | AV1: 250 | AW1: 265 | AX1: 300 | AY1: 350
B2: Tan-colored cells are headers or describe the selection options | M2: Nozzle | O2: Fog Nozzle | P2: Fog Tip | R2: 5-40 | S2: 125-250 | T2: 13-30 | U2: 13-60 | V2: 18-30 | W2: 30-125 | X2: 30-150 | Y2: 30-200 | Z2: 95-200 | AA2: 12-53 | AI2: 100 (Std) | AJ2: 100 (Std) | AK2: 100 (Std) | AL2: 100 (Std) | AM2: 100 (Std) | AN2: 100 (Std) | AO2: 100 (Std) | AP2: 50 | AQ2: 100 (Std) | AR2: 50 | AS2: 100 (Std) | AT2: 50 | AU2: 100 (Std) | AV2: 100 (Std) | AW2: 50 | AX2: 100 (Std) | AY2: 100 (Std)
B3: Use the green-colored cells to make your selections (All cells must be filled in; information from "FrontPage" tab does not carry over to this page) | I3: This is a Nozzle with Increased RF (RF > 50 and <101 ) | M3: Tip | O3: 1 in | P3: 1.5 in | R3: 100 (Std) | S3: 100 (Std) | T3: 100 (Std) | U3: 100 (Std) | V3: 100 (Std) | W3: 100 (Std) | X3: 100 (Std) | Y3: 100 (Std) | Z3: 100 (Std) | AA3: 87 (CE) | AL3: 75 | AM3: 75 | AN3: 75 | AO3: 75 | AQ3: 75 | AS3: 75 | AV3: 75 | AX3: 75
B4: Blue-colored cells provide outputs based on your selections | M4: High Pressure | O4: 1.5 in | R4: 75 | S4: 75 | W4: 75 | X4: 75 | Y4: 75 | Z4: 75 | AL4: 87 (CE) | AM4: 87 (CE) | AN4: 50 | AO4: 50 | AQ4: 50 | AS4: 50 | AV4: 50
B5: This shaded cell indicates an error has ocurred and you may need to modify some of your selections or contact our Customer Care team | I5: This Nozzle has a High RF (RF > 100 ) | O5: 2 in | R5: 87 (CE) | W5: 87 (CE) | X5: 87 (CE) | AD5: 5-40 | AE5: 100 (Std) | AF5: =CONCATENATE(AD5," ",AE5) -> 5-40 100 (Std) | AN5: 87 (CE) | AO5: 87 (CE)
B6: Orange-colored cell allows you to input your discount for Net Price | O6: 2.5 in | AD6: 5-40 | AE6: 75 | AF6: =CONCATENATE(AD6," ",AE6) -> 5-40 75
B7: =FrontPage!E8 -> Rev Date: 6/27/2022 | D7: Selectable Gallonage Fog Nozzles | O7: 3 in | AD7: 5-40 | AE7: 87 (CE) | AF7: 5-40 87 (CE)
B8: Nozzle or Tip | C8: Inlet Size | D8: Flow Range | E8: Pressure Rating | F8: Inlet Thread | G8: Bumper Color | H8: =IF(OR(B10="FOG TIP",J10="yes"),"","Remove Pistol Grip?") -> Remove Pistol Grip? | I8: Style Number | J8: =IF(B10="FOG TIP","","ZT Inlet?") -> ZT Inlet? | K8: Custom Etch | AD8: 125-250 | AE8: 100 (Std) | AF8: 125-250 100 (Std)
AD9: 125-250 | AE9: 75 | AF9: 125-250 75
B10: Fog Nozzle | C10: 1.5 in | D10: 30-125 | E10: 75 | F10: NH | G10: BLACK (Std) | H10: No (Std) | I10: =IFERROR(VLOOKUP(CONCATENATE(B10," ",D10),Q33:R49,2,FALSE),"Not Available") -> 1720 | J10: No (Std) | K10: No (Std) | AD10: 13-30 | AE10: 100 (Std) | AF10: 13-30 100 (Std)
B11: List price | C11: =SUM(E11:J11) -> 1198 | F11: =IF(OR(F10="Storz",F10="BIM"),_xlfn.XLOOKUP("Storz",R:R,S:S),0) -> 0 | G11: =IFERROR(VLOOKUP(CONCATENATE(I10,D10),AD33:AH49,K11,FALSE),"") -> RF = 13-26-42-55 | I11: =IFERROR(VLOOKUP(TRIM(I10),R33:S49,2,FALSE),"") -> 1198 | J11: =IF(J8="",0,IF(J10="Yes",_xlfn.XLOOKUP("zt",R:R,S:S),0)) -> 0 | K11: =IF(TRIM(LEFT(E10,3))="100",3,IF(TRIM(LEFT(E10,3))="87",4,IF(TRIM(LEFT(E10,3))="75",5,0))) -> 5 | AD11: 13-60 | AE11: 100 (Std) | AF11: 13-60 100 (Std) | AJ11: bmpr4116 | AK11: BLACK (Std)
B12: Your Discount | C12: 0.3 | D12: Net Price | F12: =ROUND(C11*(1-C12),2) -> 838.6 | H12: =IF(B10="fog tip","","Include Color Clips for Shutoff and/or Pistol Grip? (no upcharge)") -> Include Color Clips for Shutoff and/or Pistol Grip? (no upcharge) | K12: Yes | AD12: 18-30 | AE12: 100 (Std) | AF12: 18-30 100 (Std) | AJ12: bmpr4802 | AK12: BLACK (Std) | AL12: ORANGE | AM12: YELLOW | AN12: RED | AO12: BLUE | AP12: GREEN
B13: Short Description | C13: =IF(B22="Error","Fix Errors",CONCATENATE(I10," ",C10," ",F10," ",D10," ",E10," ",G10,IF(B10="Fog Tip","",IF(J10="yes"," PG",IF(H10="yes"," NPG"," PG"))),IF(B10="Fog Tip","",IF(J10="Yes"," ZT","")),IF(K10="Yes"," ETCH",""))) -> 1720 1.5 in NH 30-125 75 BLACK (Std) PG | M13: 1 IN | N13: NH | R13: 1 in | S13: 1.5 in | T13: 2 in | U13: 2.5 in | V13: 3 in | AD13: 30-125 | AE13: 100 (Std) | AF13: 30-125 100 (Std) | AJ13: bmpr4824 | AK13: BLACK (Std) | AL13: ORANGE | AM13: YELLOW | AN13: RED | AO13: BLUE | AP13: GREEN
B14: Long Description | C14: =IF(B22="Error","Some of your selections are not compatible with others; please correct the errors highlighted in RED",CONCATENATE("Style ",I10," ",B10," with ",C10," ",F10," inlet; ",VLOOKUP(CONCATENATE(I10,D10),W33:X49,2,FALSE)," gpm @ ",E10," psi (",G11,"); ",PROPER(G10)," bumper",IF(B10="Fog Tip","",IF(J10="yes","",IF(H10="yes","; NO PISTOL GRIP","; pistol grip"))),IF(B10="Fog Tip","",IF(J10="Yes","; Zero-Torque Grip","")),IF(K10="Yes","; Custom Etched",""))) -> Style 1720 Fog Nozzle with 1.5 in NH inlet; 30-60-95-125 gpm @ 75 psi (RF = 13-26-42-55); Black (Std) bumper; pistol grip | H14: Akron Brass Part Number and Description | I14: =IF(AND(OR(E10="custom",F10="custom"),K10="yes"),"Contact Customer Care to request Custom Thread and Etch (800-228-1161)",IF(F10="custom","Contact Customer Care to request Custom Thread (800-228-1161)",IF(K10="Yes","Contact Customer Care to request Custom Etch (800-228-1161)",IF(B22="Error","Incompatible selections; please correct errors highlighted in RED",IFERROR(CONCATENATE(VLOOKUP(C13,DataSource!AH:AJ,2,FALSE)," ",VLOOKUP(C13,DataSource!AH:AJ,3,FALSE)),"Version you've requested not yet created; contact Customer Care (800-228-1161)"))))) -> 17204011 TBJT 1.5NH 30-125G@75P | M14: 1 IN | N14: NPSH | Q14: 30-125 | R14: 5-40 | S14: 13-30 | T14: 5-40 | U14: 30-125 | V14: 30-125 | AD14: 30-125 | AE14: 75 | AF14: 30-125 75 | AJ14: bmpr4826 | AK14: BLACK (Std) | AL14: ORANGE | AM14: YELLOW | AN14: RED | AO14: BLUE | AP14: GREEN
M15: 1 IN | N15: STORZ | Q15: 30-150 | R15: 13-30 | S15: 13-60 | T15: 13-30 | U15: 30-150 | V15: 30-150 | AD15: 30-125 | AE15: 87 (CE) | AF15: 30-125 87 (CE) | AJ15: bmpr4863 | AK15: BLACK (Std) | AL15: ORANGE | AM15: YELLOW | AN15: RED | AO15: BLUE | AP15: GREEN
B16: Notes: | C16: You can make any notes about what you want, or anything else, in this space | M16: 1.5 in | Q16: 30-200 | R16: 18-30 | S16: 30-125 | T16: 18-30 | U16: 30-200 | V16: 30-200 | AD16: 30-150 | AE16: 100 (Std) | AF16: 30-150 100 (Std) | AJ16: bmpr4866 | AK16: BLACK (Std) | AL16: ORANGE | AM16: YELLOW | AN16: RED | AO16: BLUE | AP16: GREEN
M17: 1.5 in | Q17: 95-200 | R17: 13-60 | S17: 30-150 | T17: 13-60 | U17: 95-200 | V17: 95-200 | AD17: 30-150 | AE17: 75 | AF17: 30-150 75
M18: 1.5 in | Q18: 125-250 | R18: 12-53 | S18: 30-200 | T18: 30-125 | U18: 125-250 | V18: 125-250 | AD18: 30-150 | AE18: 87 (CE) | AF18: 30-150 87 (CE)
M19: 1.5 IN | S19: 95-200 | T19: 30-200 | AD19: 30-200 | AE19: 100 (Std) | AF19: 30-200 100 (Std)
D20: =CONCATENATE("_",SUBSTITUTE(C10," ","_"),"_",SUBSTITUTE(D10,"-","_")) -> _1.5_in_30_125 | H20: =VLOOKUP(C13,DataSource!AH:AJ,2,FALSE) -> 17204011 | I20: =VLOOKUP(C13,DataSource!AH:AJ,3,FALSE) -> TBJT 1.5NH 30-125G@75P | M20: 1.5 in | S20: 125-250 | T20: 30-150 | AD20: 30-200 | AE20: 75 | AF20: 30-200 75
D21: =CONCATENATE(C10," ",D10) -> 1.5 in 30-125 | I21: =CONCATENATE(SUBSTITUTE(B10," ","_"),"_",SUBSTITUTE(D10,"-","_")) -> Fog_Nozzle_30_125 | M21: 1.5 IN | AD21: 95-200 | AE21: 100 (Std) | AF21: 95-200 100 (Std) | AJ21: Style
B22: =IF(OR(C22="False",D22="False",E22="False",H22="False",J22="False",F22="False"),"Error","Okay") -> Okay | C22: =IFERROR(VLOOKUP(CONCATENATE(B10," ",C10),C27:C43,1,FALSE),"False") -> Fog Nozzle 1.5 in | D22: =IFERROR(VLOOKUP(CONCATENATE(B10," ",D10),D27:D43,1,FALSE),"False") -> Fog Nozzle 30-125 | E22: =IFERROR(VLOOKUP(CONCATENATE(D10," ",E10),E27:E45,1,FALSE),"False") -> 30-125 75 | F22: =IF(OR(C10="2 in",C10="3 in"),IF(F10="storz","Okay","False"),"Okay") -> Okay | H22: =IF($B10="Fog Tip",IF(H10="yes","False","Okay"),"Okay") -> Okay | I22: =IF(OR(I10=Fog_Nozzle_30_150,I10=Fog_Tip_30_125,I10=Fog_Nozzle_30_125,I10=Fog_Nozzle_95_200,I10=Fog_Nozzle_125_250,I10=Fog_Tip_95_200,I10=Fog_Tip_95_200,I10=Fog_Tip_125_250,I10=Fog_Nozzle_30_200,I10=Fog_Tip_30_200,I10=Fog_Tip_13_60,I10=Fog_Tip_18_30,I10=Fog_Tip_13_30),IF(C10="1 in","False","Okay"),"Okay") -> Okay | J22: =IF($B10="Fog Tip",IF(J10="yes","False","Okay"),"Okay") -> Okay | M22: 2 IN | N22: STORZ | AD22: 95-200 | AE22: 75 | AF22: 95-200 75 | AJ22: bmpr1602 | AK22: BLACK (Std)
M23: 2.5 IN | N23: NH | Q23: BLACK (Std) | R23: THREAD1 IN | S23: NH | T23: NPSH | U23: Storz | V23: Custom | AD23: 12-53 | AE23: 87 (CE) | AF23: 12-53 87 (CE) | AJ23: bmpr1616 | AK23: BLACK (Std)
M24: 2.5 IN | N24: NPSH | Q24: ORANGE | R24: THREAD1.5 in | S24: NH | T24: NPSH | U24: FDNY | V24: NYCORP | W24: PCT | X24: Storz | Y24: Custom | AJ24: bmpr1702 | AK24: BLACK (Std) | AL24: ORANGE | AM24: YELLOW | AN24: RED | AO24: BLUE | AP24: GREEN
D25: 2.5 in 30-125 | M25: 2.5 IN | N25: FDNY | Q25: YELLOW | R25: THREAD2 IN | S25: Storz | AJ25: bmpr1703 | AK25: BLACK (Std) | AL25: ORANGE | AM25: YELLOW | AN25: RED | AO25: BLUE | AP25: GREEN
M26: 2.5 IN | N26: NYCORP | Q26: RED | R26: THREAD2.5 IN | S26: NH | T26: NPSH | U26: FDNY | V26: NYCORP | W26: PITT6 | X26: BAT | Y26: CSA | Z26: QST | AA26: BIM | AB26: Storz | AC26: Custom | AJ26: bmpr1704 | AK26: BLACK (Std) | AL26: ORANGE | AM26: YELLOW | AN26: RED | AO26: BLUE | AP26: GREEN
C27: =CONCATENATE(O$2," ",O3) -> Fog Nozzle 1 in | D27: Fog Nozzle 5-40 | E27: 5-40 100 (Std) | M27: 2.5 IN | N27: PITT6 | Q27: BLUE | R27: THREAD3 IN | S27: Storz | AJ27: bmpr1711 | AK27: BLACK (Std) | AL27: ORANGE | AM27: YELLOW | AN27: RED | AO27: BLUE | AP27: GREEN
C28: =CONCATENATE(O$2," ",O4) -> Fog Nozzle 1.5 in | D28: Fog Nozzle 12-53 | E28: 5-40 75 | M28: 2.5 IN | N28: BAT | Q28: GREEN | AJ28: bmpr1714 | AK28: BLACK (Std) | AL28: ORANGE | AM28: YELLOW | AN28: RED | AO28: BLUE | AP28: GREEN
C29: =CONCATENATE(O$2," ",O5) -> Fog Nozzle 2 in | D29: Fog Nozzle 30-150 | E29: 5-40 87 (CE) | M29: 2.5 IN | N29: CSA | AJ29: bmpr1720 | AK29: BLACK (Std) | AL29: ORANGE | AM29: YELLOW | AN29: RED | AO29: BLUE | AP29: GREEN
C30: =CONCATENATE(O$2," ",O6) -> Fog Nozzle 2.5 in | D30: Fog Nozzle 13-60 | E30: 125-250 100 (Std) | M30: 2.5 IN | N30: QST | AJ30: bmpr1723 | AK30: BLACK (Std) | AL30: ORANGE | AM30: YELLOW | AN30: RED | AO30: BLUE | AP30: GREEN
C31: =CONCATENATE(O$2," ",O7) -> Fog Nozzle 3 in | D31: Fog Tip 13-60 | E31: 125-250 75 | M31: 2.5 IN | N31: BIM | AJ31: bmpr1733 | AK31: BLACK (Std) | AL31: ORANGE | AM31: YELLOW | AN31: RED | AO31: BLUE | AP31: GREEN
C32: =CONCATENATE(P$2," ",P3) -> Fog Tip 1.5 in | D32: Fog Nozzle 18-30 | E32: 13-30 100 (Std) | M32: 2.5 IN | N32: STORZ | R32: Style | U32: =IF(B10="fog tip","N/A","No (Std)") -> No (Std) | AF32: 100 | AG32: 87 | AH32: 75 | AJ32: bmpr1737 | AK32: BLACK (Std) | AL32: ORANGE | AM32: YELLOW | AN32: RED | AO32: BLUE | AP32: GREEN
C33: =CONCATENATE(P$2," ",P4) -> Fog Tip | D33: Fog Nozzle 13-30 | E33: 13-60 100 (Std) | M33: 3 IN | N33: STORZ | Q33: Fog Nozzle 5-40 | R33: 1602 | S33: 672 | U33: =IF(B10="fog tip","","Yes") -> Yes | V33: 4 | W33: =CONCATENATE(R33,RIGHT(Q33,V33)) -> 16025-40 | X33: 5-10-20-40 | Y33: 5 | Z33: 10 | AA33: 20 | AB33: 40 | AD33: 16025-40 | AE33: 5-10-20-40 | AF33: =CONCATENATE("RF = ",ROUND(0.0505*VALUE($Y33)*SQRT(VALUE(TRIM(LEFT(AF$32,3)))),0),"-",ROUND(0.0505*VALUE($Z33)*SQRT(VALUE(TRIM(LEFT(AF$32,3)))),0),"-",ROUND(0.0505*VALUE($AA33)*SQRT(VALUE(TRIM(LEFT(AF$32,3)))),0),"-",ROUND(0.0505*VALUE($AB33)*SQRT(VALUE(TRIM(LEFT(AF$32,3)))),0)) -> RF = 3-5-10-20 | AG33: =CONCATENATE("RF = ",ROUND(0.0505*VALUE($Y33)*SQRT(VALUE(TRIM(LEFT(AG$32,3)))),0),"-",ROUND(0.0505*VALUE($Z33)*SQRT(VALUE(TRIM(LEFT(AG$32,3)))),0),"-",ROUND(0.0505*VALUE($AA33)*SQRT(VALUE(TRIM(LEFT(AG$32,3)))),0),"-",ROUND(0.0505*VALUE($AB33)*SQRT(VALUE(TRIM(LEFT(AG$32,3)))),0)) -> RF = 2-5-9-19 | AH33: =CONCATENATE("RF = ",ROUND(0.0505*VALUE($Y33)*SQRT(VALUE(TRIM(LEFT(AH$32,3)))),0),"-",ROUND(0.0505*VALUE($Z33)*SQRT(VALUE(TRIM(LEFT(AH$32,3)))),0),"-",ROUND(0.0505*VALUE($AA33)*SQRT(VALUE(TRIM(LEFT(AH$32,3)))),0),"-",ROUND(0.0505*VALUE($AB33)*SQRT(VALUE(TRIM(LEFT(AH$32,3)))),0)) -> RF = 2-4-9-17 | AJ33: bmpr1744 | AK33: BLACK (Std) | AL33: ORANGE | AM33: YELLOW | AN33: RED | AO33: BLUE | AP33: GREEN
D34: Fog Tip 18-30 | E34: 18-30 100 (Std) | Q34: Fog Nozzle 12-53 | R34: 1602 | V34: 5 | W34: =CONCATENATE(R34,RIGHT(Q34,V34)) -> 160212-53 | X34: 12-23-34-53 | Y34: 12 | Z34: 23 | AA34: 34 | AB34: 53 | AD34: 160212-53 | AE34: 12-23-34-53 | AF34: =CONCATENATE("RF = ",ROUND(0.0505*VALUE($Y34)*SQRT(VALUE(TRIM(LEFT(AF$32,3)))),0),"-",ROUND(0.0505*VALUE($Z34)*SQRT(VALUE(TRIM(LEFT(AF$32,3)))),0),"-",ROUND(0.0505*VALUE($AA34)*SQRT(VALUE(TRIM(LEFT(AF$32,3)))),0),"-",ROUND(0.0505*VALUE($AB34)*SQRT(VALUE(TRIM(LEFT(AF$32,3)))),0)) -> RF = 6-12-17-27 | AG34: RF = 6-11-16-25 | AH34: RF = 5-10-15-23 | AJ34: bmpr1763 | AK34: BLACK (Std) | AL34: ORANGE | AM34: YELLOW | AN34: RED | AO34: BLUE | AP34: GREEN
D35: Fog Tip 13-30 | E35: 30-125 100 (Std) | Q35: Fog Nozzle 30-150 | R35: 1616 | S35: 922 | V35: 6 | W35: 161630-150 | X35: 30-60-95-125-150 | Y35: 30 | Z35: 60 | AA35: 95 | AB35: 125 | AC35: 150 | AD35: 161630-150 | AE35: 30-60-95-125-150 | AF35: =CONCATENATE("RF = ",ROUND(0.0505*VALUE($Y35)*SQRT(VALUE(TRIM(LEFT(AF$32,3)))),0),"-",ROUND(0.0505*VALUE($Z35)*SQRT(VALUE(TRIM(LEFT(AF$32,3)))),0),"-",ROUND(0.0505*VALUE($AA35)*SQRT(VALUE(TRIM(LEFT(AF$32,3)))),0),"-",ROUND(0.0505*VALUE($AB35)*SQRT(VALUE(TRIM(LEFT(AF$32,3)))),0),"-",ROUND(0.0505*VALUE($AC35)*SQRT(VALUE(TRIM(LEFT(AF$32,3)))),0)) -> RF = 15-30-48-63-76 | AG35: =CONCATENATE("RF = ",ROUND(0.0505*VALUE($Y35)*SQRT(VALUE(TRIM(LEFT(AG$32,3)))),0),"-",ROUND(0.0505*VALUE($Z35)*SQRT(VALUE(TRIM(LEFT(AG$32,3)))),0),"-",ROUND(0.0505*VALUE($AA35)*SQRT(VALUE(TRIM(LEFT(AG$32,3)))),0),"-",ROUND(0.0505*VALUE($AB35)*SQRT(VALUE(TRIM(LEFT(AG$32,3)))),0),"-",ROUND(0.0505*VALUE($AC35)*SQRT(VALUE(TRIM(LEFT(AG$32,3)))),0)) -> RF = 14-28-45-59-71 | AH35: =CONCATENATE("RF = ",ROUND(0.0505*VALUE($Y35)*SQRT(VALUE(TRIM(LEFT(AH$32,3)))),0),"-",ROUND(0.0505*VALUE($Z35)*SQRT(VALUE(TRIM(LEFT(AH$32,3)))),0),"-",ROUND(0.0505*VALUE($AA35)*SQRT(VALUE(TRIM(LEFT(AH$32,3)))),0),"-",ROUND(0.0505*VALUE($AB35)*SQRT(VALUE(TRIM(LEFT(AH$32,3)))),0),"-",ROUND(0.0505*VALUE($AC35)*SQRT(VALUE(TRIM(LEFT(AH$32,3)))),0)) -> RF = 13-26-42-55-66 | AJ35: bmpr1766 | AK35: BLACK (Std) | AL35: ORANGE | AM35: YELLOW | AN35: RED | AO35: BLUE | AP35: GREEN
D36: Fog Tip 30-125 | E36: 30-125 75 | Q36: Fog Nozzle 13-60 | R36: 1702 | S36: 1160 | V36: 5 | W36: 170213-60 | X36: 13-25-40-60 | Y36: 13 | Z36: 25 | AA36: 40 | AB36: 60 | AD36: 170213-60 | AE36: 13-25-40-60 | AF36: RF = 7-13-20-30 | AG36: RF = 6-12-19-28 | AH36: RF = 6-11-17-26
D37: Fog Nozzle 30-125 | E37: 30-125 87 (CE) | Q37: Fog Tip 13-60 | R37: 1703 | S37: 752 | V37: 5 | W37: 170313-60 | X37: 13-25-40-60 | Y37: 13 | Z37: 25 | AA37: 40 | AB37: 60 | AD37: 170313-60 | AE37: 13-25-40-60 | AF37: RF = 7-13-20-30 | AG37: RF = 6-12-19-28 | AH37: RF = 6-11-17-26
D38: Fog Nozzle 95-200 | E38: 30-150 100 (Std) | Q38: Fog Nozzle 18-30 | R38: 1704 | S38: 1206 | V38: 5 | W38: 170418-30 | X38: 18-30 | Y38: 18 | Z38: 30 | AD38: 170418-30 | AE38: 18-30 | AF38: =CONCATENATE("RF = ",ROUND(0.0505*VALUE($Y38)*SQRT(VALUE(TRIM(LEFT(AF$32,3)))),0),"-",ROUND(0.0505*VALUE($Z38)*SQRT(VALUE(TRIM(LEFT(AF$32,3)))),0)) -> RF = 9-15 | AG38: =CONCATENATE("RF = ",ROUND(0.0505*VALUE($Y38)*SQRT(VALUE(TRIM(LEFT(AG$32,3)))),0),"-",ROUND(0.0505*VALUE($Z38)*SQRT(VALUE(TRIM(LEFT(AG$32,3)))),0)) -> RF = 8-14 | AH38: =CONCATENATE("RF = ",ROUND(0.0505*VALUE($Y38)*SQRT(VALUE(TRIM(LEFT(AH$32,3)))),0),"-",ROUND(0.0505*VALUE($Z38)*SQRT(VALUE(TRIM(LEFT(AH$32,3)))),0)) -> RF = 8-13
D39: Fog Nozzle 125-250 | E39: 30-150 75 | Q39: Fog Nozzle 13-30 | R39: 1704 | V39: 5 | W39: 170413-30 | X39: 13-23-30 | Y39: 13 | Z39: 23 | AA39: 30 | AD39: 170413-30 | AE39: 13-23-30 | AF39: =CONCATENATE("RF = ",ROUND(0.0505*VALUE($Y39)*SQRT(VALUE(TRIM(LEFT(AF$32,3)))),0),"-",ROUND(0.0505*VALUE($Z39)*SQRT(VALUE(TRIM(LEFT(AF$32,3)))),0),"-",ROUND(0.0505*VALUE($AA39)*SQRT(VALUE(TRIM(LEFT(AF$32,3)))),0)) -> RF = 7-12-15 | AG39: =CONCATENATE("RF = ",ROUND(0.0505*VALUE($Y39)*SQRT(VALUE(TRIM(LEFT(AG$32,3)))),0),"-",ROUND(0.0505*VALUE($Z39)*SQRT(VALUE(TRIM(LEFT(AG$32,3)))),0),"-",ROUND(0.0505*VALUE($AA39)*SQRT(VALUE(TRIM(LEFT(AG$32,3)))),0)) -> RF = 6-11-14 | AH39: =CONCATENATE("RF = ",ROUND(0.0505*VALUE($Y39)*SQRT(VALUE(TRIM(LEFT(AH$32,3)))),0),"-",ROUND(0.0505*VALUE($Z39)*SQRT(VALUE(TRIM(LEFT(AH$32,3)))),0),"-",ROUND(0.0505*VALUE($AA39)*SQRT(VALUE(TRIM(LEFT(AH$32,3)))),0)) -> RF = 6-10-13
D40: Fog Tip 95-200 | E40: 30-150 87 (CE) | Q40: Fog Tip 18-30 | R40: 1711 | S40: 814 | V40: 5 | W40: 171118-30 | X40: 18-30 | Y40: 18 | Z40: 30 | AD40: 171118-30 | AE40: 18-30 | AF40: =CONCATENATE("RF = ",ROUND(0.0505*VALUE($Y40)*SQRT(VALUE(TRIM(LEFT(AF$32,3)))),0),"-",ROUND(0.0505*VALUE($Z40)*SQRT(VALUE(TRIM(LEFT(AF$32,3)))),0)) -> RF = 9-15 | AG40: =CONCATENATE("RF = ",ROUND(0.0505*VALUE($Y40)*SQRT(VALUE(TRIM(LEFT(AG$32,3)))),0),"-",ROUND(0.0505*VALUE($Z40)*SQRT(VALUE(TRIM(LEFT(AG$32,3)))),0)) -> RF = 8-14 | AH40: =CONCATENATE("RF = ",ROUND(0.0505*VALUE($Y40)*SQRT(VALUE(TRIM(LEFT(AH$32,3)))),0),"-",ROUND(0.0505*VALUE($Z40)*SQRT(VALUE(TRIM(LEFT(AH$32,3)))),0)) -> RF = 8-13
D41: Fog Tip 125-250 | E41: 30-200 100 (Std) | N41: =VALUE(RIGHT(G11,IF(LEFT(RIGHT(G11,3),1)="-",2,3))) -> 55 | Q41: Fog Tip 13-30 | R41: 1711 | V41: 5 | W41: 171113-30 | X41: 13-23-30 | Y41: 13 | Z41: 23 | AA41: 30 | AD41: 171113-30 | AE41: 13-23-30 | AF41: =CONCATENATE("RF = ",ROUND(0.0505*VALUE($Y41)*SQRT(VALUE(TRIM(LEFT(AF$32,3)))),0),"-",ROUND(0.0505*VALUE($Z41)*SQRT(VALUE(TRIM(LEFT(AF$32,3)))),0),"-",ROUND(0.0505*VALUE($AA41)*SQRT(VALUE(TRIM(LEFT(AF$32,3)))),0)) -> RF = 7-12-15 | AG41: =CONCATENATE("RF = ",ROUND(0.0505*VALUE($Y41)*SQRT(VALUE(TRIM(LEFT(AG$32,3)))),0),"-",ROUND(0.0505*VALUE($Z41)*SQRT(VALUE(TRIM(LEFT(AG$32,3)))),0),"-",ROUND(0.0505*VALUE($AA41)*SQRT(VALUE(TRIM(LEFT(AG$32,3)))),0)) -> RF = 6-11-14 | AH41: =CONCATENATE("RF = ",ROUND(0.0505*VALUE($Y41)*SQRT(VALUE(TRIM(LEFT(AH$32,3)))),0),"-",ROUND(0.0505*VALUE($Z41)*SQRT(VALUE(TRIM(LEFT(AH$32,3)))),0),"-",ROUND(0.0505*VALUE($AA41)*SQRT(VALUE(TRIM(LEFT(AH$32,3)))),0)) -> RF = 6-10-13
D42: Fog Nozzle 30-200 | E42: 30-200 75 | N42: RF sufficiently low to allow single person to operate | Q42: Fog Tip 30-125 | R42: 1714 | S42: 842 | V42: 6 | W42: 171430-125 | X42: 30-60-95-125 | Y42: 30 | Z42: 60 | AA42: 95 | AB42: 125 | AD42: 171430-125 | AE42: 30-60-95-125 | AF42: RF = 15-30-48-63 | AG42: RF = 14-28-45-59 | AH42: RF = 13-26-42-55
D43: Fog Tip 30-200 | E43: 95-200 100 (Std) | N43: Increased RF may require multiple persons to operate safely | Q43: Fog Nozzle 30-125 | R43: 1720 | S43: 1198 | V43: 6 | W43: 172030-125 | X43: 30-60-95-125 | Y43: 30 | Z43: 60 | AA43: 95 | AB43: 125 | AD43: 172030-125 | AE43: 30-60-95-125 | AF43: RF = 15-30-48-63 | AG43: RF = 14-28-45-59 | AH43: RF = 13-26-42-55
E44: 95-200 75 | N44: Recommend multiple persons to operate at this RF | Q44: Fog Nozzle 95-200 | R44: 1723 | S44: 1372 | V44: 6 | W44: 172395-200 | X44: 95-125-150-200 | Y44: 95 | Z44: 125 | AA44: 150 | AB44: 200 | AD44: 172395-200 | AE44: 95-125-150-200 | AF44: RF = 48-63-76-101 | AG44: RF = 45-59-71-94 | AH44: RF = 42-55-66-87
E45: 12-53 87 (CE) | Q45: Fog Nozzle 125-250 | R45: 1733 | S45: 1470 | V45: 7 | W45: 1733125-250 | X45: 125-150-200-250 | Y45: 125 | Z45: 150 | AA45: 200 | AB45: 250 | AD45: 1733125-250 | AE45: 125-150-200-250 | AF45: RF = 63-76-101-126 | AG45: RF = 59-71-94-118 | AH45: RF = 55-66-87-109
Q46: Fog Tip 95-200 | R46: 1737 | S46: 948 | V46: 6 | W46: 173795-200 | X46: 95-125-150-200 | Y46: 95 | Z46: 125 | AA46: 150 | AB46: 200 | AD46: 173795-200 | AE46: 95-125-150-200 | AF46: RF = 48-63-76-101 | AG46: RF = 45-59-71-94 | AH46: RF = 42-55-66-87
Q47: Fog Tip 125-250 | R47: 1744 | S47: 1002 | V47: 7 | W47: 1744125-250 | X47: 125-150-200-250 | Y47: 125 | Z47: 150 | AA47: 200 | AB47: 250 | AD47: 1744125-250 | AE47: 125-150-200-250 | AF47: RF = 63-76-101-126 | AG47: RF = 59-71-94-118 | AH47: RF = 55-66-87-109
Q48: Fog Nozzle 30-200 | R48: 1763 | S48: 1244 | V48: 6 | W48: 176330-200 | X48: 30-95-125-150-200 | Y48: 30 | Z48: 95 | AA48: 125 | AB48: 150 | AC48: 200 | AD48: 176330-200 | AE48: 30-95-125-150-200 | AF48: =CONCATENATE("RF = ",ROUND(0.0505*VALUE($Y48)*SQRT(VALUE(TRIM(LEFT(AF$32,3)))),0),"-",ROUND(0.0505*VALUE($Z48)*SQRT(VALUE(TRIM(LEFT(AF$32,3)))),0),"-",ROUND(0.0505*VALUE($AA48)*SQRT(VALUE(TRIM(LEFT(AF$32,3)))),0),"-",ROUND(0.0505*VALUE($AB48)*SQRT(VALUE(TRIM(LEFT(AF$32,3)))),0),"-",ROUND(0.0505*VALUE($AC48)*SQRT(VALUE(TRIM(LEFT(AF$32,3)))),0)) -> RF = 15-48-63-76-101 | AG48: RF = 14-45-59-71-94 | AH48: RF = 13-42-55-66-87
Q49: Fog Tip 30-200 | R49: 1766 | S49: 892 | V49: 6 | W49: 176630-200 | X49: 30-95-125-150-200 | Y49: 30 | Z49: 95 | AA49: 125 | AB49: 150 | AC49: 200 | AD49: 176630-200 | AE49: 30-95-125-150-200 | AF49: RF = 15-48-63-76-101 | AG49: RF = 14-45-59-71-94 | AH49: RF = 13-42-55-66-87
R50: Storz | S50: 88
R51: ZT | S51: 340

Sheet Fixed
B1: Instructions: | H1: Reaction Force Color Chart: | I1: This is a Low RF Nozzle (RF < 51 ) | AH1: asdf | AK1: Style | AL1: Flow | AN1: Flow | AU1: 100 | AV1: 75 | AW1: 50 | AX1: 87 | BF1: Flow | BJ1: Flow | BK1: Pressure | BS1: Style | BT1: Flow | BU1: Pressure | CA1: Style | CQ1: Style
B2: Tan-colored cells are headers or describe the selection options | M2: Nozzle | O2: Fog Nozzle | P2: Fog Tip | R2: 5-40 | S2: 125-250 | T2: 13-30 | U2: 13-60 | V2: 18-30 | W2: 30-125 | X2: 30-150 | Y2: 30-200 | Z2: 95-200 | AA2: 12-53 | AK2: 4116 | AL2: 60 | AN2: 13 | AO2: 100 (Std) | AT2: 4116 | AU2: 60 | AV2: 60 | AX2: 60 | BE2: Fog Nozzle | BF2: 13 | BG2: Fog Nozzle 13 | BJ2: 13 | BK2: 100 (Std) | BL2: =CONCATENATE(BJ2," ",BK2) -> 13 100 (Std) | BN2: 200 | BO2: 100 (Std) | BR2: Fog Nozzle | BS2: 4116 | BT2: 60 | BU2: 100 (Std) | BV2: =CONCATENATE(BR2," ",BT2," @ ",BU2) -> Fog Nozzle 60 @ 100 (Std) | BZ2: Fog Nozzle 125 @ 100 | CA2: 4116 | CB2: 4863 | CD2: =CONCATENATE($BZ2," ",CA2) -> Fog Nozzle 125 @ 100 4116 | CE2: =CONCATENATE($BZ2," ",CB2) -> Fog Nozzle 125 @ 100 4863 | CF2: Fog_Nozzle_125___100 | CI2: Fog Nozzle 125 @ 100 4116 | CP2: Fog Nozzle 125 @ 100 | CQ2: 4116 | CT2: RF Chart | CU2: 50 | CV2: 75 | CW2: 87 | CX2: 100
B3: Use the green-colored cells to make your selections (All cells must be filled in; information from "FrontPage" tab does not carry over to this page) | I3: This is a Nozzle with Increased RF (RF > 50 and <101 ) | M3: Tip | O3: 1 in | P3: 1.5 in | R3: 100 (Std) | S3: 100 (Std) | T3: 100 (Std) | U3: 100 (Std) | V3: 100 (Std) | W3: 100 (Std) | X3: 100 (Std) | Y3: 100 (Std) | Z3: 100 (Std) | AA3: 87 (CE) | AK3: 4116 | AL3: 95 | AN3: 25 | AO3: 100 (Std) | AT3: 4116 | AU3: 95 | AV3: 95 | AX3: 95 | BE3: Fog Nozzle | BF3: 25 | BG3: Fog Nozzle 25 | BJ3: 25 | BK3: 100 (Std) | BL3: =CONCATENATE(BJ3," ",BK3) -> 25 100 (Std) | BN3: 250 | BO3: 100 (Std) | BR3: Fog Nozzle | BS3: 4116 | BT3: 60 | BU3: 75 | BV3: =CONCATENATE(BR3," ",BT3," @ ",BU3) -> Fog Nozzle 60 @ 75 | BZ3: Fog Nozzle 125 @ 75 | CA3: 4116 | CB3: 4863 | CD3: =CONCATENATE($BZ3," ",CA3) -> Fog Nozzle 125 @ 75 4116 | CE3: =CONCATENATE($BZ3," ",CB3) -> Fog Nozzle 125 @ 75 4863 | CI3: Fog Nozzle 125 @ 100 4863 | CP3: Fog Nozzle 125 @ 75 | CQ3: 4116 | CS3: 13 | CT3: =TRIM(CS3) -> 13 | CU3: =ROUND(0.0505*$CT3*SQRT(CU$2),0) -> 5 | CV3: =ROUND(0.0505*$CT3*SQRT(CV$2),0) -> 6 | CW3: 6 | CX3: 7
B4: Blue-colored cells provide outputs based on your selections | M4: High Pressure | O4: 1.5 in | R4: 75 | S4: 75 | W4: 75 | X4: 75 | Y4: 75 | Z4: 75 | AK4: 4116 | AL4: 125 | AN4: 40 | AO4: 100 (Std) | AT4: 4116 | AU4: 125 | AV4: 125 | AX4: 125 | BE4: Fog Nozzle | BF4: 40 | BG4: Fog Nozzle 40 | BJ4: 40 | BK4: 100 (Std) | BL4: 40 100 (Std) | BN4: 300 | BO4: 100 (Std) | BR4: Fog Nozzle | BS4: 4116 | BT4: 60 | BU4: 87 (CE) | BV4: Fog Nozzle 60 @ 87 (CE) | BZ4: Fog Nozzle 125 @ 87 | CA4: 4116 | CD4: =CONCATENATE($BZ4," ",CA4) -> Fog Nozzle 125 @ 87 4116 | CI4: Fog Nozzle 125 @ 75 4116 | CP4: Fog Nozzle 125 @ 100 | CQ4: 4863 | CS4: 25 | CT4: =TRIM(CS4) -> 25 | CU4: 9 | CV4: 11 | CW4: 12 | CX4: 13
B5: This shaded cell indicates an error has ocurred and you may need to modify some of your selections or contact our Customer Care team | I5: This Nozzle has a High RF (RF > 100 ) | O5: 2 in | R5: 87 (CE) | W5: 87 (CE) | X5: 87 (CE) | AD5: 5-40 | AE5: 100 (Std) | AF5: =CONCATENATE(AD5," ",AE5) -> 5-40 100 (Std) | AK5: 4116 | AL5: 150 | AN5: 60 | AO5: 100 (Std) | AP5: 75 | AQ5: 87 (CE) | AT5: 4116 | AU5: 150 | AV5: 150 | AX5: 150 | BE5: Fog Nozzle | BF5: 60 | BG5: Fog Nozzle 60 | BJ5: 60 | BK5: 100 (Std) | BL5: 60 100 (Std) | BN5: 350 | BO5: 100 (Std) | BR5: Fog Nozzle | BS5: 4116 | BT5: 95 | BU5: 100 (Std) | BV5: Fog Nozzle 95 @ 100 (Std) | BZ5: Fog Nozzle 13 @ 100 | CA5: 4802 | CD5: Fog Nozzle 13 @ 100 4802 | CI5: Fog Nozzle 125 @ 75 4863 | CP5: Fog Nozzle 125 @ 75 | CQ5: 4863 | CS5: 40 | CT5: 40 | CU5: 14 | CV5: 17 | CW5: 19 | CX5: 20
B6: Orange-colored cell allows you to input your discount for Net Price | O6: 2.5 in | AD6: 5-40 | AE6: 75 | AF6: =CONCATENATE(AD6," ",AE6) -> 5-40 75 | AK6: 4802 | AL6: 13 | AN6: 95 | AO6: 100 (Std) | AP6: 75 | AQ6: 87 (CE) | AT6: 4802 | AU6: 13 | BE6: Fog Nozzle | BF6: 95 | BG6: Fog Nozzle 95 | BJ6: 60 | BK6: 87 (CE) | BL6: 60 87 (CE) | BN6: 200 | BO6: 75 | BR6: Fog Nozzle | BS6: 4116 | BT6: 95 | BU6: 75 | BV6: Fog Nozzle 95 @ 75 | BZ6: Fog Nozzle 150 @ 100 | CA6: 4116 | CB6: 4863 | CD6: Fog Nozzle 150 @ 100 4116 | CE6: =CONCATENATE($BZ6," ",CB6) -> Fog Nozzle 150 @ 100 4863 | CI6: Fog Nozzle 125 @ 87 4116 | CP6: Fog Nozzle 125 @ 87 | CQ6: 4116 | CS6: 60 | CT6: 60 | CU6: 21 | CV6: 26 | CW6: 28 | CX6: 30
B7: =FrontPage!E8 -> Rev Date: 6/27/2022 | D7: Fixed Orifice Fog Nozzles | O7: 3 in | AD7: 5-40 | AE7: 87 (CE) | AF7: 5-40 87 (CE) | AK7: 4802 | AL7: 25 | AN7: 125 | AO7: 100 (Std) | AP7: 75 | AQ7: 87 (CE) | AT7: 4802 | AU7: 25 | BE7: Fog Nozzle | BF7: 125 | BG7: Fog Nozzle 125 | BJ7: 60 | BK7: 75 | BL7: 60 75 | BN7: 250 | BO7: 75 | BR7: Fog Nozzle | BS7: 4116 | BT7: 95 | BU7: 87 (CE) | BV7: Fog Nozzle 95 @ 87 (CE) | BZ7: Fog Nozzle 150 @ 50 | CA7: 4863 | CD7: Fog Nozzle 150 @ 50 4863 | CI7: Fog Nozzle 13 @ 100 4802 | CP7: Fog Nozzle 13 @ 100 | CQ7: 4802 | CS7: 95 | CT7: 95 | CU7: 34 | CV7: 42 | CW7: 45 | CX7: 48
B8: Nozzle or Tip | C8: Inlet Size | D8: Flow Rate | E8: Pressure Rating | F8: Inlet Thread | G8: Bumper Color | H8: =IF(OR(B10="FOG TIP",J10="yes"),"","Remove Pistol Grip?") -> Remove Pistol Grip? | I8: Style Number | J8: =IF(B10="FOG TIP","","ZT Inlet?") -> ZT Inlet? | K8: Custom Etch | AD8: 125-250 | AE8: 100 (Std) | AF8: 125-250 100 (Std) | AK8: 4802 | AL8: 40 | AN8: 150 | AO8: 100 (Std) | AP8: 75 | AQ8: 50 | AR8: 87 (CE) | AT8: 4802 | AU8: 40 | BE8: Fog Nozzle | BF8: 150 | BG8: Fog Nozzle 150 | BJ8: 95 | BK8: 100 (Std) | BL8: 95 100 (Std) | BN8: 300 | BO8: 75 | BR8: Fog Nozzle | BS8: 4116 | BT8: 125 | BU8: 100 (Std) | BV8: Fog Nozzle 125 @ 100 (Std) | BZ8: Fog Nozzle 150 @ 75 | CA8: 4116 | CB8: 4863 | CD8: Fog Nozzle 150 @ 75 4116 | CE8: =CONCATENATE($BZ8," ",CB8) -> Fog Nozzle 150 @ 75 4863 | CI8: Fog Nozzle 150 @ 100 4116 | CP8: Fog Nozzle 150 @ 100 | CQ8: 4116 | CS8: 125 | CT8: 125 | CU8: 45 | CV8: 55 | CW8: 59 | CX8: 63
M9: =ROUND(0.0505*VALUE(D10)*SQRT(VALUE(TRIM(LEFT(E10,3)))),0) -> 101 | AD9: 125-250 | AE9: 75 | AF9: 125-250 75 | AK9: 4824 | AL9: 200 | AN9: 161 | AO9: 50 | AT9: 4824 | AU9: 200 | AV9: 200 | BE9: Fog Nozzle | BF9: 161 | BG9: Fog Nozzle 161 | BJ9: 95 | BK9: 75 | BL9: 95 75 | BN9: 210 | BO9: 50 | BR9: Fog Nozzle | BS9: 4116 | BT9: 125 | BU9: 75 | BV9: Fog Nozzle 125 @ 75 | BZ9: Fog Nozzle 150 @ 87 | CA9: 4116 | CD9: Fog Nozzle 150 @ 87 4116 | CI9: Fog Nozzle 150 @ 100 4863 | CP9: Fog Nozzle 150 @ 100 | CQ9: 4863 | CS9: 150 | CT9: 150 | CU9: 54 | CV9: 66 | CW9: 71 | CX9: 76
B10: Fog Nozzle | C10: 1.5 in | D10: 200 | E10: 100 (Std) | F10: NH | G10: BLACK (Std) | H10: No (Std) | I10: 4863 | J10: No (Std) | K10: No (Std) | AD10: 13-30 | AE10: 100 (Std) | AF10: 13-30 100 (Std) | AK10: 4824 | AL10: 210 | AN10: 175 | AO10: 100 (Std) | AP10: 75 | AQ10: 50 | AT10: 4824 | AW10: 210 | BE10: Fog Nozzle | BF10: 175 | BG10: Fog Nozzle 175 | BJ10: 95 | BK10: 87 (CE) | BL10: 95 87 (CE) | BN10: 250 | BO10: 50 | BR10: Fog Nozzle | BS10: 4116 | BT10: 125 | BU10: 87 (CE) | BV10: Fog Nozzle 125 @ 87 (CE) | BZ10: Fog Nozzle 161 @ 50 | CA10: 4863 | CD10: Fog Nozzle 161 @ 50 4863 | CI10: Fog Nozzle 150 @ 50 4863 | CP10: Fog Nozzle 150 @ 50 | CQ10: 4863 | CS10: 161 | CT10: 161 | CU10: 57 | CV10: 70 | CW10: 76 | CX10: 81
B11: List price | C11: =SUM(E11:K11) -> 992 | E11: =IFERROR(CONCATENATE("RF = ",ROUND(0.0505*VALUE(D10)*SQRT(VALUE(TRIM(LEFT(E10,3)))),0)),"") -> RF = 101 | F11: =IF(OR(F10="Storz",F10="BIM"),_xlfn.XLOOKUP("storz",AF:AF,AG:AG),0) -> 0 | I11: =IFERROR(VLOOKUP(I10,AF28:AG33,2,FALSE),"") -> 992 | J11: =IF(J8="",0,IF(J10="Yes",_xlfn.XLOOKUP("zt",AF:AF,AG:AG),0)) -> 0 | AD11: 13-60 | AE11: 100 (Std) | AF11: 13-60 100 (Std) | AK11: 4824 | AL11: 250 | AN11: 185 | AO11: 50 | AT11: 4824 | AU11: 250 | AV11: 250 | AW11: 250 | BE11: Fog Nozzle | BF11: 185 | BG11: Fog Nozzle 185 | BJ11: 125 | BK11: 100 (Std) | BL11: 125 100 (Std) | BR11: Fog Nozzle | BS11: 4116 | BT11: 150 | BU11: 100 (Std) | BV11: Fog Nozzle 150 @ 100 (Std) | BZ11: Fog Nozzle 175 @ 100 | CA11: 4863 | CD11: Fog Nozzle 175 @ 100 4863 | CI11: Fog Nozzle 150 @ 75 4116 | CP11: Fog Nozzle 150 @ 75 | CQ11: 4116 | CS11: 175 | CT11: 175 | CU11: 62 | CV11: 77 | CW11: 82 | CX11: 88
B12: Your Discount | D12: Net Price | F12: =ROUND(C11*(1-C12),2) -> 992 | H12: =IF(OR(B10="fog tip",TRIM(I10)="4116"),"","Include Color Clips for Shutoff and/or Pistol Grip?") -> Include Color Clips for Shutoff and/or Pistol Grip? | K12: Yes | AD12: 18-30 | AE12: 100 (Std) | AF12: 18-30 100 (Std) | AK12: 4824 | AL12: 265 | AN12: 200 | AO12: 100 (Std) | AP12: 75 | AQ12: 50 | AT12: 4824 | AU12: 300 | AV12: 300 | BE12: Fog Nozzle | BF12: 200 | BG12: Fog Nozzle 200 | BJ12: 125 | BK12: 75 | BL12: 125 75 | BR12: Fog Nozzle | BS12: 4116 | BT12: 150 | BU12: 75 | BV12: Fog Nozzle 150 @ 75 | BZ12: Fog Nozzle 175 @ 50 | CA12: 4863 | CD12: Fog Nozzle 175 @ 50 4863 | CI12: Fog Nozzle 150 @ 75 4863 | CP12: Fog Nozzle 150 @ 75 | CQ12: 4863 | CS12: 185 | CT12: 185 | CU12: 66 | CV12: 81 | CW12: 87 | CX12: 93
B13: Short Description | C13: =IF(B24="Error","Fix Errors",CONCATENATE(I10," ",C10," ",F10," ",D10," ",E10," ",G10,IF(B10="Fog Tip"," ",IF(J10="yes"," PG",IF(H10="yes"," NPG"," PG"))),IF(B10="Fog Tip","",IF(J10="Yes"," ZT","")),IF(K10="Yes"," ETCH",""))) -> 4863 1.5 in NH 200 100 (Std) BLACK (Std) PG | M13: 1 IN | N13: NH | R13: 1 in | S13: 1.5 in | T13: 2 in | U13: 2.5 in | V13: 3 in | AD13: 30-125 | AE13: 100 (Std) | AF13: 30-125 100 (Std) | AK13: 4824 | AL13: 300 | AN13: 210 | AO13: 50 | AT13: 4824 | AU13: 350 | BE13: Fog Nozzle | BF13: 210 | BG13: Fog Nozzle 210 | BJ13: 125 | BK13: 50 | BL13: 125 50 | BR13: Fog Nozzle | BS13: 4116 | BT13: 150 | BU13: 87 (CE) | BV13: Fog Nozzle 150 @ 87 (CE) | BZ13: Fog Nozzle 175 @ 75 | CA13: 4863 | CD13: Fog Nozzle 175 @ 75 4863 | CI13: Fog Nozzle 150 @ 87 4116 | CP13: Fog Nozzle 150 @ 87 | CQ13: 4116 | CS13: 200 | CT13: 200 | CU13: 71 | CV13: 87 | CW13: 94 | CX13: 101
B14: Long Description | C14: =IF(B24="Error","Some of your selections are not compatible with others; please correct the errors highlighted in RED",CONCATENATE("Style ",I10," ",B10," with ",C10," ",F10," inlet; ",D10," gpm @ ",E10,IF(E11>"",CONCATENATE(" psi (",E11,"); ")," psi; "),PROPER(G10)," bumper",IF(B10="Fog Tip","",IF(J10="yes","",IF(H10="yes","; no pistol grip","; pistol grip"))),IF(B10="Fog Tip","",IF(J10="Yes","; Zero-Torque Grip","")),IF(K10="Yes","; Custom Etched",""))) -> Style 4863 Fog Nozzle with 1.5 in NH inlet; 200 gpm @ 100 (Std) psi (RF = 101); Black (Std) bumper; pistol grip | H14: Akron Brass Part Number and Description | I14: =IF(AND(OR(F10="custom",G10="custom"),K10="yes"),"Contact Customer Care to request Custom Thread and Etch (800-228-1161)",IF(F10="custom","Contact Customer Care to request Custom Thread (800-228-1161)",IF(K10="Yes","Contact Customer Care to request Custom Etch (800-228-1161)",IF(B24="Error","Incompatible selections; please correct errors highlighted in RED",IFERROR(CONCATENATE(VLOOKUP(C13,DataSource!AH:AJ,2,FALSE)," ",VLOOKUP(C13,DataSource!AH:AJ,3,FALSE)),"Version you've requested not yet created; contact Customer Care (800-228-1161)"))))) -> 48634144 ASLT 2.5NH 125G@100P FM | M14: 1 IN | N14: NPSH | Q14: 30-125 | R14: 13 | S14: 60 | T14: 60 | U14: 60 | V14: 60 | AD14: 30-125 | AE14: 75 | AF14: 30-125 75 | AK14: 4824 | AL14: 350 | AN14: 225 | AO14: 100 (Std) | AT14: 4826 | AU14: 200 | AV14: 200 | BE14: Fog Nozzle | BF14: 225 | BG14: Fog Nozzle 225 | BJ14: 125 | BK14: 87 (CE) | BL14: 125 87 (CE) | BR14: Fog Nozzle | BS14: 4802 | BT14: 13 | BU14: 100 (Std) | BV14: Fog Nozzle 13 @ 100 (Std) | BZ14: Fog Nozzle 185 @ 50 | CA14: 4863 | CD14: Fog Nozzle 185 @ 50 4863 | CI14: Fog Nozzle 161 @ 50 4863 | CP14: Fog Nozzle 161 @ 50 | CQ14: 4863 | CS14: 210 | CT14: 210 | CU14: 75 | CV14: 92 | CW14: 99 | CX14: 106
M15: 1 IN | N15: STORZ | Q15: 30-150 | R15: 25 | S15: 95 | T15: 95 | U15: 95 | V15: 95 | AD15: 30-125 | AE15: 87 (CE) | AF15: 30-125 87 (CE) | AK15: 4826 | AL15: 200 | AN15: 250 | AO15: 100 (Std) | AP15: 75 | AQ15: 50 | AT15: 4826 | AW15: 210 | BE15: Fog Nozzle | BF15: 250 | BG15: Fog Nozzle 250 | BJ15: 150 | BK15: 100 (Std) | BL15: 150 100 (Std) | BR15: Fog Nozzle | BS15: 4802 | BT15: 25 | BU15: 100 (Std) | BV15: Fog Nozzle 25 @ 100 (Std) | BZ15: Fog Nozzle 200 @ 100 | CA15: 4826 | CB15: 4863 | CD15: Fog Nozzle 200 @ 100 4826 | CE15: =CONCATENATE($BZ15," ",CB15) -> Fog Nozzle 200 @ 100 4863 | CI15: Fog Nozzle 175 @ 100 4863 | CP15: Fog Nozzle 175 @ 100 | CQ15: 4863 | CS15: 225 | CT15: 225 | CU15: 80 | CV15: 98 | CW15: 106 | CX15: 114
B16: Notes: | C16: You can make any notes about what you want, or anything else, in this space | M16: 1.5 in | Q16: 30-200 | R16: 40 | S16: 125 | T16: 125 | U16: 125 | V16: 125 | AD16: 30-150 | AE16: 100 (Std) | AF16: 30-150 100 (Std) | AK16: 4826 | AL16: 210 | AN16: 265 | AO16: 50 | AT16: 4826 | AU16: 250 | AV16: 250 | AW16: 250 | BE16: Fog Nozzle | BF16: 265 | BG16: Fog Nozzle 265 | BJ16: 150 | BK16: 75 | BL16: 150 75 | BR16: Fog Nozzle | BS16: 4802 | BT16: 40 | BU16: 100 (Std) | BV16: Fog Nozzle 40 @ 100 (Std) | BZ16: Fog Nozzle 200 @ 75 | CA16: 4826 | CB16: 4863 | CD16: Fog Nozzle 200 @ 75 4826 | CE16: =CONCATENATE($BZ16," ",CB16) -> Fog Nozzle 200 @ 75 4863 | CI16: Fog Nozzle 175 @ 50 4863 | CP16: Fog Nozzle 175 @ 50 | CQ16: 4863 | CS16: 250 | CT16: 250 | CU16: 89 | CV16: 109 | CW16: 118 | CX16: 126
M17: 1.5 in | Q17: 95-200 | S17: 150 | T17: 150 | U17: 150 | V17: 150 | AD17: 30-150 | AE17: 75 | AF17: 30-150 75 | AK17: 4826 | AL17: 250 | AN17: 300 | AO17: 100 (Std) | AP17: 75 | AT17: 4826 | AU17: 300 | AV17: 300 | BE17: Fog Nozzle | BF17: 300 | BG17: Fog Nozzle 300 | BJ17: 150 | BK17: 50 | BL17: 150 50 | BR17: Fog Tip | BS17: 4824 | BT17: 200 | BU17: 100 (Std) | BV17: Fog Tip 200 @ 100 (Std) | BZ17: Fog Nozzle 200 @ 50 | CA17: 4826 | CB17: 4863 | CD17: =CONCATENATE($BZ18," ",CA18) -> Fog Nozzle 210 @ 50 4826 | CI17: Fog Nozzle 175 @ 75 4863 | CP17: Fog Nozzle 175 @ 75 | CQ17: 4863 | CS17: 300 | CT17: 300 | CU17: 107 | CV17: 131 | CW17: 141 | CX17: 152
M18: 1.5 in | Q18: 125-250 | S18: 161 | T18: 161 | U18: 161 | V18: 161 | AD18: 30-150 | AE18: 87 (CE) | AF18: 30-150 87 (CE) | AK18: 4826 | AL18: 300 | AN18: 350 | AO18: 100 (Std) | AT18: 4826 | AU18: 350 | BE18: Fog Nozzle | BF18: 350 | BG18: Fog Nozzle 350 | BJ18: 150 | BK18: 87 (CE) | BL18: 150 87 (CE) | BR18: Fog Tip | BS18: 4824 | BT18: 250 | BU18: 100 (Std) | BV18: Fog Tip 250 @ 100 (Std) | BZ18: Fog Nozzle 210 @ 50 | CA18: 4826 | CD18: Fog Nozzle 225 @ 100 4863 | CI18: Fog Nozzle 185 @ 50 4863 | CP18: Fog Nozzle 185 @ 50 | CQ18: 4863 | CS18: 350 | CT18: 350 | CU18: 125 | CV18: 153 | CW18: 165 | CX18: 177
M19: 1.5 IN | S19: 175 | T19: 175 | U19: 175 | V19: 175 | AD19: 30-200 | AE19: 100 (Std) | AF19: 30-200 100 (Std) | AK19: 4826 | AL19: 350 | AT19: 4863 | AU19: 95 | BE19: Fog Tip | BF19: 95 | BG19: Fog Tip 95 | BJ19: 161 | BK19: 50 | BL19: 161 50 | BR19: Fog Tip | BS19: 4824 | BT19: 300 | BU19: 100 (Std) | BV19: Fog Tip 300 @ 100 (Std) | BZ19: Fog Nozzle 225 @ 100 | CA19: 4863 | CD19: Fog Nozzle 25 @ 100 4802 | CI19: Fog Nozzle 200 @ 100 4826 | CP19: Fog Nozzle 200 @ 100 | CQ19: 4826
M20: 1.5 in | S20: 185 | T20: 185 | U20: 185 | V20: 185 | AD20: 30-200 | AE20: 75 | AF20: 30-200 75 | AK20: 4863 | AL20: 95 | AT20: 4863 | AU20: 125 | AV20: 125 | AW20: 125 | BE20: Fog Tip | BF20: 125 | BG20: Fog Tip 125 | BJ20: 175 | BK20: 100 (Std) | BL20: 175 100 (Std) | BR20: Fog Tip | BS20: 4824 | BT20: 350 | BU20: 100 (Std) | BV20: Fog Tip 350 @ 100 (Std) | BZ20: Fog Nozzle 25 @ 100 | CA20: 4802 | CD20: Fog Nozzle 250 @ 100 4826 | CI20: Fog Nozzle 200 @ 100 4863 | CP20: Fog Nozzle 200 @ 75 | CQ20: 4826
M21: 1.5 IN | S21: 200 | T21: 200 | U21: 200 | V21: 200 | AD21: 95-200 | AE21: 100 (Std) | AF21: 95-200 100 (Std) | AK21: 4863 | AL21: 125 | AT21: 4863 | AU21: 150 | AV21: 150 | AW21: 150 | BE21: Fog Tip | BF21: 150 | BG21: Fog Tip 150 | BJ21: 175 | BK21: 75 | BL21: 175 75 | BR21: Fog Tip | BS21: 4824 | BT21: 200 | BU21: 75 | BV21: Fog Tip 200 @ 75 | BZ21: Fog Nozzle 250 @ 100 | CA21: 4826 | CD21: Fog Nozzle 250 @ 50 4826 | CI21: Fog Nozzle 200 @ 75 4826 | CP21: Fog Nozzle 200 @ 100 | CQ21: 4863
D22: =CONCATENATE("_",SUBSTITUTE(C10," ","_"),"_",SUBSTITUTE(D10,"-","_")) -> _1.5_in_200 | I22: =CONCATENATE(SUBSTITUTE(B10," ","_"),"_",SUBSTITUTE(D10,"-","_")) -> Fog_Nozzle_200 | K22: asdfa | M22: 2 IN | N22: STORZ | S22: 210 | T22: 210 | U22: 210 | V22: 210 | AD22: 95-200 | AE22: 75 | AF22: 95-200 75 | AK22: 4863 | AL22: 150 | AT22: 4863 | AU22: 175 | AV22: 175 | AW22: 175 | BE22: Fog Tip | BF22: 161 | BG22: Fog Tip 161 | BJ22: 175 | BK22: 50 | BL22: 175 50 | BR22: Fog Tip | BS22: 4824 | BT22: 250 | BU22: 75 | BV22: Fog Tip 250 @ 75 | BZ22: Fog Nozzle 250 @ 50 | CA22: 4826 | CD22: Fog Nozzle 250 @ 75 4826 | CI22: Fog Nozzle 200 @ 75 4863 | CP22: Fog Nozzle 200 @ 75 | CQ22: 4863
D23: =CONCATENATE(C10," ",D10) -> 1.5 in 200 | M23: 2.5 IN | N23: NH | S23: 225 | T23: 225 | U23: 225 | V23: 225 | AD23: 12-53 | AE23: 87 (CE) | AF23: 12-53 87 (CE) | AK23: 4863 | AL23: 161 | AT23: 4863 | AU23: 200 | AV23: 200 | BE23: Fog Tip | BF23: 175 | BG23: Fog Tip 175 | BJ23: 185 | BK23: 50 | BL23: 185 50 | BR23: Fog Tip | BS23: 4824 | BT23: 300 | BU23: 75 | BV23: Fog Tip 300 @ 75 | BZ23: Fog Nozzle 250 @ 75 | CA23: 4826 | CD23: Fog Nozzle 265 @ 50 4826 | CI23: Fog Nozzle 210 @ 50 4826 | CP23: Fog Nozzle 210 @ 50 | CQ23: 4826
B24: =IF(OR(C24="False",D24="False",E24="False",H24="False",J24="False",F24="False"),"Error","Okay") -> Okay | C24: =IFERROR(VLOOKUP(CONCATENATE(B10," ",C10),C29:C45,1,FALSE),"False") -> Fog Nozzle 1.5 in | D24: =IFERROR(VLOOKUP(CONCATENATE(B10," ",D10),D29:D58,1,FALSE),"False") -> Fog Nozzle 200 | E24: =IFERROR(VLOOKUP(CONCATENATE(D10," ",E10),E29:E62,1,FALSE),"False") -> 200 100 (Std) | F24: =IF(OR(C10="2 in",C10="3 in"),IF(F10="storz","Okay","False"),"Okay") -> Okay | H24: =IF($B10="Fog Tip",IF(H10="yes","False","Okay"),"Okay") -> Okay | I24: =IFERROR(VLOOKUP(CONCATENATE(B10," ",D10," @ ",IF(E10="100 (Std)",100,IF(E10="87 (ce)",87,E10))," ",I10),I28:I92,1,FALSE),"False") -> Fog Nozzle 200 @ 100 4863 | J24: =IF($B10="Fog Tip",IF(J10="yes","False","Okay"),"Okay") -> Okay | M24: 2.5 IN | N24: NPSH | S24: 250 | T24: 250 | U24: 250 | V24: 250 | AK24: 4863 | AL24: 175 | AT24: 4863 | AW24: 161 | BE24: Fog Tip | BF24: 200 | BG24: Fog Tip 200 | BJ24: 200 | BK24: 100 (Std) | BL24: 200 100 (Std) | BR24: Fog Tip | BS24: 4824 | BT24: 210 | BU24: 50 | BV24: Fog Tip 210 @ 50 | BZ24: Fog Nozzle 265 @ 50 | CA24: 4826 | CD24: Fog Nozzle 300 @ 100 4826 | CI24: Fog Nozzle 225 @ 100 4863 | CP24: Fog Nozzle 225 @ 100 | CQ24: 4863
M25: 2.5 IN | N25: FDNY | S25: 300 | T25: 300 | U25: 300 | V25: 300 | AK25: 4863 | AL25: 185 | AT25: 4863 | AW25: 185 | BE25: Fog Tip | BF25: 210 | BG25: Fog Tip 210 | BJ25: 200 | BK25: 75 | BL25: 200 75 | BR25: Fog Tip | BS25: 4824 | BT25: 265 | BU25: 50 | BV25: Fog Tip 265 @ 50 | BZ25: Fog Nozzle 300 @ 100 | CA25: 4826 | CD25: Fog Nozzle 300 @ 75 4826 | CI25: Fog Nozzle 25 @ 100 4802 | CP25: Fog Nozzle 25 @ 100 | CQ25: 4802
I26: =CONCATENATE(SUBSTITUTE(B10," ","_"),"_",D10,"___",IF(E10="100 (Std)",100,IF(E10="87 (ce)",87,E10))," ",I10) -> Fog_Nozzle_200___100 4863 | M26: 2.5 IN | N26: NYCORP | S26: 350 | T26: 350 | U26: 350 | V26: 350 | AK26: 4863 | AL26: 200 | AT26: 4866 | AU26: 95 | BE26: Fog Tip | BF26: 225 | BG26: Fog Tip 225 | BJ26: 200 | BK26: 50 | BL26: =CONCATENATE(BJ26," ",BK26) -> 200 50 | BR26: Fog Tip | BS26: 4824 | BT26: 250 | BU26: 50 | BV26: Fog Tip 250 @ 50 | BZ26: Fog Nozzle 300 @ 75 | CA26: 4826 | CD26: Fog Nozzle 350 @ 100 4826 | CI26: Fog Nozzle 250 @ 100 4826 | CP26: Fog Nozzle 250 @ 100 | CQ26: 4826
D27: 2.5 in 30-125 | M27: 2.5 IN | N27: PITT6 | AK27: 4863 | AL27: 225 | AT27: 4866 | AU27: 125 | AV27: 125 | AW27: 125 | BE27: Fog Tip | BF27: 250 | BG27: Fog Tip 250 | BJ27: 210 | BK27: 50 | BL27: 210 50 | BR27: Fog Nozzle | BS27: 4826 | BT27: 200 | BU27: 100 (Std) | BV27: Fog Nozzle 200 @ 100 (Std) | BZ27: Fog Nozzle 350 @ 100 | CA27: 4826 | CD27: Fog Nozzle 40 @ 100 4802 | CI27: Fog Nozzle 250 @ 50 4826 | CP27: Fog Nozzle 250 @ 50 | CQ27: 4826
I28: Fog Nozzle 125 @ 100 4116 | M28: 2.5 IN | N28: BAT | AF28: 4116 | AG28: 888 | AK28: 4866 | AL28: 95 | AT28: 4866 | AU28: 150 | AV28: 150 | AW28: 150 | BE28: Fog Tip | BF28: 265 | BG28: Fog Tip 265 | BJ28: 225 | BK28: 100 (Std) | BL28: 225 100 (Std) | BR28: Fog Nozzle | BS28: 4826 | BT28: 250 | BU28: 100 (Std) | BV28: Fog Nozzle 250 @ 100 (Std) | BZ28: Fog Nozzle 40 @ 100 | CA28: 4802 | CD28: Fog Nozzle 60 @ 100 4116 | CI28: Fog Nozzle 250 @ 75 4826 | CP28: Fog Nozzle 250 @ 75 | CQ28: 4826
C29: =CONCATENATE(O$2," ",O3) -> Fog Nozzle 1 in | D29: Fog Nozzle 13 | E29: 13 100 (Std) | I29: Fog Nozzle 125 @ 100 4863 | M29: 2.5 IN | N29: CSA | AF29: 4802 | AG29: 996 | AK29: 4866 | AL29: 125 | AT29: 4866 | AU29: 175 | AV29: 175 | AW29: 175 | BE29: Fog Tip | BF29: 300 | BG29: Fog Tip 300 | BJ29: 250 | BK29: 100 (Std) | BL29: 250 100 (Std) | BR29: Fog Nozzle | BS29: 4826 | BT29: 300 | BU29: 100 (Std) | BV29: Fog Nozzle 300 @ 100 (Std) | BZ29: Fog Nozzle 60 @ 100 | CA29: 4116 | CD29: Fog Nozzle 60 @ 75 4116 | CI29: Fog Nozzle 265 @ 50 4826 | CP29: Fog Nozzle 265 @ 50 | CQ29: 4826
C30: =CONCATENATE(O$2," ",O4) -> Fog Nozzle 1.5 in | D30: Fog Nozzle 25 | E30: 25 100 (Std) | G30: =VLOOKUP(C13,DataSource!AH:AJ,2,FALSE) -> 48634144 | H30: =VLOOKUP(C13,DataSource!AH:AJ,3,FALSE) -> ASLT 2.5NH 125G@100P FM | I30: Fog Nozzle 125 @ 75 4116 | M30: 2.5 IN | N30: QST | AF30: 4824 | AG30: 902 | AK30: 4866 | AL30: 150 | AT30: 4866 | AU30: 200 | AV30: 200 | BE30: Fog Tip | BF30: 350 | BG30: Fog Tip 350 | BJ30: 250 | BK30: 75 | BL30: 250 75 | BR30: Fog Nozzle | BS30: 4826 | BT30: 350 | BU30: 100 (Std) | BV30: Fog Nozzle 350 @ 100 (Std) | BZ30: Fog Nozzle 60 @ 75 | CA30: 4116 | CD30: Fog Nozzle 60 @ 87 4116 | CI30: Fog Nozzle 300 @ 100 4826 | CP30: Fog Nozzle 300 @ 100 | CQ30: 4826
C31: =CONCATENATE(O$2," ",O5) -> Fog Nozzle 2 in | D31: Fog Nozzle 40 | E31: 40 100 (Std) | I31: Fog Nozzle 125 @ 75 4863 | M31: 2.5 IN | N31: BIM | AF31: 4826 | AG31: 1278 | AK31: 4866 | AL31: 161 | AT31: 4866 | AW31: 161 | BJ31: 250 | BK31: 50 | BL31: 250 50 | BR31: Fog Nozzle | BS31: 4826 | BT31: 200 | BU31: 75 | BV31: Fog Nozzle 200 @ 75 | BZ31: Fog Nozzle 60 @ 87 | CA31: 4116 | CD31: Fog Nozzle 95 @ 100 4116 | CE31: =CONCATENATE($BZ32," ",CB32) -> Fog Nozzle 95 @ 100 4863 | CI31: Fog Nozzle 300 @ 75 4826 | CP31: Fog Nozzle 300 @ 75 | CQ31: 4826
C32: =CONCATENATE(O$2," ",O6) -> Fog Nozzle 2.5 in | D32: Fog Nozzle 60 | E32: 60 100 (Std) | I32: Fog Nozzle 125 @ 87 4116 | M32: 2.5 IN | N32: STORZ | AF32: 4863 | AG32: 992 | AK32: 4866 | AL32: 175 | AT32: 4866 | AW32: 185 | BJ32: 265 | BK32: 50 | BL32: 265 50 | BR32: Fog Nozzle | BS32: 4826 | BT32: 265 | BU32: 50 | BV32: Fog Nozzle 265 @ 50 | BZ32: Fog Nozzle 95 @ 100 | CA32: 4116 | CB32: 4863 | CD32: Fog Nozzle 95 @ 75 4116 | CI32: Fog Nozzle 350 @ 100 4826 | CP32: Fog Nozzle 350 @ 100 | CQ32: 4826
C33: =CONCATENATE(O$2," ",O7) -> Fog Nozzle 3 in | D33: Fog Nozzle 95 | E33: 60 87 (CE) | I33: Fog Nozzle 13 @ 100 4802 | M33: 3 IN | N33: STORZ | Q33: BLACK (Std) | R33: THREAD1 IN | S33: NH | T33: NPSH | U33: Storz | V33: Custom | W33: PCT | X33: Storz | Y33: Custom | AF33: 4866 | AG33: 772 | AK33: 4866 | AL33: 185 | BJ33: 300 | BK33: 100 (Std) | BL33: 300 100 (Std) | BR33: Fog Nozzle | BS33: 4826 | BT33: 250 | BU33: 75 | BV33: Fog Nozzle 250 @ 75 | BZ33: Fog Nozzle 95 @ 75 | CA33: 4116 | CD33: Fog Nozzle 95 @ 87 4116 | CI33: Fog Nozzle 40 @ 100 4802 | CP33: Fog Nozzle 40 @ 100 | CQ33: 4802
C34: =CONCATENATE(P$2," ",P3) -> Fog Tip 1.5 in | D34: Fog Nozzle 125 | E34: 60 75 | I34: Fog Nozzle 150 @ 100 4116 | Q34: ORANGE | R34: THREAD1.5 in | S34: NH | T34: NPSH | U34: FDNY | V34: NYCORP | W34: Storz | X34: Custom | AF34: Storz | AG34: 88 | AK34: 4866 | AL34: 200 | BJ34: 300 | BK34: 75 | BL34: 300 75 | BR34: Fog Nozzle | BS34: 4826 | BT34: 300 | BU34: 75 | BV34: Fog Nozzle 300 @ 75 | BZ34: Fog Nozzle 95 @ 87 | CA34: 4116 | CD34: Fog Tip 125 @ 100 4866 | CI34: Fog Nozzle 60 @ 100 4116 | CP34: Fog Nozzle 60 @ 100 | CQ34: 4116
D35: Fog Nozzle 150 | E35: 95 100 (Std) | I35: Fog Nozzle 150 @ 100 4863 | Q35: YELLOW | R35: THREAD2 IN | S35: Storz | AF35: ZT | AG35: 340 | BJ35: 350 | BK35: 100 (Std) | BL35: 350 100 (Std) | BR35: Fog Nozzle | BS35: 4826 | BT35: 210 | BU35: 50 | BV35: Fog Nozzle 210 @ 50 | BZ35: Fog Tip 125 @ 100 | CA35: 4866 | CD35: Fog Tip 125 @ 75 4866 | CI35: Fog Nozzle 60 @ 75 4116 | CP35: Fog Nozzle 60 @ 75 | CQ35: 4116
D36: Fog Nozzle 161 | E36: 95 75 | I36: Fog Nozzle 150 @ 50 4863 | Q36: RED | R36: THREAD2.5 IN | S36: NH | T36: NPSH | U36: FDNY | V36: NYCORP | W36: PITT6 | X36: BAT | Y36: CSA | Z36: QST | AA36: BIM | AB36: Storz | AC36: Custom | BR36: Fog Nozzle | BS36: 4826 | BT36: 250 | BU36: 50 | BV36: Fog Nozzle 250 @ 50 | BZ36: Fog Tip 125 @ 75 | CA36: 4866 | CD36: Fog Tip 150 @ 100 4866 | CI36: Fog Nozzle 60 @ 87 4116 | CP36: Fog Nozzle 60 @ 87 | CQ36: 4116
D37: Fog Nozzle 175 | E37: 95 87 (CE) | I37: Fog Nozzle 150 @ 75 4116 | Q37: BLUE | R37: THREAD3 IN | S37: Storz | BR37: Fog Nozzle | BS37: 4863 | BT37: 95 | BU37: 100 (Std) | BV37: Fog Nozzle 95 @ 100 (Std) | BZ37: Fog Tip 150 @ 100 | CA37: 4866 | CD37: Fog Tip 150 @ 50 4866 | CI37: Fog Nozzle 95 @ 100 4116 | CP37: Fog Nozzle 95 @ 100 | CQ37: 4116
D38: Fog Nozzle 185 | E38: 125 100 (Std) | I38: Fog Nozzle 150 @ 75 4863 | Q38: GREEN | BR38: Fog Nozzle | BS38: 4863 | BT38: 125 | BU38: 100 (Std) | BV38: Fog Nozzle 125 @ 100 (Std) | BZ38: Fog Tip 150 @ 50 | CA38: 4866 | CD38: Fog Tip 150 @ 75 4866 | CI38: Fog Nozzle 95 @ 100 4863 | CP38: Fog Nozzle 95 @ 100 | CQ38: 4863
D39: Fog Nozzle 200 | E39: 125 75 | I39: Fog Nozzle 150 @ 87 4116 | BR39: Fog Nozzle | BS39: 4863 | BT39: 150 | BU39: 100 (Std) | BV39: Fog Nozzle 150 @ 100 (Std) | BZ39: Fog Tip 150 @ 75 | CA39: 4866 | CD39: Fog Tip 161 @ 50 4866 | CI39: Fog Nozzle 95 @ 75 4116 | CP39: Fog Nozzle 95 @ 75 | CQ39: 4116
D40: Fog Nozzle 210 | I40: Fog Nozzle 161 @ 50 4863 | BR40: Fog Nozzle | BS40: 4863 | BT40: 175 | BU40: 100 (Std) | BV40: Fog Nozzle 175 @ 100 (Std) | BZ40: Fog Tip 161 @ 50 | CA40: 4866 | CD40: Fog Tip 175 @ 100 4866 | CI40: Fog Nozzle 95 @ 87 4116 | CP40: Fog Nozzle 95 @ 87 | CQ40: 4116
D41: Fog Nozzle 225 | E41: 125 87 (CE) | I41: Fog Nozzle 175 @ 100 4863 | AT41: bmpr4116 | AU41: BLACK (Std) | BR41: Fog Nozzle | BS41: 4863 | BT41: 200 | BU41: 100 (Std) | BV41: Fog Nozzle 200 @ 100 (Std) | BZ41: Fog Tip 175 @ 100 | CA41: 4866 | CD41: Fog Tip 175 @ 50 4866 | CI41: Fog Tip 125 @ 100 4866 | CP41: Fog Tip 125 @ 100 | CQ41: 4866
D42: Fog Nozzle 250 | E42: 150 100 (Std) | I42: Fog Nozzle 175 @ 50 4863 | R42: Style | U42: =IF(B10="fog tip","N/A","No (Std)") -> No (Std) | AT42: bmpr4802 | AU42: BLACK (Std) | AV42: ORANGE | AW42: YELLOW | AX42: RED | AY42: BLUE | AZ42: GREEN | BR42: Fog Nozzle | BS42: 4863 | BT42: 125 | BU42: 75 | BV42: Fog Nozzle 125 @ 75 | BZ42: Fog Tip 175 @ 50 | CA42: 4866 | CD42: Fog Tip 175 @ 75 4866 | CI42: Fog Tip 125 @ 75 4866 | CP42: Fog Tip 125 @ 75 | CQ42: 4866
D43: Fog Nozzle 265 | E43: 150 75 | I43: Fog Nozzle 175 @ 75 4863 | Q43: Fog Nozzle 5-40 | R43: 1602 | U43: =IF(B10="fog tip","","Yes") -> Yes | AT43: bmpr4824 | AU43: BLACK (Std) | AV43: ORANGE | AW43: YELLOW | AX43: RED | AY43: BLUE | AZ43: GREEN | BR43: Fog Nozzle | BS43: 4863 | BT43: 150 | BU43: 75 | BV43: Fog Nozzle 150 @ 75 | BZ43: Fog Tip 175 @ 75 | CA43: 4866 | CD43: Fog Tip 185 @ 50 4866 | CI43: Fog Tip 150 @ 100 4866 | CP43: Fog Tip 150 @ 100 | CQ43: 4866
D44: Fog Nozzle 300 | E44: 150 50 | I44: Fog Nozzle 185 @ 50 4863 | N44: 13 | Q44: Fog Nozzle 12-53 | R44: 1602 | AT44: bmpr4826 | AU44: BLACK (Std) | AV44: ORANGE | AW44: YELLOW | AX44: RED | AY44: BLUE | AZ44: GREEN | BR44: Fog Nozzle | BS44: 4863 | BT44: 175 | BU44: 75 | BV44: Fog Nozzle 175 @ 75 | BZ44: Fog Tip 185 @ 50 | CA44: 4866 | CD44: Fog Tip 200 @ 100 4824 | CE44: =CONCATENATE($BZ45," ",CB45) -> Fog Tip 200 @ 100 4866 | CI44: Fog Tip 150 @ 50 4866 | CP44: Fog Tip 150 @ 50 | CQ44: 4866
D45: Fog Nozzle 350 | E45: 150 87 (CE) | I45: Fog Nozzle 200 @ 100 4826 | N45: 25 | Q45: Fog Nozzle 30-150 | R45: 1616 | S45: 35 | AT45: bmpr4863 | AU45: BLACK (Std) | AV45: ORANGE | AW45: YELLOW | AX45: RED | AY45: BLUE | AZ45: GREEN | BR45: Fog Nozzle | BS45: 4863 | BT45: 200 | BU45: 75 | BV45: Fog Nozzle 200 @ 75 | BZ45: Fog Tip 200 @ 100 | CA45: 4824 | CB45: 4866 | CD45: Fog Tip 200 @ 75 4824 | CE45: =CONCATENATE($BZ46," ",CB46) -> Fog Tip 200 @ 75 4866 | CI45: Fog Tip 150 @ 75 4866 | CP45: Fog Tip 150 @ 75 | CQ45: 4866
D46: Fog Tip 95 | E46: 161 50 | I46: Fog Nozzle 200 @ 100 4863 | N46: 40 | Q46: Fog Nozzle 13-60 | R46: 1702 | AT46: bmpr4866 | AU46: BLACK (Std) | AV46: ORANGE | AW46: YELLOW | AX46: RED | AY46: BLUE | AZ46: GREEN | BR46: Fog Nozzle | BS46: 4863 | BT46: 150 | BU46: 50 | BV46: Fog Nozzle 150 @ 50 | BZ46: Fog Tip 200 @ 75 | CA46: 4824 | CB46: 4866 | CD46: Fog Tip 210 @ 50 4824 | CI46: Fog Tip 161 @ 50 4866 | CP46: Fog Tip 161 @ 50 | CQ46: 4866
D47: Fog Tip 125 | E47: 175 100 (Std) | I47: Fog Nozzle 200 @ 75 4826 | N47: 60 | Q47: Fog Tip 13-60 | R47: 1703 | S47: 37 | BR47: Fog Nozzle | BS47: 4863 | BT47: 161 | BU47: 50 | BV47: Fog Nozzle 161 @ 50 | BZ47: Fog Tip 210 @ 50 | CA47: 4824 | CD47: Fog Tip 225 @ 100 4866 | CI47: Fog Tip 175 @ 100 4866 | CP47: Fog Tip 175 @ 100 | CQ47: 4866
D48: Fog Tip 150 | E48: 175 75 | I48: Fog Nozzle 200 @ 75 4863 | N48: 95 | Q48: Fog Nozzle 18-30 | R48: 1704 | BR48: Fog Nozzle | BS48: 4863 | BT48: 175 | BU48: 50 | BV48: Fog Nozzle 175 @ 50 | BZ48: Fog Tip 225 @ 100 | CA48: 4866 | CD48: Fog Tip 250 @ 100 4824 | CI48: Fog Tip 175 @ 50 4866 | CP48: Fog Tip 175 @ 50 | CQ48: 4866
D49: Fog Tip 161 | E49: 175 50 | I49: Fog Nozzle 200 @ 50 4863 | N49: 125 | Q49: Fog Nozzle 13-30 | R49: 1704 | BR49: Fog Nozzle | BS49: 4863 | BT49: 185 | BU49: 50 | BV49: Fog Nozzle 185 @ 50 | BZ49: Fog Tip 250 @ 100 | CA49: 4824 | CD49: Fog Tip 250 @ 50 4824 | CI49: Fog Tip 175 @ 75 4866 | CP49: Fog Tip 175 @ 75 | CQ49: 4866
D50: Fog Tip 175 | E50: 185 50 | I50: Fog Nozzle 200 @ 50 4826 | N50: 150 | Q50: Fog Tip 18-30 | R50: 1711 | BR50: Fog Nozzle | BS50: 4863 | BT50: 225 | BU50: 100 (Std) | BV50: Fog Nozzle 225 @ 100 (Std) | BZ50: Fog Tip 250 @ 50 | CA50: 4824 | CD50: Fog Tip 250 @ 75 4824 | CI50: Fog Tip 185 @ 50 4866 | CP50: Fog Tip 185 @ 50 | CQ50: 4866
D51: Fog Tip 185 | E51: 200 100 (Std) | I51: Fog Nozzle 210 @ 50 4826 | N51: 161 | Q51: Fog Tip 13-30 | R51: 1711 | BR51: Fog Tip | BS51: 4866 | BT51: 95 | BU51: 100 (Std) | BV51: Fog Tip 95 @ 100 (Std) | BZ51: Fog Tip 250 @ 75 | CA51: 4824 | CD51: Fog Tip 265 @ 50 4824 | CI51: Fog Tip 200 @ 100 4824 | CP51: Fog Tip 200 @ 100 | CQ51: 4824
D52: Fog Tip 200 | E52: 200 75 | I52: Fog Nozzle 225 @ 100 4863 | N52: 175 | Q52: Fog Tip 30-125 | R52: 1714 | BR52: Fog Tip | BS52: 4866 | BT52: 125 | BU52: 100 (Std) | BV52: Fog Tip 125 @ 100 (Std) | BZ52: Fog Tip 265 @ 50 | CA52: 4824 | CD52: Fog Tip 300 @ 100 4824 | CI52: Fog Tip 200 @ 100 4866 | CP52: Fog Tip 200 @ 75 | CQ52: 4824
D53: Fog Tip 210 | E53: 200 50 | I53: Fog Nozzle 25 @ 100 4802 | N53: 185 | Q53: Fog Nozzle 30-125 | R53: 1720 | BR53: Fog Tip | BS53: 4866 | BT53: 150 | BU53: 100 (Std) | BV53: Fog Tip 150 @ 100 (Std) | BZ53: Fog Tip 300 @ 100 | CA53: 4824 | CD53: Fog Tip 300 @ 75 4824 | CI53: Fog Tip 200 @ 75 4824 | CP53: Fog Tip 200 @ 100 | CQ53: 4866
D54: Fog Tip 225 | E54: 210 50 | I54: Fog Nozzle 250 @ 100 4826 | N54: 200 | Q54: Fog Nozzle 95-200 | R54: 1723 | BR54: Fog Tip | BS54: 4866 | BT54: 175 | BU54: 100 (Std) | BV54: Fog Tip 175 @ 100 (Std) | BZ54: Fog Tip 300 @ 75 | CA54: 4824 | CD54: Fog Tip 350 @ 100 4824 | CI54: Fog Tip 200 @ 75 4866 | CP54: Fog Tip 200 @ 75 | CQ54: 4866
D55: Fog Tip 250 | E55: 225 100 (Std) | I55: Fog Nozzle 250 @ 50 4826 | N55: 210 | Q55: Fog Nozzle 125-250 | R55: 1733 | BR55: Fog Tip | BS55: 4866 | BT55: 200 | BU55: 100 (Std) | BV55: Fog Tip 200 @ 100 (Std) | BZ55: Fog Tip 350 @ 100 | CA55: 4824 | CD55: Fog Tip 95 @ 100 4866 | CI55: Fog Tip 210 @ 50 4824 | CP55: Fog Tip 210 @ 50 | CQ55: 4824
D56: Fog Tip 265 | E56: 250 100 (Std) | I56: Fog Nozzle 250 @ 75 4826 | N56: 225 | Q56: Fog Tip 95-200 | R56: 1737 | BR56: Fog Tip | BS56: 4866 | BT56: 125 | BU56: 75 | BV56: Fog Tip 125 @ 75 | BZ56: Fog Tip 95 @ 100 | CA56: 4866 | CI56: Fog Tip 225 @ 100 4866 | CP56: Fog Tip 225 @ 100 | CQ56: 4866
D57: Fog Tip 300 | E57: 250 75 | I57: Fog Nozzle 265 @ 50 4826 | N57: 250 | Q57: Fog Tip 125-250 | R57: 1744 | BR57: Fog Tip | BS57: 4866 | BT57: 150 | BU57: 75 | BV57: Fog Tip 150 @ 75 | CI57: Fog Tip 250 @ 100 4824 | CP57: Fog Tip 250 @ 100 | CQ57: 4824
D58: Fog Tip 350 | E58: 250 50 | I58: Fog Nozzle 300 @ 100 4826 | N58: 300 | Q58: Fog Nozzle 30-200 | R58: 1763 | BR58: Fog Tip | BS58: 4866 | BT58: 175 | BU58: 75 | BV58: Fog Tip 175 @ 75 | CI58: Fog Tip 250 @ 50 4824 | CP58: Fog Tip 250 @ 50 | CQ58: 4824
E59: 265 50 | I59: Fog Nozzle 300 @ 75 4826 | N59: 350 | Q59: Fog Tip 30-200 | R59: 1766 | BR59: Fog Tip | BS59: 4866 | BT59: 200 | BU59: 75 | BV59: Fog Tip 200 @ 75 | CI59: Fog Tip 250 @ 75 4824 | CP59: Fog Tip 250 @ 75 | CQ59: 4824
E60: 300 100 (Std) | I60: Fog Nozzle 350 @ 100 4826 | BR60: Fog Tip | BS60: 4866 | BT60: 150 | BU60: 50 | BV60: Fog Tip 150 @ 50 | CI60: Fog Tip 265 @ 50 4824 | CP60: Fog Tip 265 @ 50 | CQ60: 4824
E61: 300 75 | I61: Fog Nozzle 40 @ 100 4802 | BR61: Fog Tip | BS61: 4866 | BT61: 161 | BU61: 50 | BV61: Fog Tip 161 @ 50 | CI61: Fog Tip 300 @ 100 4824 | CP61: Fog Tip 300 @ 100 | CQ61: 4824
E62: 350 100 (Std) | I62: Fog Nozzle 60 @ 100 4116 | BR62: Fog Tip | BS62: 4866 | BT62: 175 | BU62: 50 | BV62: Fog Tip 175 @ 50 | CI62: Fog Tip 300 @ 75 4824 | CP62: Fog Tip 300 @ 75 | CQ62: 4824
I63: Fog Nozzle 60 @ 75 4116 | BR63: Fog Tip | BS63: 4866 | BT63: 185 | BU63: 50 | BV63: Fog Tip 185 @ 50 | CI63: Fog Tip 350 @ 100 4824 | CP63: Fog Tip 350 @ 100 | CQ63: 4824
I64: Fog Nozzle 60 @ 87 4116 | BR64: Fog Tip | BS64: 4866 | BT64: 225 | BU64: 100 (Std) | BV64: Fog Tip 225 @ 100 (Std) | CI64: Fog Tip 95 @ 100 4866 | CP64: Fog Tip 95 @ 100 | CQ64: 4866
I65: Fog Nozzle 95 @ 100 4116
I66: Fog Nozzle 95 @ 100 4863
I67: Fog Nozzle 95 @ 75 4116
I68: Fog Nozzle 95 @ 87 4116 | CT68: =TRIM(CS68) -> 
I69: Fog Tip 125 @ 100 4866
I70: Fog Tip 125 @ 75 4866
I71: Fog Tip 150 @ 100 4866
I72: Fog Tip 150 @ 50 4866
I73: Fog Tip 150 @ 75 4866
I74: Fog Tip 161 @ 50 4866
I75: Fog Tip 175 @ 100 4866
I76: Fog Tip 175 @ 50 4866
I77: Fog Tip 175 @ 75 4866
I78: Fog Tip 185 @ 50 4866
I79: Fog Tip 200 @ 100 4824
I80: Fog Tip 200 @ 100 4866 | CS80: 118 | CT80: 118 | CU80: =ROUND(0.0505*$CT80*SQRT(CU$2),0) -> 42
I81: Fog Tip 200 @ 75 4824 | CS81: 161 | CT81: 161 | CU81: =ROUND(0.0505*$CT81*SQRT(CU$2),0) -> 57
I82: Fog Tip 200 @ 75 4866 | CS82: 210 | CT82: 210 | CU82: =ROUND(0.0505*$CT82*SQRT(CU$2),0) -> 75
I83: Fog Tip 210 @ 50 4824 | CS83: 185 | CT83: 185 | CU83: =ROUND(0.0505*$CT83*SQRT(CU$2),0) -> 66
I84: Fog Tip 225 @ 100 4866
I85: Fog Tip 250 @ 100 4824
I86: Fog Tip 250 @ 50 4824
I87: Fog Tip 250 @ 75 4824
I88: Fog Tip 265 @ 50 4824
I89: Fog Tip 300 @ 100 4824
I90: Fog Tip 300 @ 75 4824
I91: Fog Tip 350 @ 100 4824
I92: Fog Tip 95 @ 100 4866

Sheet SolidBoreAndStackTips
B1: Instructions: | H1: Reaction Force Color Chart (For Stack Tips RF is for Base Tip only): | I1: This is a Low RF Nozzle (RF < 51 ) | AH1: asdf | AK1: Style | AL1: Flow | AN1: Flow | AU1: 100 | AV1: 75 | AW1: 50 | AX1: 87 | BA1: Bore Size | BB1: Style | BF1: Flow | BJ1: Flow | BK1: Pressure | BS1: Style | BT1: Flow | BU1: Pressure | CA1: Style | CN1: Bore Size | CU1: Bore Size | CZ1: Bore Size | DB1: Bore,Shutoff,Inlet,Remove Grip | DE1: Bore Size | DF1: Style | DG1: Inlet | DH1: Dec Size | DI1: Shutoff | DJ1: Remove PG | DL1: Bore Size | DM1: Dec Size | DO1: Solid Bore No 1.5 in | DP1: Solid Bore No 2.5 in | DQ1: Solid Bore Yes 1.5 in | DR1: Solid Bore Yes 2.5 in | DS1: Stack Tips No 1.5 in | DT1: Stack Tips No 2.5 in | DU1: Stack Tips Yes 1.5 in | DV1: Stack Tips Yes 2.5 in | DY1: Bore,Shutoff,Inlet,Remove Grip | DZ1: Style | ED1: Bore Size | EE1: Bore Size | EH1: Bore Size | EI1: Style | EJ1: Inlet | EK1: Dec Size | EL1: Shutoff | EU1: 50 | EX1: Bore Size | EY1: Style | FF1: =CONCATENATE(B10,E10,"0439") -> Solid Bore1-3/8"0439
B2: Tan-colored cells are headers or describe the selection options | M2: Nozzle | O2: Fog Nozzle | P2: Fog Tip | R2: 5-40 | S2: 125-250 | T2: 13-30 | U2: 13-60 | V2: 18-30 | W2: 30-125 | X2: 30-150 | Y2: 30-200 | Z2: 95-200 | AA2: 12-53 | AK2: 4116 | AL2: 60 | AN2: 13 | AO2: 100 (Std) | AT2: 4116 | AU2: 60 | AV2: 60 | AX2: 60 | AZ2: Solid Bore | BA2: 3/4" | BB2: 0416 | BC2: 1.5 in | BD2: 0.75 | BE2: Fog Nozzle | BF2: 13 | BG2: Fog Nozzle 13 | BJ2: 13 | BK2: 100 (Std) | BL2: =CONCATENATE(BJ2," ",BK2) -> 13 100 (Std) | BN2: 200 | BO2: 100 (Std) | BR2: Fog Nozzle | BS2: 4116 | BT2: 60 | BU2: 100 (Std) | BV2: =CONCATENATE(BR2," ",BT2," @ ",BU2) -> Fog Nozzle 60 @ 100 (Std) | BZ2: Fog Nozzle 125 @ 100 | CA2: 4116 | CB2: 4863 | CD2: =CONCATENATE($BZ2," ",CA2) -> Fog Nozzle 125 @ 100 4116 | CE2: =CONCATENATE($BZ2," ",CB2) -> Fog Nozzle 125 @ 100 4863 | CF2: Fog_Nozzle_125___100 | CI2: Fog Nozzle 125 @ 100 4116 | CM2: Solid Bore | CN2: 3/8" | CO2: 0.375 | CP2: =CONCATENATE(CM2," ",CN2) -> Solid Bore 3/8" | CT2: Solid Bore 1.5 in | CU2: 3/4" | CV2: 1.5 in | CW2: Solid Bore 1.5 in | CY2: Solid Bore 1.5 in | CZ2: 3/4" | DB2: =CONCATENATE(DD2," ",DI2," ",DG2," ",DE2," ",DJ2) -> Solid Bore No 1.5 in 3/4" Yes | DC2: =CONCATENATE(DD2," ",DI2," ",DG2) -> Solid Bore No 1.5 in | DD2: Solid Bore | DE2: 3/4" | DF2: 0416 | DG2: 1.5 in | DH2: 0.75 | DI2: No | DJ2: Yes | DK2: Solid Bore No 1.5 in | DM2: 0.375 | DO2: 3/8" | DP2: 7/8" | DQ2: 1/2" | DR2: 7/8" | DS2: 1-1/8"; 1/2" | DT2: 1-1/2"; 1-1/4"; 1" | DU2: 15/16"; 1/2" | DV2: 1-1/8"; 1/2" | DY2: Solid Bore No 1.5 in 1" Yes | DZ2: 0416 | EA2: 1417 | EB2: 1499 | ED2: 3/4" | EE2: 3_4_ | EG2: Solid Bore | EH2: 3/4" | EI2: 0416 | EJ2: 1.5 in | EK2: 0.75 | EL2: No | EM2: =CONCATENATE(EG2," ",EJ2," ",EL2," ",EH2," ",EI2) -> Solid Bore 1.5 in No 3/4" 0416 | EO2: Solid Bore 1.5 in No 3/4" 0416 | ES2: 0.375 | ET2: 3/8" | EU2: =CONCATENATE(ROUND(29.71*(ES2*ES2)*SQRT(EU$1),0)," gpm @ 50 psi; RF = ",ROUND(1.57*(ES2*ES2)*EU$1,0)) -> 30 gpm @ 50 psi; RF = 11 | EW2: Solid Bore | EX2: 3/4" | EY2: 0416 | EZ2: =_xlfn.CONCAT(EW2:EY2) -> Solid Bore3/4"0416 | FB2: Solid Bore3/4"0416 | FE2: =VLOOKUP(FF7,E25:E88,1,FALSE) -> Stack Tips15/16"; 1/2"1440 | FF2: Stack Tips15/16"; 1/2"0439
B3: Use the green-colored cells to make your selections (All cells must be filled in; information from "FrontPage" tab does not carry over to this page) | I3: This is a Nozzle with Increased RF (RF > 50 and <101 ) | M3: Tip | O3: 1 in | P3: 1.5 in | R3: 100 (Std) | S3: 100 (Std) | T3: 100 (Std) | U3: 100 (Std) | V3: 100 (Std) | W3: 100 (Std) | X3: 100 (Std) | Y3: 100 (Std) | Z3: 100 (Std) | AA3: 87 (CE) | AK3: 4116 | AL3: 95 | AN3: 25 | AO3: 100 (Std) | AT3: 4116 | AU3: 95 | AV3: 95 | AX3: 95 | AZ3: Solid Bore | BA3: 7/8" | BB3: 0416 | BC3: 1.5 in | BD3: 0.875 | BE3: Fog Nozzle | BF3: 25 | BG3: Fog Nozzle 25 | BJ3: 25 | BK3: 100 (Std) | BL3: =CONCATENATE(BJ3," ",BK3) -> 25 100 (Std) | BN3: 250 | BO3: 100 (Std) | BR3: Fog Nozzle | BS3: 4116 | BT3: 60 | BU3: 75 | BV3: =CONCATENATE(BR3," ",BT3," @ ",BU3) -> Fog Nozzle 60 @ 75 | BZ3: Fog Nozzle 125 @ 75 | CA3: 4116 | CB3: 4863 | CD3: =CONCATENATE($BZ3," ",CA3) -> Fog Nozzle 125 @ 75 4116 | CE3: =CONCATENATE($BZ3," ",CB3) -> Fog Nozzle 125 @ 75 4863 | CI3: Fog Nozzle 125 @ 100 4863 | CM3: Solid Bore | CN3: 1/2" | CO3: 0.5 | CP3: =CONCATENATE(CM3," ",CN3) -> Solid Bore 1/2" | CT3: Solid Bore 1.5 in | CU3: 7/8" | CV3: 1.5 in | CW3: Solid Bore 1.5 in | CY3: Solid Bore 1.5 in | CZ3: 7/8" | DB3: =CONCATENATE(DD3," ",DI3," ",DG3," ",DE3," ",DJ3) -> Solid Bore No 1.5 in 7/8" Yes | DC3: =CONCATENATE(DD3," ",DI3," ",DG3) -> Solid Bore No 1.5 in | DD3: Solid Bore | DE3: 7/8" | DF3: 0416 | DG3: 1.5 in | DH3: 0.875 | DI3: No | DJ3: Yes | DK3: Solid Bore No 1.5 in | DM3: 0.5 | DO3: 1/2" | DP3: 15/16" | DQ3: 7/8" | DR3: 15/16" | DS3: 15/16"; 1/2" | DT3: 1-1/4"; 1-1/8"; 1" | DV3: 1-1/4"; 1-1/8"; 1" | DY3: Solid Bore No 1.5 in 1/2" Yes | DZ3: 1417 | ED3: 7/8" | EE3: 7_8_ | EG3: Solid Bore | EH3: 7/8" | EI3: 0416 | EJ3: 1.5 in | EK3: 0.875 | EL3: No | EM3: =CONCATENATE(EG3," ",EJ3," ",EL3," ",EH3," ",EI3) -> Solid Bore 1.5 in No 7/8" 0416 | EO3: Solid Bore 1.5 in No 7/8" 0416 | ES3: 0.5 | ET3: 1/2" | EU3: 53 gpm @ 50 psi; RF = 20 | EW3: Solid Bore | EX3: 7/8" | EY3: 0416 | EZ3: =_xlfn.CONCAT(EW3:EY3) -> Solid Bore7/8"0416 | FB3: Solid Bore7/8"0416 | FF3: =FF2=FF1 -> FALSE
B4: Blue-colored cells provide outputs based on your selections | M4: High Pressure | O4: 1.5 in | R4: 75 | S4: 75 | W4: 75 | X4: 75 | Y4: 75 | Z4: 75 | AK4: 4116 | AL4: 125 | AN4: 40 | AO4: 100 (Std) | AT4: 4116 | AU4: 125 | AV4: 125 | AX4: 125 | AZ4: Solid Bore | BA4: 1" | BB4: 0416 | BC4: 1.5 in | BD4: 1 | BE4: Fog Nozzle | BF4: 40 | BG4: Fog Nozzle 40 | BJ4: 40 | BK4: 100 (Std) | BL4: 40 100 (Std) | BN4: 300 | BO4: 100 (Std) | BR4: Fog Nozzle | BS4: 4116 | BT4: 60 | BU4: 87 (CE) | BV4: Fog Nozzle 60 @ 87 (CE) | BZ4: Fog Nozzle 125 @ 87 | CA4: 4116 | CD4: =CONCATENATE($BZ4," ",CA4) -> Fog Nozzle 125 @ 87 4116 | CI4: Fog Nozzle 125 @ 75 4116 | CM4: Solid Bore | CN4: 5/8" | CO4: 0.625 | CP4: Solid Bore 5/8" | CT4: Solid Bore 1.5 in | CU4: 1" | CV4: 1.5 in | CW4: Solid Bore 1.5 in | CY4: Solid Bore 1.5 in | CZ4: 1" | DB4: Solid Bore No 1.5 in 1" Yes | DC4: Solid Bore No 1.5 in | DD4: Solid Bore | DE4: 1" | DF4: 0416 | DG4: 1.5 in | DH4: 1 | DI4: No | DJ4: Yes | DK4: Solid Bore No 1.5 in | DM4: 0.625 | DO4: 5/8" | DP4: 1" | DQ4: 15/16" | DR4: 1" | DS4: 1-1/16"; 15/16" | DT4: 1-3/8"; 1-1/4"; 1" | DY4: Solid Bore No 1.5 in 1-1/16" Yes | DZ4: 1499 | ED4: 1" | EE4: 1_ | EG4: Solid Bore | EH4: 1" | EI4: 0416 | EJ4: 1.5 in | EK4: 1 | EL4: No | EM4: Solid Bore 1.5 in No 1" 0416 | EO4: Solid Bore 1.5 in No 1" 0416 | ES4: 0.625 | ET4: 5/8" | EU4: 82 gpm @ 50 psi; RF = 31 | EW4: Solid Bore | EX4: 1" | EY4: 0416 | EZ4: Solid Bore1"0416 | FB4: Solid Bore1"0416 | FF4: Stack Tips15/16"; 1/2"0439
B5: This shaded cell indicates an error has ocurred and you may need to modify some of your selections or contact our Customer Care team | I5: This Nozzle has a High RF (RF > 100 ) | O5: 2 in | R5: 87 (CE) | W5: 87 (CE) | X5: 87 (CE) | AD5: 5-40 | AE5: 100 (Std) | AF5: =CONCATENATE(AD5," ",AE5) -> 5-40 100 (Std) | AK5: 4116 | AL5: 150 | AN5: 60 | AO5: 100 (Std) | AP5: 75 | AQ5: 87 (CE) | AT5: 4116 | AU5: 150 | AV5: 150 | AX5: 150 | AZ5: Solid Bore | BA5: 1-1/8" | BB5: 0416 | BC5: 1.5 in | BD5: 1.125 | BE5: Fog Nozzle | BF5: 60 | BG5: Fog Nozzle 60 | BJ5: 60 | BK5: 100 (Std) | BL5: 60 100 (Std) | BN5: 350 | BO5: 100 (Std) | BR5: Fog Nozzle | BS5: 4116 | BT5: 95 | BU5: 100 (Std) | BV5: Fog Nozzle 95 @ 100 (Std) | BZ5: Fog Nozzle 13 @ 100 | CA5: 4802 | CD5: =CONCATENATE($BZ5," ",CA5) -> Fog Nozzle 13 @ 100 4802 | CI5: Fog Nozzle 125 @ 75 4863 | CM5: Solid Bore | CN5: 3/4" | CO5: 0.75 | CP5: Solid Bore 3/4" | CT5: Solid Bore 1.5 in | CU5: 1-1/8" | CV5: 1.5 in | CW5: Solid Bore 1.5 in | CY5: Solid Bore 1.5 in | CZ5: 1-1/8" | DB5: Solid Bore No 1.5 in 1-1/8" Yes | DC5: Solid Bore No 1.5 in | DD5: Solid Bore | DE5: 1-1/8" | DF5: 0416 | DG5: 1.5 in | DH5: 1.125 | DI5: No | DJ5: Yes | DK5: Solid Bore No 1.5 in | DM5: 0.75 | DO5: 3/4" | DP5: 1-1/8" | DQ5: 1" | DR5: 1-1/16" | DS5: 1-1/4"; 1-1/8"; 1" | DY5: Solid Bore No 1.5 in 1-1/4" Yes | DZ5: 0416 | EA5: 1417 | EB5: 1499 | ED5: 1-1/8" | EE5: 1_1_8_ | EG5: Solid Bore | EH5: 1-1/8" | EI5: 0416 | EJ5: 1.5 in | EK5: 1.125 | EL5: No | EM5: Solid Bore 1.5 in No 1-1/8" 0416 | EO5: Solid Bore 1.5 in No 1-1/8" 0416 | ES5: 0.75 | ET5: 3/4" | EU5: 118 gpm @ 50 psi; RF = 44 | EW5: Solid Bore | EX5: 1-1/8" | EY5: 0416 | EZ5: Solid Bore1-1/8"0416 | FB5: Solid Bore1-1/8"0416
B6: Orange-colored cell allows you to input your discount for Net Price | O6: 2.5 in | AD6: 5-40 | AE6: 75 | AF6: =CONCATENATE(AD6," ",AE6) -> 5-40 75 | AK6: 4802 | AL6: 13 | AN6: 95 | AO6: 100 (Std) | AP6: 75 | AQ6: 87 (CE) | AT6: 4802 | AU6: 13 | AZ6: Solid Bore | BA6: 1-1/4" | BB6: 0416 | BC6: 1.5 in | BD6: 1.25 | BE6: Fog Nozzle | BF6: 95 | BG6: Fog Nozzle 95 | BJ6: 60 | BK6: 87 (CE) | BL6: 60 87 (CE) | BN6: 200 | BO6: 75 | BR6: Fog Nozzle | BS6: 4116 | BT6: 95 | BU6: 75 | BV6: Fog Nozzle 95 @ 75 | BZ6: Fog Nozzle 150 @ 100 | CA6: 4116 | CB6: 4863 | CD6: Fog Nozzle 150 @ 100 4116 | CE6: =CONCATENATE($BZ6," ",CB6) -> Fog Nozzle 150 @ 100 4863 | CI6: Fog Nozzle 125 @ 87 4116 | CM6: Solid Bore | CN6: 7/8" | CO6: 0.875 | CP6: Solid Bore 7/8" | CT6: Solid Bore 1.5 in | CU6: 1-1/4" | CV6: 1.5 in | CW6: Solid Bore 1.5 in | CY6: Solid Bore 1.5 in | CZ6: 1-1/4" | DB6: Solid Bore No 1.5 in 1-1/4" Yes | DC6: Solid Bore No 1.5 in | DD6: Solid Bore | DE6: 1-1/4" | DF6: 0416 | DG6: 1.5 in | DH6: 1.25 | DI6: No | DJ6: Yes | DK6: Solid Bore No 1.5 in | DM6: 0.875 | DO6: 7/8" | DP6: 1-1/4" | DQ6: 1-1/16" | DR6: 1-1/8" | DY6: Solid Bore No 1.5 in 1-1/8" Yes | DZ6: 0416 | EA6: 1417 | EB6: 1499 | ED6: 1-1/4" | EE6: 1_1_4_ | EG6: Solid Bore | EH6: 1-1/4" | EI6: 0416 | EJ6: 1.5 in | EK6: 1.25 | EL6: No | EM6: Solid Bore 1.5 in No 1-1/4" 0416 | EO6: Solid Bore 1.5 in No 1-1/4" 0416 | ES6: 0.875 | ET6: 7/8" | EU6: 161 gpm @ 50 psi; RF = 60 | EW6: Solid Bore | EX6: 1-1/4" | EY6: 0416 | EZ6: Solid Bore1-1/4"0416 | FB6: Solid Bore1-1/4"0416 | FF6: Stack Tips15/16"; 1/2"1440
B7: =FrontPage!E8 -> Rev Date: 6/27/2022 | D7: Solid Bore Straight and Stack Tips | O7: 3 in | AD7: 5-40 | AE7: 87 (CE) | AF7: 5-40 87 (CE) | AK7: 4802 | AL7: 25 | AN7: 125 | AO7: 100 (Std) | AP7: 75 | AQ7: 50 | AR7: 87 (CE) | AT7: 4802 | AU7: 25 | AZ7: Solid Bore | BA7: 3/8" | BB7: 1417 | BC7: 1.5 in | BD7: 0.375 | BE7: Fog Nozzle | BF7: 125 | BG7: Fog Nozzle 125 | BJ7: 60 | BK7: 75 | BL7: 60 75 | BN7: 250 | BO7: 75 | BR7: Fog Nozzle | BS7: 4116 | BT7: 95 | BU7: 87 (CE) | BV7: Fog Nozzle 95 @ 87 (CE) | BZ7: Fog Nozzle 150 @ 50 | CA7: 4863 | CD7: Fog Nozzle 150 @ 50 4863 | CI7: Fog Nozzle 13 @ 100 4802 | CM7: Solid Bore | CN7: 15/16" | CO7: 0.9375 | CP7: Solid Bore 15/16" | CT7: Solid Bore 1.5 in | CU7: 3/8" | CV7: 1.5 in | CW7: Solid Bore 1.5 in | CY7: Solid Bore 1.5 in | CZ7: 3/8" | DB7: Solid Bore No 1.5 in 3/8" Yes | DC7: Solid Bore No 1.5 in | DD7: Solid Bore | DE7: 3/8" | DF7: 1417 | DG7: 1.5 in | DH7: 0.375 | DI7: No | DJ7: Yes | DK7: Solid Bore No 1.5 in | DM7: 0.9375 | DO7: 15/16" | DP7: 1-3/8" | DQ7: 1-1/8" | DR7: 1-3/16" | DY7: Solid Bore No 1.5 in 1-3/16" Yes | DZ7: 1499 | ED7: 3/8" | EE7: 3_8_ | EG7: Solid Bore | EH7: 3/8" | EI7: 1417 | EJ7: 1.5 in | EK7: 0.375 | EL7: No | EM7: Solid Bore 1.5 in No 3/8" 1417 | EO7: Solid Bore 1.5 in No 3/8" 1417 | ES7: 0.9375 | ET7: 15/16" | EU7: 185 gpm @ 50 psi; RF = 69 | EW7: Solid Bore | EX7: 3/8" | EY7: 1417 | EZ7: Solid Bore3/8"1417 | FB7: Solid Bore3/8"1417 | FF7: Stack Tips15/16"; 1/2"1440
B8: Solid Bore or Stack Tips | C8: Inlet Size | D8: Include Shutoff? | E8: =IF(LEFT(B10,5)="Stack", "Bore Sizes","Bore Size") -> Bore Size | F8: Inlet Thread | G8: =IF(OR(D10="Yes",TRIM(I10)="0416",B10="stACK TIPS"),"Outlet Thread","") ->  | H8: =IF(D10="Yes",IF(J10="yes","","Remove Pistol Grip?"),"") ->  | I8: Style Number | J8: =IF(D10="Yes",IF(TRIM(I10)="2393","","ZT Inlet?"),"") ->  | K8: Custom Etch | AD8: 125-250 | AE8: 100 (Std) | AF8: 125-250 100 (Std) | AK8: 4802 | AL8: 40 | AN8: 150 | AO8: 100 (Std) | AP8: 75 | AQ8: 50 | AR8: 87 (CE) | AT8: 4802 | AU8: 40 | AZ8: Solid Bore | BA8: 1/2" | BB8: 1417 | BC8: 1.5 in | BD8: 0.5 | BE8: Fog Nozzle | BF8: 150 | BG8: Fog Nozzle 150 | BJ8: 95 | BK8: 100 (Std) | BL8: 95 100 (Std) | BN8: 300 | BO8: 75 | BR8: Fog Nozzle | BS8: 4116 | BT8: 125 | BU8: 100 (Std) | BV8: Fog Nozzle 125 @ 100 (Std) | BZ8: Fog Nozzle 150 @ 75 | CA8: 4116 | CB8: 4863 | CD8: Fog Nozzle 150 @ 75 4116 | CE8: =CONCATENATE($BZ8," ",CB8) -> Fog Nozzle 150 @ 75 4863 | CI8: Fog Nozzle 150 @ 100 4116 | CM8: Solid Bore | CN8: 1" | CO8: 1 | CP8: Solid Bore 1" | CT8: Solid Bore 1.5 in | CU8: 1/2" | CV8: 1.5 in | CW8: Solid Bore 1.5 in | CY8: Solid Bore 1.5 in | CZ8: 1/2" | DB8: Solid Bore No 1.5 in 1/2" Yes | DC8: Solid Bore No 1.5 in | DD8: Solid Bore | DE8: 1/2" | DF8: 1417 | DG8: 1.5 in | DH8: 0.5 | DI8: No | DJ8: Yes | DK8: Solid Bore No 1.5 in | DM8: 1 | DO8: 1" | DQ8: 1-3/16" | DR8: 1-1/4" | DY8: Solid Bore No 1.5 in 1-3/8" Yes | DZ8: 1499 | ED8: 1/2" | EE8: 1_2_ | EG8: Solid Bore | EH8: 1/2" | EI8: 1417 | EJ8: 1.5 in | EK8: 0.5 | EL8: No | EM8: Solid Bore 1.5 in No 1/2" 1417 | EO8: Solid Bore 1.5 in No 1/2" 1417 | ES8: 1 | ET8: 1" | EU8: 210 gpm @ 50 psi; RF = 79 | EW8: Solid Bore | EX8: 1/2" | EY8: 1417 | EZ8: Solid Bore1/2"1417 | FB8: Solid Bore1/2"1417
O9: Solid Bore | P9: Stack Tips | AD9: 125-250 | AE9: 75 | AF9: 125-250 75 | AK9: 4824 | AL9: 200 | AN9: 161 | AO9: 50 | AT9: 4824 | AU9: 200 | AV9: 200 | AZ9: Solid Bore | BA9: 5/8" | BB9: 1417 | BC9: 1.5 in | BD9: 0.625 | BE9: Fog Nozzle | BF9: 161 | BG9: Fog Nozzle 161 | BJ9: 95 | BK9: 75 | BL9: 95 75 | BN9: 210 | BO9: 50 | BR9: Fog Nozzle | BS9: 4116 | BT9: 125 | BU9: 75 | BV9: Fog Nozzle 125 @ 75 | BZ9: Fog Nozzle 150 @ 87 | CA9: 4116 | CD9: Fog Nozzle 150 @ 87 4116 | CI9: Fog Nozzle 150 @ 100 4863 | CM9: Solid Bore | CN9: 1-1/16" | CO9: 1.0625 | CP9: Solid Bore 1-1/16" | CT9: Solid Bore 1.5 in | CU9: 5/8" | CV9: 1.5 in | CW9: Solid Bore 1.5 in | CY9: Solid Bore 1.5 in | CZ9: 5/8" | DB9: Solid Bore No 1.5 in 5/8" Yes | DC9: Solid Bore No 1.5 in | DD9: Solid Bore | DE9: 5/8" | DF9: 1417 | DG9: 1.5 in | DH9: 0.625 | DI9: No | DJ9: Yes | DK9: Solid Bore No 1.5 in | DM9: 1.0625 | DO9: 1-1/16" | DQ9: 1-1/4" | DR9: 1-3/8" | DY9: Solid Bore No 1.5 in 15/16" Yes | DZ9: 1417 | EA9: 1499 | ED9: 5/8" | EE9: 5_8_ | EG9: Solid Bore | EH9: 5/8" | EI9: 1417 | EJ9: 1.5 in | EK9: 0.625 | EL9: No | EM9: Solid Bore 1.5 in No 5/8" 1417 | EO9: Solid Bore 1.5 in No 5/8" 1417 | ES9: 1.0625 | ET9: 1-1/16" | EU9: 237 gpm @ 50 psi; RF = 89 | EW9: Solid Bore | EX9: 5/8" | EY9: 1417 | EZ9: Solid Bore5/8"1417 | FB9: Solid Bore5/8"1417
B10: Solid Bore | C10: 2.5 in | D10: No | E10: 1-3/8" | F10: NH | G10: NH | H10: No (Std) | I10: 0489 | J10: No (Std) | K10: No (Std) | O10: 1.5 in | P10: 1.5 in | X10: INDIRECT(CONCATENATE("tHREAD",SUBSTITUTE(B4," ","_"))) | AD10: 13-30 | AE10: 100 (Std) | AF10: 13-30 100 (Std) | AK10: 4824 | AL10: 210 | AN10: 175 | AO10: 100 (Std) | AP10: 75 | AQ10: 50 | AT10: 4824 | AW10: 210 | AZ10: Solid Bore | BA10: 3/4" | BB10: 1417 | BC10: 1.5 in | BD10: 0.75 | BE10: Fog Nozzle | BF10: 175 | BG10: Fog Nozzle 175 | BJ10: 95 | BK10: 87 (CE) | BL10: 95 87 (CE) | BN10: 250 | BO10: 50 | BR10: Fog Nozzle | BS10: 4116 | BT10: 125 | BU10: 87 (CE) | BV10: Fog Nozzle 125 @ 87 (CE) | BZ10: Fog Nozzle 161 @ 50 | CA10: 4863 | CD10: Fog Nozzle 161 @ 50 4863 | CI10: Fog Nozzle 150 @ 50 4863 | CM10: Solid Bore | CN10: 1-1/8" | CO10: 1.125 | CP10: Solid Bore 1-1/8" | CT10: Solid Bore 1.5 in | CU10: 3/4" | CV10: 1.5 in | CW10: Solid Bore 1.5 in | CY10: Solid Bore 1.5 in | CZ10: 15/16" | DB10: Solid Bore No 1.5 in 3/4" Yes | DC10: Solid Bore No 1.5 in | DD10: Solid Bore | DE10: 3/4" | DF10: 1417 | DG10: 1.5 in | DH10: 0.75 | DI10: No | DJ10: Yes | DK10: Solid Bore No 1.5 in | DM10: 1.125 | DO10: 1-1/8" | DQ10: 1-3/8" | DY10: Solid Bore No 1.5 in 3/4" Yes | DZ10: 0416 | EA10: 1417 | ED10: 3/4" | EE10: 3_4_ | EG10: Solid Bore | EH10: 3/4" | EI10: 1417 | EJ10: 1.5 in | EK10: 0.75 | EL10: No | EM10: Solid Bore 1.5 in No 3/4" 1417 | EO10: Solid Bore 1.5 in No 3/4" 1417 | ES10: 1.125 | ET10: 1-1/8" | EU10: 266 gpm @ 50 psi; RF = 99 | EW10: Solid Bore | EX10: 3/4" | EY10: 1417 | EZ10: Solid Bore3/4"1417 | FB10: Solid Bore3/4"1417
B11: List price | C11: =SUM(E11:K11) -> 546 | E11: =IFERROR(VLOOKUP(E10,ET:EU,2,FALSE),"Fix Bore Size") -> 397 gpm @ 50 psi; RF = 148 | F11: =IF(OR(F10="Storz",F10="BIM"),_xlfn.XLOOKUP("Storz",AO:AO,AP:AP),0) -> 0 | I11: =IFERROR(VLOOKUP(TRIM(I10),AO39:AP53,2,FALSE),"") -> 546 | J11: =IF(J8="",0,IF(J10="Yes",_xlfn.XLOOKUP("ZT",AO:AO,AP:AP),0)) -> 0 | O11: 2.5 in | P11: 2.5 in | AD11: 13-60 | AE11: 100 (Std) | AF11: 13-60 100 (Std) | AK11: 4824 | AL11: 250 | AN11: 185 | AO11: 50 | AT11: 4824 | AU11: 250 | AV11: 250 | AW11: 250 | AZ11: Solid Bore | BA11: 7/8" | BB11: 1417 | BC11: 1.5 in | BD11: 0.875 | BE11: Fog Nozzle | BF11: 200 | BG11: Fog Nozzle 200 | BJ11: 125 | BK11: 100 (Std) | BL11: 125 100 (Std) | BR11: Fog Nozzle | BS11: 4116 | BT11: 150 | BU11: 100 (Std) | BV11: Fog Nozzle 150 @ 100 (Std) | BZ11: Fog Nozzle 175 @ 100 | CA11: 4863 | CD11: Fog Nozzle 175 @ 100 4863 | CI11: Fog Nozzle 150 @ 75 4116 | CM11: Solid Bore | CN11: 1-3/16" | CO11: 1.1875 | CP11: Solid Bore 1-3/16" | CT11: Solid Bore 1.5 in | CU11: 7/8" | CV11: 1.5 in | CW11: Solid Bore 1.5 in | CY11: Solid Bore 1.5 in | CZ11: 1-1/16" | DB11: Solid Bore No 1.5 in 7/8" Yes | DC11: Solid Bore No 1.5 in | DD11: Solid Bore | DE11: 7/8" | DF11: 1417 | DG11: 1.5 in | DH11: 0.875 | DI11: No | DJ11: Yes | DK11: Solid Bore No 1.5 in | DM11: 1.1875 | DO11: 1-3/16" | DY11: Solid Bore No 1.5 in 3/8" Yes | DZ11: 1417 | ED11: 7/8" | EE11: 7_8_ | EG11: Solid Bore | EH11: 7/8" | EI11: 1417 | EJ11: 1.5 in | EK11: 0.875 | EL11: No | EM11: Solid Bore 1.5 in No 7/8" 1417 | EO11: Solid Bore 1.5 in No 7/8" 1417 | ES11: 1.1875 | ET11: 1-3/16" | EU11: 296 gpm @ 50 psi; RF = 111 | EW11: Solid Bore | EX11: 7/8" | EY11: 1417 | EZ11: Solid Bore7/8"1417 | FB11: Solid Bore7/8"1417
B12: Your Discount | D12: Net Price | F12: =ROUND(C11*(1-C12),2) -> 546 | H12: =IF(D10="YES","Include Color Clips for Shutoff and/or Pistol Grip?","") ->  | K12: Yes | X12: =CONCATENATE(B10," ",C10," ",D10," ",E10," ",I10) -> Solid Bore 2.5 in No 1-3/8" 0489 | AD12: 18-30 | AE12: 100 (Std) | AF12: 18-30 100 (Std) | AK12: 4824 | AL12: 265 | AN12: 200 | AO12: 100 (Std) | AP12: 75 | AT12: 4824 | AU12: 300 | AV12: 300 | AZ12: Solid Bore | BA12: 15/16" | BB12: 1417 | BC12: 1.5 in | BD12: 0.9375 | BE12: Fog Nozzle | BF12: 210 | BG12: Fog Nozzle 210 | BJ12: 125 | BK12: 75 | BL12: 125 75 | BR12: Fog Nozzle | BS12: 4116 | BT12: 150 | BU12: 75 | BV12: Fog Nozzle 150 @ 75 | BZ12: Fog Nozzle 175 @ 50 | CA12: 4863 | CD12: Fog Nozzle 175 @ 50 4863 | CI12: Fog Nozzle 150 @ 75 4863 | CM12: Solid Bore | CN12: 1-1/4" | CO12: 1.25 | CP12: Solid Bore 1-1/4" | CT12: Solid Bore 1.5 in | CU12: 15/16" | CV12: 1.5 in | CW12: Solid Bore 1.5 in | CY12: Solid Bore 1.5 in | CZ12: 1-3/16" | DB12: Solid Bore No 1.5 in 15/16" Yes | DC12: Solid Bore No 1.5 in | DD12: Solid Bore | DE12: 15/16" | DF12: 1417 | DG12: 1.5 in | DH12: 0.9375 | DI12: No | DJ12: Yes | DK12: Solid Bore No 1.5 in | DM12: 1.25 | DO12: 1-1/4" | DY12: Solid Bore No 1.5 in 5/8" Yes | DZ12: 1417 | ED12: 15/16" | EE12: 15_16_ | EG12: Solid Bore | EH12: 15/16" | EI12: 1417 | EJ12: 1.5 in | EK12: 0.9375 | EL12: No | EM12: Solid Bore 1.5 in No 15/16" 1417 | EO12: Solid Bore 1.5 in No 15/16" 1417 | ES12: 1.25 | ET12: 1-1/4" | EU12: 328 gpm @ 50 psi; RF = 123 | EW12: Solid Bore | EX12: 15/16" | EY12: 1417 | EZ12: Solid Bore15/16"1417 | FB12: Solid Bore15/16"1417
B13: Short Description | C13: =IF(B23="Error","Fix Errors",IF(OR(B10=P9,D10="yes",TRIM(I10)="0416"),CONCATENATE(I10," ",C10," ",F10," ",CONCATENATE(IF(TRIM(I10)="0439","1 in ","1.5 in "),G10)," ",CONCATENATE(E10," bore size(s)")," ",IF(D10="no","",IF(J10="yes","PG",IF(H10="yes","NPG",IF(I10="2393"," ","PG")))),IF(B10="Fog Tip","",IF(D10="no","",IF(J10="Yes"," ZT",""))),IF(K10="Yes"," ETCH","")),CONCATENATE(I10," ",C10," ",F10," ",CONCATENATE(E10," bore size(s) "),IF(K10="Yes"," ETCH","")))) -> 0489 2.5 in NH 1-3/8" bore size(s) | M13: 1 IN | N13: NH | R13: 1 in | S13: 1.5 in | T13: 2 in | U13: 2.5 in | V13: 3 in | AD13: 30-125 | AE13: 100 (Std) | AF13: 30-125 100 (Std) | AK13: 4824 | AL13: 300 | AN13: 210 | AO13: 50 | AT13: 4824 | AU13: 350 | AZ13: Solid Bore | BA13: 1" | BB13: 1417 | BC13: 1.5 in | BD13: 1 | BE13: Fog Nozzle | BF13: 225 | BG13: Fog Nozzle 225 | BJ13: 125 | BK13: 50 | BL13: 125 50 | BR13: Fog Nozzle | BS13: 4116 | BT13: 150 | BU13: 87 (CE) | BV13: Fog Nozzle 150 @ 87 (CE) | BZ13: Fog Nozzle 175 @ 75 | CA13: 4863 | CD13: Fog Nozzle 175 @ 75 4863 | CI13: Fog Nozzle 150 @ 87 4116 | CM13: Solid Bore | CN13: 1-3/8" | CO13: 1.375 | CP13: Solid Bore 1-3/8" | CT13: Solid Bore 1.5 in | CU13: 1" | CV13: 1.5 in | CW13: Solid Bore 1.5 in | CY13: Solid Bore 1.5 in | CZ13: 1-3/8" | DB13: Solid Bore No 1.5 in 1" Yes | DC13: Solid Bore No 1.5 in | DD13: Solid Bore | DE13: 1" | DF13: 1417 | DG13: 1.5 in | DH13: 1 | DI13: No | DJ13: Yes | DK13: Solid Bore No 1.5 in | DM13: 1.375 | DO13: 1-3/8" | DY13: Solid Bore No 1.5 in 7/8" Yes | DZ13: 0416 | EA13: 1417 | EB13: 1499 | ED13: 1" | EE13: 1_ | EG13: Solid Bore | EH13: 1" | EI13: 1417 | EJ13: 1.5 in | EK13: 1 | EL13: No | EM13: Solid Bore 1.5 in No 1" 1417 | EO13: Solid Bore 1.5 in No 1" 1417 | ES13: 1.375 | ET13: 1-3/8" | EU13: 397 gpm @ 50 psi; RF = 148 | EW13: Solid Bore | EX13: 1" | EY13: 1417 | EZ13: Solid Bore1"1417 | FB13: Solid Bore1"1417
B14: Long Description | C14: =IF(B23="Error","Some of your selections are not compatible with others; please correct the errors highlighted in RED",CONCATENATE("Style ",I10," ",B10,IF(D10="yes"," including Shutoff with "," with "),C10," ",F10," inlet; ",IF(G8>"",CONCATENATE("1.5 in ",G10," outlet; "),""),E10,IF(B10="Solid Bore",CONCATENATE(" bore size ","(",E11,")"),CONCATENATE(" bore sizes ","(",E11," for Base Tip)")),IF(J10="yes","",IF(D10="No","",IF(VLOOKUP(I10,M38:N45,2,FALSE)="no",IF(I10="2393","; playpipe with D-handles","; no pistol grip"),"; pistol grip"))),IF(D10="No","",IF(J10="Yes","; Zero-Torque Grip","")),IF(K10="Yes","; Custom Etched",""))) -> Style 0489 Solid Bore with 2.5 in NH inlet; 1-3/8" bore size (397 gpm @ 50 psi; RF = 148) | H14: Akron Brass Part Number and Description | I14: =IF(AND(OR(F10="custom",G10="custom"),K10="yes"),"Contact Customer Care to request Custom Thread and Etch (800-228-1161)",IF(OR(F10="custom",G10="custom"),"Contact Customer Care to request Custom Thread (800-228-1161)",IF(K10="Yes","Contact Customer Care to request Custom Etch (800-228-1161)",IF(B23="Error","Incompatible selections; please correct errors highlighted in RED",IFERROR(CONCATENATE(VLOOKUP(C13,DataSource!AH:AJ,2,FALSE)," ",VLOOKUP(C13,DataSource!AH:AJ,3,FALSE)),"Version you've requested not yet created; contact Customer Care (800-228-1161)"))))) -> 04890501 PLAIN DELUGE TIP 2.5NH 1 3/8D POLISH | M14: 1 IN | N14: NPSH | Q14: 30-125 | R14: 13 | S14: 60 | T14: 60 | U14: 60 | V14: 60 | X14: Stack_Tips_Yes_2.5_in_1_1_4___ 1_1_8___ 1__No__Std | AD14: 30-125 | AE14: 75 | AF14: 30-125 75 | AK14: 4824 | AL14: 350 | AN14: 225 | AO14: 100 (Std) | AT14: 4826 | AU14: 200 | AV14: 200 | AZ14: Solid Bore | BA14: 1-1/8" | BB14: 1417 | BC14: 1.5 in | BD14: 1.125 | BE14: Fog Nozzle | BF14: 250 | BG14: Fog Nozzle 250 | BJ14: 125 | BK14: 87 (CE) | BL14: 125 87 (CE) | BR14: Fog Nozzle | BS14: 4802 | BT14: 13 | BU14: 100 (Std) | BV14: Fog Nozzle 13 @ 100 (Std) | BZ14: Fog Nozzle 185 @ 50 | CA14: 4863 | CD14: Fog Nozzle 185 @ 50 4863 | CI14: Fog Nozzle 161 @ 50 4863 | CM14: Stack Tips | CN14: 1-1/8"; 1/2" | CO14: 0.5 | CP14: Stack Tips 1-1/8"; 1/2" | CT14: Solid Bore 1.5 in | CU14: 1-1/8" | CV14: 1.5 in | CW14: Solid Bore 1.5 in | CY14: Solid Bore 2.5 in | CZ14: 7/8" | DB14: Solid Bore No 1.5 in 1-1/8" Yes | DC14: Solid Bore No 1.5 in | DD14: Solid Bore | DE14: 1-1/8" | DF14: 1417 | DG14: 1.5 in | DH14: 1.125 | DI14: No | DJ14: Yes | DK14: Solid Bore No 2.5 in | DM14: 0.875 | DY14: Solid Bore No 2.5 in 1" Yes | DZ14: 0489 | ED14: 1-1/8" | EE14: 1_1_8_ | EG14: Solid Bore | EH14: 1-1/8" | EI14: 1417 | EJ14: 1.5 in | EK14: 1.125 | EL14: No | EM14: Solid Bore 1.5 in No 1-1/8" 1417 | EO14: Solid Bore 1.5 in No 1-1/8" 1417 | ES14: 1.0625 | ET14: 1-1/16"; 15/16" | EU14: 237 gpm @ 50 psi; RF = 89 | EW14: Solid Bore | EX14: 1-1/8" | EY14: 1417 | EZ14: Solid Bore1-1/8"1417 | FB14: Solid Bore1-1/8"1417
M15: 1 IN | N15: STORZ | Q15: 30-150 | R15: 25 | S15: 95 | T15: 95 | U15: 95 | V15: 95 | X15: Stack_Tips_Yes_2.5_in_1_1_4___1_1_8___1__No__Std | AD15: 30-125 | AE15: 87 (CE) | AF15: 30-125 87 (CE) | AK15: 4826 | AL15: 200 | AN15: 250 | AO15: 100 (Std) | AP15: 75 | AQ15: 50 | AT15: 4826 | AW15: 210 | AZ15: Solid Bore | BA15: 1-1/4" | BB15: 1417 | BC15: 1.5 in | BD15: 1.25 | BE15: Fog Nozzle | BF15: 265 | BG15: Fog Nozzle 265 | BJ15: 150 | BK15: 100 (Std) | BL15: 150 100 (Std) | BR15: Fog Nozzle | BS15: 4802 | BT15: 25 | BU15: 100 (Std) | BV15: Fog Nozzle 25 @ 100 (Std) | BZ15: Fog Nozzle 200 @ 100 | CA15: 4826 | CB15: 4863 | CD15: Fog Nozzle 200 @ 100 4826 | CE15: Fog Nozzle 200 @ 100 4863 | CI15: Fog Nozzle 175 @ 100 4863 | CM15: Stack Tips | CN15: 15/16"; 1/2" | CO15: 0.5 | CP15: Stack Tips 15/16"; 1/2" | CT15: Solid Bore 1.5 in | CU15: 1-1/4" | CV15: 1.5 in | CW15: Solid Bore 1.5 in | CY15: Solid Bore 2.5 in | CZ15: 15/16" | DB15: Solid Bore No 1.5 in 1-1/4" Yes | DC15: Solid Bore No 1.5 in | DD15: Solid Bore | DE15: 1-1/4" | DF15: 1417 | DG15: 1.5 in | DH15: 1.25 | DI15: No | DJ15: Yes | DK15: Solid Bore No 2.5 in | DM15: 0.9375 | DY15: Solid Bore No 2.5 in 1-1/4" Yes | DZ15: 0489 | ED15: 1-1/4" | EE15: 1_1_4_ | EG15: Solid Bore | EH15: 1-1/4" | EI15: 1417 | EJ15: 1.5 in | EK15: 1.25 | EL15: No | EM15: Solid Bore 1.5 in No 1-1/4" 1417 | EO15: Solid Bore 1.5 in No 1-1/4" 1417 | ES15: 1.5 | ET15: 1-1/2"; 1-1/4"; 1" | EU15: 473 gpm @ 50 psi; RF = 177 | EW15: Solid Bore | EX15: 1-1/4" | EY15: 1417 | EZ15: Solid Bore1-1/4"1417 | FB15: Solid Bore1-1/4"1417
B16: Notes: | C16: You can make any notes about what you want, or anything else, in this space | M16: 1.5 in | Q16: 30-200 | R16: 40 | S16: 125 | T16: 125 | U16: 125 | V16: 125 | AD16: 30-150 | AE16: 100 (Std) | AF16: 30-150 100 (Std) | AK16: 4826 | AL16: 210 | AN16: 265 | AO16: 50 | AT16: 4826 | AU16: 250 | AV16: 250 | AW16: 250 | AZ16: Solid Bore | BA16: 7/8" | BB16: 1445 | BC16: 1.5 in | BD16: 0.875 | BE16: Fog Nozzle | BF16: 300 | BG16: Fog Nozzle 300 | BJ16: 150 | BK16: 75 | BL16: 150 75 | BR16: Fog Nozzle | BS16: 4802 | BT16: 40 | BU16: 100 (Std) | BV16: Fog Nozzle 40 @ 100 (Std) | BZ16: Fog Nozzle 200 @ 75 | CA16: 4826 | CB16: 4863 | CD16: Fog Nozzle 200 @ 75 4826 | CE16: Fog Nozzle 200 @ 75 4863 | CI16: Fog Nozzle 175 @ 50 4863 | CM16: Stack Tips | CN16: 15/16"; 1/2" | CO16: 0.5 | CP16: Stack Tips 15/16"; 1/2" | CT16: Solid Bore 1.5 in | CU16: 7/8" | CV16: 1.5 in | CW16: Solid Bore 1.5 in | CY16: Solid Bore 2.5 in | CZ16: 1" | DB16: Solid Bore Yes 1.5 in 7/8" No (Std) | DC16: Solid Bore Yes 1.5 in | DD16: Solid Bore | DE16: 7/8" | DF16: 1445 | DG16: 1.5 in | DH16: 0.875 | DI16: Yes | DJ16: No (Std) | DK16: Solid Bore No 2.5 in | DM16: 1 | DY16: Solid Bore No 2.5 in 1-1/8" Yes | DZ16: 0489 | ED16: 7/8" | EE16: 7_8_ | EG16: Solid Bore | EH16: 7/8" | EI16: 1445 | EJ16: 1.5 in | EK16: 0.875 | EL16: Yes | EM16: Solid Bore 1.5 in Yes 7/8" 1445 | EO16: Solid Bore 1.5 in Yes 7/8" 1445 | ES16: 1.25 | ET16: 1-1/4"; 1-1/8"; 1" | EU16: 328 gpm @ 50 psi; RF = 123 | EW16: Solid Bore | EX16: 7/8" | EY16: 1445 | EZ16: Solid Bore7/8"1445 | FB16: Solid Bore7/8"1445
M17: 1.5 in | Q17: 95-200 | S17: 150 | T17: 150 | U17: 150 | V17: 150 | AD17: 30-150 | AE17: 75 | AF17: 30-150 75 | AK17: 4826 | AL17: 250 | AN17: 300 | AO17: 100 (Std) | AP17: 75 | AT17: 4826 | AU17: 300 | AV17: 300 | AZ17: Solid Bore | BA17: 15/16" | BB17: 1445 | BC17: 1.5 in | BD17: 0.9375 | BE17: Fog Nozzle | BF17: 350 | BG17: Fog Nozzle 350 | BJ17: 150 | BK17: 50 | BL17: 150 50 | BR17: Fog Tip | BS17: 4824 | BT17: 200 | BU17: 100 (Std) | BV17: Fog Tip 200 @ 100 (Std) | BZ17: Fog Nozzle 210 @ 50 | CA17: 4826 | CD17: Fog Nozzle 210 @ 50 4826 | CI17: Fog Nozzle 175 @ 75 4863 | CM17: Stack Tips | CN17: 1-1/16"; 15/16" | CO17: 0.9375 | CP17: Stack Tips 1-1/16"; 15/16" | CT17: Solid Bore 1.5 in | CU17: 15/16" | CV17: 1.5 in | CW17: Solid Bore 1.5 in | CY17: Solid Bore 2.5 in | CZ17: 1-1/8" | DB17: Solid Bore Yes 1.5 in 15/16" No (Std) | DC17: Solid Bore Yes 1.5 in | DD17: Solid Bore | DE17: 15/16" | DF17: 1445 | DG17: 1.5 in | DH17: 0.9375 | DI17: Yes | DJ17: No (Std) | DK17: Solid Bore No 2.5 in | DM17: 1.125 | DY17: Solid Bore No 2.5 in 1-3/8" Yes | DZ17: 0489 | ED17: 15/16" | EE17: 15_16_ | EG17: Solid Bore | EH17: 15/16" | EI17: 1445 | EJ17: 1.5 in | EK17: 0.9375 | EL17: Yes | EM17: Solid Bore 1.5 in Yes 15/16" 1445 | EO17: Solid Bore 1.5 in Yes 15/16" 1445 | ES17: 1.25 | ET17: 1-1/4"; 1-1/8"; 1" | EU17: 328 gpm @ 50 psi; RF = 123 | EW17: Solid Bore | EX17: 15/16" | EY17: 1445 | EZ17: Solid Bore15/16"1445 | FB17: Solid Bore15/16"1445
M18: 1.5 in | Q18: 125-250 | S18: 161 | T18: 161 | U18: 161 | V18: 161 | AD18: 30-150 | AE18: 87 (CE) | AF18: 30-150 87 (CE) | AK18: 4826 | AL18: 300 | AN18: 350 | AO18: 100 (Std) | AT18: 4826 | AU18: 350 | AZ18: Solid Bore | BA18: 1" | BB18: 1445 | BC18: 1.5 in | BD18: 1 | BE18: Fog Tip | BF18: 95 | BG18: Fog Tip 95 | BJ18: 150 | BK18: 87 (CE) | BL18: 150 87 (CE) | BR18: Fog Tip | BS18: 4824 | BT18: 250 | BU18: 100 (Std) | BV18: Fog Tip 250 @ 100 (Std) | BZ18: Fog Nozzle 225 @ 100 | CA18: 4863 | CD18: Fog Nozzle 225 @ 100 4863 | CI18: Fog Nozzle 185 @ 50 4863 | CM18: Stack Tips | CN18: 1-1/4"; 1-1/8"; 1" | CO18: 1 | CP18: Stack Tips 1-1/4"; 1-1/8"; 1" | CT18: Solid Bore 1.5 in | CU18: 1" | CV18: 1.5 in | CW18: Solid Bore 1.5 in | CY18: Solid Bore 2.5 in | CZ18: 1-1/4" | DB18: Solid Bore Yes 1.5 in 1" No (Std) | DC18: Solid Bore Yes 1.5 in | DD18: Solid Bore | DE18: 1" | DF18: 1445 | DG18: 1.5 in | DH18: 1 | DI18: Yes | DJ18: No (Std) | DK18: Solid Bore No 2.5 in | DM18: 1.25 | DY18: Solid Bore No 2.5 in 15/16" Yes | DZ18: 0489 | ED18: 1" | EE18: 1_ | EG18: Solid Bore | EH18: 1" | EI18: 1445 | EJ18: 1.5 in | EK18: 1 | EL18: Yes | EM18: Solid Bore 1.5 in Yes 1" 1445 | EO18: Solid Bore 1.5 in Yes 1" 1445 | ES18: 1.25 | ET18: 1-1/4"; 1-1/8"; 1" | EU18: 328 gpm @ 50 psi; RF = 123 | EW18: Solid Bore | EX18: 1" | EY18: 1445 | EZ18: Solid Bore1"1445 | FB18: Solid Bore1"1445
M19: 1.5 IN | S19: 175 | T19: 175 | U19: 175 | V19: 175 | AD19: 30-200 | AE19: 100 (Std) | AF19: 30-200 100 (Std) | AK19: 4826 | AL19: 350 | AT19: 4863 | AU19: 95 | AZ19: Solid Bore | BA19: 1-1/16" | BB19: 1445 | BC19: 1.5 in | BD19: 1.0625 | BE19: Fog Tip | BF19: 125 | BG19: Fog Tip 125 | BJ19: 161 | BK19: 50 | BL19: 161 50 | BR19: Fog Tip | BS19: 4824 | BT19: 300 | BU19: 100 (Std) | BV19: Fog Tip 300 @ 100 (Std) | BZ19: Fog Nozzle 25 @ 100 | CA19: 4802 | CD19: Fog Nozzle 25 @ 100 4802 | CI19: Fog Nozzle 200 @ 100 4826 | CM19: Stack Tips | CN19: 1-1/2"; 1-1/4"; 1" | CO19: 1 | CP19: Stack Tips 1-1/2"; 1-1/4"; 1" | CT19: Solid Bore 1.5 in | CU19: 1-1/16" | CV19: 1.5 in | CW19: Solid Bore 1.5 in | CY19: Solid Bore 2.5 in | CZ19: 1-3/8" | DB19: Solid Bore Yes 1.5 in 1-1/16" No (Std) | DC19: Solid Bore Yes 1.5 in | DD19: Solid Bore | DE19: 1-1/16" | DF19: 1445 | DG19: 1.5 in | DH19: 1.0625 | DI19: Yes | DJ19: No (Std) | DK19: Solid Bore No 2.5 in | DM19: 1.375 | DY19: Solid Bore No 2.5 in 7/8" Yes | DZ19: 0489 | ED19: 1-1/16" | EE19: 1_1_16_ | EG19: Solid Bore | EH19: 1-1/16" | EI19: 1445 | EJ19: 1.5 in | EK19: 1.0625 | EL19: Yes | EM19: Solid Bore 1.5 in Yes 1-1/16" 1445 | EO19: Solid Bore 1.5 in Yes 1-1/16" 1445 | ES19: 1.125 | ET19: 1-1/8"; 1/2" | EU19: 266 gpm @ 50 psi; RF = 99 | EW19: Solid Bore | EX19: 1-1/16" | EY19: 1445 | EZ19: Solid Bore1-1/16"1445 | FB19: Solid Bore1-1/16"1445
I20: =CONCATENATE(SUBSTITUTE(B10," ","_"),"_",SUBSTITUTE(D10,"-","_")) -> Solid_Bore_No | M20: 1.5 in | S20: 200 | T20: 200 | U20: 200 | V20: 200 | AD20: 30-200 | AE20: 75 | AF20: 30-200 75 | AK20: 4863 | AL20: 95 | AT20: 4863 | AU20: 125 | AV20: 125 | AW20: 125 | AZ20: Solid Bore | BA20: 1-1/8" | BB20: 1445 | BC20: 1.5 in | BD20: 1.125 | BE20: Fog Tip | BF20: 150 | BG20: Fog Tip 150 | BJ20: 175 | BK20: 100 (Std) | BL20: 175 100 (Std) | BR20: Fog Tip | BS20: 4824 | BT20: 350 | BU20: 100 (Std) | BV20: Fog Tip 350 @ 100 (Std) | BZ20: Fog Nozzle 250 @ 100 | CA20: 4826 | CD20: Fog Nozzle 250 @ 100 4826 | CI20: Fog Nozzle 200 @ 100 4863 | CM20: Stack Tips | CN20: 1-3/8"; 1-1/4"; 1" | CO20: 1 | CP20: Stack Tips 1-3/8"; 1-1/4"; 1" | CT20: Solid Bore 1.5 in | CU20: 1-1/8" | CV20: 1.5 in | CW20: Solid Bore 1.5 in | CY20: Solid Bore 2.5 in | CZ20: 1-1/16" | DB20: Solid Bore Yes 1.5 in 1-1/8" No (Std) | DC20: Solid Bore Yes 1.5 in | DD20: Solid Bore | DE20: 1-1/8" | DF20: 1445 | DG20: 1.5 in | DH20: 1.125 | DI20: Yes | DJ20: No (Std) | DK20: Solid Bore Yes 1.5 in | DM20: 0.5 | DY20: Solid Bore Yes 1.5 in 1" No (Std) | DZ20: 1445 | ED20: 1-1/8" | EE20: 1_1_8_ | EG20: Solid Bore | EH20: 1-1/8" | EI20: 1445 | EJ20: 1.5 in | EK20: 1.125 | EL20: Yes | EM20: Solid Bore 1.5 in Yes 1-1/8" 1445 | EO20: Solid Bore 1.5 in Yes 1-1/8" 1445 | ES20: 1.125 | ET20: 1-1/8"; 1/2" | EU20: =CONCATENATE(ROUND(29.71*(ES20*ES20)*SQRT(EU$1),0)," gpm @ 50 psi; RF ",ROUND(1.57*(ES20*ES20)*EU$1,0)) -> 266 gpm @ 50 psi; RF 99 | EW20: Solid Bore | EX20: 1-1/8" | EY20: 1445 | EZ20: Solid Bore1-1/8"1445 | FB20: Solid Bore1-1/8"1445
I21: Bore,Shutoff,Inlet,Remove Grip | M21: 1.5 IN | S21: 210 | T21: 210 | U21: 210 | V21: 210 | AD21: 95-200 | AE21: 100 (Std) | AF21: 95-200 100 (Std) | AK21: 4863 | AL21: 125 | AT21: 4863 | AU21: 150 | AV21: 150 | AW21: 150 | AZ21: Solid Bore | BA21: 1-3/16" | BB21: 1445 | BC21: 1.5 in | BD21: 1.1875 | BE21: Fog Tip | BF21: 161 | BG21: Fog Tip 161 | BJ21: 175 | BK21: 75 | BL21: 175 75 | BR21: Fog Tip | BS21: 4824 | BT21: 200 | BU21: 75 | BV21: Fog Tip 200 @ 75 | BZ21: Fog Nozzle 250 @ 50 | CA21: 4826 | CD21: Fog Nozzle 250 @ 50 4826 | CI21: Fog Nozzle 200 @ 75 4826 | CT21: Solid Bore 1.5 in | CU21: 1-3/16" | CV21: 1.5 in | CW21: Solid Bore 1.5 in | CY21: Solid Bore 2.5 in | CZ21: 1-3/16" | DB21: Solid Bore Yes 1.5 in 1-3/16" No (Std) | DC21: Solid Bore Yes 1.5 in | DD21: Solid Bore | DE21: 1-3/16" | DF21: 1445 | DG21: 1.5 in | DH21: 1.1875 | DI21: Yes | DJ21: No (Std) | DK21: Solid Bore Yes 1.5 in | DM21: 0.875 | DY21: Solid Bore Yes 1.5 in 1/2" No (Std) | DZ21: 1447 | ED21: 1-3/16" | EE21: 1_3_16_ | EG21: Solid Bore | EH21: 1-3/16" | EI21: 1445 | EJ21: 1.5 in | EK21: 1.1875 | EL21: Yes | EM21: Solid Bore 1.5 in Yes 1-3/16" 1445 | EO21: Solid Bore 1.5 in Yes 1-3/16" 1445 | ES21: 1.125 | ET21: 1-1/8"; 1/2" | EU21: 266 gpm @ 50 psi; RF 99 | EW21: Solid Bore | EX21: 1-3/16" | EY21: 1445 | EZ21: Solid Bore1-3/16"1445 | FB21: Solid Bore1-3/16"1445
D22: =CONCATENATE(C10," ",D10) -> 2.5 in No | I22: Solid Bore No 1.5 in 1" Yes | M22: 2 IN | N22: STORZ | S22: 225 | T22: 225 | U22: 225 | V22: 225 | AD22: 95-200 | AE22: 75 | AF22: 95-200 75 | AK22: 4863 | AL22: 150 | AT22: 4863 | AU22: 175 | AV22: 175 | AW22: 175 | AZ22: Solid Bore | BA22: 1-1/4" | BB22: 1445 | BC22: 1.5 in | BD22: 1.25 | BE22: Fog Tip | BF22: 175 | BG22: Fog Tip 175 | BJ22: 175 | BK22: 50 | BL22: 175 50 | BR22: Fog Tip | BS22: 4824 | BT22: 250 | BU22: 75 | BV22: Fog Tip 250 @ 75 | BZ22: Fog Nozzle 250 @ 75 | CA22: 4826 | CD22: =CONCATENATE($BZ22," ",CA22) -> Fog Nozzle 250 @ 75 4826 | CI22: Fog Nozzle 200 @ 75 4863 | CT22: Solid Bore 1.5 in | CU22: 1-1/4" | CV22: 1.5 in | CW22: Solid Bore 1.5 in | CY22: Stack Tips 1.5 in | CZ22: 1-1/8"; 1/2" | DB22: Solid Bore Yes 1.5 in 1-1/4" No (Std) | DC22: Solid Bore Yes 1.5 in | DD22: Solid Bore | DE22: 1-1/4" | DF22: 1445 | DG22: 1.5 in | DH22: 1.25 | DI22: Yes | DJ22: No (Std) | DK22: Solid Bore Yes 1.5 in | DM22: 0.9375 | DY22: Solid Bore Yes 1.5 in 1" Yes | DZ22: 1445 | ED22: 1-1/4" | EE22: 1_1_4_ | EG22: Solid Bore | EH22: 1-1/4" | EI22: 1445 | EJ22: 1.5 in | EK22: 1.25 | EL22: Yes | EM22: Solid Bore 1.5 in Yes 1-1/4" 1445 | EO22: Solid Bore 1.5 in Yes 1-1/4" 1445 | ES22: 1.375 | ET22: 1-3/8"; 1-1/4"; 1" | EU22: 397 gpm @ 50 psi; RF 148 | EW22: Solid Bore | EX22: 1-1/4" | EY22: 1445 | EZ22: Solid Bore1-1/4"1445 | FB22: Solid Bore1-1/4"1445
B23: =IF(OR(C23="False",D23="False",E23="False",H23="False",J23="False",F23="False"),"Error","Okay") -> Okay | C23: =IFERROR(VLOOKUP(CONCATENATE(B10," ",C10),C28:C44,1,FALSE),"False") -> Solid Bore 2.5 in | D23: =IFERROR(VLOOKUP(CONCATENATE(B10," ",E10),D28:D55,1,FALSE),"False") -> Solid Bore 1-3/8" | E23: =IFERROR(VLOOKUP(CONCATENATE(B10,E10,I10),E28:E84,1,FALSE),"False") -> Solid Bore1-3/8"0489 | F23: =IFERROR(VLOOKUP(CONCATENATE(D10,C10,F10),F28:F62,1,FALSE),"false") -> no2.5 INNH | H23: Okay | I23: =IFERROR(VLOOKUP(CONCATENATE(B10," ",C10," ",D10," ",E10," ",I10),I27:I89,1,FALSE),"False") -> Solid Bore 2.5 in No 1-3/8" 0489 | J23: =IF(D10="No",IF(J10="yes","False","Okay"),"Okay") -> Okay | M23: 2.5 IN | N23: NH | S23: 250 | T23: 250 | U23: 250 | V23: 250 | AD23: 12-53 | AE23: 87 (CE) | AF23: 12-53 87 (CE) | AK23: 4863 | AL23: 161 | AT23: 4863 | AU23: 200 | AV23: 200 | AZ23: Solid Bore | BA23: 1-3/8" | BB23: 1445 | BC23: 1.5 in | BD23: 1.375 | BE23: Fog Tip | BF23: 200 | BG23: Fog Tip 200 | BJ23: 185 | BK23: 50 | BL23: 185 50 | BR23: Fog Tip | BS23: 4824 | BT23: 300 | BU23: 75 | BV23: Fog Tip 300 @ 75 | BZ23: Fog Nozzle 265 @ 50 | CA23: 4826 | CD23: =CONCATENATE($BZ23," ",CA23) -> Fog Nozzle 265 @ 50 4826 | CI23: Fog Nozzle 210 @ 50 4826 | CT23: Solid Bore 1.5 in | CU23: 1-3/8" | CV23: 1.5 in | CW23: Solid Bore 1.5 in | CY23: Stack Tips 1.5 in | CZ23: 15/16"; 1/2" | DB23: Solid Bore Yes 1.5 in 1-3/8" No (Std) | DC23: Solid Bore Yes 1.5 in | DD23: Solid Bore | DE23: 1-3/8" | DF23: 1445 | DG23: 1.5 in | DH23: 1.375 | DI23: Yes | DJ23: No (Std) | DK23: Solid Bore Yes 1.5 in | DM23: 1 | DY23: Solid Bore Yes 1.5 in 1-1/16" Yes | DZ23: 1445 | ED23: 1-3/8" | EE23: 1_3_8_ | EG23: Solid Bore | EH23: 1-3/8" | EI23: 1445 | EJ23: 1.5 in | EK23: 1.375 | EL23: Yes | EM23: Solid Bore 1.5 in Yes 1-3/8" 1445 | EO23: Solid Bore 1.5 in Yes 1-3/8" 1445 | ES23: 0.9375 | ET23: 15/16"; 1/2" | EU23: 185 gpm @ 50 psi; RF 69 | EW23: Solid Bore | EX23: 1-3/8" | EY23: 1445 | EZ23: Solid Bore1-3/8"1445 | FB23: Solid Bore1-3/8"1445
E24: =CONCATENATE(SUBSTITUTE(B10," ","_"),"_",D10,"_",SUBSTITUTE(C10," ","_")) -> Solid_Bore_No_2.5_in | I24: =CONCATENATE(B10," ",C10," ",D10," ",E10," ",I10) -> Solid Bore 2.5 in No 1-3/8" 0489 | M24: 2.5 IN | N24: NPSH | S24: 300 | T24: 300 | U24: 300 | V24: 300 | AK24: 4863 | AL24: 175 | AT24: 4863 | AW24: 161 | AZ24: Solid Bore | BA24: 1/2" | BB24: 1447 | BC24: 1.5 in | BD24: 0.5 | BE24: Fog Tip | BF24: 210 | BG24: Fog Tip 210 | BJ24: 200 | BK24: 100 (Std) | BL24: 200 100 (Std) | BR24: Fog Tip | BS24: 4824 | BT24: 210 | BU24: 50 | BV24: Fog Tip 210 @ 50 | BZ24: Fog Nozzle 300 @ 100 | CA24: 4826 | CD24: =CONCATENATE($BZ24," ",CA24) -> Fog Nozzle 300 @ 100 4826 | CI24: Fog Nozzle 225 @ 100 4863 | CT24: Solid Bore 1.5 in | CU24: 1/2" | CV24: 1.5 in | CW24: Solid Bore 1.5 in | CY24: Stack Tips 1.5 in | CZ24: 1-1/16"; 15/16" | DB24: Solid Bore Yes 1.5 in 1/2" No (Std) | DC24: Solid Bore Yes 1.5 in | DD24: Solid Bore | DE24: 1/2" | DF24: 1447 | DG24: 1.5 in | DH24: 0.5 | DI24: Yes | DJ24: No (Std) | DK24: Solid Bore Yes 1.5 in | DM24: 1.0625 | DY24: Solid Bore Yes 1.5 in 1-1/4" Yes | DZ24: 1445 | ED24: 1/2" | EE24: 1_2_ | EG24: Solid Bore | EH24: 1/2" | EI24: 1447 | EJ24: 1.5 in | EK24: 0.5 | EL24: Yes | EM24: Solid Bore 1.5 in Yes 1/2" 1447 | EO24: Solid Bore 1.5 in Yes 1/2" 1447 | ES24: 0.9375 | ET24: 15/16"; 1/2" | EU24: 185 gpm @ 50 psi; RF 69 | EW24: Solid Bore | EX24: 1/2" | EY24: 1447 | EZ24: Solid Bore1/2"1447 | FB24: Solid Bore1/2"1447
I25: =CONCATENATE(SUBSTITUTE(B10," ","_"),"_",D10,"_",SUBSTITUTE(C10," ","_"),"_",VLOOKUP(E10,ED:EE,2,FALSE),"_",IF(D10="no","Yes",IF(H10="yes","Yes","No__Std"))) -> Solid_Bore_No_2.5_in_1_3_8__Yes | M25: 2.5 IN | N25: FDNY | S25: 350 | T25: 350 | U25: 350 | V25: 350 | AK25: 4863 | AL25: 185 | AT25: 4863 | AW25: 185 | AZ25: Solid Bore | BA25: 7/8" | BB25: 1499 | BC25: 1.5 in | BD25: 0.875 | BE25: Fog Tip | BF25: 225 | BG25: Fog Tip 225 | BJ25: 200 | BK25: 75 | BL25: 200 75 | BR25: Fog Tip | BS25: 4824 | BT25: 265 | BU25: 50 | BV25: Fog Tip 265 @ 50 | BZ25: Fog Nozzle 300 @ 75 | CA25: 4826 | CD25: Fog Nozzle 300 @ 75 4826 | CI25: Fog Nozzle 25 @ 100 4802 | CT25: Solid Bore 1.5 in | CU25: 7/8" | CV25: 1.5 in | CW25: Solid Bore 1.5 in | CY25: Stack Tips 1.5 in | CZ25: 1-1/4"; 1-1/8"; 1" | DB25: Solid Bore No 1.5 in 7/8" Yes | DC25: Solid Bore No 1.5 in | DD25: Solid Bore | DE25: 7/8" | DF25: 1499 | DG25: 1.5 in | DH25: 0.875 | DI25: No | DJ25: Yes | DK25: Solid Bore Yes 1.5 in | DM25: 1.125 | DY25: Solid Bore Yes 1.5 in 1-1/8" Yes | DZ25: 1445 | ED25: 7/8" | EE25: 7_8_ | EG25: Solid Bore | EH25: 7/8" | EI25: 1499 | EJ25: 1.5 in | EK25: 0.875 | EL25: No | EM25: Solid Bore 1.5 in No 7/8" 1499 | EO25: Solid Bore 1.5 in No 7/8" 1499 | ES25: 0.9375 | ET25: 15/16"; 1/2" | EU25: 185 gpm @ 50 psi; RF 69 | EW25: Solid Bore | EX25: 7/8" | EY25: 1499 | EZ25: Solid Bore7/8"1499 | FB25: Solid Bore7/8"1499
E26: 1440 1.5 in FDNY 1.5 in FDNY 15/16"; 1/2" bore size(s) PG | I26: Solid_Bore_Yes_1.5_in_1__No__Std | M26: 2.5 IN | N26: NYCORP | AK26: 4863 | AL26: 200 | AT26: 4866 | AU26: 95 | AZ26: Solid Bore | BA26: 15/16" | BB26: 1499 | BC26: 1.5 in | BD26: 0.9375 | BE26: Fog Tip | BF26: 250 | BG26: Fog Tip 250 | BJ26: 210 | BK26: 50 | BL26: 210 50 | BR26: Fog Tip | BS26: 4824 | BT26: 250 | BU26: 50 | BV26: Fog Tip 250 @ 50 | BZ26: Fog Nozzle 350 @ 100 | CA26: 4826 | CD26: Fog Nozzle 350 @ 100 4826 | CI26: Fog Nozzle 250 @ 100 4826 | CT26: Solid Bore 1.5 in | CU26: 15/16" | CV26: 1.5 in | CW26: Solid Bore 1.5 in | CY26: Stack Tips 1.5 in | CZ26: 15/16"; 1/2" | DB26: Solid Bore No 1.5 in 15/16" Yes | DC26: Solid Bore No 1.5 in | DD26: Solid Bore | DE26: 15/16" | DF26: 1499 | DG26: 1.5 in | DH26: 0.9375 | DI26: No | DJ26: Yes | DK26: Solid Bore Yes 1.5 in | DM26: 1.1875 | DY26: Solid Bore Yes 1.5 in 1-3/16" Yes | DZ26: 1445 | ED26: 15/16" | EE26: 15_16_ | EG26: Solid Bore | EH26: 15/16" | EI26: 1499 | EJ26: 1.5 in | EK26: 0.9375 | EL26: No | EM26: Solid Bore 1.5 in No 15/16" 1499 | EO26: Solid Bore 1.5 in No 15/16" 1499 | EW26: Solid Bore | EX26: 15/16" | EY26: 1499 | EZ26: Solid Bore15/16"1499 | FB26: Solid Bore15/16"1499
I27: Solid Bore 1.5 in No 3/4" 0416 | M27: 2.5 IN | N27: PITT6 | S27: NH | T27: NPSH | U27: FDNY | V27: NYCORP | W27: PCT | X27: Custom | AK27: 4863 | AL27: 225 | AT27: 4866 | AU27: 125 | AV27: 125 | AW27: 125 | AZ27: Solid Bore | BA27: 1" | BB27: 1499 | BC27: 1.5 in | BD27: 1 | BE27: Fog Tip | BF27: 265 | BG27: Fog Tip 265 | BJ27: 225 | BK27: 100 (Std) | BL27: 225 100 (Std) | BR27: Fog Nozzle | BS27: 4826 | BT27: 200 | BU27: 100 (Std) | BV27: Fog Nozzle 200 @ 100 (Std) | BZ27: Fog Nozzle 40 @ 100 | CA27: 4802 | CD27: Fog Nozzle 40 @ 100 4802 | CI27: Fog Nozzle 250 @ 50 4826 | CT27: Solid Bore 1.5 in | CU27: 1" | CV27: 1.5 in | CW27: Solid Bore 1.5 in | CY27: Stack Tips 2.5 in | CZ27: 1-1/8"; 1/2" | DB27: Solid Bore No 1.5 in 1" Yes | DC27: Solid Bore No 1.5 in | DD27: Solid Bore | DE27: 1" | DF27: 1499 | DG27: 1.5 in | DH27: 1 | DI27: No | DJ27: Yes | DK27: Solid Bore Yes 1.5 in | DM27: 1.25 | DY27: Solid Bore Yes 1.5 in 1-3/8" Yes | DZ27: 1445 | ED27: 1" | EE27: 1_ | EG27: Solid Bore | EH27: 1" | EI27: 1499 | EJ27: 1.5 in | EK27: 1 | EL27: No | EM27: Solid Bore 1.5 in No 1" 1499 | EO27: Solid Bore 1.5 in No 1" 1499 | EW27: Solid Bore | EX27: 1" | EY27: 1499 | EZ27: Solid Bore1"1499 | FB27: Solid Bore1"1499
C28: Solid Bore 1.5 in | D28: Solid Bore 3/8" | E28: Solid Bore3/4"0416 | F28: yes1.5 inNH | I28: Solid Bore 1.5 in No 7/8" 0416 | M28: 2.5 IN | N28: BAT | R28: SBTHREAD1.5 in | S28: =IF($B10="Solid Bore",IF(OR(TRIM($I10)="0416",$D10="yes"),S27,""),S27) ->  | AK28: 4866 | AL28: 95 | AT28: 4866 | AU28: 150 | AV28: 150 | AW28: 150 | AZ28: Solid Bore | BA28: 1-1/16" | BB28: 1499 | BC28: 1.5 in | BD28: 1.0625 | BE28: Fog Tip | BF28: 300 | BG28: Fog Tip 300 | BJ28: 250 | BK28: 100 (Std) | BL28: 250 100 (Std) | BR28: Fog Nozzle | BS28: 4826 | BT28: 250 | BU28: 100 (Std) | BV28: Fog Nozzle 250 @ 100 (Std) | BZ28: Fog Nozzle 60 @ 100 | CA28: 4116 | CD28: Fog Nozzle 60 @ 100 4116 | CI28: Fog Nozzle 250 @ 75 4826 | CT28: Solid Bore 1.5 in | CU28: 1-1/16" | CV28: 1.5 in | CW28: Solid Bore 1.5 in | CY28: Stack Tips 2.5 in | CZ28: 1-1/4"; 1-1/8"; 1" | DB28: Solid Bore No 1.5 in 1-1/16" Yes | DC28: Solid Bore No 1.5 in | DD28: Solid Bore | DE28: 1-1/16" | DF28: 1499 | DG28: 1.5 in | DH28: 1.0625 | DI28: No | DJ28: Yes | DK28: Solid Bore Yes 1.5 in | DM28: 1.375 | DY28: Solid Bore Yes 1.5 in 15/16" Yes | DZ28: 1445 | ED28: 1-1/16" | EE28: 1_1_16_ | EG28: Solid Bore | EH28: 1-1/16" | EI28: 1499 | EJ28: 1.5 in | EK28: 1.0625 | EL28: No | EM28: Solid Bore 1.5 in No 1-1/16" 1499 | EO28: Solid Bore 1.5 in No 1-1/16" 1499 | EW28: Solid Bore | EX28: 1-1/16" | EY28: 1499 | EZ28: Solid Bore1-1/16"1499 | FB28: Solid Bore1-1/16"1499
C29: Solid Bore 2.5 in | D29: Solid Bore 1/2" | E29: Solid Bore7/8"0416 | F29: yes1.5 inNPSH | G29: =VLOOKUP(C13,DataSource!AH:AJ,2,FALSE) -> 04890501 | H29: =VLOOKUP(C13,DataSource!AH:AJ,3,FALSE) -> PLAIN DELUGE TIP 2.5NH 1 3/8D POLISH | I29: Solid Bore 1.5 in No 1" 0416 | M29: 2.5 IN | N29: CSA | AK29: 4866 | AL29: 125 | AT29: 4866 | AU29: 175 | AV29: 175 | AW29: 175 | AZ29: Solid Bore | BA29: 1-1/8" | BB29: 1499 | BC29: 1.5 in | BD29: 1.125 | BE29: Fog Tip | BF29: 350 | BG29: Fog Tip 350 | BJ29: 250 | BK29: 75 | BL29: 250 75 | BR29: Fog Nozzle | BS29: 4826 | BT29: 300 | BU29: 100 (Std) | BV29: Fog Nozzle 300 @ 100 (Std) | BZ29: Fog Nozzle 60 @ 75 | CA29: 4116 | CD29: Fog Nozzle 60 @ 75 4116 | CI29: Fog Nozzle 265 @ 50 4826 | CT29: Solid Bore 1.5 in | CU29: 1-1/8" | CV29: 1.5 in | CW29: Solid Bore 1.5 in | CY29: Stack Tips 2.5 in | CZ29: 1-1/2"; 1-1/4"; 1" | DB29: Solid Bore No 1.5 in 1-1/8" Yes | DC29: Solid Bore No 1.5 in | DD29: Solid Bore | DE29: 1-1/8" | DF29: 1499 | DG29: 1.5 in | DH29: 1.125 | DI29: No | DJ29: Yes | DK29: Solid Bore Yes 2.5 in | DM29: 0.875 | DY29: Solid Bore Yes 1.5 in 7/8" Yes | DZ29: 1445 | ED29: 1-1/8" | EE29: 1_1_8_ | EG29: Solid Bore | EH29: 1-1/8" | EI29: 1499 | EJ29: 1.5 in | EK29: 1.125 | EL29: No | EM29: Solid Bore 1.5 in No 1-1/8" 1499 | EO29: Solid Bore 1.5 in No 1-1/8" 1499 | EW29: Solid Bore | EX29: 1-1/8" | EY29: 1499 | EZ29: Solid Bore1-1/8"1499 | FB29: Solid Bore1-1/8"1499
C30: Stack Tips 1.5 in | D30: Solid Bore 5/8" | E30: Solid Bore1"0416 | F30: yes1.5 inFDNY | I30: Solid Bore 1.5 in No 1-1/8" 0416 | M30: 2.5 IN | N30: QST | R30: 1445 1.5 in NH 1.5 in NH 15/16" bore size(s) | AK30: 4866 | AL30: 150 | AT30: 4866 | AU30: 200 | AV30: 200 | AZ30: Solid Bore | BA30: 1-3/16" | BB30: 1499 | BC30: 1.5 in | BD30: 1.1875 | BJ30: 250 | BK30: 50 | BL30: 250 50 | BR30: Fog Nozzle | BS30: 4826 | BT30: 350 | BU30: 100 (Std) | BV30: Fog Nozzle 350 @ 100 (Std) | BZ30: Fog Nozzle 60 @ 87 | CA30: 4116 | CD30: Fog Nozzle 60 @ 87 4116 | CI30: Fog Nozzle 300 @ 100 4826 | CT30: Solid Bore 1.5 in | CU30: 1-3/16" | CV30: 1.5 in | CW30: Solid Bore 1.5 in | CY30: Stack Tips 2.5 in | CZ30: 1-3/8"; 1-1/4"; 1" | DB30: Solid Bore No 1.5 in 1-3/16" Yes | DC30: Solid Bore No 1.5 in | DD30: Solid Bore | DE30: 1-3/16" | DF30: 1499 | DG30: 1.5 in | DH30: 1.1875 | DI30: No | DJ30: Yes | DK30: Solid Bore Yes 2.5 in | DM30: 0.9375 | DY30: Solid Bore Yes 2.5 in 1" Yes | DZ30: 1446 | ED30: 1-3/16" | EE30: 1_3_16_ | EG30: Solid Bore | EH30: 1-3/16" | EI30: 1499 | EJ30: 1.5 in | EK30: 1.1875 | EL30: No | EM30: Solid Bore 1.5 in No 1-3/16" 1499 | EO30: Solid Bore 1.5 in No 1-3/16" 1499 | EW30: Solid Bore | EX30: 1-3/16" | EY30: 1499 | EZ30: Solid Bore1-3/16"1499 | FB30: Solid Bore1-3/16"1499
C31: Stack Tips 2.5 in | D31: Solid Bore 3/4" | E31: Solid Bore1-1/8"0416 | F31: yes1.5 inNYCORP | H31: =IF(D10="no","",IF(VLOOKUP(I10,M38:N45,2,FALSE)="yes","Yes",IF(VLOOKUP(I10,M38:N45,2,FALSE)="no","No",""))) ->  | I31: Solid Bore 1.5 in No 1-1/4" 0416 | M31: 2.5 IN | N31: BIM | AK31: 4866 | AL31: 161 | AT31: 4866 | AW31: 161 | AZ31: Solid Bore | BA31: 1-1/4" | BB31: 1499 | BC31: 1.5 in | BD31: 1.25 | BJ31: 265 | BK31: 50 | BL31: 265 50 | BR31: Fog Nozzle | BS31: 4826 | BT31: 200 | BU31: 75 | BV31: Fog Nozzle 200 @ 75 | BZ31: Fog Nozzle 95 @ 100 | CA31: 4116 | CB31: 4863 | CD31: Fog Nozzle 95 @ 100 4116 | CE31: =CONCATENATE($BZ31," ",CB31) -> Fog Nozzle 95 @ 100 4863 | CI31: Fog Nozzle 300 @ 75 4826 | CT31: Solid Bore 1.5 in | CU31: 1-1/4" | CV31: 1.5 in | CW31: Solid Bore 1.5 in | DB31: Solid Bore No 1.5 in 1-1/4" Yes | DC31: Solid Bore No 1.5 in | DD31: Solid Bore | DE31: 1-1/4" | DF31: 1499 | DG31: 1.5 in | DH31: 1.25 | DI31: No | DJ31: Yes | DK31: Solid Bore Yes 2.5 in | DM31: 1 | DY31: Solid Bore Yes 2.5 in 1-1/16" Yes | DZ31: 1446 | ED31: 1-1/4" | EE31: 1_1_4_ | EG31: Solid Bore | EH31: 1-1/4" | EI31: 1499 | EJ31: 1.5 in | EK31: 1.25 | EL31: No | EM31: Solid Bore 1.5 in No 1-1/4" 1499 | EO31: Solid Bore 1.5 in No 1-1/4" 1499 | EW31: Solid Bore | EX31: 1-1/4" | EY31: 1499 | EZ31: Solid Bore1-1/4"1499 | FB31: Solid Bore1-1/4"1499
D32: Solid Bore 7/8" | E32: Solid Bore1-1/4"0416 | F32: yes1.5 inPCT | I32: Solid Bore 1.5 in No 3/8" 1417 | M32: 2.5 IN | N32: STORZ | Q32: BLACK (Std) | R32: THREAD1 IN | S32: NH | T32: NPSH | U32: Storz | V32: Custom | AK32: 4866 | AL32: 175 | AT32: 4866 | AW32: 185 | AZ32: Solid Bore | BA32: 1-3/8" | BB32: 1499 | BC32: 1.5 in | BD32: 1.375 | BJ32: 300 | BK32: 100 (Std) | BL32: 300 100 (Std) | BR32: Fog Nozzle | BS32: 4826 | BT32: 265 | BU32: 50 | BV32: Fog Nozzle 265 @ 50 | BZ32: Fog Nozzle 95 @ 75 | CA32: 4116 | CD32: Fog Nozzle 95 @ 75 4116 | CI32: Fog Nozzle 350 @ 100 4826 | CT32: Solid Bore 1.5 in | CU32: 1-3/8" | CV32: 1.5 in | CW32: Solid Bore 1.5 in | DB32: Solid Bore No 1.5 in 1-3/8" Yes | DC32: Solid Bore No 1.5 in | DD32: Solid Bore | DE32: 1-3/8" | DF32: 1499 | DG32: 1.5 in | DH32: 1.375 | DI32: No | DJ32: Yes | DK32: Solid Bore Yes 2.5 in | DM32: 1.0625 | DY32: Solid Bore Yes 2.5 in 1-1/4" Yes | DZ32: 1446 | ED32: 1-3/8" | EE32: 1_3_8_ | EG32: Solid Bore | EH32: 1-3/8" | EI32: 1499 | EJ32: 1.5 in | EK32: 1.375 | EL32: No | EM32: Solid Bore 1.5 in No 1-3/8" 1499 | EO32: Solid Bore 1.5 in No 1-3/8" 1499 | EW32: Solid Bore | EX32: 1-3/8" | EY32: 1499 | EZ32: Solid Bore1-3/8"1499 | FB32: Solid Bore1-3/8"1499
D33: Solid Bore 15/16" | E33: Solid Bore3/8"1417 | F33: yes1.5 inStorz | I33: Solid Bore 1.5 in No 1/2" 1417 | M33: 3 IN | N33: STORZ | Q33: ORANGE | R33: THREAD1.5 in | S33: NH | T33: NPSH | U33: FDNY | V33: NYCORP | W33: PCT | X33: Storz | Y33: Custom | AK33: 4866 | AL33: 185 | AZ33: Solid Bore | BA33: 7/8" | BB33: 0489 | BC33: 2.5 in | BD33: 0.875 | BJ33: 300 | BK33: 75 | BL33: 300 75 | BR33: Fog Nozzle | BS33: 4826 | BT33: 250 | BU33: 75 | BV33: Fog Nozzle 250 @ 75 | BZ33: Fog Nozzle 95 @ 87 | CA33: 4116 | CD33: Fog Nozzle 95 @ 87 4116 | CI33: Fog Nozzle 40 @ 100 4802 | CT33: Solid Bore 2.5 in | CU33: 7/8" | CV33: 2.5 in | CW33: Solid Bore 2.5 in | DB33: Solid Bore No 2.5 in 7/8" Yes | DC33: Solid Bore No 2.5 in | DD33: Solid Bore | DE33: 7/8" | DF33: 0489 | DG33: 2.5 in | DH33: 0.875 | DI33: No | DJ33: Yes | DK33: Solid Bore Yes 2.5 in | DM33: 1.125 | DY33: Solid Bore Yes 2.5 in 1-1/8" Yes | DZ33: 1446 | ED33: 7/8" | EE33: 7_8_ | EG33: Solid Bore | EH33: 7/8" | EI33: 0489 | EJ33: 2.5 in | EK33: 0.875 | EL33: No | EM33: Solid Bore 2.5 in No 7/8" 0489 | EO33: Solid Bore 2.5 in No 7/8" 0489 | EW33: Solid Bore | EX33: 7/8" | EY33: 0489 | EZ33: Solid Bore7/8"0489 | FB33: Solid Bore7/8"0489
D34: Solid Bore 1" | E34: Solid Bore1/2"1417 | F34: yes1.5 inCustom | I34: Solid Bore 1.5 in No 5/8" 1417 | Q34: YELLOW | R34: THREAD2 IN | S34: Storz | AK34: 4866 | AL34: 200 | AZ34: Solid Bore | BA34: 15/16" | BB34: 0489 | BC34: 2.5 in | BD34: 0.9375 | BJ34: 350 | BK34: 100 (Std) | BL34: 350 100 (Std) | BR34: Fog Nozzle | BS34: 4826 | BT34: 300 | BU34: 75 | BV34: Fog Nozzle 300 @ 75 | BZ34: Fog Tip 125 @ 100 | CA34: 4866 | CD34: Fog Tip 125 @ 100 4866 | CI34: Fog Nozzle 60 @ 100 4116 | CT34: Solid Bore 2.5 in | CU34: 15/16" | CV34: 2.5 in | CW34: Solid Bore 2.5 in | DB34: Solid Bore No 2.5 in 15/16" Yes | DC34: Solid Bore No 2.5 in | DD34: Solid Bore | DE34: 15/16" | DF34: 0489 | DG34: 2.5 in | DH34: 0.9375 | DI34: No | DJ34: Yes | DK34: Solid Bore Yes 2.5 in | DM34: 1.1875 | DY34: Solid Bore Yes 2.5 in 1-3/16" Yes | DZ34: 1446 | ED34: 15/16" | EE34: 15_16_ | EG34: Solid Bore | EH34: 15/16" | EI34: 0489 | EJ34: 2.5 in | EK34: 0.9375 | EL34: No | EM34: Solid Bore 2.5 in No 15/16" 0489 | EO34: Solid Bore 2.5 in No 15/16" 0489 | EW34: Solid Bore | EX34: 15/16" | EY34: 0489 | EZ34: Solid Bore15/16"0489 | FB34: Solid Bore15/16"0489
D35: Solid Bore 1-1/16" | E35: Solid Bore5/8"1417 | F35: yes2.5 inNH | I35: Solid Bore 1.5 in No 3/4" 1417 | Q35: RED | R35: THREAD2.5 IN | S35: NH | T35: NPSH | U35: FDNY | V35: NYCORP | W35: PITT6 | X35: BAT | Y35: CSA | Z35: QST | AA35: BIM | AB35: Storz | AC35: Custom | AZ35: Solid Bore | BA35: 1" | BB35: 0489 | BC35: 2.5 in | BD35: 1 | BR35: Fog Nozzle | BS35: 4826 | BT35: 210 | BU35: 50 | BV35: Fog Nozzle 210 @ 50 | BZ35: Fog Tip 125 @ 75 | CA35: 4866 | CD35: Fog Tip 125 @ 75 4866 | CI35: Fog Nozzle 60 @ 75 4116 | CT35: Solid Bore 2.5 in | CU35: 1" | CV35: 2.5 in | CW35: Solid Bore 2.5 in | DB35: Solid Bore No 2.5 in 1" Yes | DC35: Solid Bore No 2.5 in | DD35: Solid Bore | DE35: 1" | DF35: 0489 | DG35: 2.5 in | DH35: 1 | DI35: No | DJ35: Yes | DK35: Solid Bore Yes 2.5 in | DM35: 1.25 | DY35: Solid Bore Yes 2.5 in 1-3/8" Yes | DZ35: 1446 | ED35: 1" | EE35: 1_ | EG35: Solid Bore | EH35: 1" | EI35: 0489 | EJ35: 2.5 in | EK35: 1 | EL35: No | EM35: Solid Bore 2.5 in No 1" 0489 | EO35: Solid Bore 2.5 in No 1" 0489 | EW35: Solid Bore | EX35: 1" | EY35: 0489 | EZ35: Solid Bore1"0489 | FB35: Solid Bore1"0489
D36: Solid Bore 1-1/8" | E36: Solid Bore3/4"1417 | F36: yes2.5 inNPSH | I36: Solid Bore 1.5 in No 7/8" 1417 | Q36: BLUE | R36: THREAD3 IN | S36: Storz | AU36: Solid Bore | AV36: 1.5 in | AW36: =CONCATENATE(AU36,AV36) -> Solid Bore1.5 in | AZ36: Solid Bore | BA36: 1-1/8" | BB36: 0489 | BC36: 2.5 in | BD36: 1.125 | BR36: Fog Nozzle | BS36: 4826 | BT36: 250 | BU36: 50 | BV36: Fog Nozzle 250 @ 50 | BZ36: Fog Tip 150 @ 100 | CA36: 4866 | CD36: Fog Tip 150 @ 100 4866 | CI36: Fog Nozzle 60 @ 87 4116 | CT36: Solid Bore 2.5 in | CU36: 1-1/8" | CV36: 2.5 in | CW36: Solid Bore 2.5 in | DB36: Solid Bore No 2.5 in 1-1/8" Yes | DC36: Solid Bore No 2.5 in | DD36: Solid Bore | DE36: 1-1/8" | DF36: 0489 | DG36: 2.5 in | DH36: 1.125 | DI36: No | DJ36: Yes | DK36: Solid Bore Yes 2.5 in | DM36: 1.375 | DY36: Solid Bore Yes 2.5 in 15/16" Yes | DZ36: 1446 | ED36: 1-1/8" | EE36: 1_1_8_ | EG36: Solid Bore | EH36: 1-1/8" | EI36: 0489 | EJ36: 2.5 in | EK36: 1.125 | EL36: No | EM36: Solid Bore 2.5 in No 1-1/8" 0489 | EO36: Solid Bore 2.5 in No 1-1/8" 0489 | EW36: Solid Bore | EX36: 1-1/8" | EY36: 0489 | EZ36: Solid Bore1-1/8"0489 | FB36: Solid Bore1-1/8"0489
D37: Solid Bore 1-3/16" | E37: Solid Bore7/8"1417 | F37: yes2.5 INFDNY | I37: Solid Bore 1.5 in No 15/16" 1417 | Q37: GREEN | AU37: Solid Bore | AV37: 2.5 in | AW37: =CONCATENATE(AU37,AV37) -> Solid Bore2.5 in | AZ37: Solid Bore | BA37: 1-1/4" | BB37: 0489 | BC37: 2.5 in | BD37: 1.25 | BR37: Fog Nozzle | BS37: 4863 | BT37: 95 | BU37: 100 (Std) | BV37: Fog Nozzle 95 @ 100 (Std) | BZ37: Fog Tip 150 @ 50 | CA37: 4866 | CD37: Fog Tip 150 @ 50 4866 | CI37: Fog Nozzle 95 @ 100 4116 | CT37: Solid Bore 2.5 in | CU37: 1-1/4" | CV37: 2.5 in | CW37: Solid Bore 2.5 in | DB37: Solid Bore No 2.5 in 1-1/4" Yes | DC37: Solid Bore No 2.5 in | DD37: Solid Bore | DE37: 1-1/4" | DF37: 0489 | DG37: 2.5 in | DH37: 1.25 | DI37: No | DJ37: Yes | DK37: Stack Tips No 1.5 in | DM37: 0.5 | DY37: Solid Bore Yes 2.5 in 7/8" Yes | DZ37: 1446 | ED37: 1-1/4" | EE37: 1_1_4_ | EG37: Solid Bore | EH37: 1-1/4" | EI37: 0489 | EJ37: 2.5 in | EK37: 1.25 | EL37: No | EM37: Solid Bore 2.5 in No 1-1/4" 0489 | EO37: Solid Bore 2.5 in No 1-1/4" 0489 | EW37: Solid Bore | EX37: 1-1/4" | EY37: 0489 | EZ37: Solid Bore1-1/4"0489 | FB37: Solid Bore1-1/4"0489
D38: Solid Bore 1-1/4" | E38: Solid Bore15/16"1417 | F38: yes2.5 INNYCORP | I38: Solid Bore 1.5 in No 1" 1417 | M38: 1440 | N38: No | O38: =TRIM(M38) -> 1440 | AO38: Style | AP38: List Price | AU38: Stack Tips | AV38: 1.5 in | AW38: =CONCATENATE(AU38,AV38) -> Stack Tips1.5 in | AZ38: Solid Bore | BA38: 1-3/8" | BB38: 0489 | BC38: 2.5 in | BD38: 1.375 | BR38: Fog Nozzle | BS38: 4863 | BT38: 125 | BU38: 100 (Std) | BV38: Fog Nozzle 125 @ 100 (Std) | BZ38: Fog Tip 150 @ 75 | CA38: 4866 | CD38: Fog Tip 150 @ 75 4866 | CI38: Fog Nozzle 95 @ 100 4863 | CT38: Solid Bore 2.5 in | CU38: 1-3/8" | CV38: 2.5 in | CW38: Solid Bore 2.5 in | DB38: Solid Bore No 2.5 in 1-3/8" Yes | DC38: Solid Bore No 2.5 in | DD38: Solid Bore | DE38: 1-3/8" | DF38: 0489 | DG38: 2.5 in | DH38: 1.375 | DI38: No | DJ38: Yes | DK38: Stack Tips No 1.5 in | DM38: 0.5 | DY38: Stack Tips Yes 1.5 in 15/16"; 1/2" Yes | DZ38: 1441 | ED38: 1-3/8" | EE38: 1_3_8_ | EG38: Solid Bore | EH38: 1-3/8" | EI38: 0489 | EJ38: 2.5 in | EK38: 1.375 | EL38: No | EM38: Solid Bore 2.5 in No 1-3/8" 0489 | EO38: Solid Bore 2.5 in No 1-3/8" 0489 | EW38: Solid Bore | EX38: 1-3/8" | EY38: 0489 | EZ38: Solid Bore1-3/8"0489 | FB38: Solid Bore1-3/8"0489
D39: Solid Bore 1-3/8" | E39: Solid Bore1"1417 | F39: yes2.5 INPITT6 | I39: Solid Bore 1.5 in No 1-1/8" 1417 | M39: 1441 | N39: Yes | O39: =TRIM(M39) -> 1441 | AO39: 0416 | AP39: 394 | AU39: Stack Tips | AV39: 2.5 in | AW39: =CONCATENATE(AU39,AV39) -> Stack Tips2.5 in | AZ39: Solid Bore | BA39: 7/8" | BB39: 1446 | BC39: 2.5 in | BD39: 0.875 | BR39: Fog Nozzle | BS39: 4863 | BT39: 150 | BU39: 100 (Std) | BV39: Fog Nozzle 150 @ 100 (Std) | BZ39: Fog Tip 161 @ 50 | CA39: 4866 | CD39: Fog Tip 161 @ 50 4866 | CI39: Fog Nozzle 95 @ 75 4116 | CT39: Solid Bore 2.5 in | CU39: 7/8" | CV39: 2.5 in | CW39: Solid Bore 2.5 in | DB39: Solid Bore Yes 2.5 in 7/8" No (Std) | DC39: Solid Bore Yes 2.5 in | DD39: Solid Bore | DE39: 7/8" | DF39: 1446 | DG39: 2.5 in | DH39: 0.875 | DI39: Yes | DJ39: No (Std) | DK39: Stack Tips No 1.5 in | DM39: 0.9375 | DY39: Stack Tips Yes 2.5 in 1-1/8"; 1/2" Yes | DZ39: 1443 | ED39: 7/8" | EE39: 7_8_ | EG39: Solid Bore | EH39: 7/8" | EI39: 1446 | EJ39: 2.5 in | EK39: 0.875 | EL39: Yes | EM39: Solid Bore 2.5 in Yes 7/8" 1446 | EO39: Solid Bore 2.5 in Yes 7/8" 1446 | EW39: Solid Bore | EX39: 7/8" | EY39: 1446 | EZ39: Solid Bore7/8"1446 | FB39: Solid Bore7/8"1446
D40: Stack Tips 1-1/8"; 1/2" | E40: Solid Bore1-1/8"1417 | F40: yes2.5 INBAT | I40: Solid Bore 1.5 in No 1-1/4" 1417 | M40: 1442 | N40: No | O40: 1442 | AI40: yes1.5 in | AJ40: NH | AK40: =CONCATENATE(AI40,AJ40) -> yes1.5 inNH | AO40: 0439 | AP40: 296 | AZ40: Solid Bore | BA40: 15/16" | BB40: 1446 | BC40: 2.5 in | BD40: 0.9375 | BR40: Fog Nozzle | BS40: 4863 | BT40: 175 | BU40: 100 (Std) | BV40: Fog Nozzle 175 @ 100 (Std) | BZ40: Fog Tip 175 @ 100 | CA40: 4866 | CD40: Fog Tip 175 @ 100 4866 | CI40: Fog Nozzle 95 @ 87 4116 | CT40: Solid Bore 2.5 in | CU40: 15/16" | CV40: 2.5 in | CW40: Solid Bore 2.5 in | DB40: Solid Bore Yes 2.5 in 15/16" No (Std) | DC40: Solid Bore Yes 2.5 in | DD40: Solid Bore | DE40: 15/16" | DF40: 1446 | DG40: 2.5 in | DH40: 0.9375 | DI40: Yes | DJ40: No (Std) | DK40: Stack Tips No 1.5 in | DM40: 1 | DY40: Solid Bore Yes 1.5 in 1-1/16" No (Std) | DZ40: 1445 | ED40: 15/16" | EE40: 15_16_ | EG40: Solid Bore | EH40: 15/16" | EI40: 1446 | EJ40: 2.5 in | EK40: 0.9375 | EL40: Yes | EM40: Solid Bore 2.5 in Yes 15/16" 1446 | EO40: Solid Bore 2.5 in Yes 15/16" 1446 | EW40: Solid Bore | EX40: 15/16" | EY40: 1446 | EZ40: Solid Bore15/16"1446 | FB40: Solid Bore15/16"1446
D41: Stack Tips 15/16"; 1/2" | E41: Solid Bore1-1/4"1417 | F41: yes2.5 INCSA | I41: Solid Bore 1.5 in Yes 7/8" 1445 | M41: 1443 | N41: Yes | O41: 1443 | R41: Style | U41: =IF(B10="fog tip","N/A","No (Std)") -> No (Std) | W41: yes1 IN | X41: NH | Y41: NPSH | Z41: Storz | AA41: Custom | AI41: yes1.5 in | AJ41: NPSH | AK41: =CONCATENATE(AI41,AJ41) -> yes1.5 inNPSH | AO41: 0489 | AP41: 546 | AZ41: Solid Bore | BA41: 1" | BB41: 1446 | BC41: 2.5 in | BD41: 1 | BR41: Fog Nozzle | BS41: 4863 | BT41: 200 | BU41: 100 (Std) | BV41: Fog Nozzle 200 @ 100 (Std) | BZ41: Fog Tip 175 @ 50 | CA41: 4866 | CD41: Fog Tip 175 @ 50 4866 | CI41: Fog Tip 125 @ 100 4866 | CT41: Solid Bore 2.5 in | CU41: 1" | CV41: 2.5 in | CW41: Solid Bore 2.5 in | DB41: Solid Bore Yes 2.5 in 1" No (Std) | DC41: Solid Bore Yes 2.5 in | DD41: Solid Bore | DE41: 1" | DF41: 1446 | DG41: 2.5 in | DH41: 1 | DI41: Yes | DJ41: No (Std) | DK41: Stack Tips No 2.5 in | DM41: 1 | DY41: Solid Bore Yes 1.5 in 1-1/4" No (Std) | DZ41: 1445 | ED41: 1" | EE41: 1_ | EG41: Solid Bore | EH41: 1" | EI41: 1446 | EJ41: 2.5 in | EK41: 1 | EL41: Yes | EM41: Solid Bore 2.5 in Yes 1" 1446 | EO41: Solid Bore 2.5 in Yes 1" 1446 | EW41: Solid Bore | EX41: 1" | EY41: 1446 | EZ41: Solid Bore1"1446 | FB41: Solid Bore1"1446
D42: Stack Tips 15/16"; 1/2" | E42: Solid Bore7/8"1445 | F42: yes2.5 INQST | I42: Solid Bore 1.5 in Yes 15/16" 1445 | M42: 1445 | N42: Yes | O42: 1445 | Q42: Fog Nozzle 5-40 | R42: 1602 | U42: =IF(B10="fog tip","","Yes") -> Yes | W42: yes1.5 in | X42: NH | Y42: NPSH | Z42: FDNY | AA42: NYCORP | AB42: PCT | AC42: Storz | AD42: Custom | AI42: yes1.5 in | AJ42: FDNY | AK42: yes1.5 inFDNY | AO42: 1417 | AP42: 164 | AZ42: Solid Bore | BA42: 1-1/16" | BB42: 1446 | BC42: 2.5 in | BD42: 1.0625 | BR42: Fog Nozzle | BS42: 4863 | BT42: 125 | BU42: 75 | BV42: Fog Nozzle 125 @ 75 | BZ42: Fog Tip 175 @ 75 | CA42: 4866 | CD42: Fog Tip 175 @ 75 4866 | CI42: Fog Tip 125 @ 75 4866 | CT42: Solid Bore 2.5 in | CU42: 1-1/16" | CV42: 2.5 in | CW42: Solid Bore 2.5 in | DB42: Solid Bore Yes 2.5 in 1-1/16" No (Std) | DC42: Solid Bore Yes 2.5 in | DD42: Solid Bore | DE42: 1-1/16" | DF42: 1446 | DG42: 2.5 in | DH42: 1.0625 | DI42: Yes | DJ42: No (Std) | DK42: Stack Tips No 2.5 in | DM42: 1 | DY42: Solid Bore Yes 1.5 in 1-1/8" No (Std) | DZ42: 1445 | ED42: 1-1/16" | EE42: 1_1_16_ | EG42: Solid Bore | EH42: 1-1/16" | EI42: 1446 | EJ42: 2.5 in | EK42: 1.0625 | EL42: Yes | EM42: Solid Bore 2.5 in Yes 1-1/16" 1446 | EO42: Solid Bore 2.5 in Yes 1-1/16" 1446 | EW42: Solid Bore | EX42: 1-1/16" | EY42: 1446 | EZ42: Solid Bore1-1/16"1446 | FB42: Solid Bore1-1/16"1446
D43: Stack Tips 1-1/16"; 15/16" | E43: Solid Bore15/16"1445 | F43: yes2.5 INBIM | I43: Solid Bore 1.5 in Yes 1" 1445 | M43: 1446 | N43: Yes | O43: 1446 | Q43: Fog Nozzle 12-53 | R43: 1602 | W43: yes2.5 IN | X43: NH | Y43: NPSH | Z43: FDNY | AA43: NYCORP | AB43: PITT6 | AC43: BAT | AD43: CSA | AE43: QST | AF43: BIM | AG43: Storz | AH43: Custom | AI43: yes1.5 in | AJ43: NYCORP | AK43: yes1.5 inNYCORP | AO43: 1420 | AP43: 520 | AZ43: Solid Bore | BA43: 1-1/8" | BB43: 1446 | BC43: 2.5 in | BD43: 1.125 | BR43: Fog Nozzle | BS43: 4863 | BT43: 150 | BU43: 75 | BV43: Fog Nozzle 150 @ 75 | BZ43: Fog Tip 185 @ 50 | CA43: 4866 | CD43: Fog Tip 185 @ 50 4866 | CI43: Fog Tip 150 @ 100 4866 | CT43: Solid Bore 2.5 in | CU43: 1-1/8" | CV43: 2.5 in | CW43: Solid Bore 2.5 in | DB43: Solid Bore Yes 2.5 in 1-1/8" No (Std) | DC43: Solid Bore Yes 2.5 in | DD43: Solid Bore | DE43: 1-1/8" | DF43: 1446 | DG43: 2.5 in | DH43: 1.125 | DI43: Yes | DJ43: No (Std) | DK43: Stack Tips No 2.5 in | DM43: 1 | DY43: Solid Bore Yes 1.5 in 1-3/16" No (Std) | DZ43: 1445 | ED43: 1-1/8" | EE43: 1_1_8_ | EG43: Solid Bore | EH43: 1-1/8" | EI43: 1446 | EJ43: 2.5 in | EK43: 1.125 | EL43: Yes | EM43: Solid Bore 2.5 in Yes 1-1/8" 1446 | EO43: Solid Bore 2.5 in Yes 1-1/8" 1446 | EW43: Solid Bore | EX43: 1-1/8" | EY43: 1446 | EZ43: Solid Bore1-1/8"1446 | FB43: Solid Bore1-1/8"1446
D44: Stack Tips 1-1/4"; 1-1/8"; 1" | E44: Solid Bore1"1445 | F44: yes2.5 INStorz | I44: Solid Bore 1.5 in Yes 1-1/16" 1445 | M44: 1447 | N44: Yes | O44: 1447 | Q44: Fog Nozzle 30-150 | R44: 1616 | S44: 35 | W44: no1 IN | X44: NH | Y44: NPSH | Z44: Custom | AI44: yes1.5 in | AJ44: PCT | AK44: yes1.5 inPCT | AO44: 1440 | AP44: 858 | AZ44: Solid Bore | BA44: 1-3/16" | BB44: 1446 | BC44: 2.5 in | BD44: 1.1875 | BR44: Fog Nozzle | BS44: 4863 | BT44: 175 | BU44: 75 | BV44: Fog Nozzle 175 @ 75 | BZ44: Fog Tip 200 @ 100 | CA44: 4824 | CB44: 4866 | CD44: Fog Tip 200 @ 100 4824 | CE44: Fog Tip 200 @ 100 4866 | CI44: Fog Tip 150 @ 50 4866 | CT44: Solid Bore 2.5 in | CU44: 1-3/16" | CV44: 2.5 in | CW44: Solid Bore 2.5 in | DB44: Solid Bore Yes 2.5 in 1-3/16" No (Std) | DC44: Solid Bore Yes 2.5 in | DD44: Solid Bore | DE44: 1-3/16" | DF44: 1446 | DG44: 2.5 in | DH44: 1.1875 | DI44: Yes | DJ44: No (Std) | DK44: Stack Tips Yes 1.5 in | DM44: 0.5 | DY44: Solid Bore Yes 1.5 in 1-3/8" No (Std) | DZ44: 1445 | ED44: 1-3/16" | EE44: 1_3_16_ | EG44: Solid Bore | EH44: 1-3/16" | EI44: 1446 | EJ44: 2.5 in | EK44: 1.1875 | EL44: Yes | EM44: Solid Bore 2.5 in Yes 1-3/16" 1446 | EO44: Solid Bore 2.5 in Yes 1-3/16" 1446 | EW44: Solid Bore | EX44: 1-3/16" | EY44: 1446 | EZ44: Solid Bore1-3/16"1446 | FB44: Solid Bore1-3/16"1446
D45: Stack Tips 1-1/2"; 1-1/4"; 1" | E45: Solid Bore1-1/16"1445 | F45: yes2.5 INCustom | I45: Solid Bore 1.5 in Yes 1-1/8" 1445 | M45: 2393 | N45: No | O45: 2393 | Q45: Fog Nozzle 13-60 | R45: 1702 | W45: no1.5 in | X45: NH | Y45: NPSH | Z45: FDNY | AA45: NYCORP | AB45: PCT | AC45: Custom | AI45: yes1.5 in | AJ45: Storz | AK45: yes1.5 inStorz | AO45: 1441 | AP45: 858 | AZ45: Solid Bore | BA45: 1-1/4" | BB45: 1446 | BC45: 2.5 in | BD45: 1.25 | BR45: Fog Nozzle | BS45: 4863 | BT45: 200 | BU45: 75 | BV45: Fog Nozzle 200 @ 75 | BZ45: Fog Tip 200 @ 75 | CA45: 4824 | CB45: 4866 | CD45: Fog Tip 200 @ 75 4824 | CE45: Fog Tip 200 @ 75 4866 | CI45: Fog Tip 150 @ 75 4866 | CT45: Solid Bore 2.5 in | CU45: 1-1/4" | CV45: 2.5 in | CW45: Solid Bore 2.5 in | DB45: Solid Bore Yes 2.5 in 1-1/4" No (Std) | DC45: Solid Bore Yes 2.5 in | DD45: Solid Bore | DE45: 1-1/4" | DF45: 1446 | DG45: 2.5 in | DH45: 1.25 | DI45: Yes | DJ45: No (Std) | DK45: Stack Tips Yes 2.5 in | DM45: 0.5 | DY45: Solid Bore Yes 1.5 in 15/16" No (Std) | DZ45: 1445 | ED45: 1-1/4" | EE45: 1_1_4_ | EG45: Solid Bore | EH45: 1-1/4" | EI45: 1446 | EJ45: 2.5 in | EK45: 1.25 | EL45: Yes | EM45: Solid Bore 2.5 in Yes 1-1/4" 1446 | EO45: Solid Bore 2.5 in Yes 1-1/4" 1446 | EW45: Solid Bore | EX45: 1-1/4" | EY45: 1446 | EZ45: Solid Bore1-1/4"1446 | FB45: Solid Bore1-1/4"1446
D46: Stack Tips 1-3/8"; 1-1/4"; 1" | E46: Solid Bore1-1/8"1445 | F46: no1.5 inNH | I46: Solid Bore 1.5 in Yes 1-3/16" 1445 | Q46: Fog Tip 13-60 | R46: 1703 | S46: 37 | W46: no2.5 IN | X46: NH | Y46: NPSH | Z46: FDNY | AA46: NYCORP | AB46: PITT6 | AC46: BAT | AD46: CSA | AE46: QST | AF46: Custom | AI46: yes1.5 in | AJ46: Custom | AK46: yes1.5 inCustom | AO46: 1442 | AP46: 994 | AZ46: Solid Bore | BA46: 1-3/8" | BB46: 1446 | BC46: 2.5 in | BD46: 1.375 | BR46: Fog Nozzle | BS46: 4863 | BT46: 150 | BU46: 50 | BV46: Fog Nozzle 150 @ 50 | BZ46: Fog Tip 210 @ 50 | CA46: 4824 | CD46: Fog Tip 210 @ 50 4824 | CI46: Fog Tip 161 @ 50 4866 | CT46: Solid Bore 2.5 in | CU46: 1-3/8" | CV46: 2.5 in | CW46: Solid Bore 2.5 in | DB46: Solid Bore Yes 2.5 in 1-3/8" No (Std) | DC46: Solid Bore Yes 2.5 in | DD46: Solid Bore | DE46: 1-3/8" | DF46: 1446 | DG46: 2.5 in | DH46: 1.375 | DI46: Yes | DJ46: No (Std) | DK46: Stack Tips Yes 2.5 in | DM46: 1 | DY46: Solid Bore Yes 1.5 in 7/8" No (Std) | DZ46: 1445 | ED46: 1-3/8" | EE46: 1_3_8_ | EG46: Solid Bore | EH46: 1-3/8" | EI46: 1446 | EJ46: 2.5 in | EK46: 1.375 | EL46: Yes | EM46: Solid Bore 2.5 in Yes 1-3/8" 1446 | EO46: Solid Bore 2.5 in Yes 1-3/8" 1446 | EW46: Solid Bore | EX46: 1-3/8" | EY46: 1446 | EZ46: Solid Bore1-3/8"1446 | FB46: Solid Bore1-3/8"1446
E47: Solid Bore1-3/16"1445 | F47: no2.5 INNPSH | I47: Solid Bore 1.5 in Yes 1-1/4" 1445 | Q47: Fog Nozzle 18-30 | R47: 1704 | AI47: yes2.5 IN | AJ47: NH | AK47: yes2.5 INNH | AO47: 1443 | AP47: 994 | AZ47: Stack Tips | BA47: 1-1/8"; 1/2" | BB47: 0439 | BC47: 1.5 in | BD47: 0.5 | BR47: Fog Nozzle | BS47: 4863 | BT47: 161 | BU47: 50 | BV47: Fog Nozzle 161 @ 50 | BZ47: Fog Tip 225 @ 100 | CA47: 4866 | CD47: Fog Tip 225 @ 100 4866 | CI47: Fog Tip 175 @ 100 4866 | CT47: Stack Tips 1.5 in | CU47: 1-1/8"; 1/2" | CV47: 1.5 in | CW47: Stack Tips 1.5 in | DB47: Stack Tips No 1.5 in 1-1/8"; 1/2" Yes | DC47: Stack Tips No 1.5 in | DD47: Stack Tips | DE47: 1-1/8"; 1/2" | DF47: 0439 | DG47: 1.5 in | DH47: 0.5 | DI47: No | DJ47: Yes | DY47: Solid Bore Yes 2.5 in 1" No (Std) | DZ47: 1446 | ED47: 1-1/8"; 1/2" | EE47: 1_1_8___1_2_ | EG47: Stack Tips | EH47: 1-1/8"; 1/2" | EI47: 0439 | EJ47: 1.5 in | EK47: 0.5 | EL47: No | EM47: Stack Tips 1.5 in No 1-1/8"; 1/2" 0439 | EO47: Stack Tips 1.5 in No 1-1/8"; 1/2" 0439 | EW47: Stack Tips | EX47: 1-1/8"; 1/2" | EY47: 0439 | EZ47: Stack Tips1-1/8"; 1/2"0439 | FB47: Stack Tips1-1/8"; 1/2"0439
E48: Solid Bore1-1/4"1445 | F48: no2.5 INFDNY | I48: Solid Bore 1.5 in Yes 1-3/8" 1445 | Q48: Fog Nozzle 13-30 | R48: 1704 | AI48: yes2.5 IN | AJ48: NPSH | AK48: yes2.5 INNPSH | AO48: 1445 | AP48: 738 | AZ48: Stack Tips | BA48: 15/16"; 1/2" | BB48: 0439 | BC48: 1.5 in | BD48: 0.5 | BR48: Fog Nozzle | BS48: 4863 | BT48: 175 | BU48: 50 | BV48: Fog Nozzle 175 @ 50 | BZ48: Fog Tip 250 @ 100 | CA48: 4824 | CD48: Fog Tip 250 @ 100 4824 | CI48: Fog Tip 175 @ 50 4866 | CT48: Stack Tips 1.5 in | CU48: 15/16"; 1/2" | CV48: 1.5 in | CW48: Stack Tips 1.5 in | DB48: Stack Tips No 1.5 in 15/16"; 1/2" Yes | DC48: Stack Tips No 1.5 in | DD48: Stack Tips | DE48: 15/16"; 1/2" | DF48: 0439 | DG48: 1.5 in | DH48: 0.5 | DI48: No | DJ48: Yes | DY48: Solid Bore Yes 2.5 in 1-1/16" No (Std) | DZ48: 1446 | ED48: 15/16"; 1/2" | EE48: 15_16___1_2_ | EG48: Stack Tips | EH48: 15/16"; 1/2" | EI48: 0439 | EJ48: 1.5 in | EK48: 0.5 | EL48: No | EM48: Stack Tips 1.5 in No 15/16"; 1/2" 0439 | EO48: Stack Tips 1.5 in No 15/16"; 1/2" 0439 | EW48: Stack Tips | EX48: 15/16"; 1/2" | EY48: 0439 | EZ48: Stack Tips15/16"; 1/2"0439 | FB48: Stack Tips15/16"; 1/2"0439
E49: Solid Bore1-3/8"1445 | F49: no2.5 INNYCORP | I49: Solid Bore 1.5 in Yes 1/2" 1447 | Q49: Fog Tip 18-30 | R49: 1711 | AI49: yes2.5 IN | AJ49: FDNY | AK49: yes2.5 INFDNY | AO49: 1446 | AP49: 874 | AZ49: Stack Tips | BA49: 1-1/16"; 15/16" | BB49: 0439 | BC49: 1.5 in | BD49: 0.9375 | BR49: Fog Nozzle | BS49: 4863 | BT49: 185 | BU49: 50 | BV49: Fog Nozzle 185 @ 50 | BZ49: Fog Tip 250 @ 50 | CA49: 4824 | CD49: Fog Tip 250 @ 50 4824 | CI49: Fog Tip 175 @ 75 4866 | CT49: Stack Tips 1.5 in | CU49: 1-1/16"; 15/16" | CV49: 1.5 in | CW49: Stack Tips 1.5 in | DB49: Stack Tips No 1.5 in 1-1/16"; 15/16" Yes | DC49: Stack Tips No 1.5 in | DD49: Stack Tips | DE49: 1-1/16"; 15/16" | DF49: 0439 | DG49: 1.5 in | DH49: 0.9375 | DI49: No | DJ49: Yes | DY49: Solid Bore Yes 2.5 in 1-1/4" No (Std) | DZ49: 1446 | ED49: 1-1/16"; 15/16" | EE49: 1_1_16___15_16_ | EG49: Stack Tips | EH49: 1-1/16"; 15/16" | EI49: 0439 | EJ49: 1.5 in | EK49: 0.9375 | EL49: No | EM49: Stack Tips 1.5 in No 1-1/16"; 15/16" 0439 | EO49: Stack Tips 1.5 in No 1-1/16"; 15/16" 0439 | EW49: Stack Tips | EX49: 1-1/16"; 15/16" | EY49: 0439 | EZ49: Stack Tips1-1/16"; 15/16"0439 | FB49: Stack Tips1-1/16"; 15/16"0439
E50: Solid Bore1/2"1447 | F50: no2.5 INPCT | I50: Solid Bore 1.5 in No 7/8" 1499 | Q50: Fog Tip 13-30 | R50: 1711 | AI50: yes2.5 IN | AJ50: NYCORP | AK50: yes2.5 INNYCORP | AO50: 1447 | AP50: =164+562 -> 726 | AZ50: Stack Tips | BA50: 1-1/4"; 1-1/8"; 1" | BB50: 1420 | BC50: 1.5 in | BD50: 1 | BR50: Fog Nozzle | BS50: 4863 | BT50: 225 | BU50: 100 (Std) | BV50: Fog Nozzle 225 @ 100 (Std) | BZ50: Fog Tip 250 @ 75 | CA50: 4824 | CD50: Fog Tip 250 @ 75 4824 | CI50: Fog Tip 185 @ 50 4866 | CT50: Stack Tips 1.5 in | CU50: 1-1/4"; 1-1/8"; 1" | CV50: 1.5 in | CW50: Stack Tips 1.5 in | DB50: Stack Tips No 1.5 in 1-1/4"; 1-1/8"; 1" Yes | DC50: Stack Tips No 1.5 in | DD50: Stack Tips | DE50: 1-1/4"; 1-1/8"; 1" | DF50: 1420 | DG50: 1.5 in | DH50: 1 | DI50: No | DJ50: Yes | DY50: Solid Bore Yes 2.5 in 1-1/8" No (Std) | DZ50: 1446 | ED50: 1-1/4"; 1-1/8"; 1" | EE50: 1_1_4___1_1_8___1_ | EG50: Stack Tips | EH50: 1-1/4"; 1-1/8"; 1" | EI50: 1420 | EJ50: 1.5 in | EK50: 1 | EL50: No | EM50: Stack Tips 1.5 in No 1-1/4"; 1-1/8"; 1" 1420 | EO50: Stack Tips 1.5 in No 1-1/4"; 1-1/8"; 1" 1420 | EW50: Stack Tips | EX50: 1-1/4"; 1-1/8"; 1" | EY50: 1420 | EZ50: Stack Tips1-1/4"; 1-1/8"; 1"1420 | FB50: Stack Tips1-1/4"; 1-1/8"; 1"1420
E51: Solid Bore7/8"1499 | F51: no2.5 INCustom | I51: Solid Bore 1.5 in No 15/16" 1499 | Q51: Fog Tip 30-125 | R51: 1714 | AI51: yes2.5 IN | AJ51: PITT6 | AK51: yes2.5 INPITT6 | AO51: 1499 | AP51: 176 | AZ51: Stack Tips | BA51: 15/16"; 1/2" | BB51: 1440 | BC51: 1.5 in | BD51: 0.5 | BR51: Fog Tip | BS51: 4866 | BT51: 95 | BU51: 100 (Std) | BV51: Fog Tip 95 @ 100 (Std) | BZ51: Fog Tip 265 @ 50 | CA51: 4824 | CD51: Fog Tip 265 @ 50 4824 | CI51: Fog Tip 200 @ 100 4824 | CT51: Stack Tips 1.5 in | CU51: 15/16"; 1/2" | CV51: 1.5 in | CW51: Stack Tips 1.5 in | DB51: Stack Tips Yes 1.5 in 15/16"; 1/2" Yes | DC51: Stack Tips Yes 1.5 in | DD51: Stack Tips | DE51: 15/16"; 1/2" | DF51: 1440 | DG51: 1.5 in | DH51: 0.5 | DI51: Yes | DJ51: Yes | DY51: Solid Bore Yes 2.5 in 1-3/16" No (Std) | DZ51: 1446 | ED51: 15/16"; 1/2" | EE51: 15_16___1_2_ | EG51: Stack Tips | EH51: 15/16"; 1/2" | EI51: 1440 | EJ51: 1.5 in | EK51: 0.5 | EL51: Yes | EM51: Stack Tips 1.5 in Yes 15/16"; 1/2" 1440 | EO51: Stack Tips 1.5 in Yes 15/16"; 1/2" 1440 | EW51: Stack Tips | EX51: 15/16"; 1/2" | EY51: 1440 | EZ51: Stack Tips15/16"; 1/2"1440 | FB51: Stack Tips15/16"; 1/2"1440
E52: Solid Bore15/16"1499 | F52: no2.5 INNH | I52: Solid Bore 1.5 in No 1" 1499 | Q52: Fog Nozzle 30-125 | R52: 1720 | U52: 0489 2.5 in NH 1" bore size(s) | AI52: yes2.5 IN | AJ52: BAT | AK52: yes2.5 INBAT | AO52: 2393 | AP52: 1656 | AZ52: Stack Tips | BA52: 15/16"; 1/2" | BB52: 1441 | BC52: 1.5 in | BD52: 0.5 | BR52: Fog Tip | BS52: 4866 | BT52: 125 | BU52: 100 (Std) | BV52: Fog Tip 125 @ 100 (Std) | BZ52: Fog Tip 300 @ 100 | CA52: 4824 | CD52: Fog Tip 300 @ 100 4824 | CI52: Fog Tip 200 @ 100 4866 | CT52: Stack Tips 1.5 in | CU52: 15/16"; 1/2" | CV52: 1.5 in | CW52: Stack Tips 1.5 in | DB52: Stack Tips Yes 1.5 in 15/16"; 1/2" No (Std) | DC52: Stack Tips Yes 1.5 in | DD52: Stack Tips | DE52: 15/16"; 1/2" | DF52: 1441 | DG52: 1.5 in | DH52: 0.5 | DI52: Yes | DJ52: No (Std) | DY52: Solid Bore Yes 2.5 in 1-3/8" No (Std) | DZ52: 1446 | ED52: 15/16"; 1/2" | EE52: 15_16___1_2_ | EG52: Stack Tips | EH52: 15/16"; 1/2" | EI52: 1441 | EJ52: 1.5 in | EK52: 0.5 | EL52: Yes | EM52: Stack Tips 1.5 in Yes 15/16"; 1/2" 1441 | EO52: Stack Tips 1.5 in Yes 15/16"; 1/2" 1441 | EW52: Stack Tips | EX52: 15/16"; 1/2" | EY52: 1441 | EZ52: Stack Tips15/16"; 1/2"1441 | FB52: Stack Tips15/16"; 1/2"1441
E53: Solid Bore1"1499 | F53: no2.5 INPITT6 | I53: Solid Bore 1.5 in No 1-1/16" 1499 | Q53: Fog Nozzle 95-200 | R53: 1723 | AI53: yes2.5 IN | AJ53: CSA | AK53: yes2.5 INCSA | AO53: 2420 | AP53: 640 | AZ53: Stack Tips | BA53: 1-1/8"; 1/2" | BB53: 1442 | BC53: 2.5 in | BD53: 0.5 | BR53: Fog Tip | BS53: 4866 | BT53: 150 | BU53: 100 (Std) | BV53: Fog Tip 150 @ 100 (Std) | BZ53: Fog Tip 300 @ 75 | CA53: 4824 | CD53: Fog Tip 300 @ 75 4824 | CI53: Fog Tip 200 @ 75 4824 | CT53: Stack Tips 2.5 in | CU53: 1-1/8"; 1/2" | CV53: 2.5 in | CW53: Stack Tips 2.5 in | DB53: Stack Tips Yes 2.5 in 1-1/8"; 1/2" Yes | DC53: Stack Tips Yes 2.5 in | DD53: Stack Tips | DE53: 1-1/8"; 1/2" | DF53: 1442 | DG53: 2.5 in | DH53: 0.5 | DI53: Yes | DJ53: Yes | DY53: Solid Bore Yes 2.5 in 15/16" No (Std) | DZ53: 1446 | ED53: 1-1/8"; 1/2" | EE53: 1_1_8___1_2_ | EG53: Stack Tips | EH53: 1-1/8"; 1/2" | EI53: 1442 | EJ53: 2.5 in | EK53: 0.5 | EL53: Yes | EM53: Stack Tips 2.5 in Yes 1-1/8"; 1/2" 1442 | EO53: Stack Tips 2.5 in Yes 1-1/8"; 1/2" 1442 | EW53: Stack Tips | EX53: 1-1/8"; 1/2" | EY53: 1442 | EZ53: Stack Tips1-1/8"; 1/2"1442 | FB53: Stack Tips1-1/8"; 1/2"1442
E54: Solid Bore1-1/16"1499 | F54: no2.5 INBAT | I54: Solid Bore 1.5 in No 1-1/8" 1499 | Q54: Fog Nozzle 125-250 | R54: 1733 | AI54: yes2.5 IN | AJ54: QST | AK54: yes2.5 INQST | AO54: Storz | AP54: 88 | AZ54: Stack Tips | BA54: 1-1/8"; 1/2" | BB54: 1443 | BC54: 2.5 in | BD54: 0.5 | BR54: Fog Tip | BS54: 4866 | BT54: 175 | BU54: 100 (Std) | BV54: Fog Tip 175 @ 100 (Std) | BZ54: Fog Tip 350 @ 100 | CA54: 4824 | CD54: Fog Tip 350 @ 100 4824 | CI54: Fog Tip 200 @ 75 4866 | CT54: Stack Tips 2.5 in | CU54: 1-1/8"; 1/2" | CV54: 2.5 in | CW54: Stack Tips 2.5 in | DB54: Stack Tips Yes 2.5 in 1-1/8"; 1/2" No (Std) | DC54: Stack Tips Yes 2.5 in | DD54: Stack Tips | DE54: 1-1/8"; 1/2" | DF54: 1443 | DG54: 2.5 in | DH54: 0.5 | DI54: Yes | DJ54: No (Std) | DY54: Solid Bore Yes 2.5 in 7/8" No (Std) | DZ54: 1446 | ED54: 1-1/8"; 1/2" | EE54: 1_1_8___1_2_ | EG54: Stack Tips | EH54: 1-1/8"; 1/2" | EI54: 1443 | EJ54: 2.5 in | EK54: 0.5 | EL54: Yes | EM54: Stack Tips 2.5 in Yes 1-1/8"; 1/2" 1443 | EO54: Stack Tips 2.5 in Yes 1-1/8"; 1/2" 1443 | EW54: Stack Tips | EX54: 1-1/8"; 1/2" | EY54: 1443 | EZ54: Stack Tips1-1/8"; 1/2"1443 | FB54: Stack Tips1-1/8"; 1/2"1443
E55: Solid Bore1-1/8"1499 | F55: no2.5 INCSA | I55: Solid Bore 1.5 in No 1-3/16" 1499 | Q55: Fog Tip 95-200 | R55: 1737 | AI55: yes2.5 IN | AJ55: BIM | AK55: yes2.5 INBIM | AO55: ZT | AP55: 340 | AZ55: Stack Tips | BA55: 1-1/4"; 1-1/8"; 1" | BB55: 2393 | BC55: 2.5 in | BD55: 1 | BR55: Fog Tip | BS55: 4866 | BT55: 200 | BU55: 100 (Std) | BV55: Fog Tip 200 @ 100 (Std) | BZ55: Fog Tip 95 @ 100 | CA55: 4866 | CD55: Fog Tip 95 @ 100 4866 | CI55: Fog Tip 210 @ 50 4824 | CT55: Stack Tips 2.5 in | CU55: 1-1/4"; 1-1/8"; 1" | CV55: 2.5 in | CW55: Stack Tips 2.5 in | DB55: Stack Tips Yes 2.5 in 1-1/4"; 1-1/8"; 1" No (Std) | DC55: Stack Tips Yes 2.5 in | DD55: Stack Tips | DE55: 1-1/4"; 1-1/8"; 1" | DF55: 2393 | DG55: 2.5 in | DH55: 1 | DI55: Yes | DJ55: No (Std) | DY55: Stack Tips No 1.5 in 1-1/16"; 15/16" Yes | DZ55: 0439 | ED55: 1-1/4"; 1-1/8"; 1" | EE55: 1_1_4___1_1_8___1_ | EG55: Stack Tips | EH55: 1-1/4"; 1-1/8"; 1" | EI55: 2393 | EJ55: 2.5 in | EK55: 1 | EL55: Yes | EM55: Stack Tips 2.5 in Yes 1-1/4"; 1-1/8"; 1" 2393 | EO55: Stack Tips 2.5 in Yes 1-1/4"; 1-1/8"; 1" 2393 | EW55: Stack Tips | EX55: 1-1/4"; 1-1/8"; 1" | EY55: 2393 | EZ55: Stack Tips1-1/4"; 1-1/8"; 1"2393 | FB55: Stack Tips1-1/4"; 1-1/8"; 1"2393
E56: Solid Bore1-3/16"1499 | F56: no2.5 INQST | I56: Solid Bore 1.5 in No 1-1/4" 1499 | Q56: Fog Tip 125-250 | R56: 1744 | AI56: yes2.5 IN | AJ56: Storz | AK56: yes2.5 INStorz | AZ56: Stack Tips | BA56: 1-1/2"; 1-1/4"; 1" | BB56: 2420 | BC56: 2.5 in | BD56: 1 | BR56: Fog Tip | BS56: 4866 | BT56: 125 | BU56: 75 | BV56: Fog Tip 125 @ 75 | CI56: Fog Tip 225 @ 100 4866 | CT56: Stack Tips 2.5 in | CU56: 1-1/2"; 1-1/4"; 1" | CV56: 2.5 in | CW56: Stack Tips 2.5 in | DB56: Stack Tips No 2.5 in 1-1/2"; 1-1/4"; 1" Yes | DC56: Stack Tips No 2.5 in | DD56: Stack Tips | DE56: 1-1/2"; 1-1/4"; 1" | DF56: 2420 | DG56: 2.5 in | DH56: 1 | DI56: No | DJ56: Yes | DY56: Stack Tips No 1.5 in 1-1/4"; 1-1/8"; 1" Yes | DZ56: 1420 | ED56: 1-1/2"; 1-1/4"; 1" | EE56: 1_1_2___1_1_4___1_ | EG56: Stack Tips | EH56: 1-1/2"; 1-1/4"; 1" | EI56: 2420 | EJ56: 2.5 in | EK56: 1 | EL56: No | EM56: Stack Tips 2.5 in No 1-1/2"; 1-1/4"; 1" 2420 | EO56: Stack Tips 2.5 in No 1-1/2"; 1-1/4"; 1" 2420 | EW56: Stack Tips | EX56: 1-1/2"; 1-1/4"; 1" | EY56: 2420 | EZ56: Stack Tips1-1/2"; 1-1/4"; 1"2420 | FB56: Stack Tips1-1/2"; 1-1/4"; 1"2420
E57: Solid Bore1-1/4"1499 | F57: no1.5 inNPSH | I57: Solid Bore 1.5 in No 1-3/8" 1499 | Q57: Fog Nozzle 30-200 | R57: 1763 | AI57: yes2.5 IN | AJ57: Custom | AK57: yes2.5 INCustom | AZ57: Stack Tips | BA57: 1-1/4"; 1-1/8"; 1" | BB57: 2420 | BC57: 2.5 in | BD57: 1 | BR57: Fog Tip | BS57: 4866 | BT57: 150 | BU57: 75 | BV57: Fog Tip 150 @ 75 | CI57: Fog Tip 250 @ 100 4824 | CT57: Stack Tips 2.5 in | CU57: 1-1/4"; 1-1/8"; 1" | CV57: 2.5 in | CW57: Stack Tips 2.5 in | DB57: Stack Tips No 2.5 in 1-1/4"; 1-1/8"; 1" Yes | DC57: Stack Tips No 2.5 in | DD57: Stack Tips | DE57: 1-1/4"; 1-1/8"; 1" | DF57: 2420 | DG57: 2.5 in | DH57: 1 | DI57: No | DJ57: Yes | DY57: Stack Tips No 1.5 in 1-1/8"; 1/2" Yes | DZ57: 0439 | ED57: 1-1/4"; 1-1/8"; 1" | EE57: 1_1_4___1_1_8___1_ | EG57: Stack Tips | EH57: 1-1/4"; 1-1/8"; 1" | EI57: 2420 | EJ57: 2.5 in | EK57: 1 | EL57: No | EM57: Stack Tips 2.5 in No 1-1/4"; 1-1/8"; 1" 2420 | EO57: Stack Tips 2.5 in No 1-1/4"; 1-1/8"; 1" 2420 | EW57: Stack Tips | EX57: 1-1/4"; 1-1/8"; 1" | EY57: 2420 | EZ57: Stack Tips1-1/4"; 1-1/8"; 1"2420 | FB57: Stack Tips1-1/4"; 1-1/8"; 1"2420
E58: Solid Bore1-3/8"1499 | F58: no1.5 inFDNY | I58: Solid Bore 2.5 in No 7/8" 0489 | Q58: Fog Tip 30-200 | R58: 1766 | AI58: no1.5 in | AJ58: NH | AK58: no1.5 inNH | AZ58: Stack Tips | BA58: 1-3/8"; 1-1/4"; 1" | BB58: 2420 | BC58: 2.5 in | BD58: 1 | BR58: Fog Tip | BS58: 4866 | BT58: 175 | BU58: 75 | BV58: Fog Tip 175 @ 75 | CI58: Fog Tip 250 @ 50 4824 | CT58: Stack Tips 2.5 in | CU58: 1-3/8"; 1-1/4"; 1" | CV58: 2.5 in | CW58: Stack Tips 2.5 in | DB58: Stack Tips No 2.5 in 1-3/8"; 1-1/4"; 1" Yes | DC58: Stack Tips No 2.5 in | DD58: Stack Tips | DE58: 1-3/8"; 1-1/4"; 1" | DF58: 2420 | DG58: 2.5 in | DH58: 1 | DI58: No | DJ58: Yes | DY58: Stack Tips No 1.5 in 15/16"; 1/2" Yes | DZ58: 0439 | ED58: 1-3/8"; 1-1/4"; 1" | EE58: 1_3_8___1_1_4___1_ | EG58: Stack Tips | EH58: 1-3/8"; 1-1/4"; 1" | EI58: 2420 | EJ58: 2.5 in | EK58: 1 | EL58: No | EM58: Stack Tips 2.5 in No 1-3/8"; 1-1/4"; 1" 2420 | EO58: Stack Tips 2.5 in No 1-3/8"; 1-1/4"; 1" 2420 | EW58: Stack Tips | EX58: 1-3/8"; 1-1/4"; 1" | EY58: 2420 | EZ58: Stack Tips1-3/8"; 1-1/4"; 1"2420 | FB58: Stack Tips1-3/8"; 1-1/4"; 1"2420
E59: Solid Bore7/8"0489 | F59: no1.5 inNYCORP | I59: Solid Bore 2.5 in No 15/16" 0489 | AI59: no2.5 IN | AJ59: NPSH | AK59: no2.5 INNPSH | BR59: Fog Tip | BS59: 4866 | BT59: 200 | BU59: 75 | BV59: Fog Tip 200 @ 75 | CI59: Fog Tip 250 @ 75 4824 | DY59: Stack Tips No 2.5 in 1-1/2"; 1-1/4"; 1" Yes | DZ59: 2420
B60: y | E60: Solid Bore15/16"0489 | F60: no1.5 inPCT | I60: Solid Bore 2.5 in No 1" 0489 | AI60: no2.5 IN | AJ60: FDNY | AK60: no2.5 INFDNY | BR60: Fog Tip | BS60: 4866 | BT60: 150 | BU60: 50 | BV60: Fog Tip 150 @ 50 | CI60: Fog Tip 265 @ 50 4824 | DY60: Stack Tips No 2.5 in 1-1/4"; 1-1/8"; 1" Yes | DZ60: 2420
B61: =IF(OR(B10=P9,D10="yes",TRIM(I10)="0416"),CONCATENATE(I10," ",C10," ",F10," ",CONCATENATE("1.5 in ",G10)," ",CONCATENATE(E10," bore size(s)")," ",IF(B10="Fog Tip","",IF(D10="no",IF(TRIM(I10)="0416",""," "),IF(OR(LEFT(I10,3)="144",LEFT(I10,4)="2393"),"",IF(H10="yes"," NPG"," PG")))),IF(B10="Fog Tip","",IF(J10="Yes"," ZT","")),IF(K10="Yes"," ETCH","")),CONCATENATE(I10," ",C10," ",F10," ",CONCATENATE(E10," bore size(s) "),IF(K10="Yes"," ETCH",""))) -> 0489 2.5 in NH 1-3/8" bore size(s) | E61: Solid Bore1"0489 | F61: no1.5 inStorz | I61: Solid Bore 2.5 in No 1-1/8" 0489 | AI61: no2.5 IN | AJ61: NYCORP | AK61: no2.5 INNYCORP | BR61: Fog Tip | BS61: 4866 | BT61: 161 | BU61: 50 | BV61: Fog Tip 161 @ 50 | CI61: Fog Tip 300 @ 100 4824 | DY61: Stack Tips No 2.5 in 1-3/8"; 1-1/4"; 1" Yes | DZ61: 2420
E62: Solid Bore1-1/8"0489 | F62: no1.5 inCustom | I62: Solid Bore 2.5 in No 1-1/4" 0489 | AI62: no2.5 IN | AJ62: PCT | AK62: no2.5 INPCT | BR62: Fog Tip | BS62: 4866 | BT62: 175 | BU62: 50 | BV62: Fog Tip 175 @ 50 | CI62: Fog Tip 300 @ 75 4824 | DY62: Stack Tips Yes 1.5 in 15/16"; 1/2" No (Std) | DZ62: 1441
B63: 0416 1.5 in NH 1.5 in NH 7/8" bore size(s) | E63: Solid Bore1-1/4"0489 | I63: Solid Bore 2.5 in No 1-3/8" 0489 | AI63: no2.5 IN | AJ63: Custom | AK63: no2.5 INCustom | BR63: Fog Tip | BS63: 4866 | BT63: 185 | BU63: 50 | BV63: Fog Tip 185 @ 50 | CI63: Fog Tip 350 @ 100 4824 | DY63: Stack Tips Yes 1.5 in 15/16"; 1/2" Yes | DZ63: 1440
E64: Solid Bore1-3/8"0489 | I64: Solid Bore 2.5 in Yes 7/8" 1446 | AI64: no2.5 IN | AJ64: NH | AK64: no2.5 INNH | BR64: Fog Tip | BS64: 4866 | BT64: 225 | BU64: 100 (Std) | BV64: Fog Tip 225 @ 100 (Std) | CI64: Fog Tip 95 @ 100 4866 | DY64: Stack Tips Yes 2.5 in 1-1/4"; 1-1/8"; 1" No (Std) | DZ64: 2393
E65: Solid Bore7/8"1446 | I65: Solid Bore 2.5 in Yes 15/16" 1446 | AI65: no2.5 IN | AJ65: NPSH | AK65: no2.5 INNPSH | DY65: Stack Tips Yes 2.5 in 1-1/8"; 1/2" No (Std) | DZ65: 1443
E66: Solid Bore15/16"1446 | I66: Solid Bore 2.5 in Yes 1" 1446 | AI66: no2.5 IN | AJ66: FDNY | AK66: no2.5 INFDNY | DY66: Stack Tips Yes 2.5 in 1-1/8"; 1/2" Yes | DZ66: 1442
E67: Solid Bore1"1446 | I67: Solid Bore 2.5 in Yes 1-1/16" 1446 | AI67: no2.5 IN | AJ67: NYCORP | AK67: no2.5 INNYCORP | FH67: Stack Tips 1.5 in Yes 15/16"; 1/2" 1441
E68: Solid Bore1-1/16"1446 | I68: Solid Bore 2.5 in Yes 1-1/8" 1446 | AI68: no2.5 IN | AJ68: PITT6 | AK68: no2.5 INPITT6
E69: Solid Bore1-1/8"1446 | I69: Solid Bore 2.5 in Yes 1-3/16" 1446 | AI69: no2.5 IN | AJ69: BAT | AK69: no2.5 INBAT
E70: Solid Bore1-3/16"1446 | I70: Solid Bore 2.5 in Yes 1-1/4" 1446 | AI70: no2.5 IN | AJ70: CSA | AK70: no2.5 INCSA
E71: Solid Bore1-1/4"1446 | I71: Solid Bore 2.5 in Yes 1-3/8" 1446 | AI71: no2.5 IN | AJ71: QST | AK71: no2.5 INQST
E72: Solid Bore1-3/8"1446 | I72: Stack Tips 1.5 in No 1-1/8"; 1/2" 0439 | AI72: no2.5 IN | AJ72: Custom | AK72: no2.5 INCustom
E73: Stack Tips1-1/8"; 1/2"0439 | I73: Stack Tips 1.5 in No 15/16"; 1/2" 0439
E74: Stack Tips15/16"; 1/2"0439 | I74: Stack Tips 1.5 in No 1-1/16"; 15/16" 0439
E75: Stack Tips1-1/16"; 15/16"0439 | I75: Stack Tips 1.5 in No 1-1/4"; 1-1/8"; 1" 1420
E76: Stack Tips1-1/4"; 1-1/8"; 1"1420 | I76: Stack Tips 1.5 in Yes 15/16"; 1/2" 1440
E77: Stack Tips15/16"; 1/2"1440 | I77: Stack Tips 1.5 in Yes 15/16"; 1/2" 1441
E78: Stack Tips15/16"; 1/2"1441 | I78: Stack Tips 2.5 in Yes 1-1/8"; 1/2" 1442
E79: Stack Tips1-1/8"; 1/2"1442 | I79: Stack Tips 2.5 in Yes 1-1/8"; 1/2" 1443
E80: Stack Tips1-1/8"; 1/2"1443 | I80: Stack Tips 2.5 in Yes 1-1/4"; 1-1/8"; 1" 2393
E81: Stack Tips1-1/4"; 1-1/8"; 1"2393 | I81: Stack Tips 2.5 in No 1-1/2"; 1-1/4"; 1" 2420
E82: Stack Tips1-1/2"; 1-1/4"; 1"2420 | I82: Stack Tips 2.5 in No 1-1/4"; 1-1/8"; 1" 2420
E83: Stack Tips1-1/4"; 1-1/8"; 1"2420 | I83: Stack Tips 2.5 in No 1-3/8"; 1-1/4"; 1" 2420
E84: Stack Tips1-3/8"; 1-1/4"; 1"2420

Sheet Shutoffs
B1: Instructions: | H1: Reaction Force Color Chart: | I1: This is a Low RF Nozzle (RF < 51 ) | AH1: asdf | AK1: Style | AL1: Flow | AN1: Flow | AU1: 100 | AV1: 75 | AW1: 50 | AX1: 87 | BA1: Bore Size | BB1: Style | BF1: Flow | BJ1: Flow | BK1: Pressure | BS1: Style | BT1: Flow | BU1: Pressure | CA1: Style | CN1: Bore Size | CU1: Bore Size | CZ1: Bore Size | DB1: Bore,Shutoff,Inlet,Remove Grip | DE1: Bore Size | DF1: Style | DG1: Inlet | DH1: Dec Size | DI1: Shutoff | DJ1: Remove PG | DL1: Bore Size | DM1: Dec Size | DO1: Solid Bore No 1.5 in | DP1: Solid Bore No 2.5 in | DQ1: Solid Bore Yes 1.5 in | DR1: Solid Bore Yes 2.5 in | DS1: Stack Tips No 1.5 in | DT1: Stack Tips No 2.5 in | DU1: Stack Tips Yes 1.5 in | DV1: Stack Tips Yes 2.5 in | DY1: Bore,Shutoff,Inlet,Remove Grip | DZ1: Style | ED1: Bore Size | EE1: Bore Size | EH1: Bore Size | EI1: Style | EJ1: Inlet | EK1: Dec Size | EL1: Shutoff | EU1: 50 | EX1: Bore Size | EY1: Style
B2: Tan-colored cells are headers or describe the selection options | M2: Nozzle | O2: Shutoff Only | P2: Shutoff with Integrated Tip | R2: 5-40 | S2: 125-250 | T2: 13-30 | U2: 13-60 | V2: 18-30 | W2: 30-125 | X2: 30-150 | Y2: 30-200 | Z2: 95-200 | AA2: 12-53 | AK2: 4116 | AL2: 60 | AN2: 13 | AO2: 100 (Std) | AT2: 4116 | AU2: 60 | AV2: 60 | AX2: 60 | AZ2: Solid Bore | BA2: 3/4" | BB2: 0416 | BC2: 1.5 in | BD2: 0.75 | BE2: Fog Nozzle | BF2: 13 | BG2: Fog Nozzle 13 | BJ2: 13 | BK2: 100 (Std) | BL2: =CONCATENATE(BJ2," ",BK2) -> 13 100 (Std) | BN2: 200 | BO2: 100 (Std) | BR2: Fog Nozzle | BS2: 4116 | BT2: 60 | BU2: 100 (Std) | BV2: =CONCATENATE(BR2," ",BT2," @ ",BU2) -> Fog Nozzle 60 @ 100 (Std) | BZ2: Fog Nozzle 125 @ 100 | CA2: 4116 | CB2: 4863 | CD2: =CONCATENATE($BZ2," ",CA2) -> Fog Nozzle 125 @ 100 4116 | CE2: =CONCATENATE($BZ2," ",CB2) -> Fog Nozzle 125 @ 100 4863 | CF2: Fog_Nozzle_125___100 | CI2: Fog Nozzle 125 @ 100 4116 | CM2: Solid Bore | CN2: 3/8" | CO2: 0.375 | CP2: =CONCATENATE(CM2," ",CN2) -> Solid Bore 3/8" | CT2: Solid Bore 1.5 in | CU2: 3/4" | CV2: 1.5 in | CW2: Solid Bore 1.5 in | CY2: Solid Bore 1.5 in | CZ2: 3/4" | DB2: =CONCATENATE(DD2," ",DI2," ",DG2," ",DE2," ",DJ2) -> Solid Bore No 1.5 in 3/4" Yes | DC2: =CONCATENATE(DD2," ",DI2," ",DG2) -> Solid Bore No 1.5 in | DD2: Solid Bore | DE2: 3/4" | DF2: 0416 | DG2: 1.5 in | DH2: 0.75 | DI2: No | DJ2: Yes | DK2: Solid Bore No 1.5 in | DM2: 0.375 | DO2: 3/8" | DP2: 7/8" | DQ2: 1/2" | DR2: 7/8" | DS2: 1-1/8"; 1/2" | DT2: 1-1/2"; 1-1/4"; 1" | DU2: 15/16"; 1/2" | DV2: 1-1/8"; 1/2" | DY2: Solid Bore No 1.5 in 1" Yes | DZ2: 0416 | EA2: 1417 | EB2: 1499 | ED2: 3/4" | EE2: 3_4_ | EG2: Solid Bore | EH2: 3/4" | EI2: 0416 | EJ2: 1.5 in | EK2: 0.75 | EL2: No | EM2: =CONCATENATE(EG2," ",EJ2," ",EL2," ",EH2," ",EI2) -> Solid Bore 1.5 in No 3/4" 0416 | EO2: Solid Bore 1.5 in No 3/4" 0416 | ES2: 0.375 | ET2: 3/8" | EU2: =CONCATENATE(ROUND(29.71*(ES2*ES2)*SQRT(EU$1),0)," gpm @ 50 psi; RF = ",ROUND(1.57*(ES2*ES2)*EU$1,0)) -> 30 gpm @ 50 psi; RF = 11 | EW2: Solid Bore | EX2: 3/4" | EY2: 0416 | EZ2: =_xlfn.CONCAT(EW2:EY2) -> Solid Bore3/4"0416 | FB2: Solid Bore3/4"0416
B3: Use the green-colored cells to make your selections (All cells must be filled in; information from "FrontPage" tab does not carry over to this page) | I3: This is a Nozzle with Increased RF (RF > 50 and <101 ) | M3: Tip | O3: 1 in | P3: 1.5 in | R3: 100 (Std) | S3: 100 (Std) | T3: 100 (Std) | U3: 100 (Std) | V3: 100 (Std) | W3: 100 (Std) | X3: 100 (Std) | Y3: 100 (Std) | Z3: 100 (Std) | AA3: 87 (CE) | AK3: 4116 | AL3: 95 | AN3: 25 | AO3: 100 (Std) | AT3: 4116 | AU3: 95 | AV3: 95 | AX3: 95 | AZ3: Solid Bore | BA3: 7/8" | BB3: 0416 | BC3: 1.5 in | BD3: 0.875 | BE3: Fog Nozzle | BF3: 25 | BG3: Fog Nozzle 25 | BJ3: 25 | BK3: 100 (Std) | BL3: =CONCATENATE(BJ3," ",BK3) -> 25 100 (Std) | BN3: 250 | BO3: 100 (Std) | BR3: Fog Nozzle | BS3: 4116 | BT3: 60 | BU3: 75 | BV3: =CONCATENATE(BR3," ",BT3," @ ",BU3) -> Fog Nozzle 60 @ 75 | BZ3: Fog Nozzle 125 @ 75 | CA3: 4116 | CB3: 4863 | CD3: =CONCATENATE($BZ3," ",CA3) -> Fog Nozzle 125 @ 75 4116 | CE3: =CONCATENATE($BZ3," ",CB3) -> Fog Nozzle 125 @ 75 4863 | CI3: Fog Nozzle 125 @ 100 4863 | CM3: Solid Bore | CN3: 1/2" | CO3: 0.5 | CP3: =CONCATENATE(CM3," ",CN3) -> Solid Bore 1/2" | CT3: Solid Bore 1.5 in | CU3: 7/8" | CV3: 1.5 in | CW3: Solid Bore 1.5 in | CY3: Solid Bore 1.5 in | CZ3: 7/8" | DB3: =CONCATENATE(DD3," ",DI3," ",DG3," ",DE3," ",DJ3) -> Solid Bore No 1.5 in 7/8" Yes | DC3: =CONCATENATE(DD3," ",DI3," ",DG3) -> Solid Bore No 1.5 in | DD3: Solid Bore | DE3: 7/8" | DF3: 0416 | DG3: 1.5 in | DH3: 0.875 | DI3: No | DJ3: Yes | DK3: Solid Bore No 1.5 in | DM3: 0.5 | DO3: 1/2" | DP3: 15/16" | DQ3: 7/8" | DR3: 15/16" | DS3: 15-16"; 1/2" | DT3: 1-1/4"; 1-1/8"; 1" | DV3: 1-1/4"; 1-1/8"; 1" | DY3: Solid Bore No 1.5 in 1/2" Yes | DZ3: 1417 | ED3: 7/8" | EE3: 7_8_ | EG3: Solid Bore | EH3: 7/8" | EI3: 0416 | EJ3: 1.5 in | EK3: 0.875 | EL3: No | EM3: =CONCATENATE(EG3," ",EJ3," ",EL3," ",EH3," ",EI3) -> Solid Bore 1.5 in No 7/8" 0416 | EO3: Solid Bore 1.5 in No 7/8" 0416 | ES3: 0.5 | ET3: 1/2" | EU3: 53 gpm @ 50 psi; RF = 20 | EW3: Solid Bore | EX3: 7/8" | EY3: 0416 | EZ3: =_xlfn.CONCAT(EW3:EY3) -> Solid Bore7/8"0416 | FB3: Solid Bore7/8"0416
B4: Blue-colored cells provide outputs based on your selections | M4: High Pressure | O4: 1.5 in | P4: 2 in | R4: 75 | S4: 75 | W4: 75 | X4: 75 | Y4: 75 | Z4: 75 | AK4: 4116 | AL4: 125 | AN4: 40 | AO4: 100 (Std) | AT4: 4116 | AU4: 125 | AV4: 125 | AX4: 125 | AZ4: Solid Bore | BA4: 1" | BB4: 0416 | BC4: 1.5 in | BD4: 1 | BE4: Fog Nozzle | BF4: 40 | BG4: Fog Nozzle 40 | BJ4: 40 | BK4: 100 (Std) | BL4: 40 100 (Std) | BN4: 300 | BO4: 100 (Std) | BR4: Fog Nozzle | BS4: 4116 | BT4: 60 | BU4: 87 (CE) | BV4: Fog Nozzle 60 @ 87 (CE) | BZ4: Fog Nozzle 125 @ 87 | CA4: 4116 | CD4: =CONCATENATE($BZ4," ",CA4) -> Fog Nozzle 125 @ 87 4116 | CI4: Fog Nozzle 125 @ 75 4116 | CM4: Solid Bore | CN4: 5/8" | CO4: 0.625 | CP4: Solid Bore 5/8" | CT4: Solid Bore 1.5 in | CU4: 1" | CV4: 1.5 in | CW4: Solid Bore 1.5 in | CY4: Solid Bore 1.5 in | CZ4: 1" | DB4: Solid Bore No 1.5 in 1" Yes | DC4: Solid Bore No 1.5 in | DD4: Solid Bore | DE4: 1" | DF4: 0416 | DG4: 1.5 in | DH4: 1 | DI4: No | DJ4: Yes | DK4: Solid Bore No 1.5 in | DM4: 0.625 | DO4: 5/8" | DP4: 1" | DQ4: 15/16" | DR4: 1" | DS4: 1-1/16"; 15/16" | DT4: 1-3/8"; 1-1/4"; 1" | DY4: Solid Bore No 1.5 in 1-1/16" Yes | DZ4: 1499 | ED4: 1" | EE4: 1_ | EG4: Solid Bore | EH4: 1" | EI4: 0416 | EJ4: 1.5 in | EK4: 1 | EL4: No | EM4: Solid Bore 1.5 in No 1" 0416 | EO4: Solid Bore 1.5 in No 1" 0416 | ES4: 0.625 | ET4: 5/8" | EU4: 82 gpm @ 50 psi; RF = 31 | EW4: Solid Bore | EX4: 1" | EY4: 0416 | EZ4: Solid Bore1"0416 | FB4: Solid Bore1"0416
B5: This shaded cell indicates an error has ocurred and you may need to modify some of your selections or contact our Customer Care team | I5: This Nozzle has a High RF (RF > 100 ) | O5: 2 in | P5: 2.5 in | R5: 87 (CE) | W5: 87 (CE) | X5: 87 (CE) | AD5: 5-40 | AE5: 100 (Std) | AF5: =CONCATENATE(AD5," ",AE5) -> 5-40 100 (Std) | AK5: 4116 | AL5: 150 | AN5: 60 | AO5: 100 (Std) | AP5: 75 | AQ5: 87 (CE) | AT5: 4116 | AU5: 150 | AV5: 150 | AX5: 150 | AZ5: Solid Bore | BA5: 1-1/8" | BB5: 0416 | BC5: 1.5 in | BD5: 1.125 | BE5: Fog Nozzle | BF5: 60 | BG5: Fog Nozzle 60 | BJ5: 60 | BK5: 100 (Std) | BL5: 60 100 (Std) | BN5: 350 | BO5: 100 (Std) | BR5: Fog Nozzle | BS5: 4116 | BT5: 95 | BU5: 100 (Std) | BV5: Fog Nozzle 95 @ 100 (Std) | BZ5: Fog Nozzle 13 @ 100 | CA5: 4802 | CD5: =CONCATENATE($BZ5," ",CA5) -> Fog Nozzle 13 @ 100 4802 | CI5: Fog Nozzle 125 @ 75 4863 | CM5: Solid Bore | CN5: 3/4" | CO5: 0.75 | CP5: Solid Bore 3/4" | CT5: Solid Bore 1.5 in | CU5: 1-1/8" | CV5: 1.5 in | CW5: Solid Bore 1.5 in | CY5: Solid Bore 1.5 in | CZ5: 1-1/8" | DB5: Solid Bore No 1.5 in 1-1/8" Yes | DC5: Solid Bore No 1.5 in | DD5: Solid Bore | DE5: 1-1/8" | DF5: 0416 | DG5: 1.5 in | DH5: 1.125 | DI5: No | DJ5: Yes | DK5: Solid Bore No 1.5 in | DM5: 0.75 | DO5: 3/4" | DP5: 1-1/8" | DQ5: 1" | DR5: 1-1/16" | DS5: 1-1/4"; 1-1/8"; 1" | DY5: Solid Bore No 1.5 in 1-1/4" Yes | DZ5: 0416 | EA5: 1417 | EB5: 1499 | ED5: 1-1/8" | EE5: 1_1_8_ | EG5: Solid Bore | EH5: 1-1/8" | EI5: 0416 | EJ5: 1.5 in | EK5: 1.125 | EL5: No | EM5: Solid Bore 1.5 in No 1-1/8" 0416 | EO5: Solid Bore 1.5 in No 1-1/8" 0416 | ES5: 0.75 | ET5: 3/4" | EU5: 118 gpm @ 50 psi; RF = 44 | EW5: Solid Bore | EX5: 1-1/8" | EY5: 0416 | EZ5: Solid Bore1-1/8"0416 | FB5: Solid Bore1-1/8"0416
B6: Orange-colored cell allows you to input your discount for Net Price | O6: 2.5 in | P6: 3 in | AD6: 5-40 | AE6: 75 | AF6: =CONCATENATE(AD6," ",AE6) -> 5-40 75 | AK6: 4802 | AL6: 13 | AN6: 95 | AO6: 100 (Std) | AP6: 75 | AQ6: 87 (CE) | AT6: 4802 | AU6: 13 | AZ6: Solid Bore | BA6: 1-1/4" | BB6: 0416 | BC6: 1.5 in | BD6: 1.25 | BE6: Fog Nozzle | BF6: 95 | BG6: Fog Nozzle 95 | BJ6: 60 | BK6: 87 (CE) | BL6: 60 87 (CE) | BN6: 200 | BO6: 75 | BR6: Fog Nozzle | BS6: 4116 | BT6: 95 | BU6: 75 | BV6: Fog Nozzle 95 @ 75 | BZ6: Fog Nozzle 150 @ 100 | CA6: 4116 | CB6: 4863 | CD6: Fog Nozzle 150 @ 100 4116 | CE6: =CONCATENATE($BZ6," ",CB6) -> Fog Nozzle 150 @ 100 4863 | CI6: Fog Nozzle 125 @ 87 4116 | CM6: Solid Bore | CN6: 7/8" | CO6: 0.875 | CP6: Solid Bore 7/8" | CT6: Solid Bore 1.5 in | CU6: 1-1/4" | CV6: 1.5 in | CW6: Solid Bore 1.5 in | CY6: Solid Bore 1.5 in | CZ6: 1-1/4" | DB6: Solid Bore No 1.5 in 1-1/4" Yes | DC6: Solid Bore No 1.5 in | DD6: Solid Bore | DE6: 1-1/4" | DF6: 0416 | DG6: 1.5 in | DH6: 1.25 | DI6: No | DJ6: Yes | DK6: Solid Bore No 1.5 in | DM6: 0.875 | DO6: 7/8" | DP6: 1-1/4" | DQ6: 1-1/16" | DR6: 1-1/8" | DY6: Solid Bore No 1.5 in 1-1/8" Yes | DZ6: 0416 | EA6: 1417 | EB6: 1499 | ED6: 1-1/4" | EE6: 1_1_4_ | EG6: Solid Bore | EH6: 1-1/4" | EI6: 0416 | EJ6: 1.5 in | EK6: 1.25 | EL6: No | EM6: Solid Bore 1.5 in No 1-1/4" 0416 | EO6: Solid Bore 1.5 in No 1-1/4" 0416 | ES6: 0.875 | ET6: 7/8" | EU6: 161 gpm @ 50 psi; RF = 60 | EW6: Solid Bore | EX6: 1-1/4" | EY6: 0416 | EZ6: Solid Bore1-1/4"0416 | FB6: Solid Bore1-1/4"0416
B7: =FrontPage!E8 -> Rev Date: 6/27/2022 | D7: Shutoffs and Shutoffs with Integral Tips | O7: 3 in | AD7: 5-40 | AE7: 87 (CE) | AF7: 5-40 87 (CE) | AK7: 4802 | AL7: 25 | AN7: 125 | AO7: 100 (Std) | AP7: 75 | AQ7: 50 | AR7: 87 (CE) | AT7: 4802 | AU7: 25 | AZ7: Solid Bore | BA7: 3/8" | BB7: 1417 | BC7: 1.5 in | BD7: 0.375 | BE7: Fog Nozzle | BF7: 125 | BG7: Fog Nozzle 125 | BJ7: 60 | BK7: 75 | BL7: 60 75 | BN7: 250 | BO7: 75 | BR7: Fog Nozzle | BS7: 4116 | BT7: 95 | BU7: 87 (CE) | BV7: Fog Nozzle 95 @ 87 (CE) | BZ7: Fog Nozzle 150 @ 50 | CA7: 4863 | CD7: Fog Nozzle 150 @ 50 4863 | CI7: Fog Nozzle 13 @ 100 4802 | CM7: Solid Bore | CN7: 15/16" | CO7: 0.9375 | CP7: Solid Bore 15/16" | CT7: Solid Bore 1.5 in | CU7: 3/8" | CV7: 1.5 in | CW7: Solid Bore 1.5 in | CY7: Solid Bore 1.5 in | CZ7: 3/8" | DB7: Solid Bore No 1.5 in 3/8" Yes | DC7: Solid Bore No 1.5 in | DD7: Solid Bore | DE7: 3/8" | DF7: 1417 | DG7: 1.5 in | DH7: 0.375 | DI7: No | DJ7: Yes | DK7: Solid Bore No 1.5 in | DM7: 0.9375 | DO7: 15/16" | DP7: 1-3/8" | DQ7: 1-1/8" | DR7: 1-3/16" | DY7: Solid Bore No 1.5 in 1-3/16" Yes | DZ7: 1499 | ED7: 3/8" | EE7: 3_8_ | EG7: Solid Bore | EH7: 3/8" | EI7: 1417 | EJ7: 1.5 in | EK7: 0.375 | EL7: No | EM7: Solid Bore 1.5 in No 3/8" 1417 | EO7: Solid Bore 1.5 in No 3/8" 1417 | ES7: 0.9375 | ET7: 15/16" | EU7: 185 gpm @ 50 psi; RF = 69 | EW7: Solid Bore | EX7: 3/8" | EY7: 1417 | EZ7: Solid Bore3/8"1417 | FB7: Solid Bore3/8"1417
B8: Shutoff Only or Shutoff with Integrated Tip | C8: Inlet Size | D8: Outlet Size | E8: =IF(RIGHT(B10,4)="only","","Bore Size") ->  | F8: Inlet Thread | G8: Outlet Thread | H8: =IF(J10="yes","","Remove Pistol Grip?") -> Remove Pistol Grip? | I8: Style Number | J8: =IF(TRIM(I10)="2390","","ZT Inlet?") -> ZT Inlet? | K8: Custom Etch | AD8: 125-250 | AE8: 100 (Std) | AF8: 125-250 100 (Std) | AK8: 4802 | AL8: 40 | AN8: 150 | AO8: 100 (Std) | AP8: 75 | AQ8: 50 | AR8: 87 (CE) | AT8: 4802 | AU8: 40 | AZ8: Solid Bore | BA8: 1/2" | BB8: 1417 | BC8: 1.5 in | BD8: 0.5 | BE8: Fog Nozzle | BF8: 150 | BG8: Fog Nozzle 150 | BJ8: 95 | BK8: 100 (Std) | BL8: 95 100 (Std) | BN8: 300 | BO8: 75 | BR8: Fog Nozzle | BS8: 4116 | BT8: 125 | BU8: 100 (Std) | BV8: Fog Nozzle 125 @ 100 (Std) | BZ8: Fog Nozzle 150 @ 75 | CA8: 4116 | CB8: 4863 | CD8: Fog Nozzle 150 @ 75 4116 | CE8: =CONCATENATE($BZ8," ",CB8) -> Fog Nozzle 150 @ 75 4863 | CI8: Fog Nozzle 150 @ 100 4116 | CM8: Solid Bore | CN8: 1" | CO8: 1 | CP8: Solid Bore 1" | CT8: Solid Bore 1.5 in | CU8: 1/2" | CV8: 1.5 in | CW8: Solid Bore 1.5 in | CY8: Solid Bore 1.5 in | CZ8: 1/2" | DB8: Solid Bore No 1.5 in 1/2" Yes | DC8: Solid Bore No 1.5 in | DD8: Solid Bore | DE8: 1/2" | DF8: 1417 | DG8: 1.5 in | DH8: 0.5 | DI8: No | DJ8: Yes | DK8: Solid Bore No 1.5 in | DM8: 1 | DO8: 1" | DQ8: 1-3/16" | DR8: 1-1/4" | DY8: Solid Bore No 1.5 in 1-3/8" Yes | DZ8: 1499 | ED8: 1/2" | EE8: 1_2_ | EG8: Solid Bore | EH8: 1/2" | EI8: 1417 | EJ8: 1.5 in | EK8: 0.5 | EL8: No | EM8: Solid Bore 1.5 in No 1/2" 1417 | EO8: Solid Bore 1.5 in No 1/2" 1417 | ES8: 1 | ET8: 1" | EU8: 210 gpm @ 50 psi; RF = 79 | EW8: Solid Bore | EX8: 1/2" | EY8: 1417 | EZ8: Solid Bore1/2"1417 | FB8: Solid Bore1/2"1417
O9: Solid Bore | P9: Stack Tips | AD9: 125-250 | AE9: 75 | AF9: 125-250 75 | AK9: 4824 | AL9: 200 | AN9: 161 | AO9: 50 | AT9: 4824 | AU9: 200 | AV9: 200 | AZ9: Solid Bore | BA9: 5/8" | BB9: 1417 | BC9: 1.5 in | BD9: 0.625 | BE9: Fog Nozzle | BF9: 161 | BG9: Fog Nozzle 161 | BJ9: 95 | BK9: 75 | BL9: 95 75 | BN9: 210 | BO9: 50 | BR9: Fog Nozzle | BS9: 4116 | BT9: 125 | BU9: 75 | BV9: Fog Nozzle 125 @ 75 | BZ9: Fog Nozzle 150 @ 87 | CA9: 4116 | CD9: Fog Nozzle 150 @ 87 4116 | CI9: Fog Nozzle 150 @ 100 4863 | CM9: Solid Bore | CN9: 1-1/16" | CO9: 1.0625 | CP9: Solid Bore 1-1/16" | CT9: Solid Bore 1.5 in | CU9: 5/8" | CV9: 1.5 in | CW9: Solid Bore 1.5 in | CY9: Solid Bore 1.5 in | CZ9: 5/8" | DB9: Solid Bore No 1.5 in 5/8" Yes | DC9: Solid Bore No 1.5 in | DD9: Solid Bore | DE9: 5/8" | DF9: 1417 | DG9: 1.5 in | DH9: 0.625 | DI9: No | DJ9: Yes | DK9: Solid Bore No 1.5 in | DM9: 1.0625 | DO9: 1-1/16" | DQ9: 1-1/4" | DR9: 1-3/8" | DY9: Solid Bore No 1.5 in 15/16" Yes | DZ9: 1417 | EA9: 1499 | ED9: 5/8" | EE9: 5_8_ | EG9: Solid Bore | EH9: 5/8" | EI9: 1417 | EJ9: 1.5 in | EK9: 0.625 | EL9: No | EM9: Solid Bore 1.5 in No 5/8" 1417 | EO9: Solid Bore 1.5 in No 5/8" 1417 | ES9: 1.0625 | ET9: 1-1/16" | EU9: 237 gpm @ 50 psi; RF = 89 | EW9: Solid Bore | EX9: 5/8" | EY9: 1417 | EZ9: Solid Bore5/8"1417 | FB9: Solid Bore5/8"1417
B10: Shutoff Only | C10: 2.5 in | D10: 1.5 in | E10: 15/16" | F10: NH | G10: NH | H10: No (Std) | I10: 2126 | J10: No (Std) | K10: No (Std) | O10: 1.5 in | P10: 1.5 in | X10: INDIRECT(CONCATENATE("tHREAD",SUBSTITUTE(B4," ","_"))) | AD10: 13-30 | AE10: 100 (Std) | AF10: 13-30 100 (Std) | AK10: 4824 | AL10: 210 | AN10: 175 | AO10: 100 (Std) | AP10: 75 | AQ10: 50 | AT10: 4824 | AW10: 210 | AZ10: Solid Bore | BA10: 3/4" | BB10: 1417 | BC10: 1.5 in | BD10: 0.75 | BE10: Fog Nozzle | BF10: 175 | BG10: Fog Nozzle 175 | BJ10: 95 | BK10: 87 (CE) | BL10: 95 87 (CE) | BN10: 250 | BO10: 50 | BR10: Fog Nozzle | BS10: 4116 | BT10: 125 | BU10: 87 (CE) | BV10: Fog Nozzle 125 @ 87 (CE) | BZ10: Fog Nozzle 161 @ 50 | CA10: 4863 | CD10: Fog Nozzle 161 @ 50 4863 | CI10: Fog Nozzle 150 @ 50 4863 | CM10: Solid Bore | CN10: 1-1/8" | CO10: 1.125 | CP10: Solid Bore 1-1/8" | CT10: Solid Bore 1.5 in | CU10: 3/4" | CV10: 1.5 in | CW10: Solid Bore 1.5 in | CY10: Solid Bore 1.5 in | CZ10: 15/16" | DB10: Solid Bore No 1.5 in 3/4" Yes | DC10: Solid Bore No 1.5 in | DD10: Solid Bore | DE10: 3/4" | DF10: 1417 | DG10: 1.5 in | DH10: 0.75 | DI10: No | DJ10: Yes | DK10: Solid Bore No 1.5 in | DM10: 1.125 | DO10: 1-1/8" | DQ10: 1-3/8" | DY10: Solid Bore No 1.5 in 3/4" Yes | DZ10: 0416 | EA10: 1417 | ED10: 3/4" | EE10: 3_4_ | EG10: Solid Bore | EH10: 3/4" | EI10: 1417 | EJ10: 1.5 in | EK10: 0.75 | EL10: No | EM10: Solid Bore 1.5 in No 3/4" 1417 | EO10: Solid Bore 1.5 in No 3/4" 1417 | ES10: 1.125 | ET10: 1-1/8" | EU10: 266 gpm @ 50 psi; RF = 99 | EW10: Solid Bore | EX10: 3/4" | EY10: 1417 | EZ10: Solid Bore3/4"1417 | FB10: Solid Bore3/4"1417
B11: List price | C11: =SUM(E11:K11) -> 698 | E11: =IFERROR(IF(B10="shutoff only","",VLOOKUP(E10,ET:EU,2,FALSE)),"Fix Bore Size") ->  | F11: =IF(OR(F10="Storz",F10="BIM"),_xlfn.XLOOKUP("storz",M:M,P:P),0) -> 0 | I11: =IFERROR(VLOOKUP(TRIM(I10),M72:P78,4,FALSE),"") -> 698 | J11: =IF(TRIM(I10)="2390",0,IF(J8="",0,IF(J10="Yes",_xlfn.XLOOKUP("zt",M:M,P:P),0))) -> 0 | O11: 2.5 in | P11: 2.5 in | AD11: 13-60 | AE11: 100 (Std) | AF11: 13-60 100 (Std) | AK11: 4824 | AL11: 250 | AN11: 185 | AO11: 50 | AT11: 4824 | AU11: 250 | AV11: 250 | AW11: 250 | AZ11: Solid Bore | BA11: 7/8" | BB11: 1417 | BC11: 1.5 in | BD11: 0.875 | BE11: Fog Nozzle | BF11: 200 | BG11: Fog Nozzle 200 | BJ11: 125 | BK11: 100 (Std) | BL11: 125 100 (Std) | BR11: Fog Nozzle | BS11: 4116 | BT11: 150 | BU11: 100 (Std) | BV11: Fog Nozzle 150 @ 100 (Std) | BZ11: Fog Nozzle 175 @ 100 | CA11: 4863 | CD11: Fog Nozzle 175 @ 100 4863 | CI11: Fog Nozzle 150 @ 75 4116 | CM11: Solid Bore | CN11: 1-3/16" | CO11: 1.1875 | CP11: Solid Bore 1-3/16" | CT11: Solid Bore 1.5 in | CU11: 7/8" | CV11: 1.5 in | CW11: Solid Bore 1.5 in | CY11: Solid Bore 1.5 in | CZ11: 1-1/16" | DB11: Solid Bore No 1.5 in 7/8" Yes | DC11: Solid Bore No 1.5 in | DD11: Solid Bore | DE11: 7/8" | DF11: 1417 | DG11: 1.5 in | DH11: 0.875 | DI11: No | DJ11: Yes | DK11: Solid Bore No 1.5 in | DM11: 1.1875 | DO11: 1-3/16" | DY11: Solid Bore No 1.5 in 3/8" Yes | DZ11: 1417 | ED11: 7/8" | EE11: 7_8_ | EG11: Solid Bore | EH11: 7/8" | EI11: 1417 | EJ11: 1.5 in | EK11: 0.875 | EL11: No | EM11: Solid Bore 1.5 in No 7/8" 1417 | EO11: Solid Bore 1.5 in No 7/8" 1417 | ES11: 1.1875 | ET11: 1-3/16" | EU11: 296 gpm @ 50 psi; RF = 111 | EW11: Solid Bore | EX11: 7/8" | EY11: 1417 | EZ11: Solid Bore7/8"1417 | FB11: Solid Bore7/8"1417
B12: Your Discount | D12: Net Price | F12: =ROUND(C11*(1-C12),2) -> 698 | H12: Include Color Clips for Shutoff and/or Pistol Grip? | K12: Yes | X12: =CONCATENATE(B10," ",C10," ",D10," ",E10," ",I10) -> Shutoff Only 2.5 in 1.5 in 15/16" 2126 | AD12: 18-30 | AE12: 100 (Std) | AF12: 18-30 100 (Std) | AK12: 4824 | AL12: 265 | AN12: 200 | AO12: 100 (Std) | AP12: 75 | AT12: 4824 | AU12: 300 | AV12: 300 | AZ12: Solid Bore | BA12: 15/16" | BB12: 1417 | BC12: 1.5 in | BD12: 0.9375 | BE12: Fog Nozzle | BF12: 210 | BG12: Fog Nozzle 210 | BJ12: 125 | BK12: 75 | BL12: 125 75 | BR12: Fog Nozzle | BS12: 4116 | BT12: 150 | BU12: 75 | BV12: Fog Nozzle 150 @ 75 | BZ12: Fog Nozzle 175 @ 50 | CA12: 4863 | CD12: Fog Nozzle 175 @ 50 4863 | CI12: Fog Nozzle 150 @ 75 4863 | CM12: Solid Bore | CN12: 1-1/4" | CO12: 1.25 | CP12: Solid Bore 1-1/4" | CT12: Solid Bore 1.5 in | CU12: 15/16" | CV12: 1.5 in | CW12: Solid Bore 1.5 in | CY12: Solid Bore 1.5 in | CZ12: 1-3/16" | DB12: Solid Bore No 1.5 in 15/16" Yes | DC12: Solid Bore No 1.5 in | DD12: Solid Bore | DE12: 15/16" | DF12: 1417 | DG12: 1.5 in | DH12: 0.9375 | DI12: No | DJ12: Yes | DK12: Solid Bore No 1.5 in | DM12: 1.25 | DO12: 1-1/4" | DY12: Solid Bore No 1.5 in 5/8" Yes | DZ12: 1417 | ED12: 15/16" | EE12: 15_16_ | EG12: Solid Bore | EH12: 15/16" | EI12: 1417 | EJ12: 1.5 in | EK12: 0.9375 | EL12: No | EM12: Solid Bore 1.5 in No 15/16" 1417 | EO12: Solid Bore 1.5 in No 15/16" 1417 | ES12: 1.25 | ET12: 1-1/4" | EU12: 328 gpm @ 50 psi; RF = 123 | EW12: Solid Bore | EX12: 15/16" | EY12: 1417 | EZ12: Solid Bore15/16"1417 | FB12: Solid Bore15/16"1417
B13: Short Description | C13: =IF(B23="Error","Fix Errors",CONCATENATE(I10," ",C10," ",F10," ",D10," ",G10,IF(B10="shutoff only","",CONCATENATE(" ",E10," bore size(s)")),IF(TRIM(I10)="2390"," ",IF(J10="yes", " PG",IF(H10="yes"," NPG"," PG"))),IF(TRIM(I10)="2390","",IF(J10="Yes"," ZT","")),IF(K10="Yes"," ETCH",""))) -> 2126 2.5 in NH 1.5 in NH PG | M13: 1 IN | N13: NH | R13: 1 in | S13: 1.5 in | T13: 2 in | U13: 2.5 in | V13: 3 in | AD13: 30-125 | AE13: 100 (Std) | AF13: 30-125 100 (Std) | AK13: 4824 | AL13: 300 | AN13: 210 | AO13: 50 | AT13: 4824 | AU13: 350 | AZ13: Solid Bore | BA13: 1" | BB13: 1417 | BC13: 1.5 in | BD13: 1 | BE13: Fog Nozzle | BF13: 225 | BG13: Fog Nozzle 225 | BJ13: 125 | BK13: 50 | BL13: 125 50 | BR13: Fog Nozzle | BS13: 4116 | BT13: 150 | BU13: 87 (CE) | BV13: Fog Nozzle 150 @ 87 (CE) | BZ13: Fog Nozzle 175 @ 75 | CA13: 4863 | CD13: Fog Nozzle 175 @ 75 4863 | CI13: Fog Nozzle 150 @ 87 4116 | CM13: Solid Bore | CN13: 1-3/8" | CO13: 1.375 | CP13: Solid Bore 1-3/8" | CT13: Solid Bore 1.5 in | CU13: 1" | CV13: 1.5 in | CW13: Solid Bore 1.5 in | CY13: Solid Bore 1.5 in | CZ13: 1-3/8" | DB13: Solid Bore No 1.5 in 1" Yes | DC13: Solid Bore No 1.5 in | DD13: Solid Bore | DE13: 1" | DF13: 1417 | DG13: 1.5 in | DH13: 1 | DI13: No | DJ13: Yes | DK13: Solid Bore No 1.5 in | DM13: 1.375 | DO13: 1-3/8" | DY13: Solid Bore No 1.5 in 7/8" Yes | DZ13: 0416 | EA13: 1417 | EB13: 1499 | ED13: 1" | EE13: 1_ | EG13: Solid Bore | EH13: 1" | EI13: 1417 | EJ13: 1.5 in | EK13: 1 | EL13: No | EM13: Solid Bore 1.5 in No 1" 1417 | EO13: Solid Bore 1.5 in No 1" 1417 | ES13: 1.375 | ET13: 1-3/8" | EU13: 397 gpm @ 50 psi; RF = 148 | EW13: Solid Bore | EX13: 1" | EY13: 1417 | EZ13: Solid Bore1"1417 | FB13: Solid Bore1"1417
B14: Long Description | C14: =IF(B23="Error","Some of your selections are not compatible with others; please correct the errors highlighted in RED",CONCATENATE("Style ",I10," ",B10," with ",C10," ",F10," inlet; ",CONCATENATE(D10," ",G10," outlet; "),IF(B10="shutoff only","",CONCATENATE(E10," bore size (",E11,"); ",)),IF(TRIM(I10)="2390","playpipe with D-handles",IF(J10="yes","",IF(H10="yes","no pistol grip","pistol grip"))),IF(TRIM(I10)="2390","",IF(J10="Yes","Zero-Torque Grip","")),IF(K10="Yes","; Custom Etched",""))) -> Style 2126 Shutoff Only with 2.5 in NH inlet; 1.5 in NH outlet; pistol grip | H14: Akron Brass Part Number and Description | I14: =IF(AND(OR(F10="custom",G10="custom"),K10="yes"),"Contact Customer Care to request Custom Thread and Etch (800-228-1161)",IF(OR(F10="custom",G10="custom"),"Contact Customer Care to request Custom Thread (800-228-1161)",IF(K10="Yes","Contact Customer Care to request Custom Etch (800-228-1161)",IF(B23="Error","Incompatible selections; please correct errors highlighted in RED",IFERROR(CONCATENATE(VLOOKUP(C13,DataSource!AH:AJ,2,FALSE)," ",VLOOKUP(C13,DataSource!AH:AJ,3,FALSE)),"Version you've requested not yet created; contact Customer Care (800-228-1161)"))))) -> 21264001 SHUTOFF 2.5NH X 1.5NH# | M14: 1 IN | N14: NPSH | Q14: 30-125 | R14: 13 | S14: 60 | T14: 60 | U14: 60 | V14: 60 | X14: Stack_Tips_Yes_2.5_in_1_1_4___ 1_1_8___ 1__No__Std | AD14: 30-125 | AE14: 75 | AF14: 30-125 75 | AK14: 4824 | AL14: 350 | AN14: 225 | AO14: 100 (Std) | AT14: 4826 | AU14: 200 | AV14: 200 | AZ14: Solid Bore | BA14: 1-1/8" | BB14: 1417 | BC14: 1.5 in | BD14: 1.125 | BE14: Fog Nozzle | BF14: 250 | BG14: Fog Nozzle 250 | BJ14: 125 | BK14: 87 (CE) | BL14: 125 87 (CE) | BR14: Fog Nozzle | BS14: 4802 | BT14: 13 | BU14: 100 (Std) | BV14: Fog Nozzle 13 @ 100 (Std) | BZ14: Fog Nozzle 185 @ 50 | CA14: 4863 | CD14: Fog Nozzle 185 @ 50 4863 | CI14: Fog Nozzle 161 @ 50 4863 | CM14: Stack Tips | CN14: 1-1/8"; 1/2" | CO14: 0.5 | CP14: Stack Tips 1-1/8"; 1/2" | CT14: Solid Bore 1.5 in | CU14: 1-1/8" | CV14: 1.5 in | CW14: Solid Bore 1.5 in | CY14: Solid Bore 2.5 in | CZ14: 7/8" | DB14: Solid Bore No 1.5 in 1-1/8" Yes | DC14: Solid Bore No 1.5 in | DD14: Solid Bore | DE14: 1-1/8" | DF14: 1417 | DG14: 1.5 in | DH14: 1.125 | DI14: No | DJ14: Yes | DK14: Solid Bore No 2.5 in | DM14: 0.875 | DY14: Solid Bore No 2.5 in 1" Yes | DZ14: 0489 | ED14: 1-1/8" | EE14: 1_1_8_ | EG14: Solid Bore | EH14: 1-1/8" | EI14: 1417 | EJ14: 1.5 in | EK14: 1.125 | EL14: No | EM14: Solid Bore 1.5 in No 1-1/8" 1417 | EO14: Solid Bore 1.5 in No 1-1/8" 1417 | EW14: Solid Bore | EX14: 1-1/8" | EY14: 1417 | EZ14: Solid Bore1-1/8"1417 | FB14: Solid Bore1-1/8"1417
M15: 1 IN | N15: STORZ | Q15: 30-150 | R15: 25 | S15: 95 | T15: 95 | U15: 95 | V15: 95 | X15: Stack_Tips_Yes_2.5_in_1_1_4___1_1_8___1__No__Std | AD15: 30-125 | AE15: 87 (CE) | AF15: 30-125 87 (CE) | AK15: 4826 | AL15: 200 | AN15: 250 | AO15: 100 (Std) | AP15: 75 | AQ15: 50 | AT15: 4826 | AW15: 210 | AZ15: Solid Bore | BA15: 1-1/4" | BB15: 1417 | BC15: 1.5 in | BD15: 1.25 | BE15: Fog Nozzle | BF15: 265 | BG15: Fog Nozzle 265 | BJ15: 150 | BK15: 100 (Std) | BL15: 150 100 (Std) | BR15: Fog Nozzle | BS15: 4802 | BT15: 25 | BU15: 100 (Std) | BV15: Fog Nozzle 25 @ 100 (Std) | BZ15: Fog Nozzle 200 @ 100 | CA15: 4826 | CB15: 4863 | CD15: Fog Nozzle 200 @ 100 4826 | CE15: Fog Nozzle 200 @ 100 4863 | CI15: Fog Nozzle 175 @ 100 4863 | CM15: Stack Tips | CN15: 15-16"; 1/2" | CO15: 0.5 | CP15: Stack Tips 15-16"; 1/2" | CT15: Solid Bore 1.5 in | CU15: 1-1/4" | CV15: 1.5 in | CW15: Solid Bore 1.5 in | CY15: Solid Bore 2.5 in | CZ15: 15/16" | DB15: Solid Bore No 1.5 in 1-1/4" Yes | DC15: Solid Bore No 1.5 in | DD15: Solid Bore | DE15: 1-1/4" | DF15: 1417 | DG15: 1.5 in | DH15: 1.25 | DI15: No | DJ15: Yes | DK15: Solid Bore No 2.5 in | DM15: 0.9375 | DY15: Solid Bore No 2.5 in 1-1/4" Yes | DZ15: 0489 | ED15: 1-1/4" | EE15: 1_1_4_ | EG15: Solid Bore | EH15: 1-1/4" | EI15: 1417 | EJ15: 1.5 in | EK15: 1.25 | EL15: No | EM15: Solid Bore 1.5 in No 1-1/4" 1417 | EO15: Solid Bore 1.5 in No 1-1/4" 1417 | EW15: Solid Bore | EX15: 1-1/4" | EY15: 1417 | EZ15: Solid Bore1-1/4"1417 | FB15: Solid Bore1-1/4"1417
B16: Notes: | C16: You can make any notes about what you want, or anything else, in this space | M16: 1.5 in | Q16: 30-200 | R16: 40 | S16: 125 | T16: 125 | U16: 125 | V16: 125 | AD16: 30-150 | AE16: 100 (Std) | AF16: 30-150 100 (Std) | AK16: 4826 | AL16: 210 | AN16: 265 | AO16: 50 | AT16: 4826 | AU16: 250 | AV16: 250 | AW16: 250 | AZ16: Solid Bore | BA16: 7/8" | BB16: 1445 | BC16: 1.5 in | BD16: 0.875 | BE16: Fog Nozzle | BF16: 300 | BG16: Fog Nozzle 300 | BJ16: 150 | BK16: 75 | BL16: 150 75 | BR16: Fog Nozzle | BS16: 4802 | BT16: 40 | BU16: 100 (Std) | BV16: Fog Nozzle 40 @ 100 (Std) | BZ16: Fog Nozzle 200 @ 75 | CA16: 4826 | CB16: 4863 | CD16: Fog Nozzle 200 @ 75 4826 | CE16: Fog Nozzle 200 @ 75 4863 | CI16: Fog Nozzle 175 @ 50 4863 | CM16: Stack Tips | CN16: 15/16"; 1/2" | CO16: 0.5 | CP16: Stack Tips 15/16"; 1/2" | CT16: Solid Bore 1.5 in | CU16: 7/8" | CV16: 1.5 in | CW16: Solid Bore 1.5 in | CY16: Solid Bore 2.5 in | CZ16: 1" | DB16: Solid Bore Yes 1.5 in 7/8" No (Std) | DC16: Solid Bore Yes 1.5 in | DD16: Solid Bore | DE16: 7/8" | DF16: 1445 | DG16: 1.5 in | DH16: 0.875 | DI16: Yes | DJ16: No (Std) | DK16: Solid Bore No 2.5 in | DM16: 1 | DY16: Solid Bore No 2.5 in 1-1/8" Yes | DZ16: 0489 | ED16: 7/8" | EE16: 7_8_ | EG16: Solid Bore | EH16: 7/8" | EI16: 1445 | EJ16: 1.5 in | EK16: 0.875 | EL16: Yes | EM16: Solid Bore 1.5 in Yes 7/8" 1445 | EO16: Solid Bore 1.5 in Yes 7/8" 1445 | EW16: Solid Bore | EX16: 7/8" | EY16: 1445 | EZ16: Solid Bore7/8"1445 | FB16: Solid Bore7/8"1445
M17: 1.5 in | Q17: 95-200 | S17: 150 | T17: 150 | U17: 150 | V17: 150 | AD17: 30-150 | AE17: 75 | AF17: 30-150 75 | AK17: 4826 | AL17: 250 | AN17: 300 | AO17: 100 (Std) | AP17: 75 | AT17: 4826 | AU17: 300 | AV17: 300 | AZ17: Solid Bore | BA17: 15/16" | BB17: 1445 | BC17: 1.5 in | BD17: 0.9375 | BE17: Fog Nozzle | BF17: 350 | BG17: Fog Nozzle 350 | BJ17: 150 | BK17: 50 | BL17: 150 50 | BR17: Fog Tip | BS17: 4824 | BT17: 200 | BU17: 100 (Std) | BV17: Fog Tip 200 @ 100 (Std) | BZ17: Fog Nozzle 210 @ 50 | CA17: 4826 | CD17: Fog Nozzle 210 @ 50 4826 | CI17: Fog Nozzle 175 @ 75 4863 | CM17: Stack Tips | CN17: 1-1/16"; 15/16" | CO17: 0.9375 | CP17: Stack Tips 1-1/16"; 15/16" | CT17: Solid Bore 1.5 in | CU17: 15/16" | CV17: 1.5 in | CW17: Solid Bore 1.5 in | CY17: Solid Bore 2.5 in | CZ17: 1-1/8" | DB17: Solid Bore Yes 1.5 in 15/16" No (Std) | DC17: Solid Bore Yes 1.5 in | DD17: Solid Bore | DE17: 15/16" | DF17: 1445 | DG17: 1.5 in | DH17: 0.9375 | DI17: Yes | DJ17: No (Std) | DK17: Solid Bore No 2.5 in | DM17: 1.125 | DY17: Solid Bore No 2.5 in 1-3/8" Yes | DZ17: 0489 | ED17: 15/16" | EE17: 15_16_ | EG17: Solid Bore | EH17: 15/16" | EI17: 1445 | EJ17: 1.5 in | EK17: 0.9375 | EL17: Yes | EM17: Solid Bore 1.5 in Yes 15/16" 1445 | EO17: Solid Bore 1.5 in Yes 15/16" 1445 | EW17: Solid Bore | EX17: 15/16" | EY17: 1445 | EZ17: Solid Bore15/16"1445 | FB17: Solid Bore15/16"1445
M18: 1.5 in | Q18: 125-250 | S18: 161 | T18: 161 | U18: 161 | V18: 161 | AD18: 30-150 | AE18: 87 (CE) | AF18: 30-150 87 (CE) | AK18: 4826 | AL18: 300 | AN18: 350 | AO18: 100 (Std) | AT18: 4826 | AU18: 350 | AZ18: Solid Bore | BA18: 1" | BB18: 1445 | BC18: 1.5 in | BD18: 1 | BE18: Fog Tip | BF18: 95 | BG18: Fog Tip 95 | BJ18: 150 | BK18: 87 (CE) | BL18: 150 87 (CE) | BR18: Fog Tip | BS18: 4824 | BT18: 250 | BU18: 100 (Std) | BV18: Fog Tip 250 @ 100 (Std) | BZ18: Fog Nozzle 225 @ 100 | CA18: 4863 | CD18: Fog Nozzle 225 @ 100 4863 | CI18: Fog Nozzle 185 @ 50 4863 | CM18: Stack Tips | CN18: 1-1/4"; 1-1/8"; 1" | CO18: 1 | CP18: Stack Tips 1-1/4"; 1-1/8"; 1" | CT18: Solid Bore 1.5 in | CU18: 1" | CV18: 1.5 in | CW18: Solid Bore 1.5 in | CY18: Solid Bore 2.5 in | CZ18: 1-1/4" | DB18: Solid Bore Yes 1.5 in 1" No (Std) | DC18: Solid Bore Yes 1.5 in | DD18: Solid Bore | DE18: 1" | DF18: 1445 | DG18: 1.5 in | DH18: 1 | DI18: Yes | DJ18: No (Std) | DK18: Solid Bore No 2.5 in | DM18: 1.25 | DY18: Solid Bore No 2.5 in 15/16" Yes | DZ18: 0489 | ED18: 1" | EE18: 1_ | EG18: Solid Bore | EH18: 1" | EI18: 1445 | EJ18: 1.5 in | EK18: 1 | EL18: Yes | EM18: Solid Bore 1.5 in Yes 1" 1445 | EO18: Solid Bore 1.5 in Yes 1" 1445 | EW18: Solid Bore | EX18: 1" | EY18: 1445 | EZ18: Solid Bore1"1445 | FB18: Solid Bore1"1445
M19: 1.5 IN | S19: 175 | T19: 175 | U19: 175 | V19: 175 | AD19: 30-200 | AE19: 100 (Std) | AF19: 30-200 100 (Std) | AK19: 4826 | AL19: 350 | AT19: 4863 | AU19: 95 | AZ19: Solid Bore | BA19: 1-1/16" | BB19: 1445 | BC19: 1.5 in | BD19: 1.0625 | BE19: Fog Tip | BF19: 125 | BG19: Fog Tip 125 | BJ19: 161 | BK19: 50 | BL19: 161 50 | BR19: Fog Tip | BS19: 4824 | BT19: 300 | BU19: 100 (Std) | BV19: Fog Tip 300 @ 100 (Std) | BZ19: Fog Nozzle 25 @ 100 | CA19: 4802 | CD19: Fog Nozzle 25 @ 100 4802 | CI19: Fog Nozzle 200 @ 100 4826 | CM19: Stack Tips | CN19: 1-1/2"; 1-1/4"; 1" | CO19: 1 | CP19: Stack Tips 1-1/2"; 1-1/4"; 1" | CT19: Solid Bore 1.5 in | CU19: 1-1/16" | CV19: 1.5 in | CW19: Solid Bore 1.5 in | CY19: Solid Bore 2.5 in | CZ19: 1-3/8" | DB19: Solid Bore Yes 1.5 in 1-1/16" No (Std) | DC19: Solid Bore Yes 1.5 in | DD19: Solid Bore | DE19: 1-1/16" | DF19: 1445 | DG19: 1.5 in | DH19: 1.0625 | DI19: Yes | DJ19: No (Std) | DK19: Solid Bore No 2.5 in | DM19: 1.375 | DY19: Solid Bore No 2.5 in 7/8" Yes | DZ19: 0489 | ED19: 1-1/16" | EE19: 1_1_16_ | EG19: Solid Bore | EH19: 1-1/16" | EI19: 1445 | EJ19: 1.5 in | EK19: 1.0625 | EL19: Yes | EM19: Solid Bore 1.5 in Yes 1-1/16" 1445 | EO19: Solid Bore 1.5 in Yes 1-1/16" 1445 | EW19: Solid Bore | EX19: 1-1/16" | EY19: 1445 | EZ19: Solid Bore1-1/16"1445 | FB19: Solid Bore1-1/16"1445
D20: =CONCATENATE(I10," ",C10," ",F10," ",D10," ",E10," ",G10,IF(B10="Fog Tip","",IF(D10="no"," ",IF(H10="yes"," NPG"," PG"))),IF(B10="Fog Tip","",IF(J10="Yes"," ZT","")),IF(K10="Yes"," ETCH","")) -> 2126 2.5 in NH 1.5 in 15/16" NH PG | I20: =CONCATENATE(SUBSTITUTE(B10," ","_"),"_",SUBSTITUTE(D10,"-","_")) -> Shutoff_Only_1.5 in | M20: 1.5 in | S20: 200 | T20: 200 | U20: 200 | V20: 200 | AD20: 30-200 | AE20: 75 | AF20: 30-200 75 | AK20: 4863 | AL20: 95 | AT20: 4863 | AU20: 125 | AV20: 125 | AW20: 125 | AZ20: Solid Bore | BA20: 1-1/8" | BB20: 1445 | BC20: 1.5 in | BD20: 1.125 | BE20: Fog Tip | BF20: 150 | BG20: Fog Tip 150 | BJ20: 175 | BK20: 100 (Std) | BL20: 175 100 (Std) | BR20: Fog Tip | BS20: 4824 | BT20: 350 | BU20: 100 (Std) | BV20: Fog Tip 350 @ 100 (Std) | BZ20: Fog Nozzle 250 @ 100 | CA20: 4826 | CD20: Fog Nozzle 250 @ 100 4826 | CI20: Fog Nozzle 200 @ 100 4863 | CM20: Stack Tips | CN20: 1-3/8"; 1-1/4"; 1" | CO20: 1 | CP20: Stack Tips 1-3/8"; 1-1/4"; 1" | CT20: Solid Bore 1.5 in | CU20: 1-1/8" | CV20: 1.5 in | CW20: Solid Bore 1.5 in | CY20: Solid Bore 2.5 in | CZ20: 1-1/16" | DB20: Solid Bore Yes 1.5 in 1-1/8" No (Std) | DC20: Solid Bore Yes 1.5 in | DD20: Solid Bore | DE20: 1-1/8" | DF20: 1445 | DG20: 1.5 in | DH20: 1.125 | DI20: Yes | DJ20: No (Std) | DK20: Solid Bore Yes 1.5 in | DM20: 0.5 | DY20: Solid Bore Yes 1.5 in 1" No (Std) | DZ20: 1445 | ED20: 1-1/8" | EE20: 1_1_8_ | EG20: Solid Bore | EH20: 1-1/8" | EI20: 1445 | EJ20: 1.5 in | EK20: 1.125 | EL20: Yes | EM20: Solid Bore 1.5 in Yes 1-1/8" 1445 | EO20: Solid Bore 1.5 in Yes 1-1/8" 1445 | EW20: Solid Bore | EX20: 1-1/8" | EY20: 1445 | EZ20: Solid Bore1-1/8"1445 | FB20: Solid Bore1-1/8"1445
D21: =CONCATENATE("_",SUBSTITUTE(C10," ","_"),"_",SUBSTITUTE(D10,"-","_")) -> _2.5_in_1.5 in | E21: Solid Bore No 1.5 in | I21: Bore,Shutoff,Inlet,Remove Grip | M21: 1.5 IN | S21: 210 | T21: 210 | U21: 210 | V21: 210 | AD21: 95-200 | AE21: 100 (Std) | AF21: 95-200 100 (Std) | AK21: 4863 | AL21: 125 | AT21: 4863 | AU21: 150 | AV21: 150 | AW21: 150 | AZ21: Solid Bore | BA21: 1-3/16" | BB21: 1445 | BC21: 1.5 in | BD21: 1.1875 | BE21: Fog Tip | BF21: 161 | BG21: Fog Tip 161 | BJ21: 175 | BK21: 75 | BL21: 175 75 | BR21: Fog Tip | BS21: 4824 | BT21: 200 | BU21: 75 | BV21: Fog Tip 200 @ 75 | BZ21: Fog Nozzle 250 @ 50 | CA21: 4826 | CD21: Fog Nozzle 250 @ 50 4826 | CI21: Fog Nozzle 200 @ 75 4826 | CT21: Solid Bore 1.5 in | CU21: 1-3/16" | CV21: 1.5 in | CW21: Solid Bore 1.5 in | CY21: Solid Bore 2.5 in | CZ21: 1-3/16" | DB21: Solid Bore Yes 1.5 in 1-3/16" No (Std) | DC21: Solid Bore Yes 1.5 in | DD21: Solid Bore | DE21: 1-3/16" | DF21: 1445 | DG21: 1.5 in | DH21: 1.1875 | DI21: Yes | DJ21: No (Std) | DK21: Solid Bore Yes 1.5 in | DM21: 0.875 | DY21: Solid Bore Yes 1.5 in 1/2" No (Std) | DZ21: 1447 | ED21: 1-3/16" | EE21: 1_3_16_ | EG21: Solid Bore | EH21: 1-3/16" | EI21: 1445 | EJ21: 1.5 in | EK21: 1.1875 | EL21: Yes | EM21: Solid Bore 1.5 in Yes 1-3/16" 1445 | EO21: Solid Bore 1.5 in Yes 1-3/16" 1445 | EW21: Solid Bore | EX21: 1-3/16" | EY21: 1445 | EZ21: Solid Bore1-3/16"1445 | FB21: Solid Bore1-3/16"1445
D22: =CONCATENATE(C10," ",D10) -> 2.5 in 1.5 in | I22: Solid Bore No 1.5 in 1" Yes | M22: 2 IN | N22: STORZ | S22: 225 | T22: 225 | U22: 225 | V22: 225 | AD22: 95-200 | AE22: 75 | AF22: 95-200 75 | AK22: 4863 | AL22: 150 | AT22: 4863 | AU22: 175 | AV22: 175 | AW22: 175 | AZ22: Solid Bore | BA22: 1-1/4" | BB22: 1445 | BC22: 1.5 in | BD22: 1.25 | BE22: Fog Tip | BF22: 175 | BG22: Fog Tip 175 | BJ22: 175 | BK22: 50 | BL22: 175 50 | BR22: Fog Tip | BS22: 4824 | BT22: 250 | BU22: 75 | BV22: Fog Tip 250 @ 75 | BZ22: Fog Nozzle 250 @ 75 | CA22: 4826 | CD22: =CONCATENATE($BZ22," ",CA22) -> Fog Nozzle 250 @ 75 4826 | CI22: Fog Nozzle 200 @ 75 4863 | CT22: Solid Bore 1.5 in | CU22: 1-1/4" | CV22: 1.5 in | CW22: Solid Bore 1.5 in | CY22: Stack Tips 1.5 in | CZ22: 1-1/8"; 1/2" | DB22: Solid Bore Yes 1.5 in 1-1/4" No (Std) | DC22: Solid Bore Yes 1.5 in | DD22: Solid Bore | DE22: 1-1/4" | DF22: 1445 | DG22: 1.5 in | DH22: 1.25 | DI22: Yes | DJ22: No (Std) | DK22: Solid Bore Yes 1.5 in | DM22: 0.9375 | DY22: Solid Bore Yes 1.5 in 1" Yes | DZ22: 1445 | ED22: 1-1/4" | EE22: 1_1_4_ | EG22: Solid Bore | EH22: 1-1/4" | EI22: 1445 | EJ22: 1.5 in | EK22: 1.25 | EL22: Yes | EM22: Solid Bore 1.5 in Yes 1-1/4" 1445 | EO22: Solid Bore 1.5 in Yes 1-1/4" 1445 | EW22: Solid Bore | EX22: 1-1/4" | EY22: 1445 | EZ22: Solid Bore1-1/4"1445 | FB22: Solid Bore1-1/4"1445
B23: =IF(OR(C23="False",D23="False",E23="False",H23="False",J23="False",F23="False",I23="False"),"Error","Okay") -> Okay | C23: =IFERROR(VLOOKUP(CONCATENATE(B10,C10),C28:C44,1,FALSE),"False") -> Shutoff Only2.5 in | D23: =IFERROR(VLOOKUP(CONCATENATE(C10,D10),D28:D48,1,FALSE),"False") -> 2.5 in1.5 in | E23: =IF(E8="","Okay",IFERROR(VLOOKUP(CONCATENATE(E10,I10),E28:E84,1,FALSE),"False")) -> Okay | F23: =IFERROR(VLOOKUP(CONCATENATE(C10,F10),F28:F68,1,FALSE),"false") -> 2.5 inNH | H23: =IF(D10="No",IF(H10="yes",IF(B10="stack tips","okay","False"),"Okay"),"Okay") -> Okay | I23: =IFERROR(VLOOKUP(CONCATENATE(B10,C10,D10,I10),I27:I89,1,FALSE),"False") -> shutoff only2.5 in1.5 in2126 | J23: =IF(D10="No",IF(J10="yes","False","Okay"),"Okay") -> Okay | M23: 2.5 IN | N23: NH | S23: 250 | T23: 250 | U23: 250 | V23: 250 | AD23: 12-53 | AE23: 87 (CE) | AF23: 12-53 87 (CE) | AK23: 4863 | AL23: 161 | AT23: 4863 | AU23: 200 | AV23: 200 | AZ23: Solid Bore | BA23: 1-3/8" | BB23: 1445 | BC23: 1.5 in | BD23: 1.375 | BE23: Fog Tip | BF23: 200 | BG23: Fog Tip 200 | BJ23: 185 | BK23: 50 | BL23: 185 50 | BR23: Fog Tip | BS23: 4824 | BT23: 300 | BU23: 75 | BV23: Fog Tip 300 @ 75 | BZ23: Fog Nozzle 265 @ 50 | CA23: 4826 | CD23: =CONCATENATE($BZ23," ",CA23) -> Fog Nozzle 265 @ 50 4826 | CI23: Fog Nozzle 210 @ 50 4826 | CT23: Solid Bore 1.5 in | CU23: 1-3/8" | CV23: 1.5 in | CW23: Solid Bore 1.5 in | CY23: Stack Tips 1.5 in | CZ23: 15-16"; 1/2" | DB23: Solid Bore Yes 1.5 in 1-3/8" No (Std) | DC23: Solid Bore Yes 1.5 in | DD23: Solid Bore | DE23: 1-3/8" | DF23: 1445 | DG23: 1.5 in | DH23: 1.375 | DI23: Yes | DJ23: No (Std) | DK23: Solid Bore Yes 1.5 in | DM23: 1 | DY23: Solid Bore Yes 1.5 in 1-1/16" Yes | DZ23: 1445 | ED23: 1-3/8" | EE23: 1_3_8_ | EG23: Solid Bore | EH23: 1-3/8" | EI23: 1445 | EJ23: 1.5 in | EK23: 1.375 | EL23: Yes | EM23: Solid Bore 1.5 in Yes 1-3/8" 1445 | EO23: Solid Bore 1.5 in Yes 1-3/8" 1445 | EW23: Solid Bore | EX23: 1-3/8" | EY23: 1445 | EZ23: Solid Bore1-3/8"1445 | FB23: Solid Bore1-3/8"1445
E24: =CONCATENATE(SUBSTITUTE(B10," ","_"),"_",D10,"_",SUBSTITUTE(C10," ","_")) -> Shutoff_Only_1.5 in_2.5_in | I24: =CONCATENATE(B10," ",C10," ",D10," ",E10," ",I10) -> Shutoff Only 2.5 in 1.5 in 15/16" 2126 | M24: 2.5 IN | N24: NPSH | S24: 300 | T24: 300 | U24: 300 | V24: 300 | AK24: 4863 | AL24: 175 | AT24: 4863 | AW24: 161 | AZ24: Solid Bore | BA24: 1/2" | BB24: 1447 | BC24: 1.5 in | BD24: 0.5 | BE24: Fog Tip | BF24: 210 | BG24: Fog Tip 210 | BJ24: 200 | BK24: 100 (Std) | BL24: 200 100 (Std) | BR24: Fog Tip | BS24: 4824 | BT24: 210 | BU24: 50 | BV24: Fog Tip 210 @ 50 | BZ24: Fog Nozzle 300 @ 100 | CA24: 4826 | CD24: =CONCATENATE($BZ24," ",CA24) -> Fog Nozzle 300 @ 100 4826 | CI24: Fog Nozzle 225 @ 100 4863 | CT24: Solid Bore 1.5 in | CU24: 1/2" | CV24: 1.5 in | CW24: Solid Bore 1.5 in | CY24: Stack Tips 1.5 in | CZ24: 1-1/16"; 15/16" | DB24: Solid Bore Yes 1.5 in 1/2" No (Std) | DC24: Solid Bore Yes 1.5 in | DD24: Solid Bore | DE24: 1/2" | DF24: 1447 | DG24: 1.5 in | DH24: 0.5 | DI24: Yes | DJ24: No (Std) | DK24: Solid Bore Yes 1.5 in | DM24: 1.0625 | DY24: Solid Bore Yes 1.5 in 1-1/4" Yes | DZ24: 1445 | ED24: 1/2" | EE24: 1_2_ | EG24: Solid Bore | EH24: 1/2" | EI24: 1447 | EJ24: 1.5 in | EK24: 0.5 | EL24: Yes | EM24: Solid Bore 1.5 in Yes 1/2" 1447 | EO24: Solid Bore 1.5 in Yes 1/2" 1447 | EW24: Solid Bore | EX24: 1/2" | EY24: 1447 | EZ24: Solid Bore1/2"1447 | FB24: Solid Bore1/2"1447
I25: =CONCATENATE(SUBSTITUTE(B10," ","_"),"_",D10,"_",SUBSTITUTE(C10," ","_"),"_",VLOOKUP(E10,ED:EE,2,FALSE),"_",IF(D10="no","Yes",IF(H10="yes","Yes","No__Std"))) -> Shutoff_Only_1.5 in_2.5_in_15_16__No__Std | M25: 2.5 IN | N25: FDNY | S25: 350 | T25: 350 | U25: 350 | V25: 350 | AK25: 4863 | AL25: 185 | AT25: 4863 | AW25: 185 | AZ25: Solid Bore | BA25: 7/8" | BB25: 1499 | BC25: 1.5 in | BD25: 0.875 | BE25: Fog Tip | BF25: 225 | BG25: Fog Tip 225 | BJ25: 200 | BK25: 75 | BL25: 200 75 | BR25: Fog Tip | BS25: 4824 | BT25: 265 | BU25: 50 | BV25: Fog Tip 265 @ 50 | BZ25: Fog Nozzle 300 @ 75 | CA25: 4826 | CD25: Fog Nozzle 300 @ 75 4826 | CI25: Fog Nozzle 25 @ 100 4802 | CT25: Solid Bore 1.5 in | CU25: 7/8" | CV25: 1.5 in | CW25: Solid Bore 1.5 in | CY25: Stack Tips 1.5 in | CZ25: 1-1/4"; 1-1/8"; 1" | DB25: Solid Bore No 1.5 in 7/8" Yes | DC25: Solid Bore No 1.5 in | DD25: Solid Bore | DE25: 7/8" | DF25: 1499 | DG25: 1.5 in | DH25: 0.875 | DI25: No | DJ25: Yes | DK25: Solid Bore Yes 1.5 in | DM25: 1.125 | DY25: Solid Bore Yes 1.5 in 1-1/8" Yes | DZ25: 1445 | ED25: 7/8" | EE25: 7_8_ | EG25: Solid Bore | EH25: 7/8" | EI25: 1499 | EJ25: 1.5 in | EK25: 0.875 | EL25: No | EM25: Solid Bore 1.5 in No 7/8" 1499 | EO25: Solid Bore 1.5 in No 7/8" 1499 | EW25: Solid Bore | EX25: 7/8" | EY25: 1499 | EZ25: Solid Bore7/8"1499 | FB25: Solid Bore7/8"1499
I26: Solid_Bore_Yes_1.5_in_1__No__Std | M26: 2.5 IN | N26: NYCORP | AK26: 4863 | AL26: 200 | AT26: 4866 | AU26: 95 | AZ26: Solid Bore | BA26: 15/16" | BB26: 1499 | BC26: 1.5 in | BD26: 0.9375 | BE26: Fog Tip | BF26: 250 | BG26: Fog Tip 250 | BJ26: 210 | BK26: 50 | BL26: 210 50 | BR26: Fog Tip | BS26: 4824 | BT26: 250 | BU26: 50 | BV26: Fog Tip 250 @ 50 | BZ26: Fog Nozzle 350 @ 100 | CA26: 4826 | CD26: Fog Nozzle 350 @ 100 4826 | CI26: Fog Nozzle 250 @ 100 4826 | CT26: Solid Bore 1.5 in | CU26: 15/16" | CV26: 1.5 in | CW26: Solid Bore 1.5 in | CY26: Stack Tips 1.5 in | CZ26: 15/16"; 1/2" | DB26: Solid Bore No 1.5 in 15/16" Yes | DC26: Solid Bore No 1.5 in | DD26: Solid Bore | DE26: 15/16" | DF26: 1499 | DG26: 1.5 in | DH26: 0.9375 | DI26: No | DJ26: Yes | DK26: Solid Bore Yes 1.5 in | DM26: 1.1875 | DY26: Solid Bore Yes 1.5 in 1-3/16" Yes | DZ26: 1445 | ED26: 15/16" | EE26: 15_16_ | EG26: Solid Bore | EH26: 15/16" | EI26: 1499 | EJ26: 1.5 in | EK26: 0.9375 | EL26: No | EM26: Solid Bore 1.5 in No 15/16" 1499 | EO26: Solid Bore 1.5 in No 15/16" 1499 | EW26: Solid Bore | EX26: 15/16" | EY26: 1499 | EZ26: Solid Bore15/16"1499 | FB26: Solid Bore15/16"1499
I27: shutoff only1 in1 in2102 | M27: 2.5 IN | N27: PITT6 | S27: NH | T27: NPSH | U27: FDNY | V27: NYCORP | W27: PCT | X27: Custom | AK27: 4863 | AL27: 225 | AT27: 4866 | AU27: 125 | AV27: 125 | AW27: 125 | AZ27: Solid Bore | BA27: 1" | BB27: 1499 | BC27: 1.5 in | BD27: 1 | BE27: Fog Tip | BF27: 265 | BG27: Fog Tip 265 | BJ27: 225 | BK27: 100 (Std) | BL27: 225 100 (Std) | BR27: Fog Nozzle | BS27: 4826 | BT27: 200 | BU27: 100 (Std) | BV27: Fog Nozzle 200 @ 100 (Std) | BZ27: Fog Nozzle 40 @ 100 | CA27: 4802 | CD27: Fog Nozzle 40 @ 100 4802 | CI27: Fog Nozzle 250 @ 50 4826 | CT27: Solid Bore 1.5 in | CU27: 1" | CV27: 1.5 in | CW27: Solid Bore 1.5 in | CY27: Stack Tips 2.5 in | CZ27: 1-1/8"; 1/2" | DB27: Solid Bore No 1.5 in 1" Yes | DC27: Solid Bore No 1.5 in | DD27: Solid Bore | DE27: 1" | DF27: 1499 | DG27: 1.5 in | DH27: 1 | DI27: No | DJ27: Yes | DK27: Solid Bore Yes 1.5 in | DM27: 1.25 | DY27: Solid Bore Yes 1.5 in 1-3/8" Yes | DZ27: 1445 | ED27: 1" | EE27: 1_ | EG27: Solid Bore | EH27: 1" | EI27: 1499 | EJ27: 1.5 in | EK27: 1 | EL27: No | EM27: Solid Bore 1.5 in No 1" 1499 | EO27: Solid Bore 1.5 in No 1" 1499 | EW27: Solid Bore | EX27: 1" | EY27: 1499 | EZ27: Solid Bore1"1499 | FB27: Solid Bore1"1499
C28: Shutoff Only1 in | D28: 1 in1 in | E28: 7/8"2431 | F28: 1.5 inNH | I28: shutoff only1.5 in1.5 in2127 | M28: 2.5 IN | N28: BAT | R28: SBTHREAD1.5 in | S28: =IF($B10="Solid Bore",IF(OR(TRIM($I10)="0416",$D10="yes"),S27,""),S27) -> NH | T28: NPSH | U28: FDNY | V28: NYCORP | W28: PCT | X28: Custom | AK28: 4866 | AL28: 95 | AT28: 4866 | AU28: 150 | AV28: 150 | AW28: 150 | AZ28: Solid Bore | BA28: 1-1/16" | BB28: 1499 | BC28: 1.5 in | BD28: 1.0625 | BE28: Fog Tip | BF28: 300 | BG28: Fog Tip 300 | BJ28: 250 | BK28: 100 (Std) | BL28: 250 100 (Std) | BR28: Fog Nozzle | BS28: 4826 | BT28: 250 | BU28: 100 (Std) | BV28: Fog Nozzle 250 @ 100 (Std) | BZ28: Fog Nozzle 60 @ 100 | CA28: 4116 | CD28: Fog Nozzle 60 @ 100 4116 | CI28: Fog Nozzle 250 @ 75 4826 | CT28: Solid Bore 1.5 in | CU28: 1-1/16" | CV28: 1.5 in | CW28: Solid Bore 1.5 in | CY28: Stack Tips 2.5 in | CZ28: 1-1/4"; 1-1/8"; 1" | DB28: Solid Bore No 1.5 in 1-1/16" Yes | DC28: Solid Bore No 1.5 in | DD28: Solid Bore | DE28: 1-1/16" | DF28: 1499 | DG28: 1.5 in | DH28: 1.0625 | DI28: No | DJ28: Yes | DK28: Solid Bore Yes 1.5 in | DM28: 1.375 | DY28: Solid Bore Yes 1.5 in 15/16" Yes | DZ28: 1445 | ED28: 1-1/16" | EE28: 1_1_16_ | EG28: Solid Bore | EH28: 1-1/16" | EI28: 1499 | EJ28: 1.5 in | EK28: 1.0625 | EL28: No | EM28: Solid Bore 1.5 in No 1-1/16" 1499 | EO28: Solid Bore 1.5 in No 1-1/16" 1499 | EW28: Solid Bore | EX28: 1-1/16" | EY28: 1499 | EZ28: Solid Bore1-1/16"1499 | FB28: Solid Bore1-1/16"1499
C29: Shutoff Only1.5 in | D29: 1.5 in1.5 in | E29: 15/16"2431 | F29: 1.5 inNPSH | G29: =VLOOKUP(C13,DataSource!AH:AJ,2,FALSE) -> 21264001 | H29: =VLOOKUP(C13,DataSource!AH:AJ,3,FALSE) -> SHUTOFF 2.5NH X 1.5NH# | I29: shutoff only2 in1.5 in2127 | M29: 2.5 IN | N29: CSA | R29: SBTHREAD1 in | S29: NH | T29: NPSH | U29: Custom | AK29: 4866 | AL29: 125 | AT29: 4866 | AU29: 175 | AV29: 175 | AW29: 175 | AZ29: Solid Bore | BA29: 1-1/8" | BB29: 1499 | BC29: 1.5 in | BD29: 1.125 | BE29: Fog Tip | BF29: 350 | BG29: Fog Tip 350 | BJ29: 250 | BK29: 75 | BL29: 250 75 | BR29: Fog Nozzle | BS29: 4826 | BT29: 300 | BU29: 100 (Std) | BV29: Fog Nozzle 300 @ 100 (Std) | BZ29: Fog Nozzle 60 @ 75 | CA29: 4116 | CD29: Fog Nozzle 60 @ 75 4116 | CI29: Fog Nozzle 265 @ 50 4826 | CT29: Solid Bore 1.5 in | CU29: 1-1/8" | CV29: 1.5 in | CW29: Solid Bore 1.5 in | CY29: Stack Tips 2.5 in | CZ29: 1-1/2"; 1-1/4"; 1" | DB29: Solid Bore No 1.5 in 1-1/8" Yes | DC29: Solid Bore No 1.5 in | DD29: Solid Bore | DE29: 1-1/8" | DF29: 1499 | DG29: 1.5 in | DH29: 1.125 | DI29: No | DJ29: Yes | DK29: Solid Bore Yes 2.5 in | DM29: 0.875 | DY29: Solid Bore Yes 1.5 in 7/8" Yes | DZ29: 1445 | ED29: 1-1/8" | EE29: 1_1_8_ | EG29: Solid Bore | EH29: 1-1/8" | EI29: 1499 | EJ29: 1.5 in | EK29: 1.125 | EL29: No | EM29: Solid Bore 1.5 in No 1-1/8" 1499 | EO29: Solid Bore 1.5 in No 1-1/8" 1499 | EW29: Solid Bore | EX29: 1-1/8" | EY29: 1499 | EZ29: Solid Bore1-1/8"1499 | FB29: Solid Bore1-1/8"1499
C30: Shutoff Only2 in | D30: 2 in1.5 in | E30: 1"2431 | F30: 1.5 inFDNY | I30: shutoff only2.5 in1.5 in2126 | M30: 2.5 IN | N30: QST | R30: SBTHREAD2.5 in | S30: NH | T30: NPSH | U30: FDNY | V30: NYCORP | W30: PITT6 | X30: BAT | Y30: CSA | Z30: QST | AA30: Custom | AK30: 4866 | AL30: 150 | AT30: 4866 | AU30: 200 | AV30: 200 | AZ30: Solid Bore | BA30: 1-3/16" | BB30: 1499 | BC30: 1.5 in | BD30: 1.1875 | BJ30: 250 | BK30: 50 | BL30: 250 50 | BR30: Fog Nozzle | BS30: 4826 | BT30: 350 | BU30: 100 (Std) | BV30: Fog Nozzle 350 @ 100 (Std) | BZ30: Fog Nozzle 60 @ 87 | CA30: 4116 | CD30: Fog Nozzle 60 @ 87 4116 | CI30: Fog Nozzle 300 @ 100 4826 | CT30: Solid Bore 1.5 in | CU30: 1-3/16" | CV30: 1.5 in | CW30: Solid Bore 1.5 in | CY30: Stack Tips 2.5 in | CZ30: 1-3/8"; 1-1/4"; 1" | DB30: Solid Bore No 1.5 in 1-3/16" Yes | DC30: Solid Bore No 1.5 in | DD30: Solid Bore | DE30: 1-3/16" | DF30: 1499 | DG30: 1.5 in | DH30: 1.1875 | DI30: No | DJ30: Yes | DK30: Solid Bore Yes 2.5 in | DM30: 0.9375 | DY30: Solid Bore Yes 2.5 in 1" Yes | DZ30: 1446 | ED30: 1-3/16" | EE30: 1_3_16_ | EG30: Solid Bore | EH30: 1-3/16" | EI30: 1499 | EJ30: 1.5 in | EK30: 1.1875 | EL30: No | EM30: Solid Bore 1.5 in No 1-3/16" 1499 | EO30: Solid Bore 1.5 in No 1-3/16" 1499 | EW30: Solid Bore | EX30: 1-3/16" | EY30: 1499 | EZ30: Solid Bore1-3/16"1499 | FB30: Solid Bore1-3/16"1499
C31: Shutoff Only2.5 in | D31: 2.5 in2.5 in | E31: 1-1/8"2431 | F31: 1.5 inNYCORP | I31: shutoff only2.5 in2.5 in2130 | M31: 2.5 IN | N31: BIM | AK31: 4866 | AL31: 161 | AT31: 4866 | AW31: 161 | AZ31: Solid Bore | BA31: 1-1/4" | BB31: 1499 | BC31: 1.5 in | BD31: 1.25 | BJ31: 265 | BK31: 50 | BL31: 265 50 | BR31: Fog Nozzle | BS31: 4826 | BT31: 200 | BU31: 75 | BV31: Fog Nozzle 200 @ 75 | BZ31: Fog Nozzle 95 @ 100 | CA31: 4116 | CB31: 4863 | CD31: Fog Nozzle 95 @ 100 4116 | CE31: =CONCATENATE($BZ31," ",CB31) -> Fog Nozzle 95 @ 100 4863 | CI31: Fog Nozzle 300 @ 75 4826 | CT31: Solid Bore 1.5 in | CU31: 1-1/4" | CV31: 1.5 in | CW31: Solid Bore 1.5 in | DB31: Solid Bore No 1.5 in 1-1/4" Yes | DC31: Solid Bore No 1.5 in | DD31: Solid Bore | DE31: 1-1/4" | DF31: 1499 | DG31: 1.5 in | DH31: 1.25 | DI31: No | DJ31: Yes | DK31: Solid Bore Yes 2.5 in | DM31: 1 | DY31: Solid Bore Yes 2.5 in 1-1/16" Yes | DZ31: 1446 | ED31: 1-1/4" | EE31: 1_1_4_ | EG31: Solid Bore | EH31: 1-1/4" | EI31: 1499 | EJ31: 1.5 in | EK31: 1.25 | EL31: No | EM31: Solid Bore 1.5 in No 1-1/4" 1499 | EO31: Solid Bore 1.5 in No 1-1/4" 1499 | EW31: Solid Bore | EX31: 1-1/4" | EY31: 1499 | EZ31: Solid Bore1-1/4"1499 | FB31: Solid Bore1-1/4"1499
C32: Shutoff Only3 in | D32: 3 in2.5 in | E32: 1-1/4"2431 | F32: 1.5 inPCT | I32: shutoff only3 in2.5 in2130 | M32: 2.5 IN | N32: STORZ | Q32: BLACK (Std) | R32: THREAD1 IN | S32: NH | T32: NPSH | U32: Storz | V32: Custom | AK32: 4866 | AL32: 175 | AT32: 4866 | AW32: 185 | AZ32: Solid Bore | BA32: 1-3/8" | BB32: 1499 | BC32: 1.5 in | BD32: 1.375 | BJ32: 300 | BK32: 100 (Std) | BL32: 300 100 (Std) | BR32: Fog Nozzle | BS32: 4826 | BT32: 265 | BU32: 50 | BV32: Fog Nozzle 265 @ 50 | BZ32: Fog Nozzle 95 @ 75 | CA32: 4116 | CD32: Fog Nozzle 95 @ 75 4116 | CI32: Fog Nozzle 350 @ 100 4826 | CT32: Solid Bore 1.5 in | CU32: 1-3/8" | CV32: 1.5 in | CW32: Solid Bore 1.5 in | DB32: Solid Bore No 1.5 in 1-3/8" Yes | DC32: Solid Bore No 1.5 in | DD32: Solid Bore | DE32: 1-3/8" | DF32: 1499 | DG32: 1.5 in | DH32: 1.375 | DI32: No | DJ32: Yes | DK32: Solid Bore Yes 2.5 in | DM32: 1.0625 | DY32: Solid Bore Yes 2.5 in 1-1/4" Yes | DZ32: 1446 | ED32: 1-3/8" | EE32: 1_3_8_ | EG32: Solid Bore | EH32: 1-3/8" | EI32: 1499 | EJ32: 1.5 in | EK32: 1.375 | EL32: No | EM32: Solid Bore 1.5 in No 1-3/8" 1499 | EO32: Solid Bore 1.5 in No 1-3/8" 1499 | EW32: Solid Bore | EX32: 1-3/8" | EY32: 1499 | EZ32: Solid Bore1-3/8"1499 | FB32: Solid Bore1-3/8"1499
C33: Shutoff with Integrated Tip1.5 in | D33: 2.5 in1.5 in | E33: 7/8"2433 | F33: 1.5 inStorz | I33: shutoff only3 in1.5 in2126 | M33: 3 IN | N33: STORZ | Q33: ORANGE | R33: THREAD1.5 in | S33: NH | T33: NPSH | U33: FDNY | V33: NYCORP | W33: PCT | X33: Storz | Y33: Custom | AK33: 4866 | AL33: 185 | AZ33: Solid Bore | BA33: 7/8" | BB33: 0489 | BC33: 2.5 in | BD33: 0.875 | BJ33: 300 | BK33: 75 | BL33: 300 75 | BR33: Fog Nozzle | BS33: 4826 | BT33: 250 | BU33: 75 | BV33: Fog Nozzle 250 @ 75 | BZ33: Fog Nozzle 95 @ 87 | CA33: 4116 | CD33: Fog Nozzle 95 @ 87 4116 | CI33: Fog Nozzle 40 @ 100 4802 | CT33: Solid Bore 2.5 in | CU33: 7/8" | CV33: 2.5 in | CW33: Solid Bore 2.5 in | DB33: Solid Bore No 2.5 in 7/8" Yes | DC33: Solid Bore No 2.5 in | DD33: Solid Bore | DE33: 7/8" | DF33: 0489 | DG33: 2.5 in | DH33: 0.875 | DI33: No | DJ33: Yes | DK33: Solid Bore Yes 2.5 in | DM33: 1.125 | DY33: Solid Bore Yes 2.5 in 1-1/8" Yes | DZ33: 1446 | ED33: 7/8" | EE33: 7_8_ | EG33: Solid Bore | EH33: 7/8" | EI33: 0489 | EJ33: 2.5 in | EK33: 0.875 | EL33: No | EM33: Solid Bore 2.5 in No 7/8" 0489 | EO33: Solid Bore 2.5 in No 7/8" 0489 | EW33: Solid Bore | EX33: 7/8" | EY33: 0489 | EZ33: Solid Bore7/8"0489 | FB33: Solid Bore7/8"0489
C34: Shutoff with Integrated Tip2 in | D34: 3 in1.5 in | E34: 15/16"2433 | F34: 1.5 inCustom | I34: shutoff with integrated tip1.5 in1.5 in2431 | Q34: YELLOW | R34: THREAD2 IN | S34: Storz | AK34: 4866 | AL34: 200 | AZ34: Solid Bore | BA34: 15/16" | BB34: 0489 | BC34: 2.5 in | BD34: 0.9375 | BJ34: 350 | BK34: 100 (Std) | BL34: 350 100 (Std) | BR34: Fog Nozzle | BS34: 4826 | BT34: 300 | BU34: 75 | BV34: Fog Nozzle 300 @ 75 | BZ34: Fog Tip 125 @ 100 | CA34: 4866 | CD34: Fog Tip 125 @ 100 4866 | CI34: Fog Nozzle 60 @ 100 4116 | CT34: Solid Bore 2.5 in | CU34: 15/16" | CV34: 2.5 in | CW34: Solid Bore 2.5 in | DB34: Solid Bore No 2.5 in 15/16" Yes | DC34: Solid Bore No 2.5 in | DD34: Solid Bore | DE34: 15/16" | DF34: 0489 | DG34: 2.5 in | DH34: 0.9375 | DI34: No | DJ34: Yes | DK34: Solid Bore Yes 2.5 in | DM34: 1.1875 | DY34: Solid Bore Yes 2.5 in 1-3/16" Yes | DZ34: 1446 | ED34: 15/16" | EE34: 15_16_ | EG34: Solid Bore | EH34: 15/16" | EI34: 0489 | EJ34: 2.5 in | EK34: 0.9375 | EL34: No | EM34: Solid Bore 2.5 in No 15/16" 0489 | EO34: Solid Bore 2.5 in No 15/16" 0489 | EW34: Solid Bore | EX34: 15/16" | EY34: 0489 | EZ34: Solid Bore15/16"0489 | FB34: Solid Bore15/16"0489
C35: Shutoff with Integrated Tip2.5 in | E35: 1"2433 | F35: 2.5 inNH | I35: shutoff with integrated tip2 in1.5 in2431 | Q35: RED | R35: THREAD2.5 IN | S35: NH | T35: NPSH | U35: FDNY | V35: NYCORP | W35: PITT6 | X35: BAT | Y35: CSA | Z35: QST | AA35: BIM | AB35: Storz | AC35: Custom | AZ35: Solid Bore | BA35: 1" | BB35: 0489 | BC35: 2.5 in | BD35: 1 | BR35: Fog Nozzle | BS35: 4826 | BT35: 210 | BU35: 50 | BV35: Fog Nozzle 210 @ 50 | BZ35: Fog Tip 125 @ 75 | CA35: 4866 | CD35: Fog Tip 125 @ 75 4866 | CI35: Fog Nozzle 60 @ 75 4116 | CT35: Solid Bore 2.5 in | CU35: 1" | CV35: 2.5 in | CW35: Solid Bore 2.5 in | DB35: Solid Bore No 2.5 in 1" Yes | DC35: Solid Bore No 2.5 in | DD35: Solid Bore | DE35: 1" | DF35: 0489 | DG35: 2.5 in | DH35: 1 | DI35: No | DJ35: Yes | DK35: Solid Bore Yes 2.5 in | DM35: 1.25 | DY35: Solid Bore Yes 2.5 in 1-3/8" Yes | DZ35: 1446 | ED35: 1" | EE35: 1_ | EG35: Solid Bore | EH35: 1" | EI35: 0489 | EJ35: 2.5 in | EK35: 1 | EL35: No | EM35: Solid Bore 2.5 in No 1" 0489 | EO35: Solid Bore 2.5 in No 1" 0489 | EW35: Solid Bore | EX35: 1" | EY35: 0489 | EZ35: Solid Bore1"0489 | FB35: Solid Bore1"0489
C36: Shutoff with Integrated Tip3 in | E36: 1-1/8"2433 | F36: 2.5 inNPSH | I36: shutoff with integrated tip2.5 in1.5 in2433 | Q36: BLUE | R36: THREAD3 IN | S36: Storz | AU36: Solid Bore | AV36: 1.5 in | AW36: =CONCATENATE(AU36,AV36) -> Solid Bore1.5 in | AZ36: Solid Bore | BA36: 1-1/8" | BB36: 0489 | BC36: 2.5 in | BD36: 1.125 | BR36: Fog Nozzle | BS36: 4826 | BT36: 250 | BU36: 50 | BV36: Fog Nozzle 250 @ 50 | BZ36: Fog Tip 150 @ 100 | CA36: 4866 | CD36: Fog Tip 150 @ 100 4866 | CI36: Fog Nozzle 60 @ 87 4116 | CT36: Solid Bore 2.5 in | CU36: 1-1/8" | CV36: 2.5 in | CW36: Solid Bore 2.5 in | DB36: Solid Bore No 2.5 in 1-1/8" Yes | DC36: Solid Bore No 2.5 in | DD36: Solid Bore | DE36: 1-1/8" | DF36: 0489 | DG36: 2.5 in | DH36: 1.125 | DI36: No | DJ36: Yes | DK36: Solid Bore Yes 2.5 in | DM36: 1.375 | DY36: Solid Bore Yes 2.5 in 15/16" Yes | DZ36: 1446 | ED36: 1-1/8" | EE36: 1_1_8_ | EG36: Solid Bore | EH36: 1-1/8" | EI36: 0489 | EJ36: 2.5 in | EK36: 1.125 | EL36: No | EM36: Solid Bore 2.5 in No 1-1/8" 0489 | EO36: Solid Bore 2.5 in No 1-1/8" 0489 | EW36: Solid Bore | EX36: 1-1/8" | EY36: 0489 | EZ36: Solid Bore1-1/8"0489 | FB36: Solid Bore1-1/8"0489
E37: 1-1/4"2433 | F37: 2.5 INFDNY | I37: shutoff with integrated tip3 in1.5 in2433 | Q37: GREEN | AU37: Solid Bore | AV37: 2.5 in | AW37: =CONCATENATE(AU37,AV37) -> Solid Bore2.5 in | AZ37: Solid Bore | BA37: 1-1/4" | BB37: 0489 | BC37: 2.5 in | BD37: 1.25 | BR37: Fog Nozzle | BS37: 4863 | BT37: 95 | BU37: 100 (Std) | BV37: Fog Nozzle 95 @ 100 (Std) | BZ37: Fog Tip 150 @ 50 | CA37: 4866 | CD37: Fog Tip 150 @ 50 4866 | CI37: Fog Nozzle 95 @ 100 4116 | CT37: Solid Bore 2.5 in | CU37: 1-1/4" | CV37: 2.5 in | CW37: Solid Bore 2.5 in | DB37: Solid Bore No 2.5 in 1-1/4" Yes | DC37: Solid Bore No 2.5 in | DD37: Solid Bore | DE37: 1-1/4" | DF37: 0489 | DG37: 2.5 in | DH37: 1.25 | DI37: No | DJ37: Yes | DK37: Stack Tips No 1.5 in | DM37: 0.5 | DY37: Solid Bore Yes 2.5 in 7/8" Yes | DZ37: 1446 | ED37: 1-1/4" | EE37: 1_1_4_ | EG37: Solid Bore | EH37: 1-1/4" | EI37: 0489 | EJ37: 2.5 in | EK37: 1.25 | EL37: No | EM37: Solid Bore 2.5 in No 1-1/4" 0489 | EO37: Solid Bore 2.5 in No 1-1/4" 0489 | EW37: Solid Bore | EX37: 1-1/4" | EY37: 0489 | EZ37: Solid Bore1-1/4"0489 | FB37: Solid Bore1-1/4"0489
E38: 1-1/16"2431 | F38: 2.5 INNYCORP | I38: shutoff only2.5 in1.5 in2390 | M38: 1440 | N38: No | O38: =TRIM(M38) -> 1440 | AO38: Style | AP38: List Price | AU38: Stack Tips | AV38: 1.5 in | AW38: =CONCATENATE(AU38,AV38) -> Stack Tips1.5 in | AZ38: Solid Bore | BA38: 1-3/8" | BB38: 0489 | BC38: 2.5 in | BD38: 1.375 | BR38: Fog Nozzle | BS38: 4863 | BT38: 125 | BU38: 100 (Std) | BV38: Fog Nozzle 125 @ 100 (Std) | BZ38: Fog Tip 150 @ 75 | CA38: 4866 | CD38: Fog Tip 150 @ 75 4866 | CI38: Fog Nozzle 95 @ 100 4863 | CT38: Solid Bore 2.5 in | CU38: 1-3/8" | CV38: 2.5 in | CW38: Solid Bore 2.5 in | DB38: Solid Bore No 2.5 in 1-3/8" Yes | DC38: Solid Bore No 2.5 in | DD38: Solid Bore | DE38: 1-3/8" | DF38: 0489 | DG38: 2.5 in | DH38: 1.375 | DI38: No | DJ38: Yes | DK38: Stack Tips No 1.5 in | DM38: 0.5 | DY38: Stack Tips Yes 1.5 in 15/16"; 1/2" Yes | DZ38: 1441 | ED38: 1-3/8" | EE38: 1_3_8_ | EG38: Solid Bore | EH38: 1-3/8" | EI38: 0489 | EJ38: 2.5 in | EK38: 1.375 | EL38: No | EM38: Solid Bore 2.5 in No 1-3/8" 0489 | EO38: Solid Bore 2.5 in No 1-3/8" 0489 | EW38: Solid Bore | EX38: 1-3/8" | EY38: 0489 | EZ38: Solid Bore1-3/8"0489 | FB38: Solid Bore1-3/8"0489
E39: 1-3/16"2431 | F39: 2.5 INPITT6 | I39: shutoff only3 in1.5 in2390 | M39: 1441 | N39: Yes | O39: =TRIM(M39) -> 1441 | AO39: 0416 | AP39: 378 | AU39: Stack Tips | AV39: 2.5 in | AW39: =CONCATENATE(AU39,AV39) -> Stack Tips2.5 in | AZ39: Solid Bore | BA39: 7/8" | BB39: 1446 | BC39: 2.5 in | BD39: 0.875 | BR39: Fog Nozzle | BS39: 4863 | BT39: 150 | BU39: 100 (Std) | BV39: Fog Nozzle 150 @ 100 (Std) | BZ39: Fog Tip 161 @ 50 | CA39: 4866 | CD39: Fog Tip 161 @ 50 4866 | CI39: Fog Nozzle 95 @ 75 4116 | CT39: Solid Bore 2.5 in | CU39: 7/8" | CV39: 2.5 in | CW39: Solid Bore 2.5 in | DB39: Solid Bore Yes 2.5 in 7/8" No (Std) | DC39: Solid Bore Yes 2.5 in | DD39: Solid Bore | DE39: 7/8" | DF39: 1446 | DG39: 2.5 in | DH39: 0.875 | DI39: Yes | DJ39: No (Std) | DK39: Stack Tips No 1.5 in | DM39: 0.9375 | DY39: Stack Tips Yes 2.5 in 1-1/8"; 1/2" Yes | DZ39: 1443 | ED39: 7/8" | EE39: 7_8_ | EG39: Solid Bore | EH39: 7/8" | EI39: 1446 | EJ39: 2.5 in | EK39: 0.875 | EL39: Yes | EM39: Solid Bore 2.5 in Yes 7/8" 1446 | EO39: Solid Bore 2.5 in Yes 7/8" 1446 | EW39: Solid Bore | EX39: 7/8" | EY39: 1446 | EZ39: Solid Bore7/8"1446 | FB39: Solid Bore7/8"1446
E40: 1-1/16"2433 | F40: 2.5 INBAT | M40: 1442 | N40: No | O40: 1442 | AI40: yes1.5 in | AJ40: NH | AK40: =CONCATENATE(AI40,AJ40) -> yes1.5 inNH | AO40: 0439 | AP40: 284 | AZ40: Solid Bore | BA40: 15/16" | BB40: 1446 | BC40: 2.5 in | BD40: 0.9375 | BR40: Fog Nozzle | BS40: 4863 | BT40: 175 | BU40: 100 (Std) | BV40: Fog Nozzle 175 @ 100 (Std) | BZ40: Fog Tip 175 @ 100 | CA40: 4866 | CD40: Fog Tip 175 @ 100 4866 | CI40: Fog Nozzle 95 @ 87 4116 | CT40: Solid Bore 2.5 in | CU40: 15/16" | CV40: 2.5 in | CW40: Solid Bore 2.5 in | DB40: Solid Bore Yes 2.5 in 15/16" No (Std) | DC40: Solid Bore Yes 2.5 in | DD40: Solid Bore | DE40: 15/16" | DF40: 1446 | DG40: 2.5 in | DH40: 0.9375 | DI40: Yes | DJ40: No (Std) | DK40: Stack Tips No 1.5 in | DM40: 1 | DY40: Solid Bore Yes 1.5 in 1-1/16" No (Std) | DZ40: 1445 | ED40: 15/16" | EE40: 15_16_ | EG40: Solid Bore | EH40: 15/16" | EI40: 1446 | EJ40: 2.5 in | EK40: 0.9375 | EL40: Yes | EM40: Solid Bore 2.5 in Yes 15/16" 1446 | EO40: Solid Bore 2.5 in Yes 15/16" 1446 | EW40: Solid Bore | EX40: 15/16" | EY40: 1446 | EZ40: Solid Bore15/16"1446 | FB40: Solid Bore15/16"1446
E41: 1-3/16"2433 | F41: 2.5 INCSA | M41: 1443 | N41: Yes | O41: 1443 | R41: Style | U41: =IF(B10="fog tip","N/A","No (Std)") -> No (Std) | W41: yes1 IN | X41: NH | Y41: NPSH | Z41: Storz | AA41: Custom | AI41: yes1.5 in | AJ41: NPSH | AK41: =CONCATENATE(AI41,AJ41) -> yes1.5 inNPSH | AO41: 0489 | AP41: 498 | AZ41: Solid Bore | BA41: 1" | BB41: 1446 | BC41: 2.5 in | BD41: 1 | BR41: Fog Nozzle | BS41: 4863 | BT41: 200 | BU41: 100 (Std) | BV41: Fog Nozzle 200 @ 100 (Std) | BZ41: Fog Tip 175 @ 50 | CA41: 4866 | CD41: Fog Tip 175 @ 50 4866 | CI41: Fog Tip 125 @ 100 4866 | CT41: Solid Bore 2.5 in | CU41: 1" | CV41: 2.5 in | CW41: Solid Bore 2.5 in | DB41: Solid Bore Yes 2.5 in 1" No (Std) | DC41: Solid Bore Yes 2.5 in | DD41: Solid Bore | DE41: 1" | DF41: 1446 | DG41: 2.5 in | DH41: 1 | DI41: Yes | DJ41: No (Std) | DK41: Stack Tips No 2.5 in | DM41: 1 | DY41: Solid Bore Yes 1.5 in 1-1/4" No (Std) | DZ41: 1445 | ED41: 1" | EE41: 1_ | EG41: Solid Bore | EH41: 1" | EI41: 1446 | EJ41: 2.5 in | EK41: 1 | EL41: Yes | EM41: Solid Bore 2.5 in Yes 1" 1446 | EO41: Solid Bore 2.5 in Yes 1" 1446 | EW41: Solid Bore | EX41: 1" | EY41: 1446 | EZ41: Solid Bore1"1446 | FB41: Solid Bore1"1446
F42: 2.5 INQST | M42: 1445 | N42: Yes | O42: 1445 | Q42: Fog Nozzle 5-40 | R42: 1602 | U42: =IF(B10="fog tip","","Yes") -> Yes | W42: yes1.5 in | X42: NH | Y42: NPSH | Z42: FDNY | AA42: NYCORP | AB42: PCT | AC42: Storz | AD42: Custom | AI42: yes1.5 in | AJ42: FDNY | AK42: yes1.5 inFDNY | AO42: 1417 | AP42: 156 | AZ42: Solid Bore | BA42: 1-1/16" | BB42: 1446 | BC42: 2.5 in | BD42: 1.0625 | BR42: Fog Nozzle | BS42: 4863 | BT42: 125 | BU42: 75 | BV42: Fog Nozzle 125 @ 75 | BZ42: Fog Tip 175 @ 75 | CA42: 4866 | CD42: Fog Tip 175 @ 75 4866 | CI42: Fog Tip 125 @ 75 4866 | CT42: Solid Bore 2.5 in | CU42: 1-1/16" | CV42: 2.5 in | CW42: Solid Bore 2.5 in | DB42: Solid Bore Yes 2.5 in 1-1/16" No (Std) | DC42: Solid Bore Yes 2.5 in | DD42: Solid Bore | DE42: 1-1/16" | DF42: 1446 | DG42: 2.5 in | DH42: 1.0625 | DI42: Yes | DJ42: No (Std) | DK42: Stack Tips No 2.5 in | DM42: 1 | DY42: Solid Bore Yes 1.5 in 1-1/8" No (Std) | DZ42: 1445 | ED42: 1-1/16" | EE42: 1_1_16_ | EG42: Solid Bore | EH42: 1-1/16" | EI42: 1446 | EJ42: 2.5 in | EK42: 1.0625 | EL42: Yes | EM42: Solid Bore 2.5 in Yes 1-1/16" 1446 | EO42: Solid Bore 2.5 in Yes 1-1/16" 1446 | EW42: Solid Bore | EX42: 1-1/16" | EY42: 1446 | EZ42: Solid Bore1-1/16"1446 | FB42: Solid Bore1-1/16"1446
F43: 2.5 INBIM | M43: 1446 | N43: Yes | O43: 1446 | Q43: Fog Nozzle 12-53 | R43: 1602 | W43: yes2.5 IN | X43: NH | Y43: NPSH | Z43: FDNY | AA43: NYCORP | AB43: PITT6 | AC43: BAT | AD43: CSA | AE43: QST | AF43: BIM | AG43: Storz | AH43: Custom | AI43: yes1.5 in | AJ43: NYCORP | AK43: yes1.5 inNYCORP | AO43: 1420 | AP43: 500 | AZ43: Solid Bore | BA43: 1-1/8" | BB43: 1446 | BC43: 2.5 in | BD43: 1.125 | BR43: Fog Nozzle | BS43: 4863 | BT43: 150 | BU43: 75 | BV43: Fog Nozzle 150 @ 75 | BZ43: Fog Tip 185 @ 50 | CA43: 4866 | CD43: Fog Tip 185 @ 50 4866 | CI43: Fog Tip 150 @ 100 4866 | CT43: Solid Bore 2.5 in | CU43: 1-1/8" | CV43: 2.5 in | CW43: Solid Bore 2.5 in | DB43: Solid Bore Yes 2.5 in 1-1/8" No (Std) | DC43: Solid Bore Yes 2.5 in | DD43: Solid Bore | DE43: 1-1/8" | DF43: 1446 | DG43: 2.5 in | DH43: 1.125 | DI43: Yes | DJ43: No (Std) | DK43: Stack Tips No 2.5 in | DM43: 1 | DY43: Solid Bore Yes 1.5 in 1-3/16" No (Std) | DZ43: 1445 | ED43: 1-1/8" | EE43: 1_1_8_ | EG43: Solid Bore | EH43: 1-1/8" | EI43: 1446 | EJ43: 2.5 in | EK43: 1.125 | EL43: Yes | EM43: Solid Bore 2.5 in Yes 1-1/8" 1446 | EO43: Solid Bore 2.5 in Yes 1-1/8" 1446 | EW43: Solid Bore | EX43: 1-1/8" | EY43: 1446 | EZ43: Solid Bore1-1/8"1446 | FB43: Solid Bore1-1/8"1446
F44: 2.5 INStorz | M44: 1447 | N44: Yes | O44: 1447 | Q44: Fog Nozzle 30-150 | R44: 1616 | W44: no1 IN | X44: NH | Y44: NPSH | Z44: Custom | AI44: yes1.5 in | AJ44: PCT | AK44: yes1.5 inPCT | AO44: 1440 | AP44: 828 | AZ44: Solid Bore | BA44: 1-3/16" | BB44: 1446 | BC44: 2.5 in | BD44: 1.1875 | BR44: Fog Nozzle | BS44: 4863 | BT44: 175 | BU44: 75 | BV44: Fog Nozzle 175 @ 75 | BZ44: Fog Tip 200 @ 100 | CA44: 4824 | CB44: 4866 | CD44: Fog Tip 200 @ 100 4824 | CE44: Fog Tip 200 @ 100 4866 | CI44: Fog Tip 150 @ 50 4866 | CT44: Solid Bore 2.5 in | CU44: 1-3/16" | CV44: 2.5 in | CW44: Solid Bore 2.5 in | DB44: Solid Bore Yes 2.5 in 1-3/16" No (Std) | DC44: Solid Bore Yes 2.5 in | DD44: Solid Bore | DE44: 1-3/16" | DF44: 1446 | DG44: 2.5 in | DH44: 1.1875 | DI44: Yes | DJ44: No (Std) | DK44: Stack Tips Yes 1.5 in | DM44: 0.5 | DY44: Solid Bore Yes 1.5 in 1-3/8" No (Std) | DZ44: 1445 | ED44: 1-3/16" | EE44: 1_3_16_ | EG44: Solid Bore | EH44: 1-3/16" | EI44: 1446 | EJ44: 2.5 in | EK44: 1.1875 | EL44: Yes | EM44: Solid Bore 2.5 in Yes 1-3/16" 1446 | EO44: Solid Bore 2.5 in Yes 1-3/16" 1446 | EW44: Solid Bore | EX44: 1-3/16" | EY44: 1446 | EZ44: Solid Bore1-3/16"1446 | FB44: Solid Bore1-3/16"1446
F45: 2.5 INCustom | M45: 2393 | N45: No | O45: 2393 | Q45: Fog Nozzle 13-60 | R45: 1702 | W45: no1.5 in | X45: NH | Y45: NPSH | Z45: FDNY | AA45: NYCORP | AB45: PCT | AC45: Custom | AI45: yes1.5 in | AJ45: Storz | AK45: yes1.5 inStorz | AO45: 1441 | AP45: 828 | AZ45: Solid Bore | BA45: 1-1/4" | BB45: 1446 | BC45: 2.5 in | BD45: 1.25 | BR45: Fog Nozzle | BS45: 4863 | BT45: 200 | BU45: 75 | BV45: Fog Nozzle 200 @ 75 | BZ45: Fog Tip 200 @ 75 | CA45: 4824 | CB45: 4866 | CD45: Fog Tip 200 @ 75 4824 | CE45: Fog Tip 200 @ 75 4866 | CI45: Fog Tip 150 @ 75 4866 | CT45: Solid Bore 2.5 in | CU45: 1-1/4" | CV45: 2.5 in | CW45: Solid Bore 2.5 in | DB45: Solid Bore Yes 2.5 in 1-1/4" No (Std) | DC45: Solid Bore Yes 2.5 in | DD45: Solid Bore | DE45: 1-1/4" | DF45: 1446 | DG45: 2.5 in | DH45: 1.25 | DI45: Yes | DJ45: No (Std) | DK45: Stack Tips Yes 2.5 in | DM45: 0.5 | DY45: Solid Bore Yes 1.5 in 15/16" No (Std) | DZ45: 1445 | ED45: 1-1/4" | EE45: 1_1_4_ | EG45: Solid Bore | EH45: 1-1/4" | EI45: 1446 | EJ45: 2.5 in | EK45: 1.25 | EL45: Yes | EM45: Solid Bore 2.5 in Yes 1-1/4" 1446 | EO45: Solid Bore 2.5 in Yes 1-1/4" 1446 | EW45: Solid Bore | EX45: 1-1/4" | EY45: 1446 | EZ45: Solid Bore1-1/4"1446 | FB45: Solid Bore1-1/4"1446
F46: 1.5 inNH | Q46: Fog Tip 13-60 | R46: 1703 | W46: no2.5 IN | X46: NH | Y46: NPSH | Z46: FDNY | AA46: NYCORP | AB46: PITT6 | AC46: BAT | AD46: CSA | AE46: QST | AF46: Custom | AI46: yes1.5 in | AJ46: Custom | AK46: yes1.5 inCustom | AO46: 1442 | AP46: 960 | AZ46: Solid Bore | BA46: 1-3/8" | BB46: 1446 | BC46: 2.5 in | BD46: 1.375 | BR46: Fog Nozzle | BS46: 4863 | BT46: 150 | BU46: 50 | BV46: Fog Nozzle 150 @ 50 | BZ46: Fog Tip 210 @ 50 | CA46: 4824 | CD46: Fog Tip 210 @ 50 4824 | CI46: Fog Tip 161 @ 50 4866 | CT46: Solid Bore 2.5 in | CU46: 1-3/8" | CV46: 2.5 in | CW46: Solid Bore 2.5 in | DB46: Solid Bore Yes 2.5 in 1-3/8" No (Std) | DC46: Solid Bore Yes 2.5 in | DD46: Solid Bore | DE46: 1-3/8" | DF46: 1446 | DG46: 2.5 in | DH46: 1.375 | DI46: Yes | DJ46: No (Std) | DK46: Stack Tips Yes 2.5 in | DM46: 1 | DY46: Solid Bore Yes 1.5 in 7/8" No (Std) | DZ46: 1445 | ED46: 1-3/8" | EE46: 1_3_8_ | EG46: Solid Bore | EH46: 1-3/8" | EI46: 1446 | EJ46: 2.5 in | EK46: 1.375 | EL46: Yes | EM46: Solid Bore 2.5 in Yes 1-3/8" 1446 | EO46: Solid Bore 2.5 in Yes 1-3/8" 1446 | EW46: Solid Bore | EX46: 1-3/8" | EY46: 1446 | EZ46: Solid Bore1-3/8"1446 | FB46: Solid Bore1-3/8"1446
F47: 2.5 INNPSH | Q47: Fog Nozzle 18-30 | R47: 1704 | AI47: yes2.5 IN | AJ47: NH | AK47: yes2.5 INNH | AO47: 1443 | AP47: 960 | AZ47: Stack Tips | BA47: 1-1/8"; 1/2" | BB47: 0439 | BC47: 1.5 in | BD47: 0.5 | BR47: Fog Nozzle | BS47: 4863 | BT47: 161 | BU47: 50 | BV47: Fog Nozzle 161 @ 50 | BZ47: Fog Tip 225 @ 100 | CA47: 4866 | CD47: Fog Tip 225 @ 100 4866 | CI47: Fog Tip 175 @ 100 4866 | CT47: Stack Tips 1.5 in | CU47: 1-1/8"; 1/2" | CV47: 1.5 in | CW47: Stack Tips 1.5 in | DB47: Stack Tips No 1.5 in 1-1/8"; 1/2" Yes | DC47: Stack Tips No 1.5 in | DD47: Stack Tips | DE47: 1-1/8"; 1/2" | DF47: 0439 | DG47: 1.5 in | DH47: 0.5 | DI47: No | DJ47: Yes | DY47: Solid Bore Yes 2.5 in 1" No (Std) | DZ47: 1446 | ED47: 1-1/8"; 1/2" | EE47: 1_1_8___1_2_ | EG47: Stack Tips | EH47: 1-1/8"; 1/2" | EI47: 0439 | EJ47: 1.5 in | EK47: 0.5 | EL47: No | EM47: Stack Tips 1.5 in No 1-1/8"; 1/2" 0439 | EO47: Stack Tips 1.5 in No 1-1/8"; 1/2" 0439 | EW47: Stack Tips | EX47: 1-1/8"; 1/2" | EY47: 0439 | EZ47: Stack Tips1-1/8"; 1/2"0439 | FB47: Stack Tips1-1/8"; 1/2"0439
F48: 2.5 INFDNY | Q48: Fog Nozzle 13-30 | R48: 1704 | AI48: yes2.5 IN | AJ48: NPSH | AK48: yes2.5 INNPSH | AO48: 1445 | AP48: 714 | AZ48: Stack Tips | BA48: 15-16"; 1/2" | BB48: 0439 | BC48: 1.5 in | BD48: 0.5 | BR48: Fog Nozzle | BS48: 4863 | BT48: 175 | BU48: 50 | BV48: Fog Nozzle 175 @ 50 | BZ48: Fog Tip 250 @ 100 | CA48: 4824 | CD48: Fog Tip 250 @ 100 4824 | CI48: Fog Tip 175 @ 50 4866 | CT48: Stack Tips 1.5 in | CU48: 15-16"; 1/2" | CV48: 1.5 in | CW48: Stack Tips 1.5 in | DB48: Stack Tips No 1.5 in 15-16"; 1/2" Yes | DC48: Stack Tips No 1.5 in | DD48: Stack Tips | DE48: 15-16"; 1/2" | DF48: 0439 | DG48: 1.5 in | DH48: 0.5 | DI48: No | DJ48: Yes | DY48: Solid Bore Yes 2.5 in 1-1/16" No (Std) | DZ48: 1446 | ED48: 15-16"; 1/2" | EE48: 15_16___1_2_ | EG48: Stack Tips | EH48: 15-16"; 1/2" | EI48: 0439 | EJ48: 1.5 in | EK48: 0.5 | EL48: No | EM48: Stack Tips 1.5 in No 15-16"; 1/2" 0439 | EO48: Stack Tips 1.5 in No 15-16"; 1/2" 0439 | EW48: Stack Tips | EX48: 15-16"; 1/2" | EY48: 0439 | EZ48: Stack Tips15-16"; 1/2"0439 | FB48: Stack Tips15-16"; 1/2"0439
F49: 2.5 INNYCORP | Q49: Fog Tip 18-30 | R49: 1711 | AI49: yes2.5 IN | AJ49: FDNY | AK49: yes2.5 INFDNY | AO49: 1446 | AP49: 846 | AZ49: Stack Tips | BA49: 1-1/16"; 15/16" | BB49: 0439 | BC49: 1.5 in | BD49: 0.9375 | BR49: Fog Nozzle | BS49: 4863 | BT49: 185 | BU49: 50 | BV49: Fog Nozzle 185 @ 50 | BZ49: Fog Tip 250 @ 50 | CA49: 4824 | CD49: Fog Tip 250 @ 50 4824 | CI49: Fog Tip 175 @ 75 4866 | CT49: Stack Tips 1.5 in | CU49: 1-1/16"; 15/16" | CV49: 1.5 in | CW49: Stack Tips 1.5 in | DB49: Stack Tips No 1.5 in 1-1/16"; 15/16" Yes | DC49: Stack Tips No 1.5 in | DD49: Stack Tips | DE49: 1-1/16"; 15/16" | DF49: 0439 | DG49: 1.5 in | DH49: 0.9375 | DI49: No | DJ49: Yes | DY49: Solid Bore Yes 2.5 in 1-1/4" No (Std) | DZ49: 1446 | ED49: 1-1/16"; 15/16" | EE49: 1_1_16___15_16_ | EG49: Stack Tips | EH49: 1-1/16"; 15/16" | EI49: 0439 | EJ49: 1.5 in | EK49: 0.9375 | EL49: No | EM49: Stack Tips 1.5 in No 1-1/16"; 15/16" 0439 | EO49: Stack Tips 1.5 in No 1-1/16"; 15/16" 0439 | EW49: Stack Tips | EX49: 1-1/16"; 15/16" | EY49: 0439 | EZ49: Stack Tips1-1/16"; 15/16"0439 | FB49: Stack Tips1-1/16"; 15/16"0439
F50: 2.5 INPCT | Q50: Fog Tip 13-30 | R50: 1711 | AI50: yes2.5 IN | AJ50: NYCORP | AK50: yes2.5 INNYCORP | AO50: 1447 | AP50: =156+544 -> 700 | AZ50: Stack Tips | BA50: 1-1/4"; 1-1/8"; 1" | BB50: 1420 | BC50: 1.5 in | BD50: 1 | BR50: Fog Nozzle | BS50: 4863 | BT50: 225 | BU50: 100 (Std) | BV50: Fog Nozzle 225 @ 100 (Std) | BZ50: Fog Tip 250 @ 75 | CA50: 4824 | CD50: Fog Tip 250 @ 75 4824 | CI50: Fog Tip 185 @ 50 4866 | CT50: Stack Tips 1.5 in | CU50: 1-1/4"; 1-1/8"; 1" | CV50: 1.5 in | CW50: Stack Tips 1.5 in | DB50: Stack Tips No 1.5 in 1-1/4"; 1-1/8"; 1" Yes | DC50: Stack Tips No 1.5 in | DD50: Stack Tips | DE50: 1-1/4"; 1-1/8"; 1" | DF50: 1420 | DG50: 1.5 in | DH50: 1 | DI50: No | DJ50: Yes | DY50: Solid Bore Yes 2.5 in 1-1/8" No (Std) | DZ50: 1446 | ED50: 1-1/4"; 1-1/8"; 1" | EE50: 1_1_4___1_1_8___1_ | EG50: Stack Tips | EH50: 1-1/4"; 1-1/8"; 1" | EI50: 1420 | EJ50: 1.5 in | EK50: 1 | EL50: No | EM50: Stack Tips 1.5 in No 1-1/4"; 1-1/8"; 1" 1420 | EO50: Stack Tips 1.5 in No 1-1/4"; 1-1/8"; 1" 1420 | EW50: Stack Tips | EX50: 1-1/4"; 1-1/8"; 1" | EY50: 1420 | EZ50: Stack Tips1-1/4"; 1-1/8"; 1"1420 | FB50: Stack Tips1-1/4"; 1-1/8"; 1"1420
F51: 2.5 INCustom | Q51: Fog Tip 30-125 | R51: 1714 | AI51: yes2.5 IN | AJ51: PITT6 | AK51: yes2.5 INPITT6 | AO51: 1499 | AP51: 170 | AZ51: Stack Tips | BA51: 15/16"; 1/2" | BB51: 1440 | BC51: 1.5 in | BD51: 0.5 | BR51: Fog Tip | BS51: 4866 | BT51: 95 | BU51: 100 (Std) | BV51: Fog Tip 95 @ 100 (Std) | BZ51: Fog Tip 265 @ 50 | CA51: 4824 | CD51: Fog Tip 265 @ 50 4824 | CI51: Fog Tip 200 @ 100 4824 | CT51: Stack Tips 1.5 in | CU51: 15/16"; 1/2" | CV51: 1.5 in | CW51: Stack Tips 1.5 in | DB51: Stack Tips Yes 1.5 in 15/16"; 1/2" Yes | DC51: Stack Tips Yes 1.5 in | DD51: Stack Tips | DE51: 15/16"; 1/2" | DF51: 1440 | DG51: 1.5 in | DH51: 0.5 | DI51: Yes | DJ51: Yes | DY51: Solid Bore Yes 2.5 in 1-3/16" No (Std) | DZ51: 1446 | ED51: 15/16"; 1/2" | EE51: 15_16___1_2_ | EG51: Stack Tips | EH51: 15/16"; 1/2" | EI51: 1440 | EJ51: 1.5 in | EK51: 0.5 | EL51: Yes | EM51: Stack Tips 1.5 in Yes 15/16"; 1/2" 1440 | EO51: Stack Tips 1.5 in Yes 15/16"; 1/2" 1440 | EW51: Stack Tips | EX51: 15/16"; 1/2" | EY51: 1440 | EZ51: Stack Tips15/16"; 1/2"1440 | FB51: Stack Tips15/16"; 1/2"1440
F52: 2.5 INNH | Q52: Fog Nozzle 30-125 | R52: 1720 | AI52: yes2.5 IN | AJ52: BAT | AK52: yes2.5 INBAT | AO52: 2393 | AP52: 1602 | AZ52: Stack Tips | BA52: 15/16"; 1/2" | BB52: 1441 | BC52: 1.5 in | BD52: 0.5 | BR52: Fog Tip | BS52: 4866 | BT52: 125 | BU52: 100 (Std) | BV52: Fog Tip 125 @ 100 (Std) | BZ52: Fog Tip 300 @ 100 | CA52: 4824 | CD52: Fog Tip 300 @ 100 4824 | CI52: Fog Tip 200 @ 100 4866 | CT52: Stack Tips 1.5 in | CU52: 15/16"; 1/2" | CV52: 1.5 in | CW52: Stack Tips 1.5 in | DB52: Stack Tips Yes 1.5 in 15/16"; 1/2" No (Std) | DC52: Stack Tips Yes 1.5 in | DD52: Stack Tips | DE52: 15/16"; 1/2" | DF52: 1441 | DG52: 1.5 in | DH52: 0.5 | DI52: Yes | DJ52: No (Std) | DY52: Solid Bore Yes 2.5 in 1-3/8" No (Std) | DZ52: 1446 | ED52: 15/16"; 1/2" | EE52: 15_16___1_2_ | EG52: Stack Tips | EH52: 15/16"; 1/2" | EI52: 1441 | EJ52: 1.5 in | EK52: 0.5 | EL52: Yes | EM52: Stack Tips 1.5 in Yes 15/16"; 1/2" 1441 | EO52: Stack Tips 1.5 in Yes 15/16"; 1/2" 1441 | EW52: Stack Tips | EX52: 15/16"; 1/2" | EY52: 1441 | EZ52: Stack Tips15/16"; 1/2"1441 | FB52: Stack Tips15/16"; 1/2"1441
F53: 2.5 INPITT6 | Q53: Fog Nozzle 95-200 | R53: 1723 | AI53: yes2.5 IN | AJ53: CSA | AK53: yes2.5 INCSA | AO53: 2420 | AP53: 590 | AZ53: Stack Tips | BA53: 1-1/8"; 1/2" | BB53: 1442 | BC53: 2.5 in | BD53: 0.5 | BR53: Fog Tip | BS53: 4866 | BT53: 150 | BU53: 100 (Std) | BV53: Fog Tip 150 @ 100 (Std) | BZ53: Fog Tip 300 @ 75 | CA53: 4824 | CD53: Fog Tip 300 @ 75 4824 | CI53: Fog Tip 200 @ 75 4824 | CT53: Stack Tips 2.5 in | CU53: 1-1/8"; 1/2" | CV53: 2.5 in | CW53: Stack Tips 2.5 in | DB53: Stack Tips Yes 2.5 in 1-1/8"; 1/2" Yes | DC53: Stack Tips Yes 2.5 in | DD53: Stack Tips | DE53: 1-1/8"; 1/2" | DF53: 1442 | DG53: 2.5 in | DH53: 0.5 | DI53: Yes | DJ53: Yes | DY53: Solid Bore Yes 2.5 in 15/16" No (Std) | DZ53: 1446 | ED53: 1-1/8"; 1/2" | EE53: 1_1_8___1_2_ | EG53: Stack Tips | EH53: 1-1/8"; 1/2" | EI53: 1442 | EJ53: 2.5 in | EK53: 0.5 | EL53: Yes | EM53: Stack Tips 2.5 in Yes 1-1/8"; 1/2" 1442 | EO53: Stack Tips 2.5 in Yes 1-1/8"; 1/2" 1442 | EW53: Stack Tips | EX53: 1-1/8"; 1/2" | EY53: 1442 | EZ53: Stack Tips1-1/8"; 1/2"1442 | FB53: Stack Tips1-1/8"; 1/2"1442
F54: 2.5 INBAT | Q54: Fog Nozzle 125-250 | R54: 1733 | AI54: yes2.5 IN | AJ54: QST | AK54: yes2.5 INQST | AZ54: Stack Tips | BA54: 1-1/8"; 1/2" | BB54: 1443 | BC54: 2.5 in | BD54: 0.5 | BR54: Fog Tip | BS54: 4866 | BT54: 175 | BU54: 100 (Std) | BV54: Fog Tip 175 @ 100 (Std) | BZ54: Fog Tip 350 @ 100 | CA54: 4824 | CD54: Fog Tip 350 @ 100 4824 | CI54: Fog Tip 200 @ 75 4866 | CT54: Stack Tips 2.5 in | CU54: 1-1/8"; 1/2" | CV54: 2.5 in | CW54: Stack Tips 2.5 in | DB54: Stack Tips Yes 2.5 in 1-1/8"; 1/2" No (Std) | DC54: Stack Tips Yes 2.5 in | DD54: Stack Tips | DE54: 1-1/8"; 1/2" | DF54: 1443 | DG54: 2.5 in | DH54: 0.5 | DI54: Yes | DJ54: No (Std) | DY54: Solid Bore Yes 2.5 in 7/8" No (Std) | DZ54: 1446 | ED54: 1-1/8"; 1/2" | EE54: 1_1_8___1_2_ | EG54: Stack Tips | EH54: 1-1/8"; 1/2" | EI54: 1443 | EJ54: 2.5 in | EK54: 0.5 | EL54: Yes | EM54: Stack Tips 2.5 in Yes 1-1/8"; 1/2" 1443 | EO54: Stack Tips 2.5 in Yes 1-1/8"; 1/2" 1443 | EW54: Stack Tips | EX54: 1-1/8"; 1/2" | EY54: 1443 | EZ54: Stack Tips1-1/8"; 1/2"1443 | FB54: Stack Tips1-1/8"; 1/2"1443
F55: 2.5 INCSA | Q55: Fog Tip 95-200 | R55: 1737 | AI55: yes2.5 IN | AJ55: BIM | AK55: yes2.5 INBIM | AZ55: Stack Tips | BA55: 1-1/4"; 1-1/8"; 1" | BB55: 2393 | BC55: 2.5 in | BD55: 1 | BR55: Fog Tip | BS55: 4866 | BT55: 200 | BU55: 100 (Std) | BV55: Fog Tip 200 @ 100 (Std) | BZ55: Fog Tip 95 @ 100 | CA55: 4866 | CD55: Fog Tip 95 @ 100 4866 | CI55: Fog Tip 210 @ 50 4824 | CT55: Stack Tips 2.5 in | CU55: 1-1/4"; 1-1/8"; 1" | CV55: 2.5 in | CW55: Stack Tips 2.5 in | DB55: Stack Tips Yes 2.5 in 1-1/4"; 1-1/8"; 1" No (Std) | DC55: Stack Tips Yes 2.5 in | DD55: Stack Tips | DE55: 1-1/4"; 1-1/8"; 1" | DF55: 2393 | DG55: 2.5 in | DH55: 1 | DI55: Yes | DJ55: No (Std) | DY55: Stack Tips No 1.5 in 1-1/16"; 15/16" Yes | DZ55: 0439 | ED55: 1-1/4"; 1-1/8"; 1" | EE55: 1_1_4___1_1_8___1_ | EG55: Stack Tips | EH55: 1-1/4"; 1-1/8"; 1" | EI55: 2393 | EJ55: 2.5 in | EK55: 1 | EL55: Yes | EM55: Stack Tips 2.5 in Yes 1-1/4"; 1-1/8"; 1" 2393 | EO55: Stack Tips 2.5 in Yes 1-1/4"; 1-1/8"; 1" 2393 | EW55: Stack Tips | EX55: 1-1/4"; 1-1/8"; 1" | EY55: 2393 | EZ55: Stack Tips1-1/4"; 1-1/8"; 1"2393 | FB55: Stack Tips1-1/4"; 1-1/8"; 1"2393
F56: 2.5 INQST | Q56: Fog Tip 125-250 | R56: 1744 | AI56: yes2.5 IN | AJ56: Storz | AK56: yes2.5 INStorz | AZ56: Stack Tips | BA56: 1-1/2"; 1-1/4"; 1" | BB56: 2420 | BC56: 2.5 in | BD56: 1 | BR56: Fog Tip | BS56: 4866 | BT56: 125 | BU56: 75 | BV56: Fog Tip 125 @ 75 | CI56: Fog Tip 225 @ 100 4866 | CT56: Stack Tips 2.5 in | CU56: 1-1/2"; 1-1/4"; 1" | CV56: 2.5 in | CW56: Stack Tips 2.5 in | DB56: Stack Tips No 2.5 in 1-1/2"; 1-1/4"; 1" Yes | DC56: Stack Tips No 2.5 in | DD56: Stack Tips | DE56: 1-1/2"; 1-1/4"; 1" | DF56: 2420 | DG56: 2.5 in | DH56: 1 | DI56: No | DJ56: Yes | DY56: Stack Tips No 1.5 in 1-1/4"; 1-1/8"; 1" Yes | DZ56: 1420 | ED56: 1-1/2"; 1-1/4"; 1" | EE56: 1_1_2___1_1_4___1_ | EG56: Stack Tips | EH56: 1-1/2"; 1-1/4"; 1" | EI56: 2420 | EJ56: 2.5 in | EK56: 1 | EL56: No | EM56: Stack Tips 2.5 in No 1-1/2"; 1-1/4"; 1" 2420 | EO56: Stack Tips 2.5 in No 1-1/2"; 1-1/4"; 1" 2420 | EW56: Stack Tips | EX56: 1-1/2"; 1-1/4"; 1" | EY56: 2420 | EZ56: Stack Tips1-1/2"; 1-1/4"; 1"2420 | FB56: Stack Tips1-1/2"; 1-1/4"; 1"2420
F57: 1.5 inNPSH | Q57: Fog Nozzle 30-200 | R57: 1763 | AI57: yes2.5 IN | AJ57: Custom | AK57: yes2.5 INCustom | AZ57: Stack Tips | BA57: 1-1/4"; 1-1/8"; 1" | BB57: 2420 | BC57: 2.5 in | BD57: 1 | BR57: Fog Tip | BS57: 4866 | BT57: 150 | BU57: 75 | BV57: Fog Tip 150 @ 75 | CI57: Fog Tip 250 @ 100 4824 | CT57: Stack Tips 2.5 in | CU57: 1-1/4"; 1-1/8"; 1" | CV57: 2.5 in | CW57: Stack Tips 2.5 in | DB57: Stack Tips No 2.5 in 1-1/4"; 1-1/8"; 1" Yes | DC57: Stack Tips No 2.5 in | DD57: Stack Tips | DE57: 1-1/4"; 1-1/8"; 1" | DF57: 2420 | DG57: 2.5 in | DH57: 1 | DI57: No | DJ57: Yes | DY57: Stack Tips No 1.5 in 1-1/8"; 1/2" Yes | DZ57: 0439 | ED57: 1-1/4"; 1-1/8"; 1" | EE57: 1_1_4___1_1_8___1_ | EG57: Stack Tips | EH57: 1-1/4"; 1-1/8"; 1" | EI57: 2420 | EJ57: 2.5 in | EK57: 1 | EL57: No | EM57: Stack Tips 2.5 in No 1-1/4"; 1-1/8"; 1" 2420 | EO57: Stack Tips 2.5 in No 1-1/4"; 1-1/8"; 1" 2420 | EW57: Stack Tips | EX57: 1-1/4"; 1-1/8"; 1" | EY57: 2420 | EZ57: Stack Tips1-1/4"; 1-1/8"; 1"2420 | FB57: Stack Tips1-1/4"; 1-1/8"; 1"2420
F58: 1.5 inFDNY | Q58: Fog Tip 30-200 | R58: 1766 | AI58: no1.5 in | AJ58: NH | AK58: no1.5 inNH | AZ58: Stack Tips | BA58: 1-3/8"; 1-1/4"; 1" | BB58: 2420 | BC58: 2.5 in | BD58: 1 | BR58: Fog Tip | BS58: 4866 | BT58: 175 | BU58: 75 | BV58: Fog Tip 175 @ 75 | CI58: Fog Tip 250 @ 50 4824 | CT58: Stack Tips 2.5 in | CU58: 1-3/8"; 1-1/4"; 1" | CV58: 2.5 in | CW58: Stack Tips 2.5 in | DB58: Stack Tips No 2.5 in 1-3/8"; 1-1/4"; 1" Yes | DC58: Stack Tips No 2.5 in | DD58: Stack Tips | DE58: 1-3/8"; 1-1/4"; 1" | DF58: 2420 | DG58: 2.5 in | DH58: 1 | DI58: No | DJ58: Yes | DY58: Stack Tips No 1.5 in 15-16"; 1/2" Yes | DZ58: 0439 | ED58: 1-3/8"; 1-1/4"; 1" | EE58: 1_3_8___1_1_4___1_ | EG58: Stack Tips | EH58: 1-3/8"; 1-1/4"; 1" | EI58: 2420 | EJ58: 2.5 in | EK58: 1 | EL58: No | EM58: Stack Tips 2.5 in No 1-3/8"; 1-1/4"; 1" 2420 | EO58: Stack Tips 2.5 in No 1-3/8"; 1-1/4"; 1" 2420 | EW58: Stack Tips | EX58: 1-3/8"; 1-1/4"; 1" | EY58: 2420 | EZ58: Stack Tips1-3/8"; 1-1/4"; 1"2420 | FB58: Stack Tips1-3/8"; 1-1/4"; 1"2420
F59: 1.5 inNYCORP | AI59: no2.5 IN | AJ59: NPSH | AK59: no2.5 INNPSH | BR59: Fog Tip | BS59: 4866 | BT59: 200 | BU59: 75 | BV59: Fog Tip 200 @ 75 | CI59: Fog Tip 250 @ 75 4824 | DY59: Stack Tips No 2.5 in 1-1/2"; 1-1/4"; 1" Yes | DZ59: 2420
F60: 1.5 inPCT | AI60: no2.5 IN | AJ60: FDNY | AK60: no2.5 INFDNY | BR60: Fog Tip | BS60: 4866 | BT60: 150 | BU60: 50 | BV60: Fog Tip 150 @ 50 | CI60: Fog Tip 265 @ 50 4824 | DY60: Stack Tips No 2.5 in 1-1/4"; 1-1/8"; 1" Yes | DZ60: 2420
F61: 1.5 inStorz | M61: Style | N61: Inlet | AI61: no2.5 IN | AJ61: NYCORP | AK61: no2.5 INNYCORP | BR61: Fog Tip | BS61: 4866 | BT61: 161 | BU61: 50 | BV61: Fog Tip 161 @ 50 | CI61: Fog Tip 300 @ 100 4824 | DY61: Stack Tips No 2.5 in 1-3/8"; 1-1/4"; 1" Yes | DZ61: 2420
F62: 1.5 inCustom | M62: 2102 | N62: 1 | O62: =CONCATENATE(N62," in") -> 1 in | P62: 1 in | R62: SOIN1 in | S62: 1 in | V62: =CONCATENATE(RIGHT($R62,LEN($R62)-4),S62) -> 1 in1 in | AI62: no2.5 IN | AJ62: PCT | AK62: no2.5 INPCT | BR62: Fog Tip | BS62: 4866 | BT62: 175 | BU62: 50 | BV62: Fog Tip 175 @ 50 | CI62: Fog Tip 300 @ 75 4824 | DY62: Stack Tips Yes 1.5 in 15/16"; 1/2" No (Std) | DZ62: 1441
F63: 1 inNH | M63: 2126 | N63: 2.5 | O63: =CONCATENATE(N63," in") -> 2.5 in | P63: 1.5 in | R63: SOIN1.5 in | S63: 1.5 in | V63: =CONCATENATE(RIGHT($R63,LEN($R63)-4),S63) -> 1.5 in1.5 in | AI63: no2.5 IN | AJ63: Custom | AK63: no2.5 INCustom | BR63: Fog Tip | BS63: 4866 | BT63: 185 | BU63: 50 | BV63: Fog Tip 185 @ 50 | CI63: Fog Tip 350 @ 100 4824 | DY63: Stack Tips Yes 1.5 in 15/16"; 1/2" Yes | DZ63: 1440
F64: 1 inNPSH | M64: 2127 | N64: 1.5 | O64: 1.5 in | P64: 1.5 in | R64: SOIN2 in | S64: 1.5 in | V64: 2 in1.5 in | AI64: no2.5 IN | AJ64: NH | AK64: no2.5 INNH | BR64: Fog Tip | BS64: 4866 | BT64: 225 | BU64: 100 (Std) | BV64: Fog Tip 225 @ 100 (Std) | CI64: Fog Tip 95 @ 100 4866 | DY64: Stack Tips Yes 2.5 in 1-1/4"; 1-1/8"; 1" No (Std) | DZ64: 2393
F65: 1 inStorz | M65: 2130 | N65: 2.5 | O65: 2.5 in | P65: 2.5 in | R65: SOIN2.5 in | S65: 2.5 in | T65: 1.5 in | V65: 2.5 in2.5 in | W65: 2.5 in1.5 in | AI65: no2.5 IN | AJ65: NPSH | AK65: no2.5 INNPSH | DY65: Stack Tips Yes 2.5 in 1-1/8"; 1/2" No (Std) | DZ65: 1443
F66: 1 inCustom | M66: 2390 | N66: 2.5 | O66: 2.5 in | P66: 1.5 in | R66: SOIN3 in | S66: 2.5 in | T66: 1.5 in | V66: 3 in2.5 in | W66: 3 in1.5 in | AI66: no2.5 IN | AJ66: FDNY | AK66: no2.5 INFDNY | DY66: Stack Tips Yes 2.5 in 1-1/8"; 1/2" Yes | DZ66: 1442
F67: 2 inStorz | M67: 2431 | N67: 1.5 | O67: 1.5 in | P67: 1.5 in | AI67: no2.5 IN | AJ67: NYCORP | AK67: no2.5 INNYCORP
F68: 3 inStorz | M68: 2433 | N68: 2.5 | O68: 2.5 in | P68: 1.5 in | AI68: no2.5 IN | AJ68: PITT6 | AK68: no2.5 INPITT6
AI69: no2.5 IN | AJ69: BAT | AK69: no2.5 INBAT
AI70: no2.5 IN | AJ70: CSA | AK70: no2.5 INCSA
M71: Style | N71: Outlet | Q71: BoreShutoff Only | R71: BoreShutoff with Integrated Tip | AI71: no2.5 IN | AJ71: QST | AK71: no2.5 INQST
M72: 2102 | N72: 1 | O72: =CONCATENATE(N72," in") -> 1 in | P72: 574 | Q72: N/A | R72: 7/8" | AI72: no2.5 IN | AJ72: Custom | AK72: no2.5 INCustom
M73: 2126 | N73: 1.5 | O73: 1.5 in | P73: 698 | R73: 15/16"
M74: 2127 | N74: 1.5 | O74: 1.5 in | P74: 562 | R74: 1"
M75: 2130 | N75: 2.5 | O75: 2.5 in | P75: 1078 | R75: 1-1/16"
M76: 2390 | N76: 1.5 | O76: 1.5 in | P76: 1136 | R76: 1-1/8"
M77: 2431 | N77: 1.5 | O77: 1.5 in | P77: 592 | R77: 1-3/16"
M78: 2433 | N78: 1.5 | O78: 1.5 in | P78: 762 | R78: 1-1/4"
M79: Storz | P79: 88 | R79: =CONCATENATE(R72,"2431") -> 7/8"2431 | T79: Shutoff Only | U79: Shutoff with Integrated Tip
M80: ZT | P80: 340 | R80: =CONCATENATE(R73,"2431") -> 15/16"2431 | T80: 1 in | U80: 1.5 in
R81: =CONCATENATE(R74,"2431") -> 1"2431 | T81: 1.5 in | U81: 2 in
M82: Style | N82: Outlet | R82: =CONCATENATE(R76,"2431") -> 1-1/8"2431 | T82: 2 in | U82: 2.5 in
M83: 2102 | N83: 1 in | O83: Shutoff Only1 in2102 | R83: =CONCATENATE(R78,"2431") -> 1-1/4"2431 | T83: 2.5 in | U83: 3 in
M84: 2126 | N84: 1.5 in | O84: Shutoff Only1.5 in2126 | R84: =CONCATENATE(R72,"2433") -> 7/8"2433 | T84: 3 in
M85: 2127 | N85: 1.5 in | O85: Shutoff Only1.5 in2127 | R85: =CONCATENATE(R73,"2433") -> 15/16"2433
M86: 2130 | N86: 2.5 in | O86: Shutoff Only2.5 in2130 | R86: =CONCATENATE(R74,"2433") -> 1"2433
M87: 2390 | N87: 1.5 in | O87: Shutoff Only1.5 in2390 | R87: =CONCATENATE(R76,"2433") -> 1-1/8"2433 | T87: =CONCATENATE(T$79,T80) -> Shutoff Only1 in
M88: 2431 | N88: 1.5 in | O88: Shutoff with Integrated Tip1.5 in2431 | R88: =CONCATENATE(R78,"2433") -> 1-1/4"2433 | T88: =CONCATENATE(T$79,T81) -> Shutoff Only1.5 in
M89: 2433 | N89: 1.5 in | O89: Shutoff with Integrated Tip1.5 in2433 | R89: 1-1/16"2431 | T89: =CONCATENATE(T$79,T82) -> Shutoff Only2 in
M90: Shutoff Only1 in2102 | R90: 1-3/16"2431 | T90: =CONCATENATE(T$79,T83) -> Shutoff Only2.5 in
M91: Shutoff Only1.5 in2126 | R91: 1-1/16"2433 | T91: =CONCATENATE(T$79,T84) -> Shutoff Only3 in
M92: Shutoff Only1.5 in2127 | R92: 1-3/16"2433 | T92: =CONCATENATE(U$79,U80) -> Shutoff with Integrated Tip1.5 in
M93: Shutoff Only2.5 in2130 | T93: =CONCATENATE(U$79,U81) -> Shutoff with Integrated Tip2 in
M94: Shutoff Only1.5 in2390 | T94: =CONCATENATE(U$79,U82) -> Shutoff with Integrated Tip2.5 in
M95: Shutoff with Integrated Tip1.5 in2431 | T95: =CONCATENATE(U$79,U83) -> Shutoff with Integrated Tip3 in
M96: Shutoff with Integrated Tip1.5 in2433
M99: shutoff only1 in | N99: 1 in | O99: shutoff only1 in1 in | P99: 2102 | S99: shutoff only1 in1 in | T99: 2102 | U99: =CONCATENATE(S99,T99) -> shutoff only1 in1 in2102
M100: shutoff only1.5 in | N100: 1.5 in | O100: shutoff only1.5 in1.5 in | P100: 2127 | S100: shutoff only1.5 in1.5 in | T100: 2127 | U100: =CONCATENATE(S100,T100) -> shutoff only1.5 in1.5 in2127
M101: shutoff only2 in | N101: 1.5 in | O101: shutoff only2 in1.5 in | P101: 2127 | S101: shutoff only2 in1.5 in | T101: 2127 | U101: shutoff only2 in1.5 in2127
M102: shutoff only2.5 in | N102: 1.5 in | O102: shutoff only2.5 in1.5 in | P102: 2126 | Q102: 2390 | S102: shutoff only2.5 in1.5 in | T102: 2126 | U102: shutoff only2.5 in1.5 in2126
M103: shutoff only2.5 in | N103: 2.5 in | O103: shutoff only2.5 in2.5 in | P103: 2130 | S103: shutoff only2.5 in2.5 in | T103: 2130 | U103: shutoff only2.5 in2.5 in2130
M104: shutoff only3 in | N104: 2.5 in | O104: shutoff only3 in2.5 in | P104: 2130 | S104: shutoff only3 in2.5 in | T104: 2130 | U104: shutoff only3 in2.5 in2130
M105: shutoff only3 in | N105: 1.5 in | O105: shutoff only3 in1.5 in | P105: 2126 | Q105: 2390 | S105: shutoff only3 in1.5 in | T105: 2126 | U105: shutoff only3 in1.5 in2126
O106: shutoff with integrated tip1.5 in1.5 in | P106: 2431 | S106: shutoff with integrated tip1.5 in1.5 in | T106: 2431 | U106: shutoff with integrated tip1.5 in1.5 in2431
O107: shutoff with integrated tip2 in1.5 in | P107: 2431 | S107: shutoff with integrated tip2 in1.5 in | T107: 2431 | U107: shutoff with integrated tip2 in1.5 in2431
O108: shutoff with integrated tip2.5 in1.5 in | P108: 2433 | S108: shutoff with integrated tip2.5 in1.5 in | T108: 2433 | U108: shutoff with integrated tip2.5 in1.5 in2433
O109: shutoff with integrated tip3 in1.5 in | P109: 2433 | S109: shutoff with integrated tip3 in1.5 in | T109: 2433 | U109: shutoff with integrated tip3 in1.5 in2433
S110: shutoff only2.5 in1.5 in | T110: 2390 | U110: shutoff only2.5 in1.5 in2390
S111: shutoff only3 in1.5 in | T111: 2390 | U111: shutoff only3 in1.5 in2390
M112: 2102
M113: 2126

Sheet Multi-Purpose
B1: Instructions: | H1: Reaction Force Color Chart: | I1: This is a Low RF Nozzle (RF < 51 ) | AH1: asdf | AK1: Style | AL1: Flow | AN1: Flow | AU1: 100 | AV1: 75 | AW1: 50 | AX1: 87 | BA1: Bore Size | BB1: Style | BF1: Flow | BJ1: Flow | BK1: Pressure | BS1: Style | BT1: Flow | BU1: Pressure | CA1: Style | CN1: Bore Size | CU1: Bore Size | CZ1: Bore Size | DB1: Bore,Shutoff,Inlet,Remove Grip | DE1: Bore Size | DF1: Style | DG1: Inlet | DH1: Dec Size | DI1: Shutoff | DJ1: Remove PG | DL1: Bore Size | DM1: Dec Size | DO1: Solid Bore No 1.5 in | DP1: Solid Bore No 2.5 in | DQ1: Solid Bore Yes 1.5 in | DR1: Solid Bore Yes 2.5 in | DS1: Stack Tips No 1.5 in | DT1: Stack Tips No 2.5 in | DU1: Stack Tips Yes 1.5 in | DV1: Stack Tips Yes 2.5 in | DY1: Bore,Shutoff,Inlet,Remove Grip | DZ1: Style | ED1: Bore Size | EE1: Bore Size | EH1: Bore Size | EI1: Style | EJ1: Inlet | EK1: Dec Size | EL1: Shutoff | EU1: 50 | EX1: Bore Size | EY1: Style
B2: Tan-colored cells are headers or describe the selection options | M2: Nozzle | O2: SaberJet Fog Nozzle | P2: UltraJet Fog Nozzle | R2: 5-40 | S2: 125-250 | T2: 13-30 | U2: 13-60 | V2: 18-30 | W2: 30-125 | X2: 30-150 | Y2: 30-200 | Z2: 95-200 | AA2: 12-53 | AK2: 4116 | AL2: 60 | AN2: 13 | AO2: 100 (Std) | AT2: 4116 | AU2: 60 | AV2: 60 | AX2: 60 | AZ2: Solid Bore | BA2: 3/4" | BB2: 0416 | BC2: 1.5 in | BD2: 0.75 | BE2: Fog Nozzle | BF2: 13 | BG2: Fog Nozzle 13 | BJ2: 13 | BK2: 100 (Std) | BL2: =CONCATENATE(BJ2," ",BK2) -> 13 100 (Std) | BN2: 200 | BO2: 100 (Std) | BR2: Fog Nozzle | BS2: 4116 | BT2: 60 | BU2: 100 (Std) | BV2: =CONCATENATE(BR2," ",BT2," @ ",BU2) -> Fog Nozzle 60 @ 100 (Std) | BZ2: Fog Nozzle 125 @ 100 | CA2: 4116 | CB2: 4863 | CD2: =CONCATENATE($BZ2," ",CA2) -> Fog Nozzle 125 @ 100 4116 | CE2: =CONCATENATE($BZ2," ",CB2) -> Fog Nozzle 125 @ 100 4863 | CF2: Fog_Nozzle_125___100 | CI2: Fog Nozzle 125 @ 100 4116 | CM2: Solid Bore | CN2: 3/8" | CO2: 0.375 | CP2: =CONCATENATE(CM2," ",CN2) -> Solid Bore 3/8" | CT2: Solid Bore 1.5 in | CU2: 3/4" | CV2: 1.5 in | CW2: Solid Bore 1.5 in | CY2: Solid Bore 1.5 in | CZ2: 3/4" | DB2: =CONCATENATE(DD2," ",DI2," ",DG2," ",DE2," ",DJ2) -> Solid Bore No 1.5 in 3/4" Yes | DC2: =CONCATENATE(DD2," ",DI2," ",DG2) -> Solid Bore No 1.5 in | DD2: Solid Bore | DE2: 3/4" | DF2: 0416 | DG2: 1.5 in | DH2: 0.75 | DI2: No | DJ2: Yes | DK2: Solid Bore No 1.5 in | DM2: 0.375 | DO2: 3/8" | DP2: 7/8" | DQ2: 1/2" | DR2: 7/8" | DS2: 1-1/8"; 1/2" | DT2: 1-1/2"; 1-1/4"; 1" | DU2: 15/16"; 1/2" | DV2: 1-1/8"; 1/2" | DY2: Solid Bore No 1.5 in 1" Yes | DZ2: 0416 | EA2: 1417 | EB2: 1499 | ED2: 3/4" | EE2: 3_4_ | EG2: Solid Bore | EH2: 3/4" | EI2: 0416 | EJ2: 1.5 in | EK2: 0.75 | EL2: No | EM2: =CONCATENATE(EG2," ",EJ2," ",EL2," ",EH2," ",EI2) -> Solid Bore 1.5 in No 3/4" 0416 | EO2: Solid Bore 1.5 in No 3/4" 0416 | ES2: 0.375 | ET2: 3/8" | EU2: =CONCATENATE(ROUND(29.71*(ES2*ES2)*SQRT(EU$1),0)," gpm @ 50 psi; RF = ",ROUND(1.57*(ES2*ES2)*EU$1,0)) -> 30 gpm @ 50 psi; RF = 11 | EW2: Solid Bore | EX2: 3/4" | EY2: 0416 | EZ2: =_xlfn.CONCAT(EW2:EY2) -> Solid Bore3/4"0416 | FB2: Solid Bore3/4"0416
B3: Use the green-colored cells to make your selections (All cells must be filled in; information from "FrontPage" tab does not carry over to this page) | I3: This is a Nozzle with Increased RF (RF > 50 and <101 ) | M3: Tip | O3: 1.5 in | P3: 1.5 in | R3: 100 (Std) | S3: 100 (Std) | T3: 100 (Std) | U3: 100 (Std) | V3: 100 (Std) | W3: 100 (Std) | X3: 100 (Std) | Y3: 100 (Std) | Z3: 100 (Std) | AA3: 87 (CE) | AK3: 4116 | AL3: 95 | AN3: 25 | AO3: 100 (Std) | AT3: 4116 | AU3: 95 | AV3: 95 | AX3: 95 | AZ3: Solid Bore | BA3: 7/8" | BB3: 0416 | BC3: 1.5 in | BD3: 0.875 | BE3: Fog Nozzle | BF3: 25 | BG3: Fog Nozzle 25 | BJ3: 25 | BK3: 100 (Std) | BL3: =CONCATENATE(BJ3," ",BK3) -> 25 100 (Std) | BN3: 250 | BO3: 100 (Std) | BR3: Fog Nozzle | BS3: 4116 | BT3: 60 | BU3: 75 | BV3: =CONCATENATE(BR3," ",BT3," @ ",BU3) -> Fog Nozzle 60 @ 75 | BZ3: Fog Nozzle 125 @ 75 | CA3: 4116 | CB3: 4863 | CD3: =CONCATENATE($BZ3," ",CA3) -> Fog Nozzle 125 @ 75 4116 | CE3: =CONCATENATE($BZ3," ",CB3) -> Fog Nozzle 125 @ 75 4863 | CI3: Fog Nozzle 125 @ 100 4863 | CM3: Solid Bore | CN3: 1/2" | CO3: 0.5 | CP3: =CONCATENATE(CM3," ",CN3) -> Solid Bore 1/2" | CT3: Solid Bore 1.5 in | CU3: 7/8" | CV3: 1.5 in | CW3: Solid Bore 1.5 in | CY3: Solid Bore 1.5 in | CZ3: 7/8" | DB3: =CONCATENATE(DD3," ",DI3," ",DG3," ",DE3," ",DJ3) -> Solid Bore No 1.5 in 7/8" Yes | DC3: =CONCATENATE(DD3," ",DI3," ",DG3) -> Solid Bore No 1.5 in | DD3: Solid Bore | DE3: 7/8" | DF3: 0416 | DG3: 1.5 in | DH3: 0.875 | DI3: No | DJ3: Yes | DK3: Solid Bore No 1.5 in | DM3: 0.5 | DO3: 1/2" | DP3: 15/16" | DQ3: 7/8" | DR3: 15/16" | DS3: 15-16"; 1/2" | DT3: 1-1/4"; 1-1/8"; 1" | DV3: 1-1/4"; 1-1/8"; 1" | DY3: Solid Bore No 1.5 in 1/2" Yes | DZ3: 1417 | ED3: 7/8" | EE3: 7_8_ | EG3: Solid Bore | EH3: 7/8" | EI3: 0416 | EJ3: 1.5 in | EK3: 0.875 | EL3: No | EM3: =CONCATENATE(EG3," ",EJ3," ",EL3," ",EH3," ",EI3) -> Solid Bore 1.5 in No 7/8" 0416 | EO3: Solid Bore 1.5 in No 7/8" 0416 | ES3: 0.5 | ET3: 1/2" | EU3: 53 gpm @ 50 psi; RF = 20 | EW3: Solid Bore | EX3: 7/8" | EY3: 0416 | EZ3: =_xlfn.CONCAT(EW3:EY3) -> Solid Bore7/8"0416 | FB3: Solid Bore7/8"0416
B4: Blue-colored cells provide outputs based on your selections | M4: High Pressure | O4: 2 in | P4: 2 in | R4: 75 | S4: 75 | W4: 75 | X4: 75 | Y4: 75 | Z4: 75 | AK4: 4116 | AL4: 125 | AN4: 40 | AO4: 100 (Std) | AT4: 4116 | AU4: 125 | AV4: 125 | AX4: 125 | AZ4: Solid Bore | BA4: 1" | BB4: 0416 | BC4: 1.5 in | BD4: 1 | BE4: Fog Nozzle | BF4: 40 | BG4: Fog Nozzle 40 | BJ4: 40 | BK4: 100 (Std) | BL4: 40 100 (Std) | BN4: 300 | BO4: 100 (Std) | BR4: Fog Nozzle | BS4: 4116 | BT4: 60 | BU4: 87 (CE) | BV4: Fog Nozzle 60 @ 87 (CE) | BZ4: Fog Nozzle 125 @ 87 | CA4: 4116 | CD4: =CONCATENATE($BZ4," ",CA4) -> Fog Nozzle 125 @ 87 4116 | CI4: Fog Nozzle 125 @ 75 4116 | CM4: Solid Bore | CN4: 5/8" | CO4: 0.625 | CP4: Solid Bore 5/8" | CT4: Solid Bore 1.5 in | CU4: 1" | CV4: 1.5 in | CW4: Solid Bore 1.5 in | CY4: Solid Bore 1.5 in | CZ4: 1" | DB4: Solid Bore No 1.5 in 1" Yes | DC4: Solid Bore No 1.5 in | DD4: Solid Bore | DE4: 1" | DF4: 0416 | DG4: 1.5 in | DH4: 1 | DI4: No | DJ4: Yes | DK4: Solid Bore No 1.5 in | DM4: 0.625 | DO4: 5/8" | DP4: 1" | DQ4: 15/16" | DR4: 1" | DS4: 1-1/16"; 15/16" | DT4: 1-3/8"; 1-1/4"; 1" | DY4: Solid Bore No 1.5 in 1-1/16" Yes | DZ4: 1499 | ED4: 1" | EE4: 1_ | EG4: Solid Bore | EH4: 1" | EI4: 0416 | EJ4: 1.5 in | EK4: 1 | EL4: No | EM4: Solid Bore 1.5 in No 1" 0416 | EO4: Solid Bore 1.5 in No 1" 0416 | ES4: 0.625 | ET4: 5/8" | EU4: 82 gpm @ 50 psi; RF = 31 | EW4: Solid Bore | EX4: 1" | EY4: 0416 | EZ4: Solid Bore1"0416 | FB4: Solid Bore1"0416
B5: This shaded cell indicates an error has ocurred and you may need to modify some of your selections or contact our Customer Care team | I5: This Nozzle has a High RF (RF > 100 ) | O5: 2.5 in | P5: 2.5 in | R5: 87 (CE) | W5: 87 (CE) | X5: 87 (CE) | AD5: 5-40 | AE5: 100 (Std) | AF5: =CONCATENATE(AD5," ",AE5) -> 5-40 100 (Std) | AK5: 4116 | AL5: 150 | AN5: 60 | AO5: 100 (Std) | AP5: 75 | AQ5: 87 (CE) | AT5: 4116 | AU5: 150 | AV5: 150 | AX5: 150 | AZ5: Solid Bore | BA5: 1-1/8" | BB5: 0416 | BC5: 1.5 in | BD5: 1.125 | BE5: Fog Nozzle | BF5: 60 | BG5: Fog Nozzle 60 | BJ5: 60 | BK5: 100 (Std) | BL5: 60 100 (Std) | BN5: 350 | BO5: 100 (Std) | BR5: Fog Nozzle | BS5: 4116 | BT5: 95 | BU5: 100 (Std) | BV5: Fog Nozzle 95 @ 100 (Std) | BZ5: Fog Nozzle 13 @ 100 | CA5: 4802 | CD5: =CONCATENATE($BZ5," ",CA5) -> Fog Nozzle 13 @ 100 4802 | CI5: Fog Nozzle 125 @ 75 4863 | CM5: Solid Bore | CN5: 3/4" | CO5: 0.75 | CP5: Solid Bore 3/4" | CT5: Solid Bore 1.5 in | CU5: 1-1/8" | CV5: 1.5 in | CW5: Solid Bore 1.5 in | CY5: Solid Bore 1.5 in | CZ5: 1-1/8" | DB5: Solid Bore No 1.5 in 1-1/8" Yes | DC5: Solid Bore No 1.5 in | DD5: Solid Bore | DE5: 1-1/8" | DF5: 0416 | DG5: 1.5 in | DH5: 1.125 | DI5: No | DJ5: Yes | DK5: Solid Bore No 1.5 in | DM5: 0.75 | DO5: 3/4" | DP5: 1-1/8" | DQ5: 1" | DR5: 1-1/16" | DS5: 1-1/4"; 1-1/8"; 1" | DY5: Solid Bore No 1.5 in 1-1/4" Yes | DZ5: 0416 | EA5: 1417 | EB5: 1499 | ED5: 1-1/8" | EE5: 1_1_8_ | EG5: Solid Bore | EH5: 1-1/8" | EI5: 0416 | EJ5: 1.5 in | EK5: 1.125 | EL5: No | EM5: Solid Bore 1.5 in No 1-1/8" 0416 | EO5: Solid Bore 1.5 in No 1-1/8" 0416 | ES5: 0.75 | ET5: 3/4" | EU5: 118 gpm @ 50 psi; RF = 44 | EW5: Solid Bore | EX5: 1-1/8" | EY5: 0416 | EZ5: Solid Bore1-1/8"0416 | FB5: Solid Bore1-1/8"0416
B6: Orange-colored cell allows you to input your discount for Net Price | O6: 3 in | P6: 3 in | AD6: 5-40 | AE6: 75 | AF6: =CONCATENATE(AD6," ",AE6) -> 5-40 75 | AK6: 4802 | AL6: 13 | AN6: 95 | AO6: 100 (Std) | AP6: 75 | AQ6: 87 (CE) | AT6: 4802 | AU6: 13 | AZ6: Solid Bore | BA6: 1-1/4" | BB6: 0416 | BC6: 1.5 in | BD6: 1.25 | BE6: Fog Nozzle | BF6: 95 | BG6: Fog Nozzle 95 | BJ6: 60 | BK6: 87 (CE) | BL6: 60 87 (CE) | BN6: 200 | BO6: 75 | BR6: Fog Nozzle | BS6: 4116 | BT6: 95 | BU6: 75 | BV6: Fog Nozzle 95 @ 75 | BZ6: Fog Nozzle 150 @ 100 | CA6: 4116 | CB6: 4863 | CD6: Fog Nozzle 150 @ 100 4116 | CE6: =CONCATENATE($BZ6," ",CB6) -> Fog Nozzle 150 @ 100 4863 | CI6: Fog Nozzle 125 @ 87 4116 | CM6: Solid Bore | CN6: 7/8" | CO6: 0.875 | CP6: Solid Bore 7/8" | CT6: Solid Bore 1.5 in | CU6: 1-1/4" | CV6: 1.5 in | CW6: Solid Bore 1.5 in | CY6: Solid Bore 1.5 in | CZ6: 1-1/4" | DB6: Solid Bore No 1.5 in 1-1/4" Yes | DC6: Solid Bore No 1.5 in | DD6: Solid Bore | DE6: 1-1/4" | DF6: 0416 | DG6: 1.5 in | DH6: 1.25 | DI6: No | DJ6: Yes | DK6: Solid Bore No 1.5 in | DM6: 0.875 | DO6: 7/8" | DP6: 1-1/4" | DQ6: 1-1/16" | DR6: 1-1/8" | DY6: Solid Bore No 1.5 in 1-1/8" Yes | DZ6: 0416 | EA6: 1417 | EB6: 1499 | ED6: 1-1/4" | EE6: 1_1_4_ | EG6: Solid Bore | EH6: 1-1/4" | EI6: 0416 | EJ6: 1.5 in | EK6: 1.25 | EL6: No | EM6: Solid Bore 1.5 in No 1-1/4" 0416 | EO6: Solid Bore 1.5 in No 1-1/4" 0416 | ES6: 0.875 | ET6: 7/8" | EU6: 161 gpm @ 50 psi; RF = 60 | EW6: Solid Bore | EX6: 1-1/4" | EY6: 0416 | EZ6: Solid Bore1-1/4"0416 | FB6: Solid Bore1-1/4"0416
B7: =FrontPage!E8 -> Rev Date: 6/27/2022 | D7: Multipurpose Fog Nozzles (UltraJet and SaberJet) | AD7: 5-40 | AE7: 87 (CE) | AF7: 5-40 87 (CE) | AK7: 4802 | AL7: 25 | AN7: 125 | AO7: 100 (Std) | AP7: 75 | AQ7: 50 | AR7: 87 (CE) | AT7: 4802 | AU7: 25 | AZ7: Solid Bore | BA7: 3/8" | BB7: 1417 | BC7: 1.5 in | BD7: 0.375 | BE7: Fog Nozzle | BF7: 125 | BG7: Fog Nozzle 125 | BJ7: 60 | BK7: 75 | BL7: 60 75 | BN7: 250 | BO7: 75 | BR7: Fog Nozzle | BS7: 4116 | BT7: 95 | BU7: 87 (CE) | BV7: Fog Nozzle 95 @ 87 (CE) | BZ7: Fog Nozzle 150 @ 50 | CA7: 4863 | CD7: Fog Nozzle 150 @ 50 4863 | CI7: Fog Nozzle 13 @ 100 4802 | CM7: Solid Bore | CN7: 15/16" | CO7: 0.9375 | CP7: Solid Bore 15/16" | CT7: Solid Bore 1.5 in | CU7: 3/8" | CV7: 1.5 in | CW7: Solid Bore 1.5 in | CY7: Solid Bore 1.5 in | CZ7: 3/8" | DB7: Solid Bore No 1.5 in 3/8" Yes | DC7: Solid Bore No 1.5 in | DD7: Solid Bore | DE7: 3/8" | DF7: 1417 | DG7: 1.5 in | DH7: 0.375 | DI7: No | DJ7: Yes | DK7: Solid Bore No 1.5 in | DM7: 0.9375 | DO7: 15/16" | DP7: 1-3/8" | DQ7: 1-1/8" | DR7: 1-3/16" | DY7: Solid Bore No 1.5 in 1-3/16" Yes | DZ7: 1499 | ED7: 3/8" | EE7: 3_8_ | EG7: Solid Bore | EH7: 3/8" | EI7: 1417 | EJ7: 1.5 in | EK7: 0.375 | EL7: No | EM7: Solid Bore 1.5 in No 3/8" 1417 | EO7: Solid Bore 1.5 in No 3/8" 1417 | ES7: 0.9375 | ET7: 15/16" | EU7: 185 gpm @ 50 psi; RF = 69 | EW7: Solid Bore | EX7: 3/8" | EY7: 1417 | EZ7: Solid Bore3/8"1417 | FB7: Solid Bore3/8"1417
B8: SaberJet or UltraJet | C8: Inlet Size | D8: =IF(B10="SaberJet Fog Nozzle","Fog Flow Rate","") ->  | E8: Solid Bore Size | F8: Inlet Thread | G8: Fog Flow Reaction Force | H8: =IF(J10="yes","","Remove Pistol Grip?") -> Remove Pistol Grip? | I8: Style Number | J8: =IF(TRIM(I10)="2390","","ZT Inlet?") -> ZT Inlet? | K8: Custom Etch | AD8: 125-250 | AE8: 100 (Std) | AF8: 125-250 100 (Std) | AK8: 4802 | AL8: 40 | AN8: 150 | AO8: 100 (Std) | AP8: 75 | AQ8: 50 | AR8: 87 (CE) | AT8: 4802 | AU8: 40 | AZ8: Solid Bore | BA8: 1/2" | BB8: 1417 | BC8: 1.5 in | BD8: 0.5 | BE8: Fog Nozzle | BF8: 150 | BG8: Fog Nozzle 150 | BJ8: 95 | BK8: 100 (Std) | BL8: 95 100 (Std) | BN8: 300 | BO8: 75 | BR8: Fog Nozzle | BS8: 4116 | BT8: 125 | BU8: 100 (Std) | BV8: Fog Nozzle 125 @ 100 (Std) | BZ8: Fog Nozzle 150 @ 75 | CA8: 4116 | CB8: 4863 | CD8: Fog Nozzle 150 @ 75 4116 | CE8: =CONCATENATE($BZ8," ",CB8) -> Fog Nozzle 150 @ 75 4863 | CI8: Fog Nozzle 150 @ 100 4116 | CM8: Solid Bore | CN8: 1" | CO8: 1 | CP8: Solid Bore 1" | CT8: Solid Bore 1.5 in | CU8: 1/2" | CV8: 1.5 in | CW8: Solid Bore 1.5 in | CY8: Solid Bore 1.5 in | CZ8: 1/2" | DB8: Solid Bore No 1.5 in 1/2" Yes | DC8: Solid Bore No 1.5 in | DD8: Solid Bore | DE8: 1/2" | DF8: 1417 | DG8: 1.5 in | DH8: 0.5 | DI8: No | DJ8: Yes | DK8: Solid Bore No 1.5 in | DM8: 1 | DO8: 1" | DQ8: 1-3/16" | DR8: 1-1/4" | DY8: Solid Bore No 1.5 in 1-3/8" Yes | DZ8: 1499 | ED8: 1/2" | EE8: 1_2_ | EG8: Solid Bore | EH8: 1/2" | EI8: 1417 | EJ8: 1.5 in | EK8: 0.5 | EL8: No | EM8: Solid Bore 1.5 in No 1/2" 1417 | EO8: Solid Bore 1.5 in No 1/2" 1417 | ES8: 1 | ET8: 1" | EU8: 210 gpm @ 50 psi; RF = 79 | EW8: Solid Bore | EX8: 1/2" | EY8: 1417 | EZ8: Solid Bore1/2"1417 | FB8: Solid Bore1/2"1417
O9: Solid Bore | P9: Stack Tips | AD9: 125-250 | AE9: 75 | AF9: 125-250 75 | AK9: 4824 | AL9: 200 | AN9: 161 | AO9: 50 | AT9: 4824 | AU9: 200 | AV9: 200 | AZ9: Solid Bore | BA9: 5/8" | BB9: 1417 | BC9: 1.5 in | BD9: 0.625 | BE9: Fog Nozzle | BF9: 161 | BG9: Fog Nozzle 161 | BJ9: 95 | BK9: 75 | BL9: 95 75 | BN9: 210 | BO9: 50 | BR9: Fog Nozzle | BS9: 4116 | BT9: 125 | BU9: 75 | BV9: Fog Nozzle 125 @ 75 | BZ9: Fog Nozzle 150 @ 87 | CA9: 4116 | CD9: Fog Nozzle 150 @ 87 4116 | CI9: Fog Nozzle 150 @ 100 4863 | CM9: Solid Bore | CN9: 1-1/16" | CO9: 1.0625 | CP9: Solid Bore 1-1/16" | CT9: Solid Bore 1.5 in | CU9: 5/8" | CV9: 1.5 in | CW9: Solid Bore 1.5 in | CY9: Solid Bore 1.5 in | CZ9: 5/8" | DB9: Solid Bore No 1.5 in 5/8" Yes | DC9: Solid Bore No 1.5 in | DD9: Solid Bore | DE9: 5/8" | DF9: 1417 | DG9: 1.5 in | DH9: 0.625 | DI9: No | DJ9: Yes | DK9: Solid Bore No 1.5 in | DM9: 1.0625 | DO9: 1-1/16" | DQ9: 1-1/4" | DR9: 1-3/8" | DY9: Solid Bore No 1.5 in 15/16" Yes | DZ9: 1417 | EA9: 1499 | ED9: 5/8" | EE9: 5_8_ | EG9: Solid Bore | EH9: 5/8" | EI9: 1417 | EJ9: 1.5 in | EK9: 0.625 | EL9: No | EM9: Solid Bore 1.5 in No 5/8" 1417 | EO9: Solid Bore 1.5 in No 5/8" 1417 | ES9: 1.0625 | ET9: 1-1/16" | EU9: 237 gpm @ 50 psi; RF = 89 | EW9: Solid Bore | EX9: 5/8" | EY9: 1417 | EZ9: Solid Bore5/8"1417 | FB9: Solid Bore5/8"1417
B10: UltraJet Fog Nozzle | C10: 1.5 in | D10: 95 @ 100 | E10: 7/8" | F10: NH | G10: =IFERROR(IF(I10="","",ROUND(0.0505*IF(TRIM(I10)="1820",VALUE(LEFT(E11,3)),IF(I10="1520",95,135))*SQRT(IF(TRIM(I10)="1820",50,100)),0)),"Fix Bore Size") -> 57 | H10: No (Std) | I10: =IF(B10=P2,"1820",IFERROR(VLOOKUP(CONCATENATE(B10,E10,D10),BF63:BG69,2,FALSE),"")) -> 1820 | J10: No (Std) | K10: No (Std) | O10: 1.5 in | P10: 1.5 in | X10: INDIRECT(CONCATENATE("tHREAD",SUBSTITUTE(B4," ","_"))) | AD10: 13-30 | AE10: 100 (Std) | AF10: 13-30 100 (Std) | AK10: 4824 | AL10: 210 | AN10: 175 | AO10: 100 (Std) | AP10: 75 | AQ10: 50 | AT10: 4824 | AW10: 210 | AZ10: Solid Bore | BA10: 3/4" | BB10: 1417 | BC10: 1.5 in | BD10: 0.75 | BE10: Fog Nozzle | BF10: 175 | BG10: Fog Nozzle 175 | BJ10: 95 | BK10: 87 (CE) | BL10: 95 87 (CE) | BN10: 250 | BO10: 50 | BR10: Fog Nozzle | BS10: 4116 | BT10: 125 | BU10: 87 (CE) | BV10: Fog Nozzle 125 @ 87 (CE) | BZ10: Fog Nozzle 161 @ 50 | CA10: 4863 | CD10: Fog Nozzle 161 @ 50 4863 | CI10: Fog Nozzle 150 @ 50 4863 | CM10: Solid Bore | CN10: 1-1/8" | CO10: 1.125 | CP10: Solid Bore 1-1/8" | CT10: Solid Bore 1.5 in | CU10: 3/4" | CV10: 1.5 in | CW10: Solid Bore 1.5 in | CY10: Solid Bore 1.5 in | CZ10: 15/16" | DB10: Solid Bore No 1.5 in 3/4" Yes | DC10: Solid Bore No 1.5 in | DD10: Solid Bore | DE10: 3/4" | DF10: 1417 | DG10: 1.5 in | DH10: 0.75 | DI10: No | DJ10: Yes | DK10: Solid Bore No 1.5 in | DM10: 1.125 | DO10: 1-1/8" | DQ10: 1-3/8" | DY10: Solid Bore No 1.5 in 3/4" Yes | DZ10: 0416 | EA10: 1417 | ED10: 3/4" | EE10: 3_4_ | EG10: Solid Bore | EH10: 3/4" | EI10: 1417 | EJ10: 1.5 in | EK10: 0.75 | EL10: No | EM10: Solid Bore 1.5 in No 3/4" 1417 | EO10: Solid Bore 1.5 in No 3/4" 1417 | ES10: 1.125 | ET10: 1-1/8" | EU10: 266 gpm @ 50 psi; RF = 99 | EW10: Solid Bore | EX10: 3/4" | EY10: 1417 | EZ10: Solid Bore3/4"1417 | FB10: Solid Bore3/4"1417
B11: List price | C11: =SUM(E11:K11) -> 1578 | E11: =IF(E21="false","Fix Bore Size",VLOOKUP(E10,ET:EU,2,FALSE)) -> 161 gpm @ 50 psi; RF = 60 | F11: =IF(OR(F10="Storz",F10="BIM"),_xlfn.XLOOKUP("storz",M:M,N:N),0) -> 0 | I11: =IFERROR(VLOOKUP(TRIM(I10),M:N,2,FALSE),"") -> 1578 | J11: =IF(J8="",0,IF(J10="Yes",_xlfn.XLOOKUP("zt",M:M,N:N),0)) -> 0 | O11: 2.5 in | P11: 2.5 in | AD11: 13-60 | AE11: 100 (Std) | AF11: 13-60 100 (Std) | AK11: 4824 | AL11: 250 | AN11: 185 | AO11: 50 | AT11: 4824 | AU11: 250 | AV11: 250 | AW11: 250 | AZ11: Solid Bore | BA11: 7/8" | BB11: 1417 | BC11: 1.5 in | BD11: 0.875 | BE11: Fog Nozzle | BF11: 200 | BG11: Fog Nozzle 200 | BJ11: 125 | BK11: 100 (Std) | BL11: 125 100 (Std) | BR11: Fog Nozzle | BS11: 4116 | BT11: 150 | BU11: 100 (Std) | BV11: Fog Nozzle 150 @ 100 (Std) | BZ11: Fog Nozzle 175 @ 100 | CA11: 4863 | CD11: Fog Nozzle 175 @ 100 4863 | CI11: Fog Nozzle 150 @ 75 4116 | CM11: Solid Bore | CN11: 1-3/16" | CO11: 1.1875 | CP11: Solid Bore 1-3/16" | CT11: Solid Bore 1.5 in | CU11: 7/8" | CV11: 1.5 in | CW11: Solid Bore 1.5 in | CY11: Solid Bore 1.5 in | CZ11: 1-1/16" | DB11: Solid Bore No 1.5 in 7/8" Yes | DC11: Solid Bore No 1.5 in | DD11: Solid Bore | DE11: 7/8" | DF11: 1417 | DG11: 1.5 in | DH11: 0.875 | DI11: No | DJ11: Yes | DK11: Solid Bore No 1.5 in | DM11: 1.1875 | DO11: 1-3/16" | DY11: Solid Bore No 1.5 in 3/8" Yes | DZ11: 1417 | ED11: 7/8" | EE11: 7_8_ | EG11: Solid Bore | EH11: 7/8" | EI11: 1417 | EJ11: 1.5 in | EK11: 0.875 | EL11: No | EM11: Solid Bore 1.5 in No 7/8" 1417 | EO11: Solid Bore 1.5 in No 7/8" 1417 | ES11: 1.1875 | ET11: 1-3/16" | EU11: 296 gpm @ 50 psi; RF = 111 | EW11: Solid Bore | EX11: 7/8" | EY11: 1417 | EZ11: Solid Bore7/8"1417 | FB11: Solid Bore7/8"1417
B12: Your Discount | C12: 0.3 | D12: Net Price | F12: =ROUND(C11*(1-C12),2) -> 1104.6 | H12: Include Color Clips for Shutoff and/or Pistol Grip? | K12: Yes | X12: =CONCATENATE(B10," ",C10," ",D10," ",E10," ",I10) -> UltraJet Fog Nozzle 1.5 in 95 @ 100 7/8" 1820 | AD12: 18-30 | AE12: 100 (Std) | AF12: 18-30 100 (Std) | AK12: 4824 | AL12: 265 | AN12: 200 | AO12: 100 (Std) | AP12: 75 | AT12: 4824 | AU12: 300 | AV12: 300 | AZ12: Solid Bore | BA12: 15/16" | BB12: 1417 | BC12: 1.5 in | BD12: 0.9375 | BE12: Fog Nozzle | BF12: 210 | BG12: Fog Nozzle 210 | BJ12: 125 | BK12: 75 | BL12: 125 75 | BR12: Fog Nozzle | BS12: 4116 | BT12: 150 | BU12: 75 | BV12: Fog Nozzle 150 @ 75 | BZ12: Fog Nozzle 175 @ 50 | CA12: 4863 | CD12: Fog Nozzle 175 @ 50 4863 | CI12: Fog Nozzle 150 @ 75 4863 | CM12: Solid Bore | CN12: 1-1/4" | CO12: 1.25 | CP12: Solid Bore 1-1/4" | CT12: Solid Bore 1.5 in | CU12: 15/16" | CV12: 1.5 in | CW12: Solid Bore 1.5 in | CY12: Solid Bore 1.5 in | CZ12: 1-3/16" | DB12: Solid Bore No 1.5 in 15/16" Yes | DC12: Solid Bore No 1.5 in | DD12: Solid Bore | DE12: 15/16" | DF12: 1417 | DG12: 1.5 in | DH12: 0.9375 | DI12: No | DJ12: Yes | DK12: Solid Bore No 1.5 in | DM12: 1.25 | DO12: 1-1/4" | DY12: Solid Bore No 1.5 in 5/8" Yes | DZ12: 1417 | ED12: 15/16" | EE12: 15_16_ | EG12: Solid Bore | EH12: 15/16" | EI12: 1417 | EJ12: 1.5 in | EK12: 0.9375 | EL12: No | EM12: Solid Bore 1.5 in No 15/16" 1417 | EO12: Solid Bore 1.5 in No 15/16" 1417 | ES12: 1.25 | ET12: 1-1/4" | EU12: 328 gpm @ 50 psi; RF = 123 | EW12: Solid Bore | EX12: 15/16" | EY12: 1417 | EZ12: Solid Bore15/16"1417 | FB12: Solid Bore15/16"1417
B13: Short Description | C13: =IF(B21="Error","Fix Errors",CONCATENATE(I10," ",C10," ",F10," ",IF(I10="1820",LEFT(E11,3),TRIM(LEFT(D10,3)))," ",CONCATENATE(E10," bore size(s)"),IF(I10="1820"," 50 "," 100 (Std) "),Q32,IF(TRIM(I10)="2390"," ",IF(J10="yes", " PG",IF(H10="yes"," NPG"," PG"))),IF(TRIM(I10)="2390","",IF(J10="Yes"," ZT","")),IF(K10="Yes"," ETCH",""))) -> 1820 1.5 in NH 161 7/8" bore size(s) 50 BLACK (Std) PG | M13: 1 IN | N13: NH | R13: 1 in | S13: 1.5 in | T13: 2 in | U13: 2.5 in | V13: 3 in | AD13: 30-125 | AE13: 100 (Std) | AF13: 30-125 100 (Std) | AK13: 4824 | AL13: 300 | AN13: 210 | AO13: 50 | AT13: 4824 | AU13: 350 | AZ13: Solid Bore | BA13: 1" | BB13: 1417 | BC13: 1.5 in | BD13: 1 | BE13: Fog Nozzle | BF13: 225 | BG13: Fog Nozzle 225 | BJ13: 125 | BK13: 50 | BL13: 125 50 | BR13: Fog Nozzle | BS13: 4116 | BT13: 150 | BU13: 87 (CE) | BV13: Fog Nozzle 150 @ 87 (CE) | BZ13: Fog Nozzle 175 @ 75 | CA13: 4863 | CD13: Fog Nozzle 175 @ 75 4863 | CI13: Fog Nozzle 150 @ 87 4116 | CM13: Solid Bore | CN13: 1-3/8" | CO13: 1.375 | CP13: Solid Bore 1-3/8" | CT13: Solid Bore 1.5 in | CU13: 1" | CV13: 1.5 in | CW13: Solid Bore 1.5 in | CY13: Solid Bore 1.5 in | CZ13: 1-3/8" | DB13: Solid Bore No 1.5 in 1" Yes | DC13: Solid Bore No 1.5 in | DD13: Solid Bore | DE13: 1" | DF13: 1417 | DG13: 1.5 in | DH13: 1 | DI13: No | DJ13: Yes | DK13: Solid Bore No 1.5 in | DM13: 1.375 | DO13: 1-3/8" | DY13: Solid Bore No 1.5 in 7/8" Yes | DZ13: 0416 | EA13: 1417 | EB13: 1499 | ED13: 1" | EE13: 1_ | EG13: Solid Bore | EH13: 1" | EI13: 1417 | EJ13: 1.5 in | EK13: 1 | EL13: No | EM13: Solid Bore 1.5 in No 1" 1417 | EO13: Solid Bore 1.5 in No 1" 1417 | ES13: 1.375 | ET13: 1-3/8" | EU13: 397 gpm @ 50 psi; RF = 148 | EW13: Solid Bore | EX13: 1" | EY13: 1417 | EZ13: Solid Bore1"1417 | FB13: Solid Bore1"1417
B14: Long Description | C14: =IF(B21="Error","Some of your selections are not compatible with others; please correct the errors highlighted in RED",CONCATENATE("Style ",I10," ",B10," with ",C10," ",F10," inlet; ",CONCATENATE(TRIM(LEFT(IF(I10="1820",E11,D10),3))," gpm @ ",IF(I10="1820",50,100)," psi fog flow (RF = ",G10,"); "),IF(B10="shutoff only","",CONCATENATE(E10," solid bore tip (",E11,"); ",)),"Black (Std) bumper;",IF(J10="Yes"," Zero-Torque Grip"," pistol grip"),IF(K10="Yes","; Custom Etched",""))) -> Style 1820 UltraJet Fog Nozzle with 1.5 in NH inlet; 161 gpm @ 50 psi fog flow (RF = 57); 7/8" solid bore tip (161 gpm @ 50 psi; RF = 60); Black (Std) bumper; pistol grip | H14: Akron Brass Part Number and Description | I14: =IF(AND(OR(F10="custom",G10="custom"),K10="yes"),"Contact Customer Care to request Custom Thread and Etch (800-228-1161)",IF(OR(F10="custom",G10="custom"),"Contact Customer Care to request Custom Thread (800-228-1161)",IF(K10="Yes","Contact Customer Care to request Custom Etch (800-228-1161)",IF(B21="Error","Incompatible selections; please correct errors highlighted in RED",IFERROR(CONCATENATE(VLOOKUP(C13,DataSource!AH:AJ,2,FALSE)," ",VLOOKUP(C13,DataSource!AH:AJ,3,FALSE)),"Version you've requested not yet created; contact Customer Care (800-228-1161)"))))) -> 18204002 ULTRAJET 1.5NH 7/8 TIP | M14: 1 IN | N14: NPSH | Q14: 30-125 | R14: 13 | S14: 60 | T14: 60 | U14: 60 | V14: 60 | X14: Stack_Tips_Yes_2.5_in_1_1_4___ 1_1_8___ 1__No__Std | AD14: 30-125 | AE14: 75 | AF14: 30-125 75 | AK14: 4824 | AL14: 350 | AN14: 225 | AO14: 100 (Std) | AT14: 4826 | AU14: 200 | AV14: 200 | AZ14: Solid Bore | BA14: 1-1/8" | BB14: 1417 | BC14: 1.5 in | BD14: 1.125 | BE14: Fog Nozzle | BF14: 250 | BG14: Fog Nozzle 250 | BJ14: 125 | BK14: 87 (CE) | BL14: 125 87 (CE) | BR14: Fog Nozzle | BS14: 4802 | BT14: 13 | BU14: 100 (Std) | BV14: Fog Nozzle 13 @ 100 (Std) | BZ14: Fog Nozzle 185 @ 50 | CA14: 4863 | CD14: Fog Nozzle 185 @ 50 4863 | CI14: Fog Nozzle 161 @ 50 4863 | CM14: Stack Tips | CN14: 1-1/8"; 1/2" | CO14: 0.5 | CP14: Stack Tips 1-1/8"; 1/2" | CT14: Solid Bore 1.5 in | CU14: 1-1/8" | CV14: 1.5 in | CW14: Solid Bore 1.5 in | CY14: Solid Bore 2.5 in | CZ14: 7/8" | DB14: Solid Bore No 1.5 in 1-1/8" Yes | DC14: Solid Bore No 1.5 in | DD14: Solid Bore | DE14: 1-1/8" | DF14: 1417 | DG14: 1.5 in | DH14: 1.125 | DI14: No | DJ14: Yes | DK14: Solid Bore No 2.5 in | DM14: 0.875 | DY14: Solid Bore No 2.5 in 1" Yes | DZ14: 0489 | ED14: 1-1/8" | EE14: 1_1_8_ | EG14: Solid Bore | EH14: 1-1/8" | EI14: 1417 | EJ14: 1.5 in | EK14: 1.125 | EL14: No | EM14: Solid Bore 1.5 in No 1-1/8" 1417 | EO14: Solid Bore 1.5 in No 1-1/8" 1417 | EW14: Solid Bore | EX14: 1-1/8" | EY14: 1417 | EZ14: Solid Bore1-1/8"1417 | FB14: Solid Bore1-1/8"1417
M15: 1 IN | N15: STORZ | Q15: 30-150 | R15: 25 | S15: 95 | T15: 95 | U15: 95 | V15: 95 | X15: Stack_Tips_Yes_2.5_in_1_1_4___1_1_8___1__No__Std | AD15: 30-125 | AE15: 87 (CE) | AF15: 30-125 87 (CE) | AK15: 4826 | AL15: 200 | AN15: 250 | AO15: 100 (Std) | AP15: 75 | AQ15: 50 | AT15: 4826 | AW15: 210 | AZ15: Solid Bore | BA15: 1-1/4" | BB15: 1417 | BC15: 1.5 in | BD15: 1.25 | BE15: Fog Nozzle | BF15: 265 | BG15: Fog Nozzle 265 | BJ15: 150 | BK15: 100 (Std) | BL15: 150 100 (Std) | BR15: Fog Nozzle | BS15: 4802 | BT15: 25 | BU15: 100 (Std) | BV15: Fog Nozzle 25 @ 100 (Std) | BZ15: Fog Nozzle 200 @ 100 | CA15: 4826 | CB15: 4863 | CD15: Fog Nozzle 200 @ 100 4826 | CE15: Fog Nozzle 200 @ 100 4863 | CI15: Fog Nozzle 175 @ 100 4863 | CM15: Stack Tips | CN15: 15-16"; 1/2" | CO15: 0.5 | CP15: Stack Tips 15-16"; 1/2" | CT15: Solid Bore 1.5 in | CU15: 1-1/4" | CV15: 1.5 in | CW15: Solid Bore 1.5 in | CY15: Solid Bore 2.5 in | CZ15: 15/16" | DB15: Solid Bore No 1.5 in 1-1/4" Yes | DC15: Solid Bore No 1.5 in | DD15: Solid Bore | DE15: 1-1/4" | DF15: 1417 | DG15: 1.5 in | DH15: 1.25 | DI15: No | DJ15: Yes | DK15: Solid Bore No 2.5 in | DM15: 0.9375 | DY15: Solid Bore No 2.5 in 1-1/4" Yes | DZ15: 0489 | ED15: 1-1/4" | EE15: 1_1_4_ | EG15: Solid Bore | EH15: 1-1/4" | EI15: 1417 | EJ15: 1.5 in | EK15: 1.25 | EL15: No | EM15: Solid Bore 1.5 in No 1-1/4" 1417 | EO15: Solid Bore 1.5 in No 1-1/4" 1417 | EW15: Solid Bore | EX15: 1-1/4" | EY15: 1417 | EZ15: Solid Bore1-1/4"1417 | FB15: Solid Bore1-1/4"1417
B16: Notes: | C16: You can make any notes about what you want, or anything else, in this space | M16: 1.5 in | Q16: 30-200 | R16: 40 | S16: 125 | T16: 125 | U16: 125 | V16: 125 | AD16: 30-150 | AE16: 100 (Std) | AF16: 30-150 100 (Std) | AK16: 4826 | AL16: 210 | AN16: 265 | AO16: 50 | AT16: 4826 | AU16: 250 | AV16: 250 | AW16: 250 | AZ16: Solid Bore | BA16: 7/8" | BB16: 1445 | BC16: 1.5 in | BD16: 0.875 | BE16: Fog Nozzle | BF16: 300 | BG16: Fog Nozzle 300 | BJ16: 150 | BK16: 75 | BL16: 150 75 | BR16: Fog Nozzle | BS16: 4802 | BT16: 40 | BU16: 100 (Std) | BV16: Fog Nozzle 40 @ 100 (Std) | BZ16: Fog Nozzle 200 @ 75 | CA16: 4826 | CB16: 4863 | CD16: Fog Nozzle 200 @ 75 4826 | CE16: Fog Nozzle 200 @ 75 4863 | CI16: Fog Nozzle 175 @ 50 4863 | CM16: Stack Tips | CN16: 15/16"; 1/2" | CO16: 0.5 | CP16: Stack Tips 15/16"; 1/2" | CT16: Solid Bore 1.5 in | CU16: 7/8" | CV16: 1.5 in | CW16: Solid Bore 1.5 in | CY16: Solid Bore 2.5 in | CZ16: 1" | DB16: Solid Bore Yes 1.5 in 7/8" No (Std) | DC16: Solid Bore Yes 1.5 in | DD16: Solid Bore | DE16: 7/8" | DF16: 1445 | DG16: 1.5 in | DH16: 0.875 | DI16: Yes | DJ16: No (Std) | DK16: Solid Bore No 2.5 in | DM16: 1 | DY16: Solid Bore No 2.5 in 1-1/8" Yes | DZ16: 0489 | ED16: 7/8" | EE16: 7_8_ | EG16: Solid Bore | EH16: 7/8" | EI16: 1445 | EJ16: 1.5 in | EK16: 0.875 | EL16: Yes | EM16: Solid Bore 1.5 in Yes 7/8" 1445 | EO16: Solid Bore 1.5 in Yes 7/8" 1445 | EW16: Solid Bore | EX16: 7/8" | EY16: 1445 | EZ16: Solid Bore7/8"1445 | FB16: Solid Bore7/8"1445
M17: 1.5 in | Q17: 95-200 | S17: 150 | T17: 150 | U17: 150 | V17: 150 | AD17: 30-150 | AE17: 75 | AF17: 30-150 75 | AK17: 4826 | AL17: 250 | AN17: 300 | AO17: 100 (Std) | AP17: 75 | AT17: 4826 | AU17: 300 | AV17: 300 | AZ17: Solid Bore | BA17: 15/16" | BB17: 1445 | BC17: 1.5 in | BD17: 0.9375 | BE17: Fog Nozzle | BF17: 350 | BG17: Fog Nozzle 350 | BJ17: 150 | BK17: 50 | BL17: 150 50 | BR17: Fog Tip | BS17: 4824 | BT17: 200 | BU17: 100 (Std) | BV17: Fog Tip 200 @ 100 (Std) | BZ17: Fog Nozzle 210 @ 50 | CA17: 4826 | CD17: Fog Nozzle 210 @ 50 4826 | CI17: Fog Nozzle 175 @ 75 4863 | CM17: Stack Tips | CN17: 1-1/16"; 15/16" | CO17: 0.9375 | CP17: Stack Tips 1-1/16"; 15/16" | CT17: Solid Bore 1.5 in | CU17: 15/16" | CV17: 1.5 in | CW17: Solid Bore 1.5 in | CY17: Solid Bore 2.5 in | CZ17: 1-1/8" | DB17: Solid Bore Yes 1.5 in 15/16" No (Std) | DC17: Solid Bore Yes 1.5 in | DD17: Solid Bore | DE17: 15/16" | DF17: 1445 | DG17: 1.5 in | DH17: 0.9375 | DI17: Yes | DJ17: No (Std) | DK17: Solid Bore No 2.5 in | DM17: 1.125 | DY17: Solid Bore No 2.5 in 1-3/8" Yes | DZ17: 0489 | ED17: 15/16" | EE17: 15_16_ | EG17: Solid Bore | EH17: 15/16" | EI17: 1445 | EJ17: 1.5 in | EK17: 0.9375 | EL17: Yes | EM17: Solid Bore 1.5 in Yes 15/16" 1445 | EO17: Solid Bore 1.5 in Yes 15/16" 1445 | EW17: Solid Bore | EX17: 15/16" | EY17: 1445 | EZ17: Solid Bore15/16"1445 | FB17: Solid Bore15/16"1445
M18: 1.5 in | Q18: 125-250 | S18: 161 | T18: 161 | U18: 161 | V18: 161 | AD18: 30-150 | AE18: 87 (CE) | AF18: 30-150 87 (CE) | AK18: 4826 | AL18: 300 | AN18: 350 | AO18: 100 (Std) | AT18: 4826 | AU18: 350 | AZ18: Solid Bore | BA18: 1" | BB18: 1445 | BC18: 1.5 in | BD18: 1 | BE18: Fog Tip | BF18: 95 | BG18: Fog Tip 95 | BJ18: 150 | BK18: 87 (CE) | BL18: 150 87 (CE) | BR18: Fog Tip | BS18: 4824 | BT18: 250 | BU18: 100 (Std) | BV18: Fog Tip 250 @ 100 (Std) | BZ18: Fog Nozzle 225 @ 100 | CA18: 4863 | CD18: Fog Nozzle 225 @ 100 4863 | CI18: Fog Nozzle 185 @ 50 4863 | CM18: Stack Tips | CN18: 1-1/4"; 1-1/8"; 1" | CO18: 1 | CP18: Stack Tips 1-1/4"; 1-1/8"; 1" | CT18: Solid Bore 1.5 in | CU18: 1" | CV18: 1.5 in | CW18: Solid Bore 1.5 in | CY18: Solid Bore 2.5 in | CZ18: 1-1/4" | DB18: Solid Bore Yes 1.5 in 1" No (Std) | DC18: Solid Bore Yes 1.5 in | DD18: Solid Bore | DE18: 1" | DF18: 1445 | DG18: 1.5 in | DH18: 1 | DI18: Yes | DJ18: No (Std) | DK18: Solid Bore No 2.5 in | DM18: 1.25 | DY18: Solid Bore No 2.5 in 15/16" Yes | DZ18: 0489 | ED18: 1" | EE18: 1_ | EG18: Solid Bore | EH18: 1" | EI18: 1445 | EJ18: 1.5 in | EK18: 1 | EL18: Yes | EM18: Solid Bore 1.5 in Yes 1" 1445 | EO18: Solid Bore 1.5 in Yes 1" 1445 | EW18: Solid Bore | EX18: 1" | EY18: 1445 | EZ18: Solid Bore1"1445 | FB18: Solid Bore1"1445
M19: 1.5 IN | S19: 175 | T19: 175 | U19: 175 | V19: 175 | AD19: 30-200 | AE19: 100 (Std) | AF19: 30-200 100 (Std) | AK19: 4826 | AL19: 350 | AT19: 4863 | AU19: 95 | AZ19: Solid Bore | BA19: 1-1/16" | BB19: 1445 | BC19: 1.5 in | BD19: 1.0625 | BE19: Fog Tip | BF19: 125 | BG19: Fog Tip 125 | BJ19: 161 | BK19: 50 | BL19: 161 50 | BR19: Fog Tip | BS19: 4824 | BT19: 300 | BU19: 100 (Std) | BV19: Fog Tip 300 @ 100 (Std) | BZ19: Fog Nozzle 25 @ 100 | CA19: 4802 | CD19: Fog Nozzle 25 @ 100 4802 | CI19: Fog Nozzle 200 @ 100 4826 | CM19: Stack Tips | CN19: 1-1/2"; 1-1/4"; 1" | CO19: 1 | CP19: Stack Tips 1-1/2"; 1-1/4"; 1" | CT19: Solid Bore 1.5 in | CU19: 1-1/16" | CV19: 1.5 in | CW19: Solid Bore 1.5 in | CY19: Solid Bore 2.5 in | CZ19: 1-3/8" | DB19: Solid Bore Yes 1.5 in 1-1/16" No (Std) | DC19: Solid Bore Yes 1.5 in | DD19: Solid Bore | DE19: 1-1/16" | DF19: 1445 | DG19: 1.5 in | DH19: 1.0625 | DI19: Yes | DJ19: No (Std) | DK19: Solid Bore No 2.5 in | DM19: 1.375 | DY19: Solid Bore No 2.5 in 7/8" Yes | DZ19: 0489 | ED19: 1-1/16" | EE19: 1_1_16_ | EG19: Solid Bore | EH19: 1-1/16" | EI19: 1445 | EJ19: 1.5 in | EK19: 1.0625 | EL19: Yes | EM19: Solid Bore 1.5 in Yes 1-1/16" 1445 | EO19: Solid Bore 1.5 in Yes 1-1/16" 1445 | EW19: Solid Bore | EX19: 1-1/16" | EY19: 1445 | EZ19: Solid Bore1-1/16"1445 | FB19: Solid Bore1-1/16"1445
M20: 1.5 in | S20: 200 | T20: 200 | U20: 200 | V20: 200 | AD20: 30-200 | AE20: 75 | AF20: 30-200 75 | AK20: 4863 | AL20: 95 | AT20: 4863 | AU20: 125 | AV20: 125 | AW20: 125 | AZ20: Solid Bore | BA20: 1-1/8" | BB20: 1445 | BC20: 1.5 in | BD20: 1.125 | BE20: Fog Tip | BF20: 150 | BG20: Fog Tip 150 | BJ20: 175 | BK20: 100 (Std) | BL20: 175 100 (Std) | BR20: Fog Tip | BS20: 4824 | BT20: 350 | BU20: 100 (Std) | BV20: Fog Tip 350 @ 100 (Std) | BZ20: Fog Nozzle 250 @ 100 | CA20: 4826 | CD20: Fog Nozzle 250 @ 100 4826 | CI20: Fog Nozzle 200 @ 100 4863 | CM20: Stack Tips | CN20: 1-3/8"; 1-1/4"; 1" | CO20: 1 | CP20: Stack Tips 1-3/8"; 1-1/4"; 1" | CT20: Solid Bore 1.5 in | CU20: 1-1/8" | CV20: 1.5 in | CW20: Solid Bore 1.5 in | CY20: Solid Bore 2.5 in | CZ20: 1-1/16" | DB20: Solid Bore Yes 1.5 in 1-1/8" No (Std) | DC20: Solid Bore Yes 1.5 in | DD20: Solid Bore | DE20: 1-1/8" | DF20: 1445 | DG20: 1.5 in | DH20: 1.125 | DI20: Yes | DJ20: No (Std) | DK20: Solid Bore Yes 1.5 in | DM20: 0.5 | DY20: Solid Bore Yes 1.5 in 1" No (Std) | DZ20: 1445 | ED20: 1-1/8" | EE20: 1_1_8_ | EG20: Solid Bore | EH20: 1-1/8" | EI20: 1445 | EJ20: 1.5 in | EK20: 1.125 | EL20: Yes | EM20: Solid Bore 1.5 in Yes 1-1/8" 1445 | EO20: Solid Bore 1.5 in Yes 1-1/8" 1445 | EW20: Solid Bore | EX20: 1-1/8" | EY20: 1445 | EZ20: Solid Bore1-1/8"1445 | FB20: Solid Bore1-1/8"1445
B21: =IF(OR(C21="False",D21="False",E21="False",H21="False",I21="False",F21="False"),"Error","Okay") -> Okay | C21: =IFERROR(VLOOKUP(CONCATENATE(B10,C10),C26:C42,1,FALSE),"False") -> UltraJet Fog Nozzle1.5 in | E21: =IF(E8="","Okay",IFERROR(VLOOKUP(CONCATENATE(E10,I10),E26:E82,1,FALSE),"False")) -> 7/8"1820 | F21: =IFERROR(VLOOKUP(CONCATENATE(C10,F10),F26:F66,1,FALSE),"false") -> 1.5 inNH | I21: =IFERROR(VLOOKUP(CONCATENATE(B10,E10,IF(B10="saberjet fog nozzle",D10,"")),I25:I87,1,FALSE),"False") -> UltraJet Fog Nozzle7/8" | M21: 1.5 IN | S21: 210 | T21: 210 | U21: 210 | V21: 210 | AD21: 95-200 | AE21: 100 (Std) | AF21: 95-200 100 (Std) | AK21: 4863 | AL21: 125 | AT21: 4863 | AU21: 150 | AV21: 150 | AW21: 150 | AZ21: Solid Bore | BA21: 1-3/16" | BB21: 1445 | BC21: 1.5 in | BD21: 1.1875 | BE21: Fog Tip | BF21: 161 | BG21: Fog Tip 161 | BJ21: 175 | BK21: 75 | BL21: 175 75 | BR21: Fog Tip | BS21: 4824 | BT21: 200 | BU21: 75 | BV21: Fog Tip 200 @ 75 | BZ21: Fog Nozzle 250 @ 50 | CA21: 4826 | CD21: Fog Nozzle 250 @ 50 4826 | CI21: Fog Nozzle 200 @ 75 4826 | CT21: Solid Bore 1.5 in | CU21: 1-3/16" | CV21: 1.5 in | CW21: Solid Bore 1.5 in | CY21: Solid Bore 2.5 in | CZ21: 1-3/16" | DB21: Solid Bore Yes 1.5 in 1-3/16" No (Std) | DC21: Solid Bore Yes 1.5 in | DD21: Solid Bore | DE21: 1-3/16" | DF21: 1445 | DG21: 1.5 in | DH21: 1.1875 | DI21: Yes | DJ21: No (Std) | DK21: Solid Bore Yes 1.5 in | DM21: 0.875 | DY21: Solid Bore Yes 1.5 in 1/2" No (Std) | DZ21: 1447 | ED21: 1-3/16" | EE21: 1_3_16_ | EG21: Solid Bore | EH21: 1-3/16" | EI21: 1445 | EJ21: 1.5 in | EK21: 1.1875 | EL21: Yes | EM21: Solid Bore 1.5 in Yes 1-3/16" 1445 | EO21: Solid Bore 1.5 in Yes 1-3/16" 1445 | EW21: Solid Bore | EX21: 1-3/16" | EY21: 1445 | EZ21: Solid Bore1-3/16"1445 | FB21: Solid Bore1-3/16"1445
I22: =CONCATENATE(B10," ",C10," ",D10," ",E10," ",I10) -> UltraJet Fog Nozzle 1.5 in 95 @ 100 7/8" 1820 | M22: 2 IN | N22: STORZ | S22: 225 | T22: 225 | U22: 225 | V22: 225 | AD22: 95-200 | AE22: 75 | AF22: 95-200 75 | AK22: 4863 | AL22: 150 | AT22: 4863 | AU22: 175 | AV22: 175 | AW22: 175 | AZ22: Solid Bore | BA22: 1-1/4" | BB22: 1445 | BC22: 1.5 in | BD22: 1.25 | BE22: Fog Tip | BF22: 175 | BG22: Fog Tip 175 | BJ22: 175 | BK22: 50 | BL22: 175 50 | BR22: Fog Tip | BS22: 4824 | BT22: 250 | BU22: 75 | BV22: Fog Tip 250 @ 75 | BZ22: Fog Nozzle 250 @ 75 | CA22: 4826 | CD22: =CONCATENATE($BZ22," ",CA22) -> Fog Nozzle 250 @ 75 4826 | CI22: Fog Nozzle 200 @ 75 4863 | CT22: Solid Bore 1.5 in | CU22: 1-1/4" | CV22: 1.5 in | CW22: Solid Bore 1.5 in | CY22: Stack Tips 1.5 in | CZ22: 1-1/8"; 1/2" | DB22: Solid Bore Yes 1.5 in 1-1/4" No (Std) | DC22: Solid Bore Yes 1.5 in | DD22: Solid Bore | DE22: 1-1/4" | DF22: 1445 | DG22: 1.5 in | DH22: 1.25 | DI22: Yes | DJ22: No (Std) | DK22: Solid Bore Yes 1.5 in | DM22: 0.9375 | DY22: Solid Bore Yes 1.5 in 1" Yes | DZ22: 1445 | ED22: 1-1/4" | EE22: 1_1_4_ | EG22: Solid Bore | EH22: 1-1/4" | EI22: 1445 | EJ22: 1.5 in | EK22: 1.25 | EL22: Yes | EM22: Solid Bore 1.5 in Yes 1-1/4" 1445 | EO22: Solid Bore 1.5 in Yes 1-1/4" 1445 | EW22: Solid Bore | EX22: 1-1/4" | EY22: 1445 | EZ22: Solid Bore1-1/4"1445 | FB22: Solid Bore1-1/4"1445
I23: =CONCATENATE(SUBSTITUTE(B10," ","_"),"_",D10,"_",SUBSTITUTE(C10," ","_"),"_",VLOOKUP(E10,ED:EE,2,FALSE),"_",IF(D10="no","Yes",IF(H10="yes","Yes","No__Std"))) -> UltraJet_Fog_Nozzle_95 @ 100_1.5_in_7_8__No__Std | M23: 2.5 IN | N23: NH | S23: 250 | T23: 250 | U23: 250 | V23: 250 | AD23: 12-53 | AE23: 87 (CE) | AF23: 12-53 87 (CE) | AK23: 4863 | AL23: 161 | AT23: 4863 | AU23: 200 | AV23: 200 | AZ23: Solid Bore | BA23: 1-3/8" | BB23: 1445 | BC23: 1.5 in | BD23: 1.375 | BE23: Fog Tip | BF23: 200 | BG23: Fog Tip 200 | BJ23: 185 | BK23: 50 | BL23: 185 50 | BR23: Fog Tip | BS23: 4824 | BT23: 300 | BU23: 75 | BV23: Fog Tip 300 @ 75 | BZ23: Fog Nozzle 265 @ 50 | CA23: 4826 | CD23: =CONCATENATE($BZ23," ",CA23) -> Fog Nozzle 265 @ 50 4826 | CI23: Fog Nozzle 210 @ 50 4826 | CT23: Solid Bore 1.5 in | CU23: 1-3/8" | CV23: 1.5 in | CW23: Solid Bore 1.5 in | CY23: Stack Tips 1.5 in | CZ23: 15-16"; 1/2" | DB23: Solid Bore Yes 1.5 in 1-3/8" No (Std) | DC23: Solid Bore Yes 1.5 in | DD23: Solid Bore | DE23: 1-3/8" | DF23: 1445 | DG23: 1.5 in | DH23: 1.375 | DI23: Yes | DJ23: No (Std) | DK23: Solid Bore Yes 1.5 in | DM23: 1 | DY23: Solid Bore Yes 1.5 in 1-1/16" Yes | DZ23: 1445 | ED23: 1-3/8" | EE23: 1_3_8_ | EG23: Solid Bore | EH23: 1-3/8" | EI23: 1445 | EJ23: 1.5 in | EK23: 1.375 | EL23: Yes | EM23: Solid Bore 1.5 in Yes 1-3/8" 1445 | EO23: Solid Bore 1.5 in Yes 1-3/8" 1445 | EW23: Solid Bore | EX23: 1-3/8" | EY23: 1445 | EZ23: Solid Bore1-3/8"1445 | FB23: Solid Bore1-3/8"1445
I24: Solid_Bore_Yes_1.5_in_1__No__Std | M24: 2.5 IN | N24: NPSH | S24: 300 | T24: 300 | U24: 300 | V24: 300 | AK24: 4863 | AL24: 175 | AT24: 4863 | AW24: 161 | AZ24: Solid Bore | BA24: 1/2" | BB24: 1447 | BC24: 1.5 in | BD24: 0.5 | BE24: Fog Tip | BF24: 210 | BG24: Fog Tip 210 | BJ24: 200 | BK24: 100 (Std) | BL24: 200 100 (Std) | BR24: Fog Tip | BS24: 4824 | BT24: 210 | BU24: 50 | BV24: Fog Tip 210 @ 50 | BZ24: Fog Nozzle 300 @ 100 | CA24: 4826 | CD24: =CONCATENATE($BZ24," ",CA24) -> Fog Nozzle 300 @ 100 4826 | CI24: Fog Nozzle 225 @ 100 4863 | CT24: Solid Bore 1.5 in | CU24: 1/2" | CV24: 1.5 in | CW24: Solid Bore 1.5 in | CY24: Stack Tips 1.5 in | CZ24: 1-1/16"; 15/16" | DB24: Solid Bore Yes 1.5 in 1/2" No (Std) | DC24: Solid Bore Yes 1.5 in | DD24: Solid Bore | DE24: 1/2" | DF24: 1447 | DG24: 1.5 in | DH24: 0.5 | DI24: Yes | DJ24: No (Std) | DK24: Solid Bore Yes 1.5 in | DM24: 1.0625 | DY24: Solid Bore Yes 1.5 in 1-1/4" Yes | DZ24: 1445 | ED24: 1/2" | EE24: 1_2_ | EG24: Solid Bore | EH24: 1/2" | EI24: 1447 | EJ24: 1.5 in | EK24: 0.5 | EL24: Yes | EM24: Solid Bore 1.5 in Yes 1/2" 1447 | EO24: Solid Bore 1.5 in Yes 1/2" 1447 | EW24: Solid Bore | EX24: 1/2" | EY24: 1447 | EZ24: Solid Bore1/2"1447 | FB24: Solid Bore1/2"1447
I25: SaberJet Fog Nozzle1/2"95 @ 100 | M25: 2.5 IN | N25: FDNY | S25: 350 | T25: 350 | U25: 350 | V25: 350 | AK25: 4863 | AL25: 185 | AT25: 4863 | AW25: 185 | AZ25: Solid Bore | BA25: 7/8" | BB25: 1499 | BC25: 1.5 in | BD25: 0.875 | BE25: Fog Tip | BF25: 225 | BG25: Fog Tip 225 | BJ25: 200 | BK25: 75 | BL25: 200 75 | BR25: Fog Tip | BS25: 4824 | BT25: 265 | BU25: 50 | BV25: Fog Tip 265 @ 50 | BZ25: Fog Nozzle 300 @ 75 | CA25: 4826 | CD25: Fog Nozzle 300 @ 75 4826 | CI25: Fog Nozzle 25 @ 100 4802 | CT25: Solid Bore 1.5 in | CU25: 7/8" | CV25: 1.5 in | CW25: Solid Bore 1.5 in | CY25: Stack Tips 1.5 in | CZ25: 1-1/4"; 1-1/8"; 1" | DB25: Solid Bore No 1.5 in 7/8" Yes | DC25: Solid Bore No 1.5 in | DD25: Solid Bore | DE25: 7/8" | DF25: 1499 | DG25: 1.5 in | DH25: 0.875 | DI25: No | DJ25: Yes | DK25: Solid Bore Yes 1.5 in | DM25: 1.125 | DY25: Solid Bore Yes 1.5 in 1-1/8" Yes | DZ25: 1445 | ED25: 7/8" | EE25: 7_8_ | EG25: Solid Bore | EH25: 7/8" | EI25: 1499 | EJ25: 1.5 in | EK25: 0.875 | EL25: No | EM25: Solid Bore 1.5 in No 7/8" 1499 | EO25: Solid Bore 1.5 in No 7/8" 1499 | EW25: Solid Bore | EX25: 7/8" | EY25: 1499 | EZ25: Solid Bore7/8"1499 | FB25: Solid Bore7/8"1499
C26: SaberJet Fog Nozzle1.5 in | E26: 1/2"1520 | F26: 1.5 inNH | I26: SaberJet Fog Nozzle5/8"95 @ 100 | M26: 2.5 IN | N26: NYCORP | AK26: 4863 | AL26: 200 | AT26: 4866 | AU26: 95 | AZ26: Solid Bore | BA26: 15/16" | BB26: 1499 | BC26: 1.5 in | BD26: 0.9375 | BE26: Fog Tip | BF26: 250 | BG26: Fog Tip 250 | BJ26: 210 | BK26: 50 | BL26: 210 50 | BR26: Fog Tip | BS26: 4824 | BT26: 250 | BU26: 50 | BV26: Fog Tip 250 @ 50 | BZ26: Fog Nozzle 350 @ 100 | CA26: 4826 | CD26: Fog Nozzle 350 @ 100 4826 | CI26: Fog Nozzle 250 @ 100 4826 | CT26: Solid Bore 1.5 in | CU26: 15/16" | CV26: 1.5 in | CW26: Solid Bore 1.5 in | CY26: Stack Tips 1.5 in | CZ26: 15/16"; 1/2" | DB26: Solid Bore No 1.5 in 15/16" Yes | DC26: Solid Bore No 1.5 in | DD26: Solid Bore | DE26: 15/16" | DF26: 1499 | DG26: 1.5 in | DH26: 0.9375 | DI26: No | DJ26: Yes | DK26: Solid Bore Yes 1.5 in | DM26: 1.1875 | DY26: Solid Bore Yes 1.5 in 1-3/16" Yes | DZ26: 1445 | ED26: 15/16" | EE26: 15_16_ | EG26: Solid Bore | EH26: 15/16" | EI26: 1499 | EJ26: 1.5 in | EK26: 0.9375 | EL26: No | EM26: Solid Bore 1.5 in No 15/16" 1499 | EO26: Solid Bore 1.5 in No 15/16" 1499 | EW26: Solid Bore | EX26: 15/16" | EY26: 1499 | EZ26: Solid Bore15/16"1499 | FB26: Solid Bore15/16"1499
C27: SaberJet Fog Nozzle2 in | E27: 5/8"1520 | F27: 1.5 inNPSH | G27: =VLOOKUP(C13,DataSource!AH:AJ,2,FALSE) -> 18204002 | H27: =VLOOKUP(C13,DataSource!AH:AJ,3,FALSE) -> ULTRAJET 1.5NH 7/8 TIP | I27: SaberJet Fog Nozzle3/4"135 @ 100 | M27: 2.5 IN | N27: PITT6 | S27: NH | T27: NPSH | U27: FDNY | V27: NYCORP | W27: PCT | X27: Custom | AK27: 4863 | AL27: 225 | AT27: 4866 | AU27: 125 | AV27: 125 | AW27: 125 | AZ27: Solid Bore | BA27: 1" | BB27: 1499 | BC27: 1.5 in | BD27: 1 | BE27: Fog Tip | BF27: 265 | BG27: Fog Tip 265 | BJ27: 225 | BK27: 100 (Std) | BL27: 225 100 (Std) | BR27: Fog Nozzle | BS27: 4826 | BT27: 200 | BU27: 100 (Std) | BV27: Fog Nozzle 200 @ 100 (Std) | BZ27: Fog Nozzle 40 @ 100 | CA27: 4802 | CD27: Fog Nozzle 40 @ 100 4802 | CI27: Fog Nozzle 250 @ 50 4826 | CT27: Solid Bore 1.5 in | CU27: 1" | CV27: 1.5 in | CW27: Solid Bore 1.5 in | CY27: Stack Tips 2.5 in | CZ27: 1-1/8"; 1/2" | DB27: Solid Bore No 1.5 in 1" Yes | DC27: Solid Bore No 1.5 in | DD27: Solid Bore | DE27: 1" | DF27: 1499 | DG27: 1.5 in | DH27: 1 | DI27: No | DJ27: Yes | DK27: Solid Bore Yes 1.5 in | DM27: 1.25 | DY27: Solid Bore Yes 1.5 in 1-3/8" Yes | DZ27: 1445 | ED27: 1" | EE27: 1_ | EG27: Solid Bore | EH27: 1" | EI27: 1499 | EJ27: 1.5 in | EK27: 1 | EL27: No | EM27: Solid Bore 1.5 in No 1" 1499 | EO27: Solid Bore 1.5 in No 1" 1499 | EW27: Solid Bore | EX27: 1" | EY27: 1499 | EZ27: Solid Bore1"1499 | FB27: Solid Bore1"1499
C28: SaberJet Fog Nozzle2.5 in | E28: 3/4"1523 | F28: 1.5 inFDNY | I28: SaberJet Fog Nozzle7/8"135 @ 100 | M28: 2.5 IN | N28: BAT | R28: SBTHREAD1.5 in | S28: =IF($B10="Solid Bore",IF(OR(TRIM($I10)="0416",$D10="yes"),S27,""),S27) -> NH | T28: NPSH | U28: FDNY | V28: NYCORP | W28: PCT | X28: Custom | AK28: 4866 | AL28: 95 | AT28: 4866 | AU28: 150 | AV28: 150 | AW28: 150 | AZ28: Solid Bore | BA28: 1-1/16" | BB28: 1499 | BC28: 1.5 in | BD28: 1.0625 | BE28: Fog Tip | BF28: 300 | BG28: Fog Tip 300 | BJ28: 250 | BK28: 100 (Std) | BL28: 250 100 (Std) | BR28: Fog Nozzle | BS28: 4826 | BT28: 250 | BU28: 100 (Std) | BV28: Fog Nozzle 250 @ 100 (Std) | BZ28: Fog Nozzle 60 @ 100 | CA28: 4116 | CD28: Fog Nozzle 60 @ 100 4116 | CI28: Fog Nozzle 250 @ 75 4826 | CT28: Solid Bore 1.5 in | CU28: 1-1/16" | CV28: 1.5 in | CW28: Solid Bore 1.5 in | CY28: Stack Tips 2.5 in | CZ28: 1-1/4"; 1-1/8"; 1" | DB28: Solid Bore No 1.5 in 1-1/16" Yes | DC28: Solid Bore No 1.5 in | DD28: Solid Bore | DE28: 1-1/16" | DF28: 1499 | DG28: 1.5 in | DH28: 1.0625 | DI28: No | DJ28: Yes | DK28: Solid Bore Yes 1.5 in | DM28: 1.375 | DY28: Solid Bore Yes 1.5 in 15/16" Yes | DZ28: 1445 | ED28: 1-1/16" | EE28: 1_1_16_ | EG28: Solid Bore | EH28: 1-1/16" | EI28: 1499 | EJ28: 1.5 in | EK28: 1.0625 | EL28: No | EM28: Solid Bore 1.5 in No 1-1/16" 1499 | EO28: Solid Bore 1.5 in No 1-1/16" 1499 | EW28: Solid Bore | EX28: 1-1/16" | EY28: 1499 | EZ28: Solid Bore1-1/16"1499 | FB28: Solid Bore1-1/16"1499
C29: SaberJet Fog Nozzle3 in | E29: 7/8"1523 | F29: 1.5 inNYCORP | I29: SaberJet Fog Nozzle15/16"135 @ 100 | M29: 2.5 IN | N29: CSA | R29: SBTHREAD1 in | S29: NH | T29: NPSH | U29: Custom | AK29: 4866 | AL29: 125 | AT29: 4866 | AU29: 175 | AV29: 175 | AW29: 175 | AZ29: Solid Bore | BA29: 1-1/8" | BB29: 1499 | BC29: 1.5 in | BD29: 1.125 | BE29: Fog Tip | BF29: 350 | BG29: Fog Tip 350 | BJ29: 250 | BK29: 75 | BL29: 250 75 | BR29: Fog Nozzle | BS29: 4826 | BT29: 300 | BU29: 100 (Std) | BV29: Fog Nozzle 300 @ 100 (Std) | BZ29: Fog Nozzle 60 @ 75 | CA29: 4116 | CD29: Fog Nozzle 60 @ 75 4116 | CI29: Fog Nozzle 265 @ 50 4826 | CT29: Solid Bore 1.5 in | CU29: 1-1/8" | CV29: 1.5 in | CW29: Solid Bore 1.5 in | CY29: Stack Tips 2.5 in | CZ29: 1-1/2"; 1-1/4"; 1" | DB29: Solid Bore No 1.5 in 1-1/8" Yes | DC29: Solid Bore No 1.5 in | DD29: Solid Bore | DE29: 1-1/8" | DF29: 1499 | DG29: 1.5 in | DH29: 1.125 | DI29: No | DJ29: Yes | DK29: Solid Bore Yes 2.5 in | DM29: 0.875 | DY29: Solid Bore Yes 1.5 in 7/8" Yes | DZ29: 1445 | ED29: 1-1/8" | EE29: 1_1_8_ | EG29: Solid Bore | EH29: 1-1/8" | EI29: 1499 | EJ29: 1.5 in | EK29: 1.125 | EL29: No | EM29: Solid Bore 1.5 in No 1-1/8" 1499 | EO29: Solid Bore 1.5 in No 1-1/8" 1499 | EW29: Solid Bore | EX29: 1-1/8" | EY29: 1499 | EZ29: Solid Bore1-1/8"1499 | FB29: Solid Bore1-1/8"1499
C30: UltraJet Fog Nozzle1.5 in | E30: 15/16"1523 | F30: 1.5 inPCT | I30: SaberJet Fog Nozzle1"135 @ 100 | M30: 2.5 IN | N30: QST | R30: SBTHREAD2.5 in | S30: NH | T30: NPSH | U30: FDNY | V30: NYCORP | W30: PITT6 | X30: BAT | Y30: CSA | Z30: QST | AA30: Custom | AK30: 4866 | AL30: 150 | AT30: 4866 | AU30: 200 | AV30: 200 | AZ30: Solid Bore | BA30: 1-3/16" | BB30: 1499 | BC30: 1.5 in | BD30: 1.1875 | BJ30: 250 | BK30: 50 | BL30: 250 50 | BR30: Fog Nozzle | BS30: 4826 | BT30: 350 | BU30: 100 (Std) | BV30: Fog Nozzle 350 @ 100 (Std) | BZ30: Fog Nozzle 60 @ 87 | CA30: 4116 | CD30: Fog Nozzle 60 @ 87 4116 | CI30: Fog Nozzle 300 @ 100 4826 | CT30: Solid Bore 1.5 in | CU30: 1-3/16" | CV30: 1.5 in | CW30: Solid Bore 1.5 in | CY30: Stack Tips 2.5 in | CZ30: 1-3/8"; 1-1/4"; 1" | DB30: Solid Bore No 1.5 in 1-3/16" Yes | DC30: Solid Bore No 1.5 in | DD30: Solid Bore | DE30: 1-3/16" | DF30: 1499 | DG30: 1.5 in | DH30: 1.1875 | DI30: No | DJ30: Yes | DK30: Solid Bore Yes 2.5 in | DM30: 0.9375 | DY30: Solid Bore Yes 2.5 in 1" Yes | DZ30: 1446 | ED30: 1-3/16" | EE30: 1_3_16_ | EG30: Solid Bore | EH30: 1-3/16" | EI30: 1499 | EJ30: 1.5 in | EK30: 1.1875 | EL30: No | EM30: Solid Bore 1.5 in No 1-3/16" 1499 | EO30: Solid Bore 1.5 in No 1-3/16" 1499 | EW30: Solid Bore | EX30: 1-3/16" | EY30: 1499 | EZ30: Solid Bore1-3/16"1499 | FB30: Solid Bore1-3/16"1499
C31: UltraJet Fog Nozzle2 in | E31: 1"1523 | F31: 1.5 inStorz | I31: SaberJet Fog Nozzle1-1/8"135 @ 100 | M31: 2.5 IN | N31: BIM | AK31: 4866 | AL31: 161 | AT31: 4866 | AW31: 161 | AZ31: Solid Bore | BA31: 1-1/4" | BB31: 1499 | BC31: 1.5 in | BD31: 1.25 | BJ31: 265 | BK31: 50 | BL31: 265 50 | BR31: Fog Nozzle | BS31: 4826 | BT31: 200 | BU31: 75 | BV31: Fog Nozzle 200 @ 75 | BZ31: Fog Nozzle 95 @ 100 | CA31: 4116 | CB31: 4863 | CD31: Fog Nozzle 95 @ 100 4116 | CE31: =CONCATENATE($BZ31," ",CB31) -> Fog Nozzle 95 @ 100 4863 | CI31: Fog Nozzle 300 @ 75 4826 | CT31: Solid Bore 1.5 in | CU31: 1-1/4" | CV31: 1.5 in | CW31: Solid Bore 1.5 in | DB31: Solid Bore No 1.5 in 1-1/4" Yes | DC31: Solid Bore No 1.5 in | DD31: Solid Bore | DE31: 1-1/4" | DF31: 1499 | DG31: 1.5 in | DH31: 1.25 | DI31: No | DJ31: Yes | DK31: Solid Bore Yes 2.5 in | DM31: 1 | DY31: Solid Bore Yes 2.5 in 1-1/16" Yes | DZ31: 1446 | ED31: 1-1/4" | EE31: 1_1_4_ | EG31: Solid Bore | EH31: 1-1/4" | EI31: 1499 | EJ31: 1.5 in | EK31: 1.25 | EL31: No | EM31: Solid Bore 1.5 in No 1-1/4" 1499 | EO31: Solid Bore 1.5 in No 1-1/4" 1499 | EW31: Solid Bore | EX31: 1-1/4" | EY31: 1499 | EZ31: Solid Bore1-1/4"1499 | FB31: Solid Bore1-1/4"1499
C32: UltraJet Fog Nozzle2.5 in | E32: 1-1/8"1528 | F32: 1.5 inCustom | I32: UltraJet Fog Nozzle3/4" | M32: 2.5 IN | N32: STORZ | Q32: BLACK (Std) | R32: THREAD1 IN | S32: NH | T32: NPSH | U32: Storz | V32: Custom | AK32: 4866 | AL32: 175 | AT32: 4866 | AW32: 185 | AZ32: Solid Bore | BA32: 1-3/8" | BB32: 1499 | BC32: 1.5 in | BD32: 1.375 | BJ32: 300 | BK32: 100 (Std) | BL32: 300 100 (Std) | BR32: Fog Nozzle | BS32: 4826 | BT32: 265 | BU32: 50 | BV32: Fog Nozzle 265 @ 50 | BZ32: Fog Nozzle 95 @ 75 | CA32: 4116 | CD32: Fog Nozzle 95 @ 75 4116 | CI32: Fog Nozzle 350 @ 100 4826 | CT32: Solid Bore 1.5 in | CU32: 1-3/8" | CV32: 1.5 in | CW32: Solid Bore 1.5 in | DB32: Solid Bore No 1.5 in 1-3/8" Yes | DC32: Solid Bore No 1.5 in | DD32: Solid Bore | DE32: 1-3/8" | DF32: 1499 | DG32: 1.5 in | DH32: 1.375 | DI32: No | DJ32: Yes | DK32: Solid Bore Yes 2.5 in | DM32: 1.0625 | DY32: Solid Bore Yes 2.5 in 1-1/4" Yes | DZ32: 1446 | ED32: 1-3/8" | EE32: 1_3_8_ | EG32: Solid Bore | EH32: 1-3/8" | EI32: 1499 | EJ32: 1.5 in | EK32: 1.375 | EL32: No | EM32: Solid Bore 1.5 in No 1-3/8" 1499 | EO32: Solid Bore 1.5 in No 1-3/8" 1499 | EW32: Solid Bore | EX32: 1-3/8" | EY32: 1499 | EZ32: Solid Bore1-3/8"1499 | FB32: Solid Bore1-3/8"1499
C33: UltraJet Fog Nozzle3 in | E33: 3/4"1820 | F33: 2.5 inNH | I33: UltraJet Fog Nozzle7/8" | M33: 3 IN | N33: STORZ | Q33: ORANGE | R33: THREAD1.5 in | S33: NH | T33: NPSH | U33: FDNY | V33: NYCORP | W33: PCT | X33: Storz | Y33: Custom | AK33: 4866 | AL33: 185 | AZ33: Solid Bore | BA33: 7/8" | BB33: 0489 | BC33: 2.5 in | BD33: 0.875 | BJ33: 300 | BK33: 75 | BL33: 300 75 | BR33: Fog Nozzle | BS33: 4826 | BT33: 250 | BU33: 75 | BV33: Fog Nozzle 250 @ 75 | BZ33: Fog Nozzle 95 @ 87 | CA33: 4116 | CD33: Fog Nozzle 95 @ 87 4116 | CI33: Fog Nozzle 40 @ 100 4802 | CT33: Solid Bore 2.5 in | CU33: 7/8" | CV33: 2.5 in | CW33: Solid Bore 2.5 in | DB33: Solid Bore No 2.5 in 7/8" Yes | DC33: Solid Bore No 2.5 in | DD33: Solid Bore | DE33: 7/8" | DF33: 0489 | DG33: 2.5 in | DH33: 0.875 | DI33: No | DJ33: Yes | DK33: Solid Bore Yes 2.5 in | DM33: 1.125 | DY33: Solid Bore Yes 2.5 in 1-1/8" Yes | DZ33: 1446 | ED33: 7/8" | EE33: 7_8_ | EG33: Solid Bore | EH33: 7/8" | EI33: 0489 | EJ33: 2.5 in | EK33: 0.875 | EL33: No | EM33: Solid Bore 2.5 in No 7/8" 0489 | EO33: Solid Bore 2.5 in No 7/8" 0489 | EW33: Solid Bore | EX33: 7/8" | EY33: 0489 | EZ33: Solid Bore7/8"0489 | FB33: Solid Bore7/8"0489
E34: 7/8"1820 | F34: 2.5 inNPSH | I34: UltraJet Fog Nozzle15/16" | Q34: YELLOW | R34: THREAD2 IN | S34: Storz | AK34: 4866 | AL34: 200 | AZ34: Solid Bore | BA34: 15/16" | BB34: 0489 | BC34: 2.5 in | BD34: 0.9375 | BJ34: 350 | BK34: 100 (Std) | BL34: 350 100 (Std) | BR34: Fog Nozzle | BS34: 4826 | BT34: 300 | BU34: 75 | BV34: Fog Nozzle 300 @ 75 | BZ34: Fog Tip 125 @ 100 | CA34: 4866 | CD34: Fog Tip 125 @ 100 4866 | CI34: Fog Nozzle 60 @ 100 4116 | CT34: Solid Bore 2.5 in | CU34: 15/16" | CV34: 2.5 in | CW34: Solid Bore 2.5 in | DB34: Solid Bore No 2.5 in 15/16" Yes | DC34: Solid Bore No 2.5 in | DD34: Solid Bore | DE34: 15/16" | DF34: 0489 | DG34: 2.5 in | DH34: 0.9375 | DI34: No | DJ34: Yes | DK34: Solid Bore Yes 2.5 in | DM34: 1.1875 | DY34: Solid Bore Yes 2.5 in 1-3/16" Yes | DZ34: 1446 | ED34: 15/16" | EE34: 15_16_ | EG34: Solid Bore | EH34: 15/16" | EI34: 0489 | EJ34: 2.5 in | EK34: 0.9375 | EL34: No | EM34: Solid Bore 2.5 in No 15/16" 0489 | EO34: Solid Bore 2.5 in No 15/16" 0489 | EW34: Solid Bore | EX34: 15/16" | EY34: 0489 | EZ34: Solid Bore15/16"0489 | FB34: Solid Bore15/16"0489
E35: 15/16"1820 | F35: 2.5 INFDNY | I35: UltraJet Fog Nozzle1" | Q35: RED | R35: THREAD2.5 IN | S35: NH | T35: NPSH | U35: FDNY | V35: NYCORP | W35: PITT6 | X35: BAT | Y35: CSA | Z35: QST | AA35: BIM | AB35: Storz | AC35: Custom | AZ35: Solid Bore | BA35: 1" | BB35: 0489 | BC35: 2.5 in | BD35: 1 | BR35: Fog Nozzle | BS35: 4826 | BT35: 210 | BU35: 50 | BV35: Fog Nozzle 210 @ 50 | BZ35: Fog Tip 125 @ 75 | CA35: 4866 | CD35: Fog Tip 125 @ 75 4866 | CI35: Fog Nozzle 60 @ 75 4116 | CT35: Solid Bore 2.5 in | CU35: 1" | CV35: 2.5 in | CW35: Solid Bore 2.5 in | DB35: Solid Bore No 2.5 in 1" Yes | DC35: Solid Bore No 2.5 in | DD35: Solid Bore | DE35: 1" | DF35: 0489 | DG35: 2.5 in | DH35: 1 | DI35: No | DJ35: Yes | DK35: Solid Bore Yes 2.5 in | DM35: 1.25 | DY35: Solid Bore Yes 2.5 in 1-3/8" Yes | DZ35: 1446 | ED35: 1" | EE35: 1_ | EG35: Solid Bore | EH35: 1" | EI35: 0489 | EJ35: 2.5 in | EK35: 1 | EL35: No | EM35: Solid Bore 2.5 in No 1" 0489 | EO35: Solid Bore 2.5 in No 1" 0489 | EW35: Solid Bore | EX35: 1" | EY35: 0489 | EZ35: Solid Bore1"0489 | FB35: Solid Bore1"0489
E36: 1"1820 | F36: 2.5 INNYCORP | Q36: BLUE | R36: THREAD3 IN | S36: Storz | AU36: Solid Bore | AV36: 1.5 in | AW36: =CONCATENATE(AU36,AV36) -> Solid Bore1.5 in | AZ36: Solid Bore | BA36: 1-1/8" | BB36: 0489 | BC36: 2.5 in | BD36: 1.125 | BR36: Fog Nozzle | BS36: 4826 | BT36: 250 | BU36: 50 | BV36: Fog Nozzle 250 @ 50 | BZ36: Fog Tip 150 @ 100 | CA36: 4866 | CD36: Fog Tip 150 @ 100 4866 | CI36: Fog Nozzle 60 @ 87 4116 | CT36: Solid Bore 2.5 in | CU36: 1-1/8" | CV36: 2.5 in | CW36: Solid Bore 2.5 in | DB36: Solid Bore No 2.5 in 1-1/8" Yes | DC36: Solid Bore No 2.5 in | DD36: Solid Bore | DE36: 1-1/8" | DF36: 0489 | DG36: 2.5 in | DH36: 1.125 | DI36: No | DJ36: Yes | DK36: Solid Bore Yes 2.5 in | DM36: 1.375 | DY36: Solid Bore Yes 2.5 in 15/16" Yes | DZ36: 1446 | ED36: 1-1/8" | EE36: 1_1_8_ | EG36: Solid Bore | EH36: 1-1/8" | EI36: 0489 | EJ36: 2.5 in | EK36: 1.125 | EL36: No | EM36: Solid Bore 2.5 in No 1-1/8" 0489 | EO36: Solid Bore 2.5 in No 1-1/8" 0489 | EW36: Solid Bore | EX36: 1-1/8" | EY36: 0489 | EZ36: Solid Bore1-1/8"0489 | FB36: Solid Bore1-1/8"0489
F37: 2.5 INPITT6 | Q37: GREEN | AU37: Solid Bore | AV37: 2.5 in | AW37: =CONCATENATE(AU37,AV37) -> Solid Bore2.5 in | AZ37: Solid Bore | BA37: 1-1/4" | BB37: 0489 | BC37: 2.5 in | BD37: 1.25 | BR37: Fog Nozzle | BS37: 4863 | BT37: 95 | BU37: 100 (Std) | BV37: Fog Nozzle 95 @ 100 (Std) | BZ37: Fog Tip 150 @ 50 | CA37: 4866 | CD37: Fog Tip 150 @ 50 4866 | CI37: Fog Nozzle 95 @ 100 4116 | CT37: Solid Bore 2.5 in | CU37: 1-1/4" | CV37: 2.5 in | CW37: Solid Bore 2.5 in | DB37: Solid Bore No 2.5 in 1-1/4" Yes | DC37: Solid Bore No 2.5 in | DD37: Solid Bore | DE37: 1-1/4" | DF37: 0489 | DG37: 2.5 in | DH37: 1.25 | DI37: No | DJ37: Yes | DK37: Stack Tips No 1.5 in | DM37: 0.5 | DY37: Solid Bore Yes 2.5 in 7/8" Yes | DZ37: 1446 | ED37: 1-1/4" | EE37: 1_1_4_ | EG37: Solid Bore | EH37: 1-1/4" | EI37: 0489 | EJ37: 2.5 in | EK37: 1.25 | EL37: No | EM37: Solid Bore 2.5 in No 1-1/4" 0489 | EO37: Solid Bore 2.5 in No 1-1/4" 0489 | EW37: Solid Bore | EX37: 1-1/4" | EY37: 0489 | EZ37: Solid Bore1-1/4"0489 | FB37: Solid Bore1-1/4"0489
F38: 2.5 INBAT | M38: 1440 | N38: No | O38: =TRIM(M38) -> 1440 | AO38: Style | AP38: List Price | AU38: Stack Tips | AV38: 1.5 in | AW38: =CONCATENATE(AU38,AV38) -> Stack Tips1.5 in | AZ38: Solid Bore | BA38: 1-3/8" | BB38: 0489 | BC38: 2.5 in | BD38: 1.375 | BR38: Fog Nozzle | BS38: 4863 | BT38: 125 | BU38: 100 (Std) | BV38: Fog Nozzle 125 @ 100 (Std) | BZ38: Fog Tip 150 @ 75 | CA38: 4866 | CD38: Fog Tip 150 @ 75 4866 | CI38: Fog Nozzle 95 @ 100 4863 | CT38: Solid Bore 2.5 in | CU38: 1-3/8" | CV38: 2.5 in | CW38: Solid Bore 2.5 in | DB38: Solid Bore No 2.5 in 1-3/8" Yes | DC38: Solid Bore No 2.5 in | DD38: Solid Bore | DE38: 1-3/8" | DF38: 0489 | DG38: 2.5 in | DH38: 1.375 | DI38: No | DJ38: Yes | DK38: Stack Tips No 1.5 in | DM38: 0.5 | DY38: Stack Tips Yes 1.5 in 15/16"; 1/2" Yes | DZ38: 1441 | ED38: 1-3/8" | EE38: 1_3_8_ | EG38: Solid Bore | EH38: 1-3/8" | EI38: 0489 | EJ38: 2.5 in | EK38: 1.375 | EL38: No | EM38: Solid Bore 2.5 in No 1-3/8" 0489 | EO38: Solid Bore 2.5 in No 1-3/8" 0489 | EW38: Solid Bore | EX38: 1-3/8" | EY38: 0489 | EZ38: Solid Bore1-3/8"0489 | FB38: Solid Bore1-3/8"0489
F39: 2.5 INCSA | M39: 1441 | N39: Yes | O39: =TRIM(M39) -> 1441 | AO39: 0416 | AP39: 378 | AU39: Stack Tips | AV39: 2.5 in | AW39: =CONCATENATE(AU39,AV39) -> Stack Tips2.5 in | AZ39: Solid Bore | BA39: 7/8" | BB39: 1446 | BC39: 2.5 in | BD39: 0.875 | BR39: Fog Nozzle | BS39: 4863 | BT39: 150 | BU39: 100 (Std) | BV39: Fog Nozzle 150 @ 100 (Std) | BZ39: Fog Tip 161 @ 50 | CA39: 4866 | CD39: Fog Tip 161 @ 50 4866 | CI39: Fog Nozzle 95 @ 75 4116 | CT39: Solid Bore 2.5 in | CU39: 7/8" | CV39: 2.5 in | CW39: Solid Bore 2.5 in | DB39: Solid Bore Yes 2.5 in 7/8" No (Std) | DC39: Solid Bore Yes 2.5 in | DD39: Solid Bore | DE39: 7/8" | DF39: 1446 | DG39: 2.5 in | DH39: 0.875 | DI39: Yes | DJ39: No (Std) | DK39: Stack Tips No 1.5 in | DM39: 0.9375 | DY39: Stack Tips Yes 2.5 in 1-1/8"; 1/2" Yes | DZ39: 1443 | ED39: 7/8" | EE39: 7_8_ | EG39: Solid Bore | EH39: 7/8" | EI39: 1446 | EJ39: 2.5 in | EK39: 0.875 | EL39: Yes | EM39: Solid Bore 2.5 in Yes 7/8" 1446 | EO39: Solid Bore 2.5 in Yes 7/8" 1446 | EW39: Solid Bore | EX39: 7/8" | EY39: 1446 | EZ39: Solid Bore7/8"1446 | FB39: Solid Bore7/8"1446
F40: 2.5 INQST | M40: 1442 | N40: No | O40: 1442 | AI40: yes1.5 in | AJ40: NH | AK40: =CONCATENATE(AI40,AJ40) -> yes1.5 inNH | AO40: 0439 | AP40: 284 | AZ40: Solid Bore | BA40: 15/16" | BB40: 1446 | BC40: 2.5 in | BD40: 0.9375 | BR40: Fog Nozzle | BS40: 4863 | BT40: 175 | BU40: 100 (Std) | BV40: Fog Nozzle 175 @ 100 (Std) | BZ40: Fog Tip 175 @ 100 | CA40: 4866 | CD40: Fog Tip 175 @ 100 4866 | CI40: Fog Nozzle 95 @ 87 4116 | CT40: Solid Bore 2.5 in | CU40: 15/16" | CV40: 2.5 in | CW40: Solid Bore 2.5 in | DB40: Solid Bore Yes 2.5 in 15/16" No (Std) | DC40: Solid Bore Yes 2.5 in | DD40: Solid Bore | DE40: 15/16" | DF40: 1446 | DG40: 2.5 in | DH40: 0.9375 | DI40: Yes | DJ40: No (Std) | DK40: Stack Tips No 1.5 in | DM40: 1 | DY40: Solid Bore Yes 1.5 in 1-1/16" No (Std) | DZ40: 1445 | ED40: 15/16" | EE40: 15_16_ | EG40: Solid Bore | EH40: 15/16" | EI40: 1446 | EJ40: 2.5 in | EK40: 0.9375 | EL40: Yes | EM40: Solid Bore 2.5 in Yes 15/16" 1446 | EO40: Solid Bore 2.5 in Yes 15/16" 1446 | EW40: Solid Bore | EX40: 15/16" | EY40: 1446 | EZ40: Solid Bore15/16"1446 | FB40: Solid Bore15/16"1446
F41: 2.5 INBIM | M41: 1443 | N41: Yes | O41: 1443 | R41: Style | U41: =IF(B10="fog tip","N/A","No (Std)") -> No (Std) | W41: yes1 IN | X41: NH | Y41: NPSH | Z41: Storz | AA41: Custom | AI41: yes1.5 in | AJ41: NPSH | AK41: =CONCATENATE(AI41,AJ41) -> yes1.5 inNPSH | AO41: 0489 | AP41: 498 | AZ41: Solid Bore | BA41: 1" | BB41: 1446 | BC41: 2.5 in | BD41: 1 | BR41: Fog Nozzle | BS41: 4863 | BT41: 200 | BU41: 100 (Std) | BV41: Fog Nozzle 200 @ 100 (Std) | BZ41: Fog Tip 175 @ 50 | CA41: 4866 | CD41: Fog Tip 175 @ 50 4866 | CI41: Fog Tip 125 @ 100 4866 | CT41: Solid Bore 2.5 in | CU41: 1" | CV41: 2.5 in | CW41: Solid Bore 2.5 in | DB41: Solid Bore Yes 2.5 in 1" No (Std) | DC41: Solid Bore Yes 2.5 in | DD41: Solid Bore | DE41: 1" | DF41: 1446 | DG41: 2.5 in | DH41: 1 | DI41: Yes | DJ41: No (Std) | DK41: Stack Tips No 2.5 in | DM41: 1 | DY41: Solid Bore Yes 1.5 in 1-1/4" No (Std) | DZ41: 1445 | ED41: 1" | EE41: 1_ | EG41: Solid Bore | EH41: 1" | EI41: 1446 | EJ41: 2.5 in | EK41: 1 | EL41: Yes | EM41: Solid Bore 2.5 in Yes 1" 1446 | EO41: Solid Bore 2.5 in Yes 1" 1446 | EW41: Solid Bore | EX41: 1" | EY41: 1446 | EZ41: Solid Bore1"1446 | FB41: Solid Bore1"1446
F42: 2.5 INStorz | M42: 1445 | N42: Yes | O42: 1445 | Q42: Fog Nozzle 5-40 | R42: 1602 | U42: =IF(B10="fog tip","","Yes") -> Yes | W42: yes1.5 in | X42: NH | Y42: NPSH | Z42: FDNY | AA42: NYCORP | AB42: PCT | AC42: Storz | AD42: Custom | AI42: yes1.5 in | AJ42: FDNY | AK42: yes1.5 inFDNY | AO42: 1417 | AP42: 156 | AZ42: Solid Bore | BA42: 1-1/16" | BB42: 1446 | BC42: 2.5 in | BD42: 1.0625 | BR42: Fog Nozzle | BS42: 4863 | BT42: 125 | BU42: 75 | BV42: Fog Nozzle 125 @ 75 | BZ42: Fog Tip 175 @ 75 | CA42: 4866 | CD42: Fog Tip 175 @ 75 4866 | CI42: Fog Tip 125 @ 75 4866 | CT42: Solid Bore 2.5 in | CU42: 1-1/16" | CV42: 2.5 in | CW42: Solid Bore 2.5 in | DB42: Solid Bore Yes 2.5 in 1-1/16" No (Std) | DC42: Solid Bore Yes 2.5 in | DD42: Solid Bore | DE42: 1-1/16" | DF42: 1446 | DG42: 2.5 in | DH42: 1.0625 | DI42: Yes | DJ42: No (Std) | DK42: Stack Tips No 2.5 in | DM42: 1 | DY42: Solid Bore Yes 1.5 in 1-1/8" No (Std) | DZ42: 1445 | ED42: 1-1/16" | EE42: 1_1_16_ | EG42: Solid Bore | EH42: 1-1/16" | EI42: 1446 | EJ42: 2.5 in | EK42: 1.0625 | EL42: Yes | EM42: Solid Bore 2.5 in Yes 1-1/16" 1446 | EO42: Solid Bore 2.5 in Yes 1-1/16" 1446 | EW42: Solid Bore | EX42: 1-1/16" | EY42: 1446 | EZ42: Solid Bore1-1/16"1446 | FB42: Solid Bore1-1/16"1446
F43: 2.5 INCustom | M43: 1446 | N43: Yes | O43: 1446 | Q43: Fog Nozzle 12-53 | R43: 1602 | W43: yes2.5 IN | X43: NH | Y43: NPSH | Z43: FDNY | AA43: NYCORP | AB43: PITT6 | AC43: BAT | AD43: CSA | AE43: QST | AF43: BIM | AG43: Storz | AH43: Custom | AI43: yes1.5 in | AJ43: NYCORP | AK43: yes1.5 inNYCORP | AO43: 1420 | AP43: 500 | AZ43: Solid Bore | BA43: 1-1/8" | BB43: 1446 | BC43: 2.5 in | BD43: 1.125 | BR43: Fog Nozzle | BS43: 4863 | BT43: 150 | BU43: 75 | BV43: Fog Nozzle 150 @ 75 | BZ43: Fog Tip 185 @ 50 | CA43: 4866 | CD43: Fog Tip 185 @ 50 4866 | CI43: Fog Tip 150 @ 100 4866 | CT43: Solid Bore 2.5 in | CU43: 1-1/8" | CV43: 2.5 in | CW43: Solid Bore 2.5 in | DB43: Solid Bore Yes 2.5 in 1-1/8" No (Std) | DC43: Solid Bore Yes 2.5 in | DD43: Solid Bore | DE43: 1-1/8" | DF43: 1446 | DG43: 2.5 in | DH43: 1.125 | DI43: Yes | DJ43: No (Std) | DK43: Stack Tips No 2.5 in | DM43: 1 | DY43: Solid Bore Yes 1.5 in 1-3/16" No (Std) | DZ43: 1445 | ED43: 1-1/8" | EE43: 1_1_8_ | EG43: Solid Bore | EH43: 1-1/8" | EI43: 1446 | EJ43: 2.5 in | EK43: 1.125 | EL43: Yes | EM43: Solid Bore 2.5 in Yes 1-1/8" 1446 | EO43: Solid Bore 2.5 in Yes 1-1/8" 1446 | EW43: Solid Bore | EX43: 1-1/8" | EY43: 1446 | EZ43: Solid Bore1-1/8"1446 | FB43: Solid Bore1-1/8"1446
